{"text_format":"1","workbook":"xlsx","n_sheets":10,"sheets":["sm_b","params","asg_istisna","params_BORD_1","params_BORD_2","2026","2025","2024","2023","readme"],"not_rendered":{"charts":0,"images":2,"macros":1,"external_links":0,"defined_names":121,"comments":0,"pivot_tables":0},"unopened":[],"bounds":{"document_bytes":16777216,"sheet_cells":100000,"rows_first":2000,"rows_last":500,"rows_between":2000,"halvings":0,"cell_chars":16384,"cell_head_chars":4096},"cells_cut":0,"cells_raw":0,"read":"whole","date_system":"1900"}

{"sheet":"sm_b","index":0,"n_rows":31,"n_cols":21,"rows_kept":31,"cut":false,"hidden":false,"merged":[[0,7,1,7],[0,8,1,8],[21,2,21,6],[24,2,24,4],[26,2,26,4],[28,2,28,4],[30,2,30,4],[24,8,24,10],[26,8,26,10],[28,8,28,10],[30,8,30,10],[24,5,24,6],[26,5,26,6],[28,5,28,6],[30,5,30,6],[24,11,24,12],[26,11,26,12],[28,11,28,12],[30,11,30,12],[21,8,21,12]]}
[null,"YIL","İŞYERİ İMALAT","STATU","KANUN","ENGELLİ DURUMU","EGİTİM DURUMU",50000,"NET ÜCRET",null,"İŞE GİRİŞ TARİHİ","FESİH TARİHİ","AYLIK BRÜT ÜCRET","KGVM"]
[null,2025,"DEĞİL","NORMAL","05510","HAYIR","Diğer",null,null,null,36526,{"$f":"TODAY()","v":46254},{"$f":"_xlfn.XLOOKUP(TRUE, C5:C16<>\"\", C5:C16, \"\", 0, -1)","v":74042.980625214128},{"$f":"_xlfn.XLOOKUP(TRUE, G5:G16<>\"\", G5:G16, \"\", 0, -1)","v":723202.7038243789}]
[null,null,null,null,null,null,null,null,null,null,{"$f":"DATE(B2, 1, 1)","v":45658},{"$f":"DATE(B2, 12, 31)","v":46022}]
[null,"AY","BRÜT ÜCRET","SGK MATRAH","SGK İŞÇİ","VERGİ MATRAHI","KÜMÜLATİF GV MATRAH","HESAPLANAN GELİR VERGİSİ","AÜ GV İSTİSNA","KESİLECEK GELİR VERGİSİ","GV MUAFİYET","HESAPLANAN DAMGA VERGİSİ","AÜ DV İSTİSNA","KESİLECEK DAMGA VERGİSİ","DV MUAFİYET","NET ÜCRET","SGK İŞVEREN","SGK TEŞVİK","İŞVEREN TOPLAM MALİYET","SGK","VERGİ"]
[{"$f":"IF(G2=\"Y. Lisans\",0.9,\nIF(G2=\"Doktora\",0.95,0.8))","v":0.8},"OCAK",65024.852086276587,{"$f":"IF(bordro_hesaplama_tablosu[[#This Row],[BRÜT ÜCRET]]>=SGK_TAVAN_1,SGK_TAVAN_1,bordro_hesaplama_tablosu[[#This Row],[BRÜT ÜCRET]])","v":65024.852086276587},{"$f":"bordro_hesaplama_tablosu[[#This Row],[SGK MATRAH]]*IF(STATU=\"NORMAL\",PRIM_KEST_ORAN_ISCI_1,sgdp_isci)","v":9753.7278129414899},{"$f":"bordro_hesaplama_tablosu[[#This Row],[BRÜT ÜCRET]]-bordro_hesaplama_tablosu[[#This Row],[SGK İŞÇİ]]-IFERROR(VLOOKUP(ENGELLI_DURUMU,secili_params_ucret_turleri_1[[Ücret Türü]:[Aylık]],2,),0)","v":55271.124273335095},{"$f":"bordro_hesaplama_tablosu[[#This Row],[VERGİ MATRAHI]]","v":55271.124273335095},{"$f":"MAX((bordro_hesaplama_tablosu[[#This Row],[KÜMÜLATİF GV MATRAH]]-vergi_dilimi_4_1)*0.05,0)+MAX((bordro_hesaplama_tablosu[[#This Row],[KÜMÜLATİF GV MATRAH]]-vergi_dilimi_3_1)*0.08,0)+MAX((bordro_hesaplama_tablosu[[#This Row],[KÜMÜLATİF GV MATRAH]]-vergi_dilimi_2_1)*0.07,0)+MAX((bordro_hesaplama_tablosu[[#This Row],[KÜMÜLATİF GV MATRAH]]-vergi_dilimi_1_1)*0.05,0)+bordro_hesaplama_tablosu[[#This Row],[KÜMÜLATİF GV MATRAH]]*0.15-(MAX((vergi_dilimi_0-vergi_dilimi_4_1)*0.05,0)+(MAX((vergi_dilimi_0-vergi_dilimi_3_1)*0.08,0)+MAX((vergi_dilimi_0-vergi_dilimi_2_1)*0.07,0)+MAX((vergi_dilimi_0-vergi_dilimi_1_1)*0.05,0)+vergi_dilimi_0*0.15))","v":8290.668641000264},{"$f":"MIN(VLOOKUP(bordro_hesaplama_tablosu[[#This Row],[AY]],asgari_ucrt_istisna[],6,),bordro_hesaplama_tablosu[[#This Row],[HESAPLANAN GELİR VERGİSİ]])","v":3315.7012499999996},{"$f":"MAX(bordro_hesaplama_tablosu[[#This Row],[HESAPLANAN GELİR VERGİSİ]]-bordro_hesaplama_tablosu[[#This Row],[AÜ GV İSTİSNA]],0)","v":4974.9673910002639},{"$f":"(STATU<>\"EMEKLİ\") * bordro_hesaplama_tablosu[[#This Row],[KESİLECEK GELİR VERGİSİ]] * ((KANUN=\"04691\") + (KANUN=\"05746\") * $A$5)","v":0},{"$f":"(bordro_hesaplama_tablosu[[#This Row],[BRÜT ÜCRET]]*damga_vergisi_orani)","v":493.5386273348393},{"$f":"MIN(VLOOKUP(bordro_hesaplama_tablosu[[#This Row],[AY]],asgari_ucrt_istisna[],7,),bordro_hesaplama_tablosu[[#This Row],[HESAPLANAN DAMGA VERGİSİ]])","v":197.38174500000002},{"$f":"bordro_hesaplama_tablosu[[#This Row],[HESAPLANAN DAMGA VERGİSİ]]-bordro_hesaplama_tablosu[[#This Row],[AÜ DV İSTİSNA]]","v":296.15688233483928},{"$f":"AND(STATU<>\"EMEKLİ\", OR(KANUN=\"04691\", KANUN=\"05746\")) * bordro_hesaplama_tablosu[[#This Row],[KESİLECEK DAMGA VERGİSİ]]","v":0},{"$f":"bordro_hesaplama_tablosu[[#This Row],[BRÜT ÜCRET]]-bordro_hesaplama_tablosu[[#This Row],[SGK İŞÇİ]]-bordro_hesaplama_tablosu[[#This Row],[KESİLECEK GELİR VERGİSİ]]-bordro_hesaplama_tablosu[[#This Row],[KESİLECEK DAMGA VERGİSİ]]","v":49999.999999999993},{"$f":"bordro_hesaplama_tablosu[[#This Row],[SGK MATRAH]]*IF(STATU=\"NORMAL\",PRIM_KEST_ORAN_ISVEREN_1,sgdp_isveren_1)","v":14793.153849627925},{"$f":"IFERROR(\n    _xlfn.LET(\n        _xlpm._f_kontrol, AND(KANUN <> \"00000\", STATU <> \"EMEKLİ\"),\n        _xlpm._is_imalat, AND(_xlpm._f_kontrol, IMALAT = \"İMALAT\"),\n        _xlpm._is_degil, AND(_xlpm._f_kontrol, IMALAT = \"DEĞİL\"),\n\n        _xlpm._hazine, IF(_xlpm._is_imalat, hazine_indirimi_imalat_1, IF(_xlpm._is_degil, hazine_indirimi_1, 0)),\n\n        _xlpm._matrah, bordro_hesaplama_tablosu[[#This Row],[SGK MATRAH]],\n        _xlpm._asgari_30, GUNLUK_BRUT_ASGARI_1 * 30,\n\n        _xlpm._net_isveren_oran, PRIM_KEST_ORAN_ISVEREN_1 - ISSIZLIK_ISVEREN_1,\n        _xlpm._oran_imalat_fark, IF(_xlpm._is_imalat, _xlpm._net_isveren_oran - hazine_indirimi_imalat_1, _xlpm._net_isveren_oran - hazine_indirimi_1),\n        IF(\n            _xlpm._f_kontrol,\n        _xlfn.IFS(\n            KANUN = \"05510\", _xlpm._matrah * _xlpm._hazine,\n            OR(KANUN = \"05746\", KANUN = \"04691\"), _xlpm._matrah * (_xlpm._net_isveren_oran + _xlpm._hazine) / 2,\n            KANUN = \"06111\", _xlpm._matrah * (_xlpm._net_isveren_oran),\n            KANUN = \"03294\", IF(_xlpm._matrah / 30 > GUNLUK_BRUT_ASGARI_1, (_xlpm._asgari_30 * _xlpm._oran_imalat_fark) + (_xlpm._matrah * _xlpm._hazine), (_xlpm._matrah * _xlpm._oran_imalat_fark) + (_xlpm._matrah * _xlpm._hazine)),\n            KANUN = \"16322\", (_xlpm._asgari_30 * (_xlpm._net_isveren_oran - _xlpm._hazine)) + (_xlpm._matrah * _xlpm._hazine),\n            KANUN = \"26322\", (_xlpm._asgari_30 * (PRIM_KEST_ORAN_ISVEREN_1 + PRIM_KEST_ORAN_ISCI_1 - ISSIZLIK_ISVEREN_1 - ISSIZLIK_ISCI_1 - _xlpm._hazine)) + (_xlpm._matrah * _xlpm._hazine),\n            KANUN = \"14857\", (_xlpm._asgari_30 * _xlpm._oran_imalat_fark) + (_xlpm._matrah * _xlpm._hazine),\n            TRUE, 0\n        ),\n       0\n     )\n    ),\n    0\n)","v":2600.9940834510635},{"$f":"bordro_hesaplama_tablosu[[#This Row],[BRÜT ÜCRET]]+bordro_hesaplama_tablosu[[#This Row],[SGK İŞVEREN]]-bordro_hesaplama_tablosu[[#This Row],[SGK TEŞVİK]]-bordro_hesaplama_tablosu[[#This Row],[GV MUAFİYET]]-bordro_hesaplama_tablosu[[#This Row],[DV MUAFİYET]]","v":77217.011852453448},{"$f":"bordro_hesaplama_tablosu[[#This Row],[SGK İŞÇİ]]+bordro_hesaplama_tablosu[[#This Row],[SGK İŞVEREN]]-bordro_hesaplama_tablosu[[#This Row],[SGK TEŞVİK]]","v":21945.887579118353},{"$f":"(bordro_hesaplama_tablosu[[#This Row],[KESİLECEK GELİR VERGİSİ]]-bordro_hesaplama_tablosu[[#This Row],[GV MUAFİYET]])+(bordro_hesaplama_tablosu[[#This Row],[KESİLECEK DAMGA VERGİSİ]]-bordro_hesaplama_tablosu[[#This Row],[DV MUAFİYET]])","v":5271.1242733351028}]
[null,"ŞUBAT",65024.852086276587,{"$f":"IF(bordro_hesaplama_tablosu[[#This Row],[BRÜT ÜCRET]]>=SGK_TAVAN_1,SGK_TAVAN_1,bordro_hesaplama_tablosu[[#This Row],[BRÜT ÜCRET]])","v":65024.852086276587},{"$f":"bordro_hesaplama_tablosu[[#This Row],[SGK MATRAH]]*IF(STATU=\"NORMAL\",PRIM_KEST_ORAN_ISCI_1,sgdp_isci)","v":9753.7278129414899},{"$f":"bordro_hesaplama_tablosu[[#This Row],[BRÜT ÜCRET]]-bordro_hesaplama_tablosu[[#This Row],[SGK İŞÇİ]]-IFERROR(VLOOKUP(ENGELLI_DURUMU,secili_params_ucret_turleri_1[[Ücret Türü]:[Aylık]],2,),0)","v":55271.124273335095},{"$f":"bordro_hesaplama_tablosu[[#This Row],[VERGİ MATRAHI]]+G5","v":110542.24854667019},{"$f":"MAX((G6-vergi_dilimi_4_1)*0.05,0)+MAX((G6-vergi_dilimi_3_1)*0.08,0)+MAX((G6-vergi_dilimi_2_1)*0.07,0)+MAX((G6-vergi_dilimi_1_1)*0.05,0)+G6*0.15-(MAX((G5-vergi_dilimi_4_1)*0.05,0)+(MAX((G5-vergi_dilimi_3_1)*0.08,0)+MAX((G5-vergi_dilimi_2_1)*0.07,0)+MAX((G5-vergi_dilimi_1_1)*0.05,0)+G5*0.15))","v":8290.668641000264},{"$f":"MIN(VLOOKUP(bordro_hesaplama_tablosu[[#This Row],[AY]],asgari_ucrt_istisna[],6,),bordro_hesaplama_tablosu[[#This Row],[HESAPLANAN GELİR VERGİSİ]])","v":3315.7012499999996},{"$f":"MAX(bordro_hesaplama_tablosu[[#This Row],[HESAPLANAN GELİR VERGİSİ]]-bordro_hesaplama_tablosu[[#This Row],[AÜ GV İSTİSNA]],0)","v":4974.9673910002639},{"$f":"(STATU<>\"EMEKLİ\") * bordro_hesaplama_tablosu[[#This Row],[KESİLECEK GELİR VERGİSİ]] * ((KANUN=\"04691\") + (KANUN=\"05746\") * $A$5)","v":0},{"$f":"(bordro_hesaplama_tablosu[[#This Row],[BRÜT ÜCRET]]*damga_vergisi_orani)","v":493.5386273348393},{"$f":"MIN(VLOOKUP(bordro_hesaplama_tablosu[[#This Row],[AY]],asgari_ucrt_istisna[],7,),bordro_hesaplama_tablosu[[#This Row],[HESAPLANAN DAMGA VERGİSİ]])","v":197.38174500000002},{"$f":"bordro_hesaplama_tablosu[[#This Row],[HESAPLANAN DAMGA VERGİSİ]]-bordro_hesaplama_tablosu[[#This Row],[AÜ DV İSTİSNA]]","v":296.15688233483928},{"$f":"AND(STATU<>\"EMEKLİ\", OR(KANUN=\"04691\", KANUN=\"05746\")) * bordro_hesaplama_tablosu[[#This Row],[KESİLECEK DAMGA VERGİSİ]]","v":0},{"$f":"bordro_hesaplama_tablosu[[#This Row],[BRÜT ÜCRET]]-bordro_hesaplama_tablosu[[#This Row],[SGK İŞÇİ]]-bordro_hesaplama_tablosu[[#This Row],[KESİLECEK GELİR VERGİSİ]]-bordro_hesaplama_tablosu[[#This Row],[KESİLECEK DAMGA VERGİSİ]]","v":49999.999999999993},{"$f":"bordro_hesaplama_tablosu[[#This Row],[SGK MATRAH]]*IF(STATU=\"NORMAL\",PRIM_KEST_ORAN_ISVEREN_1,sgdp_isveren_1)","v":14793.153849627925},{"$f":"IFERROR(\n    _xlfn.LET(\n        _xlpm._f_kontrol, AND(KANUN <> \"00000\", STATU <> \"EMEKLİ\"),\n        _xlpm._is_imalat, AND(_xlpm._f_kontrol, IMALAT = \"İMALAT\"),\n        _xlpm._is_degil, AND(_xlpm._f_kontrol, IMALAT = \"DEĞİL\"),\n\n        _xlpm._hazine, IF(_xlpm._is_imalat, hazine_indirimi_imalat_1, IF(_xlpm._is_degil, hazine_indirimi_1, 0)),\n\n        _xlpm._matrah, bordro_hesaplama_tablosu[[#This Row],[SGK MATRAH]],\n        _xlpm._asgari_30, GUNLUK_BRUT_ASGARI_1 * 30,\n\n        _xlpm._net_isveren_oran, PRIM_KEST_ORAN_ISVEREN_1 - ISSIZLIK_ISVEREN_1,\n        _xlpm._oran_imalat_fark, IF(_xlpm._is_imalat, _xlpm._net_isveren_oran - hazine_indirimi_imalat_1, _xlpm._net_isveren_oran - hazine_indirimi_1),\n        IF(\n            _xlpm._f_kontrol,\n        _xlfn.IFS(\n            KANUN = \"05510\", _xlpm._matrah * _xlpm._hazine,\n            OR(KANUN = \"05746\", KANUN = \"04691\"), _xlpm._matrah * (_xlpm._net_isveren_oran + _xlpm._hazine) / 2,\n            KANUN = \"06111\", _xlpm._matrah * (_xlpm._net_isveren_oran),\n            KANUN = \"03294\", IF(_xlpm._matrah / 30 > GUNLUK_BRUT_ASGARI_1, (_xlpm._asgari_30 * _xlpm._oran_imalat_fark) + (_xlpm._matrah * _xlpm._hazine), (_xlpm._matrah * _xlpm._oran_imalat_fark) + (_xlpm._matrah * _xlpm._hazine)),\n            KANUN = \"16322\", (_xlpm._asgari_30 * (_xlpm._net_isveren_oran - _xlpm._hazine)) + (_xlpm._matrah * _xlpm._hazine),\n            KANUN = \"26322\", (_xlpm._asgari_30 * (PRIM_KEST_ORAN_ISVEREN_1 + PRIM_KEST_ORAN_ISCI_1 - ISSIZLIK_ISVEREN_1 - ISSIZLIK_ISCI_1 - _xlpm._hazine)) + (_xlpm._matrah * _xlpm._hazine),\n            KANUN = \"14857\", (_xlpm._asgari_30 * _xlpm._oran_imalat_fark) + (_xlpm._matrah * _xlpm._hazine),\n            TRUE, 0\n        ),\n       0\n     )\n    ),\n    0\n)","v":2600.9940834510635},{"$f":"bordro_hesaplama_tablosu[[#This Row],[BRÜT ÜCRET]]+bordro_hesaplama_tablosu[[#This Row],[SGK İŞVEREN]]-bordro_hesaplama_tablosu[[#This Row],[SGK TEŞVİK]]-bordro_hesaplama_tablosu[[#This Row],[GV MUAFİYET]]-bordro_hesaplama_tablosu[[#This Row],[DV MUAFİYET]]","v":77217.011852453448},{"$f":"bordro_hesaplama_tablosu[[#This Row],[SGK İŞÇİ]]+bordro_hesaplama_tablosu[[#This Row],[SGK İŞVEREN]]-bordro_hesaplama_tablosu[[#This Row],[SGK TEŞVİK]]","v":21945.887579118353},{"$f":"(bordro_hesaplama_tablosu[[#This Row],[KESİLECEK GELİR VERGİSİ]]-bordro_hesaplama_tablosu[[#This Row],[GV MUAFİYET]])+(bordro_hesaplama_tablosu[[#This Row],[KESİLECEK DAMGA VERGİSİ]]-bordro_hesaplama_tablosu[[#This Row],[DV MUAFİYET]])","v":5271.1242733351028}]
[null,"MART",65605.849752879221,{"$f":"IF(bordro_hesaplama_tablosu[[#This Row],[BRÜT ÜCRET]]>=SGK_TAVAN_1,SGK_TAVAN_1,bordro_hesaplama_tablosu[[#This Row],[BRÜT ÜCRET]])","v":65605.849752879221},{"$f":"bordro_hesaplama_tablosu[[#This Row],[SGK MATRAH]]*IF(STATU=\"NORMAL\",PRIM_KEST_ORAN_ISCI_1,sgdp_isci)","v":9840.877462931885},{"$f":"bordro_hesaplama_tablosu[[#This Row],[BRÜT ÜCRET]]-bordro_hesaplama_tablosu[[#This Row],[SGK İŞÇİ]]-IFERROR(VLOOKUP(ENGELLI_DURUMU,secili_params_ucret_turleri_1[[Ücret Türü]:[Aylık]],2,),0)","v":55764.972289947335},{"$f":"bordro_hesaplama_tablosu[[#This Row],[VERGİ MATRAHI]]+G6","v":166307.22083661752},{"$f":"MAX((G7-vergi_dilimi_4_1)*0.05,0)+MAX((G7-vergi_dilimi_3_1)*0.08,0)+MAX((G7-vergi_dilimi_2_1)*0.07,0)+MAX((G7-vergi_dilimi_1_1)*0.05,0)+G7*0.15-(MAX((G6-vergi_dilimi_4_1)*0.05,0)+(MAX((G6-vergi_dilimi_3_1)*0.08,0)+MAX((G6-vergi_dilimi_2_1)*0.07,0)+MAX((G6-vergi_dilimi_1_1)*0.05,0)+G6*0.15))","v":8780.1068853229735},{"$f":"MIN(VLOOKUP(bordro_hesaplama_tablosu[[#This Row],[AY]],asgari_ucrt_istisna[],6,),bordro_hesaplama_tablosu[[#This Row],[HESAPLANAN GELİR VERGİSİ]])","v":3315.7012499999992},{"$f":"MAX(bordro_hesaplama_tablosu[[#This Row],[HESAPLANAN GELİR VERGİSİ]]-bordro_hesaplama_tablosu[[#This Row],[AÜ GV İSTİSNA]],0)","v":5464.4056353229744},{"$f":"(STATU<>\"EMEKLİ\") * bordro_hesaplama_tablosu[[#This Row],[KESİLECEK GELİR VERGİSİ]] * ((KANUN=\"04691\") + (KANUN=\"05746\") * $A$5)","v":0},{"$f":"(bordro_hesaplama_tablosu[[#This Row],[BRÜT ÜCRET]]*damga_vergisi_orani)","v":497.94839962435333},{"$f":"MIN(VLOOKUP(bordro_hesaplama_tablosu[[#This Row],[AY]],asgari_ucrt_istisna[],7,),bordro_hesaplama_tablosu[[#This Row],[HESAPLANAN DAMGA VERGİSİ]])","v":197.38174500000002},{"$f":"bordro_hesaplama_tablosu[[#This Row],[HESAPLANAN DAMGA VERGİSİ]]-bordro_hesaplama_tablosu[[#This Row],[AÜ DV İSTİSNA]]","v":300.5666546243533},{"$f":"AND(STATU<>\"EMEKLİ\", OR(KANUN=\"04691\", KANUN=\"05746\")) * bordro_hesaplama_tablosu[[#This Row],[KESİLECEK DAMGA VERGİSİ]]","v":0},{"$f":"bordro_hesaplama_tablosu[[#This Row],[BRÜT ÜCRET]]-bordro_hesaplama_tablosu[[#This Row],[SGK İŞÇİ]]-bordro_hesaplama_tablosu[[#This Row],[KESİLECEK GELİR VERGİSİ]]-bordro_hesaplama_tablosu[[#This Row],[KESİLECEK DAMGA VERGİSİ]]","v":50000.000000000007},{"$f":"bordro_hesaplama_tablosu[[#This Row],[SGK MATRAH]]*IF(STATU=\"NORMAL\",PRIM_KEST_ORAN_ISVEREN_1,sgdp_isveren_1)","v":14925.330818780023},{"$f":"IFERROR(\n    _xlfn.LET(\n        _xlpm._f_kontrol, AND(KANUN <> \"00000\", STATU <> \"EMEKLİ\"),\n        _xlpm._is_imalat, AND(_xlpm._f_kontrol, IMALAT = \"İMALAT\"),\n        _xlpm._is_degil, AND(_xlpm._f_kontrol, IMALAT = \"DEĞİL\"),\n\n        _xlpm._hazine, IF(_xlpm._is_imalat, hazine_indirimi_imalat_1, IF(_xlpm._is_degil, hazine_indirimi_1, 0)),\n\n        _xlpm._matrah, bordro_hesaplama_tablosu[[#This Row],[SGK MATRAH]],\n        _xlpm._asgari_30, GUNLUK_BRUT_ASGARI_1 * 30,\n\n        _xlpm._net_isveren_oran, PRIM_KEST_ORAN_ISVEREN_1 - ISSIZLIK_ISVEREN_1,\n        _xlpm._oran_imalat_fark, IF(_xlpm._is_imalat, _xlpm._net_isveren_oran - hazine_indirimi_imalat_1, _xlpm._net_isveren_oran - hazine_indirimi_1),\n        IF(\n            _xlpm._f_kontrol,\n        _xlfn.IFS(\n            KANUN = \"05510\", _xlpm._matrah * _xlpm._hazine,\n            OR(KANUN = \"05746\", KANUN = \"04691\"), _xlpm._matrah * (_xlpm._net_isveren_oran + _xlpm._hazine) / 2,\n            KANUN = \"06111\", _xlpm._matrah * (_xlpm._net_isveren_oran),\n            KANUN = \"03294\", IF(_xlpm._matrah / 30 > GUNLUK_BRUT_ASGARI_1, (_xlpm._asgari_30 * _xlpm._oran_imalat_fark) + (_xlpm._matrah * _xlpm._hazine), (_xlpm._matrah * _xlpm._oran_imalat_fark) + (_xlpm._matrah * _xlpm._hazine)),\n            KANUN = \"16322\", (_xlpm._asgari_30 * (_xlpm._net_isveren_oran - _xlpm._hazine)) + (_xlpm._matrah * _xlpm._hazine),\n            KANUN = \"26322\", (_xlpm._asgari_30 * (PRIM_KEST_ORAN_ISVEREN_1 + PRIM_KEST_ORAN_ISCI_1 - ISSIZLIK_ISVEREN_1 - ISSIZLIK_ISCI_1 - _xlpm._hazine)) + (_xlpm._matrah * _xlpm._hazine),\n            KANUN = \"14857\", (_xlpm._asgari_30 * _xlpm._oran_imalat_fark) + (_xlpm._matrah * _xlpm._hazine),\n            TRUE, 0\n        ),\n       0\n     )\n    ),\n    0\n)","v":2624.233990115169},{"$f":"bordro_hesaplama_tablosu[[#This Row],[BRÜT ÜCRET]]+bordro_hesaplama_tablosu[[#This Row],[SGK İŞVEREN]]-bordro_hesaplama_tablosu[[#This Row],[SGK TEŞVİK]]-bordro_hesaplama_tablosu[[#This Row],[GV MUAFİYET]]-bordro_hesaplama_tablosu[[#This Row],[DV MUAFİYET]]","v":77906.946581544078},{"$f":"bordro_hesaplama_tablosu[[#This Row],[SGK İŞÇİ]]+bordro_hesaplama_tablosu[[#This Row],[SGK İŞVEREN]]-bordro_hesaplama_tablosu[[#This Row],[SGK TEŞVİK]]","v":22141.97429159674},{"$f":"(bordro_hesaplama_tablosu[[#This Row],[KESİLECEK GELİR VERGİSİ]]-bordro_hesaplama_tablosu[[#This Row],[GV MUAFİYET]])+(bordro_hesaplama_tablosu[[#This Row],[KESİLECEK DAMGA VERGİSİ]]-bordro_hesaplama_tablosu[[#This Row],[DV MUAFİYET]])","v":5764.9722899473272}]
[null,"NİSAN",69134.779383114452,{"$f":"IF(bordro_hesaplama_tablosu[[#This Row],[BRÜT ÜCRET]]>=SGK_TAVAN_1,SGK_TAVAN_1,bordro_hesaplama_tablosu[[#This Row],[BRÜT ÜCRET]])","v":69134.779383114452},{"$f":"bordro_hesaplama_tablosu[[#This Row],[SGK MATRAH]]*IF(STATU=\"NORMAL\",PRIM_KEST_ORAN_ISCI_1,sgdp_isci)","v":10370.216907467169},{"$f":"bordro_hesaplama_tablosu[[#This Row],[BRÜT ÜCRET]]-bordro_hesaplama_tablosu[[#This Row],[SGK İŞÇİ]]-IFERROR(VLOOKUP(ENGELLI_DURUMU,secili_params_ucret_turleri_1[[Ücret Türü]:[Aylık]],2,),0)","v":58764.562475647283},{"$f":"bordro_hesaplama_tablosu[[#This Row],[VERGİ MATRAHI]]+G7","v":225071.7833122648},{"$f":"MAX((G8-vergi_dilimi_4_1)*0.05,0)+MAX((G8-vergi_dilimi_3_1)*0.08,0)+MAX((G8-vergi_dilimi_2_1)*0.07,0)+MAX((G8-vergi_dilimi_1_1)*0.05,0)+G8*0.15-(MAX((G7-vergi_dilimi_4_1)*0.05,0)+(MAX((G7-vergi_dilimi_3_1)*0.08,0)+MAX((G7-vergi_dilimi_2_1)*0.07,0)+MAX((G7-vergi_dilimi_1_1)*0.05,0)+G7*0.15))","v":11752.912495129454},{"$f":"MIN(VLOOKUP(bordro_hesaplama_tablosu[[#This Row],[AY]],asgari_ucrt_istisna[],6,),bordro_hesaplama_tablosu[[#This Row],[HESAPLANAN GELİR VERGİSİ]])","v":3315.7012500000001},{"$f":"MAX(bordro_hesaplama_tablosu[[#This Row],[HESAPLANAN GELİR VERGİSİ]]-bordro_hesaplama_tablosu[[#This Row],[AÜ GV İSTİSNA]],0)","v":8437.2112451294543},{"$f":"(STATU<>\"EMEKLİ\") * bordro_hesaplama_tablosu[[#This Row],[KESİLECEK GELİR VERGİSİ]] * ((KANUN=\"04691\") + (KANUN=\"05746\") * $A$5)","v":0},{"$f":"(bordro_hesaplama_tablosu[[#This Row],[BRÜT ÜCRET]]*damga_vergisi_orani)","v":524.73297551783867},{"$f":"MIN(VLOOKUP(bordro_hesaplama_tablosu[[#This Row],[AY]],asgari_ucrt_istisna[],7,),bordro_hesaplama_tablosu[[#This Row],[HESAPLANAN DAMGA VERGİSİ]])","v":197.38174500000002},{"$f":"bordro_hesaplama_tablosu[[#This Row],[HESAPLANAN DAMGA VERGİSİ]]-bordro_hesaplama_tablosu[[#This Row],[AÜ DV İSTİSNA]]","v":327.35123051783864},{"$f":"AND(STATU<>\"EMEKLİ\", OR(KANUN=\"04691\", KANUN=\"05746\")) * bordro_hesaplama_tablosu[[#This Row],[KESİLECEK DAMGA VERGİSİ]]","v":0},{"$f":"bordro_hesaplama_tablosu[[#This Row],[BRÜT ÜCRET]]-bordro_hesaplama_tablosu[[#This Row],[SGK İŞÇİ]]-bordro_hesaplama_tablosu[[#This Row],[KESİLECEK GELİR VERGİSİ]]-bordro_hesaplama_tablosu[[#This Row],[KESİLECEK DAMGA VERGİSİ]]","v":49999.999999999993},{"$f":"bordro_hesaplama_tablosu[[#This Row],[SGK MATRAH]]*IF(STATU=\"NORMAL\",PRIM_KEST_ORAN_ISVEREN_1,sgdp_isveren_1)","v":15728.162309658539},{"$f":"IFERROR(\n    _xlfn.LET(\n        _xlpm._f_kontrol, AND(KANUN <> \"00000\", STATU <> \"EMEKLİ\"),\n        _xlpm._is_imalat, AND(_xlpm._f_kontrol, IMALAT = \"İMALAT\"),\n        _xlpm._is_degil, AND(_xlpm._f_kontrol, IMALAT = \"DEĞİL\"),\n\n        _xlpm._hazine, IF(_xlpm._is_imalat, hazine_indirimi_imalat_1, IF(_xlpm._is_degil, hazine_indirimi_1, 0)),\n\n        _xlpm._matrah, bordro_hesaplama_tablosu[[#This Row],[SGK MATRAH]],\n        _xlpm._asgari_30, GUNLUK_BRUT_ASGARI_1 * 30,\n\n        _xlpm._net_isveren_oran, PRIM_KEST_ORAN_ISVEREN_1 - ISSIZLIK_ISVEREN_1,\n        _xlpm._oran_imalat_fark, IF(_xlpm._is_imalat, _xlpm._net_isveren_oran - hazine_indirimi_imalat_1, _xlpm._net_isveren_oran - hazine_indirimi_1),\n        IF(\n            _xlpm._f_kontrol,\n        _xlfn.IFS(\n            KANUN = \"05510\", _xlpm._matrah * _xlpm._hazine,\n            OR(KANUN = \"05746\", KANUN = \"04691\"), _xlpm._matrah * (_xlpm._net_isveren_oran + _xlpm._hazine) / 2,\n            KANUN = \"06111\", _xlpm._matrah * (_xlpm._net_isveren_oran),\n            KANUN = \"03294\", IF(_xlpm._matrah / 30 > GUNLUK_BRUT_ASGARI_1, (_xlpm._asgari_30 * _xlpm._oran_imalat_fark) + (_xlpm._matrah * _xlpm._hazine), (_xlpm._matrah * _xlpm._oran_imalat_fark) + (_xlpm._matrah * _xlpm._hazine)),\n            KANUN = \"16322\", (_xlpm._asgari_30 * (_xlpm._net_isveren_oran - _xlpm._hazine)) + (_xlpm._matrah * _xlpm._hazine),\n            KANUN = \"26322\", (_xlpm._asgari_30 * (PRIM_KEST_ORAN_ISVEREN_1 + PRIM_KEST_ORAN_ISCI_1 - ISSIZLIK_ISVEREN_1 - ISSIZLIK_ISCI_1 - _xlpm._hazine)) + (_xlpm._matrah * _xlpm._hazine),\n            KANUN = \"14857\", (_xlpm._asgari_30 * _xlpm._oran_imalat_fark) + (_xlpm._matrah * _xlpm._hazine),\n            TRUE, 0\n        ),\n       0\n     )\n    ),\n    0\n)","v":2765.3911753245779},{"$f":"bordro_hesaplama_tablosu[[#This Row],[BRÜT ÜCRET]]+bordro_hesaplama_tablosu[[#This Row],[SGK İŞVEREN]]-bordro_hesaplama_tablosu[[#This Row],[SGK TEŞVİK]]-bordro_hesaplama_tablosu[[#This Row],[GV MUAFİYET]]-bordro_hesaplama_tablosu[[#This Row],[DV MUAFİYET]]","v":82097.550517448413},{"$f":"bordro_hesaplama_tablosu[[#This Row],[SGK İŞÇİ]]+bordro_hesaplama_tablosu[[#This Row],[SGK İŞVEREN]]-bordro_hesaplama_tablosu[[#This Row],[SGK TEŞVİK]]","v":23332.988041801131},{"$f":"(bordro_hesaplama_tablosu[[#This Row],[KESİLECEK GELİR VERGİSİ]]-bordro_hesaplama_tablosu[[#This Row],[GV MUAFİYET]])+(bordro_hesaplama_tablosu[[#This Row],[KESİLECEK DAMGA VERGİSİ]]-bordro_hesaplama_tablosu[[#This Row],[DV MUAFİYET]])","v":8764.5624756472935}]
[null,"MAYIS",69134.779383114495,{"$f":"IF(bordro_hesaplama_tablosu[[#This Row],[BRÜT ÜCRET]]>=SGK_TAVAN_1,SGK_TAVAN_1,bordro_hesaplama_tablosu[[#This Row],[BRÜT ÜCRET]])","v":69134.779383114495},{"$f":"bordro_hesaplama_tablosu[[#This Row],[SGK MATRAH]]*IF(STATU=\"NORMAL\",PRIM_KEST_ORAN_ISCI_1,sgdp_isci)","v":10370.216907467176},{"$f":"bordro_hesaplama_tablosu[[#This Row],[BRÜT ÜCRET]]-bordro_hesaplama_tablosu[[#This Row],[SGK İŞÇİ]]-IFERROR(VLOOKUP(ENGELLI_DURUMU,secili_params_ucret_turleri_1[[Ücret Türü]:[Aylık]],2,),0)","v":58764.562475647319},{"$f":"bordro_hesaplama_tablosu[[#This Row],[VERGİ MATRAHI]]+G8","v":283836.34578791214},{"$f":"MAX((G9-vergi_dilimi_4_1)*0.05,0)+MAX((G9-vergi_dilimi_3_1)*0.08,0)+MAX((G9-vergi_dilimi_2_1)*0.07,0)+MAX((G9-vergi_dilimi_1_1)*0.05,0)+G9*0.15-(MAX((G8-vergi_dilimi_4_1)*0.05,0)+(MAX((G8-vergi_dilimi_3_1)*0.08,0)+MAX((G8-vergi_dilimi_2_1)*0.07,0)+MAX((G8-vergi_dilimi_1_1)*0.05,0)+G8*0.15))","v":11752.912495129473},{"$f":"MIN(VLOOKUP(bordro_hesaplama_tablosu[[#This Row],[AY]],asgari_ucrt_istisna[],6,),bordro_hesaplama_tablosu[[#This Row],[HESAPLANAN GELİR VERGİSİ]])","v":3315.7012500000001},{"$f":"MAX(bordro_hesaplama_tablosu[[#This Row],[HESAPLANAN GELİR VERGİSİ]]-bordro_hesaplama_tablosu[[#This Row],[AÜ GV İSTİSNA]],0)","v":8437.2112451294724},{"$f":"(STATU<>\"EMEKLİ\") * bordro_hesaplama_tablosu[[#This Row],[KESİLECEK GELİR VERGİSİ]] * ((KANUN=\"04691\") + (KANUN=\"05746\") * $A$5)","v":0},{"$f":"(bordro_hesaplama_tablosu[[#This Row],[BRÜT ÜCRET]]*damga_vergisi_orani)","v":524.73297551783901},{"$f":"MIN(VLOOKUP(bordro_hesaplama_tablosu[[#This Row],[AY]],asgari_ucrt_istisna[],7,),bordro_hesaplama_tablosu[[#This Row],[HESAPLANAN DAMGA VERGİSİ]])","v":197.38174500000002},{"$f":"bordro_hesaplama_tablosu[[#This Row],[HESAPLANAN DAMGA VERGİSİ]]-bordro_hesaplama_tablosu[[#This Row],[AÜ DV İSTİSNA]]","v":327.35123051783899},{"$f":"AND(STATU<>\"EMEKLİ\", OR(KANUN=\"04691\", KANUN=\"05746\")) * bordro_hesaplama_tablosu[[#This Row],[KESİLECEK DAMGA VERGİSİ]]","v":0},{"$f":"bordro_hesaplama_tablosu[[#This Row],[BRÜT ÜCRET]]-bordro_hesaplama_tablosu[[#This Row],[SGK İŞÇİ]]-bordro_hesaplama_tablosu[[#This Row],[KESİLECEK GELİR VERGİSİ]]-bordro_hesaplama_tablosu[[#This Row],[KESİLECEK DAMGA VERGİSİ]]","v":50000.000000000007},{"$f":"bordro_hesaplama_tablosu[[#This Row],[SGK MATRAH]]*IF(STATU=\"NORMAL\",PRIM_KEST_ORAN_ISVEREN_1,sgdp_isveren_1)","v":15728.162309658548},{"$f":"IFERROR(\n    _xlfn.LET(\n        _xlpm._f_kontrol, AND(KANUN <> \"00000\", STATU <> \"EMEKLİ\"),\n        _xlpm._is_imalat, AND(_xlpm._f_kontrol, IMALAT = \"İMALAT\"),\n        _xlpm._is_degil, AND(_xlpm._f_kontrol, IMALAT = \"DEĞİL\"),\n\n        _xlpm._hazine, IF(_xlpm._is_imalat, hazine_indirimi_imalat_1, IF(_xlpm._is_degil, hazine_indirimi_1, 0)),\n\n        _xlpm._matrah, bordro_hesaplama_tablosu[[#This Row],[SGK MATRAH]],\n        _xlpm._asgari_30, GUNLUK_BRUT_ASGARI_1 * 30,\n\n        _xlpm._net_isveren_oran, PRIM_KEST_ORAN_ISVEREN_1 - ISSIZLIK_ISVEREN_1,\n        _xlpm._oran_imalat_fark, IF(_xlpm._is_imalat, _xlpm._net_isveren_oran - hazine_indirimi_imalat_1, _xlpm._net_isveren_oran - hazine_indirimi_1),\n        IF(\n            _xlpm._f_kontrol,\n        _xlfn.IFS(\n            KANUN = \"05510\", _xlpm._matrah * _xlpm._hazine,\n            OR(KANUN = \"05746\", KANUN = \"04691\"), _xlpm._matrah * (_xlpm._net_isveren_oran + _xlpm._hazine) / 2,\n            KANUN = \"06111\", _xlpm._matrah * (_xlpm._net_isveren_oran),\n            KANUN = \"03294\", IF(_xlpm._matrah / 30 > GUNLUK_BRUT_ASGARI_1, (_xlpm._asgari_30 * _xlpm._oran_imalat_fark) + (_xlpm._matrah * _xlpm._hazine), (_xlpm._matrah * _xlpm._oran_imalat_fark) + (_xlpm._matrah * _xlpm._hazine)),\n            KANUN = \"16322\", (_xlpm._asgari_30 * (_xlpm._net_isveren_oran - _xlpm._hazine)) + (_xlpm._matrah * _xlpm._hazine),\n            KANUN = \"26322\", (_xlpm._asgari_30 * (PRIM_KEST_ORAN_ISVEREN_1 + PRIM_KEST_ORAN_ISCI_1 - ISSIZLIK_ISVEREN_1 - ISSIZLIK_ISCI_1 - _xlpm._hazine)) + (_xlpm._matrah * _xlpm._hazine),\n            KANUN = \"14857\", (_xlpm._asgari_30 * _xlpm._oran_imalat_fark) + (_xlpm._matrah * _xlpm._hazine),\n            TRUE, 0\n        ),\n       0\n     )\n    ),\n    0\n)","v":2765.3911753245798},{"$f":"bordro_hesaplama_tablosu[[#This Row],[BRÜT ÜCRET]]+bordro_hesaplama_tablosu[[#This Row],[SGK İŞVEREN]]-bordro_hesaplama_tablosu[[#This Row],[SGK TEŞVİK]]-bordro_hesaplama_tablosu[[#This Row],[GV MUAFİYET]]-bordro_hesaplama_tablosu[[#This Row],[DV MUAFİYET]]","v":82097.550517448472},{"$f":"bordro_hesaplama_tablosu[[#This Row],[SGK İŞÇİ]]+bordro_hesaplama_tablosu[[#This Row],[SGK İŞVEREN]]-bordro_hesaplama_tablosu[[#This Row],[SGK TEŞVİK]]","v":23332.988041801142},{"$f":"(bordro_hesaplama_tablosu[[#This Row],[KESİLECEK GELİR VERGİSİ]]-bordro_hesaplama_tablosu[[#This Row],[GV MUAFİYET]])+(bordro_hesaplama_tablosu[[#This Row],[KESİLECEK DAMGA VERGİSİ]]-bordro_hesaplama_tablosu[[#This Row],[DV MUAFİYET]])","v":8764.5624756473117}]
[null,"HAZİRAN",70573.919841663301,{"$f":"IF(bordro_hesaplama_tablosu[[#This Row],[BRÜT ÜCRET]]>=SGK_TAVAN_1,SGK_TAVAN_1,bordro_hesaplama_tablosu[[#This Row],[BRÜT ÜCRET]])","v":70573.919841663301},{"$f":"bordro_hesaplama_tablosu[[#This Row],[SGK MATRAH]]*IF(STATU=\"NORMAL\",PRIM_KEST_ORAN_ISCI_1,sgdp_isci)","v":10586.087976249497},{"$f":"bordro_hesaplama_tablosu[[#This Row],[BRÜT ÜCRET]]-bordro_hesaplama_tablosu[[#This Row],[SGK İŞÇİ]]-IFERROR(VLOOKUP(ENGELLI_DURUMU,secili_params_ucret_turleri_1[[Ücret Türü]:[Aylık]],2,),0)","v":59987.831865413806},{"$f":"bordro_hesaplama_tablosu[[#This Row],[VERGİ MATRAHI]]+G9","v":343824.17765332595},{"$f":"MAX((G10-vergi_dilimi_4_1)*0.05,0)+MAX((G10-vergi_dilimi_3_1)*0.08,0)+MAX((G10-vergi_dilimi_2_1)*0.07,0)+MAX((G10-vergi_dilimi_1_1)*0.05,0)+G10*0.15-(MAX((G9-vergi_dilimi_4_1)*0.05,0)+(MAX((G9-vergi_dilimi_3_1)*0.08,0)+MAX((G9-vergi_dilimi_2_1)*0.07,0)+MAX((G9-vergi_dilimi_1_1)*0.05,0)+G9*0.15))","v":12965.258808815575},{"$f":"MIN(VLOOKUP(bordro_hesaplama_tablosu[[#This Row],[AY]],asgari_ucrt_istisna[],6,),bordro_hesaplama_tablosu[[#This Row],[HESAPLANAN GELİR VERGİSİ]])","v":3315.7012499999983},{"$f":"MAX(bordro_hesaplama_tablosu[[#This Row],[HESAPLANAN GELİR VERGİSİ]]-bordro_hesaplama_tablosu[[#This Row],[AÜ GV İSTİSNA]],0)","v":9649.5575588155771},{"$f":"(STATU<>\"EMEKLİ\") * bordro_hesaplama_tablosu[[#This Row],[KESİLECEK GELİR VERGİSİ]] * ((KANUN=\"04691\") + (KANUN=\"05746\") * $A$5)","v":0},{"$f":"(bordro_hesaplama_tablosu[[#This Row],[BRÜT ÜCRET]]*damga_vergisi_orani)","v":535.65605159822451},{"$f":"MIN(VLOOKUP(bordro_hesaplama_tablosu[[#This Row],[AY]],asgari_ucrt_istisna[],7,),bordro_hesaplama_tablosu[[#This Row],[HESAPLANAN DAMGA VERGİSİ]])","v":197.38174500000002},{"$f":"bordro_hesaplama_tablosu[[#This Row],[HESAPLANAN DAMGA VERGİSİ]]-bordro_hesaplama_tablosu[[#This Row],[AÜ DV İSTİSNA]]","v":338.27430659822448},{"$f":"AND(STATU<>\"EMEKLİ\", OR(KANUN=\"04691\", KANUN=\"05746\")) * bordro_hesaplama_tablosu[[#This Row],[KESİLECEK DAMGA VERGİSİ]]","v":0},{"$f":"bordro_hesaplama_tablosu[[#This Row],[BRÜT ÜCRET]]-bordro_hesaplama_tablosu[[#This Row],[SGK İŞÇİ]]-bordro_hesaplama_tablosu[[#This Row],[KESİLECEK GELİR VERGİSİ]]-bordro_hesaplama_tablosu[[#This Row],[KESİLECEK DAMGA VERGİSİ]]","v":50000.000000000007},{"$f":"bordro_hesaplama_tablosu[[#This Row],[SGK MATRAH]]*IF(STATU=\"NORMAL\",PRIM_KEST_ORAN_ISVEREN_1,sgdp_isveren_1)","v":16055.566763978402},{"$f":"IFERROR(\n    _xlfn.LET(\n        _xlpm._f_kontrol, AND(KANUN <> \"00000\", STATU <> \"EMEKLİ\"),\n        _xlpm._is_imalat, AND(_xlpm._f_kontrol, IMALAT = \"İMALAT\"),\n        _xlpm._is_degil, AND(_xlpm._f_kontrol, IMALAT = \"DEĞİL\"),\n\n        _xlpm._hazine, IF(_xlpm._is_imalat, hazine_indirimi_imalat_1, IF(_xlpm._is_degil, hazine_indirimi_1, 0)),\n\n        _xlpm._matrah, bordro_hesaplama_tablosu[[#This Row],[SGK MATRAH]],\n        _xlpm._asgari_30, GUNLUK_BRUT_ASGARI_1 * 30,\n\n        _xlpm._net_isveren_oran, PRIM_KEST_ORAN_ISVEREN_1 - ISSIZLIK_ISVEREN_1,\n        _xlpm._oran_imalat_fark, IF(_xlpm._is_imalat, _xlpm._net_isveren_oran - hazine_indirimi_imalat_1, _xlpm._net_isveren_oran - hazine_indirimi_1),\n        IF(\n            _xlpm._f_kontrol,\n        _xlfn.IFS(\n            KANUN = \"05510\", _xlpm._matrah * _xlpm._hazine,\n            OR(KANUN = \"05746\", KANUN = \"04691\"), _xlpm._matrah * (_xlpm._net_isveren_oran + _xlpm._hazine) / 2,\n            KANUN = \"06111\", _xlpm._matrah * (_xlpm._net_isveren_oran),\n            KANUN = \"03294\", IF(_xlpm._matrah / 30 > GUNLUK_BRUT_ASGARI_1, (_xlpm._asgari_30 * _xlpm._oran_imalat_fark) + (_xlpm._matrah * _xlpm._hazine), (_xlpm._matrah * _xlpm._oran_imalat_fark) + (_xlpm._matrah * _xlpm._hazine)),\n            KANUN = \"16322\", (_xlpm._asgari_30 * (_xlpm._net_isveren_oran - _xlpm._hazine)) + (_xlpm._matrah * _xlpm._hazine),\n            KANUN = \"26322\", (_xlpm._asgari_30 * (PRIM_KEST_ORAN_ISVEREN_1 + PRIM_KEST_ORAN_ISCI_1 - ISSIZLIK_ISVEREN_1 - ISSIZLIK_ISCI_1 - _xlpm._hazine)) + (_xlpm._matrah * _xlpm._hazine),\n            KANUN = \"14857\", (_xlpm._asgari_30 * _xlpm._oran_imalat_fark) + (_xlpm._matrah * _xlpm._hazine),\n            TRUE, 0\n        ),\n       0\n     )\n    ),\n    0\n)","v":2822.9567936665321},{"$f":"bordro_hesaplama_tablosu[[#This Row],[BRÜT ÜCRET]]+bordro_hesaplama_tablosu[[#This Row],[SGK İŞVEREN]]-bordro_hesaplama_tablosu[[#This Row],[SGK TEŞVİK]]-bordro_hesaplama_tablosu[[#This Row],[GV MUAFİYET]]-bordro_hesaplama_tablosu[[#This Row],[DV MUAFİYET]]","v":83806.529811975182},{"$f":"bordro_hesaplama_tablosu[[#This Row],[SGK İŞÇİ]]+bordro_hesaplama_tablosu[[#This Row],[SGK İŞVEREN]]-bordro_hesaplama_tablosu[[#This Row],[SGK TEŞVİK]]","v":23818.697946561366},{"$f":"(bordro_hesaplama_tablosu[[#This Row],[KESİLECEK GELİR VERGİSİ]]-bordro_hesaplama_tablosu[[#This Row],[GV MUAFİYET]])+(bordro_hesaplama_tablosu[[#This Row],[KESİLECEK DAMGA VERGİSİ]]-bordro_hesaplama_tablosu[[#This Row],[DV MUAFİYET]])","v":9987.831865413802}]
[null,"TEMMUZ",75846.236812908915,{"$f":"IF(bordro_hesaplama_tablosu[[#This Row],[BRÜT ÜCRET]]>=SGK_TAVAN_2,SGK_TAVAN_2,bordro_hesaplama_tablosu[[#This Row],[BRÜT ÜCRET]])","v":75846.236812908915},{"$f":"bordro_hesaplama_tablosu[[#This Row],[SGK MATRAH]]*IF(STATU=\"NORMAL\",PRIM_KEST_ORAN_ISCI_2,sgdp_isci)","v":11376.935521936339},{"$f":"bordro_hesaplama_tablosu[[#This Row],[BRÜT ÜCRET]]-bordro_hesaplama_tablosu[[#This Row],[SGK İŞÇİ]]-IFERROR(VLOOKUP(ENGELLI_DURUMU,secili_params_ucret_turleri_2[[Ücret Türü]:[Aylık]],2,),0)","v":64469.30129097258},{"$f":"bordro_hesaplama_tablosu[[#This Row],[VERGİ MATRAHI]]+G10","v":408293.47894429852},{"$f":"MAX((G11-vergi_dilimi_4_2)*0.05,0)+MAX((G11-vergi_dilimi_3_2)*0.08,0)+MAX((G11-vergi_dilimi_2_2)*0.07,0)+MAX((G11-vergi_dilimi_1_2)*0.05,0)+G11*0.15-(MAX((G10-vergi_dilimi_4_2)*0.05,0)+(MAX((G10-vergi_dilimi_3_2)*0.08,0)+MAX((G10-vergi_dilimi_2_2)*0.07,0)+MAX((G10-vergi_dilimi_1_2)*0.05,0)+G10*0.15))","v":17406.711348562603},{"$f":"MIN(VLOOKUP(bordro_hesaplama_tablosu[[#This Row],[AY]],asgari_ucrt_istisna[],6,),bordro_hesaplama_tablosu[[#This Row],[HESAPLANAN GELİR VERGİSİ]])","v":3315.7012499999983},{"$f":"MAX(bordro_hesaplama_tablosu[[#This Row],[HESAPLANAN GELİR VERGİSİ]]-bordro_hesaplama_tablosu[[#This Row],[AÜ GV İSTİSNA]],0)","v":14091.010098562605},{"$f":"(STATU<>\"EMEKLİ\") * bordro_hesaplama_tablosu[[#This Row],[KESİLECEK GELİR VERGİSİ]] * ((KANUN=\"04691\") + (KANUN=\"05746\") * $A$5)","v":0},{"$f":"(bordro_hesaplama_tablosu[[#This Row],[BRÜT ÜCRET]]*damga_vergisi_orani)","v":575.67293740997866},{"$f":"MIN(VLOOKUP(bordro_hesaplama_tablosu[[#This Row],[AY]],asgari_ucrt_istisna[],7,),bordro_hesaplama_tablosu[[#This Row],[HESAPLANAN DAMGA VERGİSİ]])","v":197.38174500000002},{"$f":"bordro_hesaplama_tablosu[[#This Row],[HESAPLANAN DAMGA VERGİSİ]]-bordro_hesaplama_tablosu[[#This Row],[AÜ DV İSTİSNA]]","v":378.29119240997863},{"$f":"AND(STATU<>\"EMEKLİ\", OR(KANUN=\"04691\", KANUN=\"05746\")) * bordro_hesaplama_tablosu[[#This Row],[KESİLECEK DAMGA VERGİSİ]]","v":0},{"$f":"bordro_hesaplama_tablosu[[#This Row],[BRÜT ÜCRET]]-bordro_hesaplama_tablosu[[#This Row],[SGK İŞÇİ]]-bordro_hesaplama_tablosu[[#This Row],[KESİLECEK GELİR VERGİSİ]]-bordro_hesaplama_tablosu[[#This Row],[KESİLECEK DAMGA VERGİSİ]]","v":50000},{"$f":"bordro_hesaplama_tablosu[[#This Row],[SGK MATRAH]]*IF(STATU=\"NORMAL\",PRIM_KEST_ORAN_ISVEREN_2,sgdp_isveren_2)","v":17255.018874936777},{"$f":"IFERROR(\n    _xlfn.LET(\n        _xlpm._f_kontrol, AND(KANUN <> \"00000\", STATU <> \"EMEKLİ\"),\n        _xlpm._is_imalat, AND(_xlpm._f_kontrol, IMALAT = \"İMALAT\"),\n        _xlpm._is_degil, AND(_xlpm._f_kontrol, IMALAT = \"DEĞİL\"),\n\n        _xlpm._hazine, IF(_xlpm._is_imalat, hazine_indirimi_imalat_2, IF(_xlpm._is_degil, hazine_indirimi_2, 0)),\n\n        _xlpm._matrah, bordro_hesaplama_tablosu[[#This Row],[SGK MATRAH]],\n        _xlpm._asgari_30, GUNLUK_BRUT_ASGARI_2 * 30,\n\n        _xlpm._net_isveren_oran, PRIM_KEST_ORAN_ISVEREN_2 - ISSIZLIK_ISVEREN_2,\n        _xlpm._oran_imalat_fark, IF(_xlpm._is_imalat, _xlpm._net_isveren_oran - hazine_indirimi_imalat_2, _xlpm._net_isveren_oran - hazine_indirimi_2),\n        IF(\n            _xlpm._f_kontrol,\n        _xlfn.IFS(\n            KANUN = \"05510\", _xlpm._matrah * _xlpm._hazine,\n            OR(KANUN = \"05746\", KANUN = \"04691\"), _xlpm._matrah * (_xlpm._net_isveren_oran + _xlpm._hazine) / 2,\n            KANUN = \"06111\", _xlpm._matrah * (_xlpm._net_isveren_oran),\n            KANUN = \"03294\", IF(_xlpm._matrah / 30 > GUNLUK_BRUT_ASGARI_2, (_xlpm._asgari_30 * _xlpm._oran_imalat_fark) + (_xlpm._matrah * _xlpm._hazine), (_xlpm._matrah * _xlpm._oran_imalat_fark) + (_xlpm._matrah * _xlpm._hazine)),\n            KANUN = \"16322\", (_xlpm._asgari_30 * (_xlpm._net_isveren_oran - _xlpm._hazine)) + (_xlpm._matrah * _xlpm._hazine),\n            KANUN = \"26322\", (_xlpm._asgari_30 * (PRIM_KEST_ORAN_ISVEREN_2 + PRIM_KEST_ORAN_ISCI_2 - ISSIZLIK_ISVEREN_2 - ISSIZLIK_ISCI_2 - _xlpm._hazine)) + (_xlpm._matrah * _xlpm._hazine),\n            KANUN = \"14857\", (_xlpm._asgari_30 * _xlpm._oran_imalat_fark) + (_xlpm._matrah * _xlpm._hazine),\n            TRUE, 0\n        ),\n       0\n     )\n    ),\n    0\n)","v":3033.8494725163569},{"$f":"bordro_hesaplama_tablosu[[#This Row],[BRÜT ÜCRET]]+bordro_hesaplama_tablosu[[#This Row],[SGK İŞVEREN]]-bordro_hesaplama_tablosu[[#This Row],[SGK TEŞVİK]]-bordro_hesaplama_tablosu[[#This Row],[GV MUAFİYET]]-bordro_hesaplama_tablosu[[#This Row],[DV MUAFİYET]]","v":90067.406215329334},{"$f":"bordro_hesaplama_tablosu[[#This Row],[SGK İŞÇİ]]+bordro_hesaplama_tablosu[[#This Row],[SGK İŞVEREN]]-bordro_hesaplama_tablosu[[#This Row],[SGK TEŞVİK]]","v":25598.104924356758},{"$f":"(bordro_hesaplama_tablosu[[#This Row],[KESİLECEK GELİR VERGİSİ]]-bordro_hesaplama_tablosu[[#This Row],[GV MUAFİYET]])+(bordro_hesaplama_tablosu[[#This Row],[KESİLECEK DAMGA VERGİSİ]]-bordro_hesaplama_tablosu[[#This Row],[DV MUAFİYET]])","v":14469.301290972584}]
[null,"AĞUSTOS",74309.518534531991,{"$f":"IF(bordro_hesaplama_tablosu[[#This Row],[BRÜT ÜCRET]]>=SGK_TAVAN_2,SGK_TAVAN_2,bordro_hesaplama_tablosu[[#This Row],[BRÜT ÜCRET]])","v":74309.518534531991},{"$f":"bordro_hesaplama_tablosu[[#This Row],[SGK MATRAH]]*IF(STATU=\"NORMAL\",PRIM_KEST_ORAN_ISCI_2,sgdp_isci)","v":11146.4277801798},{"$f":"bordro_hesaplama_tablosu[[#This Row],[BRÜT ÜCRET]]-bordro_hesaplama_tablosu[[#This Row],[SGK İŞÇİ]]-IFERROR(VLOOKUP(ENGELLI_DURUMU,secili_params_ucret_turleri_1[[Ücret Türü]:[Aylık]],2,),0)","v":63163.09075435219},{"$f":"bordro_hesaplama_tablosu[[#This Row],[VERGİ MATRAHI]]+G11","v":471456.56969865074},17054.034503675095,{"$f":"MIN(VLOOKUP(bordro_hesaplama_tablosu[[#This Row],[AY]],asgari_ucrt_istisna[],6,),bordro_hesaplama_tablosu[[#This Row],[HESAPLANAN GELİR VERGİSİ]])","v":4257.5712499999972},{"$f":"MAX(bordro_hesaplama_tablosu[[#This Row],[HESAPLANAN GELİR VERGİSİ]]-bordro_hesaplama_tablosu[[#This Row],[AÜ GV İSTİSNA]],0)","v":12796.463253675098},{"$f":"(STATU<>\"EMEKLİ\") * bordro_hesaplama_tablosu[[#This Row],[KESİLECEK GELİR VERGİSİ]] * ((KANUN=\"04691\") + (KANUN=\"05746\") * $A$5)","v":0},{"$f":"(bordro_hesaplama_tablosu[[#This Row],[BRÜT ÜCRET]]*damga_vergisi_orani)","v":564.00924567709785},{"$f":"MIN(VLOOKUP(bordro_hesaplama_tablosu[[#This Row],[AY]],asgari_ucrt_istisna[],7,),bordro_hesaplama_tablosu[[#This Row],[HESAPLANAN DAMGA VERGİSİ]])","v":197.38174500000002},{"$f":"bordro_hesaplama_tablosu[[#This Row],[HESAPLANAN DAMGA VERGİSİ]]-bordro_hesaplama_tablosu[[#This Row],[AÜ DV İSTİSNA]]","v":366.62750067709783},{"$f":"AND(STATU<>\"EMEKLİ\", OR(KANUN=\"04691\", KANUN=\"05746\")) * bordro_hesaplama_tablosu[[#This Row],[KESİLECEK DAMGA VERGİSİ]]","v":0},{"$f":"bordro_hesaplama_tablosu[[#This Row],[BRÜT ÜCRET]]-bordro_hesaplama_tablosu[[#This Row],[SGK İŞÇİ]]-bordro_hesaplama_tablosu[[#This Row],[KESİLECEK GELİR VERGİSİ]]-bordro_hesaplama_tablosu[[#This Row],[KESİLECEK DAMGA VERGİSİ]]","v":49999.999999999993},{"$f":"bordro_hesaplama_tablosu[[#This Row],[SGK MATRAH]]*IF(STATU=\"NORMAL\",PRIM_KEST_ORAN_ISVEREN_2,sgdp_isveren_2)","v":16905.415466606028},{"$f":"IFERROR(\n    _xlfn.LET(\n        _xlpm._f_kontrol, AND(KANUN <> \"00000\", STATU <> \"EMEKLİ\"),\n        _xlpm._is_imalat, AND(_xlpm._f_kontrol, IMALAT = \"İMALAT\"),\n        _xlpm._is_degil, AND(_xlpm._f_kontrol, IMALAT = \"DEĞİL\"),\n\n        _xlpm._hazine, IF(_xlpm._is_imalat, hazine_indirimi_imalat_2, IF(_xlpm._is_degil, hazine_indirimi_2, 0)),\n\n        _xlpm._matrah, bordro_hesaplama_tablosu[[#This Row],[SGK MATRAH]],\n        _xlpm._asgari_30, GUNLUK_BRUT_ASGARI_2 * 30,\n\n        _xlpm._net_isveren_oran, PRIM_KEST_ORAN_ISVEREN_2 - ISSIZLIK_ISVEREN_2,\n        _xlpm._oran_imalat_fark, IF(_xlpm._is_imalat, _xlpm._net_isveren_oran - hazine_indirimi_imalat_2, _xlpm._net_isveren_oran - hazine_indirimi_2),\n        IF(\n            _xlpm._f_kontrol,\n        _xlfn.IFS(\n            KANUN = \"05510\", _xlpm._matrah * _xlpm._hazine,\n            OR(KANUN = \"05746\", KANUN = \"04691\"), _xlpm._matrah * (_xlpm._net_isveren_oran + _xlpm._hazine) / 2,\n            KANUN = \"06111\", _xlpm._matrah * (_xlpm._net_isveren_oran),\n            KANUN = \"03294\", IF(_xlpm._matrah / 30 > GUNLUK_BRUT_ASGARI_2, (_xlpm._asgari_30 * _xlpm._oran_imalat_fark) + (_xlpm._matrah * _xlpm._hazine), (_xlpm._matrah * _xlpm._oran_imalat_fark) + (_xlpm._matrah * _xlpm._hazine)),\n            KANUN = \"16322\", (_xlpm._asgari_30 * (_xlpm._net_isveren_oran - _xlpm._hazine)) + (_xlpm._matrah * _xlpm._hazine),\n            KANUN = \"26322\", (_xlpm._asgari_30 * (PRIM_KEST_ORAN_ISVEREN_2 + PRIM_KEST_ORAN_ISCI_2 - ISSIZLIK_ISVEREN_2 - ISSIZLIK_ISCI_2 - _xlpm._hazine)) + (_xlpm._matrah * _xlpm._hazine),\n            KANUN = \"14857\", (_xlpm._asgari_30 * _xlpm._oran_imalat_fark) + (_xlpm._matrah * _xlpm._hazine),\n            TRUE, 0\n        ),\n       0\n     )\n    ),\n    0\n)","v":2972.3807413812797},{"$f":"bordro_hesaplama_tablosu[[#This Row],[BRÜT ÜCRET]]+bordro_hesaplama_tablosu[[#This Row],[SGK İŞVEREN]]-bordro_hesaplama_tablosu[[#This Row],[SGK TEŞVİK]]-bordro_hesaplama_tablosu[[#This Row],[GV MUAFİYET]]-bordro_hesaplama_tablosu[[#This Row],[DV MUAFİYET]]","v":88242.553259756751},{"$f":"bordro_hesaplama_tablosu[[#This Row],[SGK İŞÇİ]]+bordro_hesaplama_tablosu[[#This Row],[SGK İŞVEREN]]-bordro_hesaplama_tablosu[[#This Row],[SGK TEŞVİK]]","v":25079.46250540455},{"$f":"(bordro_hesaplama_tablosu[[#This Row],[KESİLECEK GELİR VERGİSİ]]-bordro_hesaplama_tablosu[[#This Row],[GV MUAFİYET]])+(bordro_hesaplama_tablosu[[#This Row],[KESİLECEK DAMGA VERGİSİ]]-bordro_hesaplama_tablosu[[#This Row],[DV MUAFİYET]])","v":13163.090754352195}]
[null,"EYLÜL",74042.980625214142,{"$f":"IF(bordro_hesaplama_tablosu[[#This Row],[BRÜT ÜCRET]]>=SGK_TAVAN_2,SGK_TAVAN_2,bordro_hesaplama_tablosu[[#This Row],[BRÜT ÜCRET]])","v":74042.980625214142},{"$f":"bordro_hesaplama_tablosu[[#This Row],[SGK MATRAH]]*IF(STATU=\"NORMAL\",PRIM_KEST_ORAN_ISCI_2,sgdp_isci)","v":11106.447093782122},{"$f":"bordro_hesaplama_tablosu[[#This Row],[BRÜT ÜCRET]]-bordro_hesaplama_tablosu[[#This Row],[SGK İŞÇİ]]-IFERROR(VLOOKUP(ENGELLI_DURUMU,secili_params_ucret_turleri_1[[Ücret Türü]:[Aylık]],2,),0)","v":62936.533531432018},{"$f":"bordro_hesaplama_tablosu[[#This Row],[VERGİ MATRAHI]]+G12","v":534393.10323008278},16992.864053486643,{"$f":"MIN(VLOOKUP(bordro_hesaplama_tablosu[[#This Row],[AY]],asgari_ucrt_istisna[],6,),bordro_hesaplama_tablosu[[#This Row],[HESAPLANAN GELİR VERGİSİ]])","v":4420.9349999999977},{"$f":"MAX(bordro_hesaplama_tablosu[[#This Row],[HESAPLANAN GELİR VERGİSİ]]-bordro_hesaplama_tablosu[[#This Row],[AÜ GV İSTİSNA]],0)","v":12571.929053486645},{"$f":"(STATU<>\"EMEKLİ\") * bordro_hesaplama_tablosu[[#This Row],[KESİLECEK GELİR VERGİSİ]] * ((KANUN=\"04691\") + (KANUN=\"05746\") * $A$5)","v":0},{"$f":"(bordro_hesaplama_tablosu[[#This Row],[BRÜT ÜCRET]]*damga_vergisi_orani)","v":561.9862229453754},{"$f":"MIN(VLOOKUP(bordro_hesaplama_tablosu[[#This Row],[AY]],asgari_ucrt_istisna[],7,),bordro_hesaplama_tablosu[[#This Row],[HESAPLANAN DAMGA VERGİSİ]])","v":197.38174500000002},{"$f":"bordro_hesaplama_tablosu[[#This Row],[HESAPLANAN DAMGA VERGİSİ]]-bordro_hesaplama_tablosu[[#This Row],[AÜ DV İSTİSNA]]","v":364.60447794537538},{"$f":"AND(STATU<>\"EMEKLİ\", OR(KANUN=\"04691\", KANUN=\"05746\")) * bordro_hesaplama_tablosu[[#This Row],[KESİLECEK DAMGA VERGİSİ]]","v":0},{"$f":"bordro_hesaplama_tablosu[[#This Row],[BRÜT ÜCRET]]-bordro_hesaplama_tablosu[[#This Row],[SGK İŞÇİ]]-bordro_hesaplama_tablosu[[#This Row],[KESİLECEK GELİR VERGİSİ]]-bordro_hesaplama_tablosu[[#This Row],[KESİLECEK DAMGA VERGİSİ]]","v":50000},{"$f":"bordro_hesaplama_tablosu[[#This Row],[SGK MATRAH]]*IF(STATU=\"NORMAL\",PRIM_KEST_ORAN_ISVEREN_2,sgdp_isveren_2)","v":16844.778092236218},{"$f":"IFERROR(\n    _xlfn.LET(\n        _xlpm._f_kontrol, AND(KANUN <> \"00000\", STATU <> \"EMEKLİ\"),\n        _xlpm._is_imalat, AND(_xlpm._f_kontrol, IMALAT = \"İMALAT\"),\n        _xlpm._is_degil, AND(_xlpm._f_kontrol, IMALAT = \"DEĞİL\"),\n\n        _xlpm._hazine, IF(_xlpm._is_imalat, hazine_indirimi_imalat_2, IF(_xlpm._is_degil, hazine_indirimi_2, 0)),\n\n        _xlpm._matrah, bordro_hesaplama_tablosu[[#This Row],[SGK MATRAH]],\n        _xlpm._asgari_30, GUNLUK_BRUT_ASGARI_2 * 30,\n\n        _xlpm._net_isveren_oran, PRIM_KEST_ORAN_ISVEREN_2 - ISSIZLIK_ISVEREN_2,\n        _xlpm._oran_imalat_fark, IF(_xlpm._is_imalat, _xlpm._net_isveren_oran - hazine_indirimi_imalat_2, _xlpm._net_isveren_oran - hazine_indirimi_2),\n        IF(\n            _xlpm._f_kontrol,\n        _xlfn.IFS(\n            KANUN = \"05510\", _xlpm._matrah * _xlpm._hazine,\n            OR(KANUN = \"05746\", KANUN = \"04691\"), _xlpm._matrah * (_xlpm._net_isveren_oran + _xlpm._hazine) / 2,\n            KANUN = \"06111\", _xlpm._matrah * (_xlpm._net_isveren_oran),\n            KANUN = \"03294\", IF(_xlpm._matrah / 30 > GUNLUK_BRUT_ASGARI_2, (_xlpm._asgari_30 * _xlpm._oran_imalat_fark) + (_xlpm._matrah * _xlpm._hazine), (_xlpm._matrah * _xlpm._oran_imalat_fark) + (_xlpm._matrah * _xlpm._hazine)),\n            KANUN = \"16322\", (_xlpm._asgari_30 * (_xlpm._net_isveren_oran - _xlpm._hazine)) + (_xlpm._matrah * _xlpm._hazine),\n            KANUN = \"26322\", (_xlpm._asgari_30 * (PRIM_KEST_ORAN_ISVEREN_2 + PRIM_KEST_ORAN_ISCI_2 - ISSIZLIK_ISVEREN_2 - ISSIZLIK_ISCI_2 - _xlpm._hazine)) + (_xlpm._matrah * _xlpm._hazine),\n            KANUN = \"14857\", (_xlpm._asgari_30 * _xlpm._oran_imalat_fark) + (_xlpm._matrah * _xlpm._hazine),\n            TRUE, 0\n        ),\n       0\n     )\n    ),\n    0\n)","v":2961.7192250085659},{"$f":"bordro_hesaplama_tablosu[[#This Row],[BRÜT ÜCRET]]+bordro_hesaplama_tablosu[[#This Row],[SGK İŞVEREN]]-bordro_hesaplama_tablosu[[#This Row],[SGK TEŞVİK]]-bordro_hesaplama_tablosu[[#This Row],[GV MUAFİYET]]-bordro_hesaplama_tablosu[[#This Row],[DV MUAFİYET]]","v":87926.039492441792},{"$f":"bordro_hesaplama_tablosu[[#This Row],[SGK İŞÇİ]]+bordro_hesaplama_tablosu[[#This Row],[SGK İŞVEREN]]-bordro_hesaplama_tablosu[[#This Row],[SGK TEŞVİK]]","v":24989.505961009774},{"$f":"(bordro_hesaplama_tablosu[[#This Row],[KESİLECEK GELİR VERGİSİ]]-bordro_hesaplama_tablosu[[#This Row],[GV MUAFİYET]])+(bordro_hesaplama_tablosu[[#This Row],[KESİLECEK DAMGA VERGİSİ]]-bordro_hesaplama_tablosu[[#This Row],[DV MUAFİYET]])","v":12936.53353143202}]
[null,"EKİM",74042.980625214142,{"$f":"IF(bordro_hesaplama_tablosu[[#This Row],[BRÜT ÜCRET]]>=SGK_TAVAN_2,SGK_TAVAN_2,bordro_hesaplama_tablosu[[#This Row],[BRÜT ÜCRET]])","v":74042.980625214142},{"$f":"bordro_hesaplama_tablosu[[#This Row],[SGK MATRAH]]*IF(STATU=\"NORMAL\",PRIM_KEST_ORAN_ISCI_2,sgdp_isci)","v":11106.447093782122},{"$f":"bordro_hesaplama_tablosu[[#This Row],[BRÜT ÜCRET]]-bordro_hesaplama_tablosu[[#This Row],[SGK İŞÇİ]]-IFERROR(VLOOKUP(ENGELLI_DURUMU,secili_params_ucret_turleri_1[[Ücret Türü]:[Aylık]],2,),0)","v":62936.533531432018},{"$f":"bordro_hesaplama_tablosu[[#This Row],[VERGİ MATRAHI]]+G13","v":597329.63676151482},16992.864053486657,{"$f":"MIN(VLOOKUP(bordro_hesaplama_tablosu[[#This Row],[AY]],asgari_ucrt_istisna[],6,),bordro_hesaplama_tablosu[[#This Row],[HESAPLANAN GELİR VERGİSİ]])","v":4420.934999999994},{"$f":"MAX(bordro_hesaplama_tablosu[[#This Row],[HESAPLANAN GELİR VERGİSİ]]-bordro_hesaplama_tablosu[[#This Row],[AÜ GV İSTİSNA]],0)","v":12571.929053486663},{"$f":"(STATU<>\"EMEKLİ\") * bordro_hesaplama_tablosu[[#This Row],[KESİLECEK GELİR VERGİSİ]] * ((KANUN=\"04691\") + (KANUN=\"05746\") * $A$5)","v":0},{"$f":"(bordro_hesaplama_tablosu[[#This Row],[BRÜT ÜCRET]]*damga_vergisi_orani)","v":561.9862229453754},{"$f":"MIN(VLOOKUP(bordro_hesaplama_tablosu[[#This Row],[AY]],asgari_ucrt_istisna[],7,),bordro_hesaplama_tablosu[[#This Row],[HESAPLANAN DAMGA VERGİSİ]])","v":197.38174500000002},{"$f":"bordro_hesaplama_tablosu[[#This Row],[HESAPLANAN DAMGA VERGİSİ]]-bordro_hesaplama_tablosu[[#This Row],[AÜ DV İSTİSNA]]","v":364.60447794537538},{"$f":"AND(STATU<>\"EMEKLİ\", OR(KANUN=\"04691\", KANUN=\"05746\")) * bordro_hesaplama_tablosu[[#This Row],[KESİLECEK DAMGA VERGİSİ]]","v":0},{"$f":"bordro_hesaplama_tablosu[[#This Row],[BRÜT ÜCRET]]-bordro_hesaplama_tablosu[[#This Row],[SGK İŞÇİ]]-bordro_hesaplama_tablosu[[#This Row],[KESİLECEK GELİR VERGİSİ]]-bordro_hesaplama_tablosu[[#This Row],[KESİLECEK DAMGA VERGİSİ]]","v":49999.999999999978},{"$f":"bordro_hesaplama_tablosu[[#This Row],[SGK MATRAH]]*IF(STATU=\"NORMAL\",PRIM_KEST_ORAN_ISVEREN_2,sgdp_isveren_2)","v":16844.778092236218},{"$f":"IFERROR(\n    _xlfn.LET(\n        _xlpm._f_kontrol, AND(KANUN <> \"00000\", STATU <> \"EMEKLİ\"),\n        _xlpm._is_imalat, AND(_xlpm._f_kontrol, IMALAT = \"İMALAT\"),\n        _xlpm._is_degil, AND(_xlpm._f_kontrol, IMALAT = \"DEĞİL\"),\n\n        _xlpm._hazine, IF(_xlpm._is_imalat, hazine_indirimi_imalat_2, IF(_xlpm._is_degil, hazine_indirimi_2, 0)),\n\n        _xlpm._matrah, bordro_hesaplama_tablosu[[#This Row],[SGK MATRAH]],\n        _xlpm._asgari_30, GUNLUK_BRUT_ASGARI_2 * 30,\n\n        _xlpm._net_isveren_oran, PRIM_KEST_ORAN_ISVEREN_2 - ISSIZLIK_ISVEREN_2,\n        _xlpm._oran_imalat_fark, IF(_xlpm._is_imalat, _xlpm._net_isveren_oran - hazine_indirimi_imalat_2, _xlpm._net_isveren_oran - hazine_indirimi_2),\n        IF(\n            _xlpm._f_kontrol,\n        _xlfn.IFS(\n            KANUN = \"05510\", _xlpm._matrah * _xlpm._hazine,\n            OR(KANUN = \"05746\", KANUN = \"04691\"), _xlpm._matrah * (_xlpm._net_isveren_oran + _xlpm._hazine) / 2,\n            KANUN = \"06111\", _xlpm._matrah * (_xlpm._net_isveren_oran),\n            KANUN = \"03294\", IF(_xlpm._matrah / 30 > GUNLUK_BRUT_ASGARI_2, (_xlpm._asgari_30 * _xlpm._oran_imalat_fark) + (_xlpm._matrah * _xlpm._hazine), (_xlpm._matrah * _xlpm._oran_imalat_fark) + (_xlpm._matrah * _xlpm._hazine)),\n            KANUN = \"16322\", (_xlpm._asgari_30 * (_xlpm._net_isveren_oran - _xlpm._hazine)) + (_xlpm._matrah * _xlpm._hazine),\n            KANUN = \"26322\", (_xlpm._asgari_30 * (PRIM_KEST_ORAN_ISVEREN_2 + PRIM_KEST_ORAN_ISCI_2 - ISSIZLIK_ISVEREN_2 - ISSIZLIK_ISCI_2 - _xlpm._hazine)) + (_xlpm._matrah * _xlpm._hazine),\n            KANUN = \"14857\", (_xlpm._asgari_30 * _xlpm._oran_imalat_fark) + (_xlpm._matrah * _xlpm._hazine),\n            TRUE, 0\n        ),\n       0\n     )\n    ),\n    0\n)","v":2961.7192250085659},{"$f":"bordro_hesaplama_tablosu[[#This Row],[BRÜT ÜCRET]]+bordro_hesaplama_tablosu[[#This Row],[SGK İŞVEREN]]-bordro_hesaplama_tablosu[[#This Row],[SGK TEŞVİK]]-bordro_hesaplama_tablosu[[#This Row],[GV MUAFİYET]]-bordro_hesaplama_tablosu[[#This Row],[DV MUAFİYET]]","v":87926.039492441792},{"$f":"bordro_hesaplama_tablosu[[#This Row],[SGK İŞÇİ]]+bordro_hesaplama_tablosu[[#This Row],[SGK İŞVEREN]]-bordro_hesaplama_tablosu[[#This Row],[SGK TEŞVİK]]","v":24989.505961009774},{"$f":"(bordro_hesaplama_tablosu[[#This Row],[KESİLECEK GELİR VERGİSİ]]-bordro_hesaplama_tablosu[[#This Row],[GV MUAFİYET]])+(bordro_hesaplama_tablosu[[#This Row],[KESİLECEK DAMGA VERGİSİ]]-bordro_hesaplama_tablosu[[#This Row],[DV MUAFİYET]])","v":12936.533531432038}]
[null,"KASIM",74042.980625214172,{"$f":"IF(bordro_hesaplama_tablosu[[#This Row],[BRÜT ÜCRET]]>=SGK_TAVAN_2,SGK_TAVAN_2,bordro_hesaplama_tablosu[[#This Row],[BRÜT ÜCRET]])","v":74042.980625214172},{"$f":"bordro_hesaplama_tablosu[[#This Row],[SGK MATRAH]]*IF(STATU=\"NORMAL\",PRIM_KEST_ORAN_ISCI_2,sgdp_isci)","v":11106.447093782128},{"$f":"bordro_hesaplama_tablosu[[#This Row],[BRÜT ÜCRET]]-bordro_hesaplama_tablosu[[#This Row],[SGK İŞÇİ]]-IFERROR(VLOOKUP(ENGELLI_DURUMU,secili_params_ucret_turleri_1[[Ücret Türü]:[Aylık]],2,),0)","v":62936.53353143204},{"$f":"bordro_hesaplama_tablosu[[#This Row],[VERGİ MATRAHI]]+G14","v":660266.17029294686},16992.864053486657,{"$f":"MIN(VLOOKUP(bordro_hesaplama_tablosu[[#This Row],[AY]],asgari_ucrt_istisna[],6,),bordro_hesaplama_tablosu[[#This Row],[HESAPLANAN GELİR VERGİSİ]])","v":4420.9349999999977},{"$f":"MAX(bordro_hesaplama_tablosu[[#This Row],[HESAPLANAN GELİR VERGİSİ]]-bordro_hesaplama_tablosu[[#This Row],[AÜ GV İSTİSNA]],0)","v":12571.92905348666},{"$f":"(STATU<>\"EMEKLİ\") * bordro_hesaplama_tablosu[[#This Row],[KESİLECEK GELİR VERGİSİ]] * ((KANUN=\"04691\") + (KANUN=\"05746\") * $A$5)","v":0},{"$f":"(bordro_hesaplama_tablosu[[#This Row],[BRÜT ÜCRET]]*damga_vergisi_orani)","v":561.98622294537563},{"$f":"MIN(VLOOKUP(bordro_hesaplama_tablosu[[#This Row],[AY]],asgari_ucrt_istisna[],7,),bordro_hesaplama_tablosu[[#This Row],[HESAPLANAN DAMGA VERGİSİ]])","v":197.38174500000002},{"$f":"bordro_hesaplama_tablosu[[#This Row],[HESAPLANAN DAMGA VERGİSİ]]-bordro_hesaplama_tablosu[[#This Row],[AÜ DV İSTİSNA]]","v":364.60447794537561},{"$f":"AND(STATU<>\"EMEKLİ\", OR(KANUN=\"04691\", KANUN=\"05746\")) * bordro_hesaplama_tablosu[[#This Row],[KESİLECEK DAMGA VERGİSİ]]","v":0},{"$f":"bordro_hesaplama_tablosu[[#This Row],[BRÜT ÜCRET]]-bordro_hesaplama_tablosu[[#This Row],[SGK İŞÇİ]]-bordro_hesaplama_tablosu[[#This Row],[KESİLECEK GELİR VERGİSİ]]-bordro_hesaplama_tablosu[[#This Row],[KESİLECEK DAMGA VERGİSİ]]","v":50000.000000000007},{"$f":"bordro_hesaplama_tablosu[[#This Row],[SGK MATRAH]]*IF(STATU=\"NORMAL\",PRIM_KEST_ORAN_ISVEREN_2,sgdp_isveren_2)","v":16844.778092236225},{"$f":"IFERROR(\n    _xlfn.LET(\n        _xlpm._f_kontrol, AND(KANUN <> \"00000\", STATU <> \"EMEKLİ\"),\n        _xlpm._is_imalat, AND(_xlpm._f_kontrol, IMALAT = \"İMALAT\"),\n        _xlpm._is_degil, AND(_xlpm._f_kontrol, IMALAT = \"DEĞİL\"),\n\n        _xlpm._hazine, IF(_xlpm._is_imalat, hazine_indirimi_imalat_2, IF(_xlpm._is_degil, hazine_indirimi_2, 0)),\n\n        _xlpm._matrah, bordro_hesaplama_tablosu[[#This Row],[SGK MATRAH]],\n        _xlpm._asgari_30, GUNLUK_BRUT_ASGARI_2 * 30,\n\n        _xlpm._net_isveren_oran, PRIM_KEST_ORAN_ISVEREN_2 - ISSIZLIK_ISVEREN_2,\n        _xlpm._oran_imalat_fark, IF(_xlpm._is_imalat, _xlpm._net_isveren_oran - hazine_indirimi_imalat_2, _xlpm._net_isveren_oran - hazine_indirimi_2),\n        IF(\n            _xlpm._f_kontrol,\n        _xlfn.IFS(\n            KANUN = \"05510\", _xlpm._matrah * _xlpm._hazine,\n            OR(KANUN = \"05746\", KANUN = \"04691\"), _xlpm._matrah * (_xlpm._net_isveren_oran + _xlpm._hazine) / 2,\n            KANUN = \"06111\", _xlpm._matrah * (_xlpm._net_isveren_oran),\n            KANUN = \"03294\", IF(_xlpm._matrah / 30 > GUNLUK_BRUT_ASGARI_2, (_xlpm._asgari_30 * _xlpm._oran_imalat_fark) + (_xlpm._matrah * _xlpm._hazine), (_xlpm._matrah * _xlpm._oran_imalat_fark) + (_xlpm._matrah * _xlpm._hazine)),\n            KANUN = \"16322\", (_xlpm._asgari_30 * (_xlpm._net_isveren_oran - _xlpm._hazine)) + (_xlpm._matrah * _xlpm._hazine),\n            KANUN = \"26322\", (_xlpm._asgari_30 * (PRIM_KEST_ORAN_ISVEREN_2 + PRIM_KEST_ORAN_ISCI_2 - ISSIZLIK_ISVEREN_2 - ISSIZLIK_ISCI_2 - _xlpm._hazine)) + (_xlpm._matrah * _xlpm._hazine),\n            KANUN = \"14857\", (_xlpm._asgari_30 * _xlpm._oran_imalat_fark) + (_xlpm._matrah * _xlpm._hazine),\n            TRUE, 0\n        ),\n       0\n     )\n    ),\n    0\n)","v":2961.7192250085668},{"$f":"bordro_hesaplama_tablosu[[#This Row],[BRÜT ÜCRET]]+bordro_hesaplama_tablosu[[#This Row],[SGK İŞVEREN]]-bordro_hesaplama_tablosu[[#This Row],[SGK TEŞVİK]]-bordro_hesaplama_tablosu[[#This Row],[GV MUAFİYET]]-bordro_hesaplama_tablosu[[#This Row],[DV MUAFİYET]]","v":87926.039492441836},{"$f":"bordro_hesaplama_tablosu[[#This Row],[SGK İŞÇİ]]+bordro_hesaplama_tablosu[[#This Row],[SGK İŞVEREN]]-bordro_hesaplama_tablosu[[#This Row],[SGK TEŞVİK]]","v":24989.505961009785},{"$f":"(bordro_hesaplama_tablosu[[#This Row],[KESİLECEK GELİR VERGİSİ]]-bordro_hesaplama_tablosu[[#This Row],[GV MUAFİYET]])+(bordro_hesaplama_tablosu[[#This Row],[KESİLECEK DAMGA VERGİSİ]]-bordro_hesaplama_tablosu[[#This Row],[DV MUAFİYET]])","v":12936.533531432035}]
[null,"ARALIK",74042.980625214128,{"$f":"IF(bordro_hesaplama_tablosu[[#This Row],[BRÜT ÜCRET]]>=SGK_TAVAN_2,SGK_TAVAN_2,bordro_hesaplama_tablosu[[#This Row],[BRÜT ÜCRET]])","v":74042.980625214128},{"$f":"bordro_hesaplama_tablosu[[#This Row],[SGK MATRAH]]*IF(STATU=\"NORMAL\",PRIM_KEST_ORAN_ISCI_2,sgdp_isci)","v":11106.447093782121},{"$f":"bordro_hesaplama_tablosu[[#This Row],[BRÜT ÜCRET]]-bordro_hesaplama_tablosu[[#This Row],[SGK İŞÇİ]]-IFERROR(VLOOKUP(ENGELLI_DURUMU,secili_params_ucret_turleri_1[[Ücret Türü]:[Aylık]],2,),0)","v":62936.533531432011},{"$f":"bordro_hesaplama_tablosu[[#This Row],[VERGİ MATRAHI]]+G15","v":723202.7038243789},16992.864053486643,{"$f":"MIN(VLOOKUP(bordro_hesaplama_tablosu[[#This Row],[AY]],asgari_ucrt_istisna[],6,),bordro_hesaplama_tablosu[[#This Row],[HESAPLANAN GELİR VERGİSİ]])","v":4420.9350000000049},{"$f":"MAX(bordro_hesaplama_tablosu[[#This Row],[HESAPLANAN GELİR VERGİSİ]]-bordro_hesaplama_tablosu[[#This Row],[AÜ GV İSTİSNA]],0)","v":12571.929053486638},{"$f":"(STATU<>\"EMEKLİ\") * bordro_hesaplama_tablosu[[#This Row],[KESİLECEK GELİR VERGİSİ]] * ((KANUN=\"04691\") + (KANUN=\"05746\") * $A$5)","v":0},{"$f":"(bordro_hesaplama_tablosu[[#This Row],[BRÜT ÜCRET]]*damga_vergisi_orani)","v":561.98622294537529},{"$f":"MIN(VLOOKUP(bordro_hesaplama_tablosu[[#This Row],[AY]],asgari_ucrt_istisna[],7,),bordro_hesaplama_tablosu[[#This Row],[HESAPLANAN DAMGA VERGİSİ]])","v":197.38174500000002},{"$f":"bordro_hesaplama_tablosu[[#This Row],[HESAPLANAN DAMGA VERGİSİ]]-bordro_hesaplama_tablosu[[#This Row],[AÜ DV İSTİSNA]]","v":364.60447794537527},{"$f":"AND(STATU<>\"EMEKLİ\", OR(KANUN=\"04691\", KANUN=\"05746\")) * bordro_hesaplama_tablosu[[#This Row],[KESİLECEK DAMGA VERGİSİ]]","v":0},{"$f":"bordro_hesaplama_tablosu[[#This Row],[BRÜT ÜCRET]]-bordro_hesaplama_tablosu[[#This Row],[SGK İŞÇİ]]-bordro_hesaplama_tablosu[[#This Row],[KESİLECEK GELİR VERGİSİ]]-bordro_hesaplama_tablosu[[#This Row],[KESİLECEK DAMGA VERGİSİ]]","v":50000},{"$f":"bordro_hesaplama_tablosu[[#This Row],[SGK MATRAH]]*IF(STATU=\"NORMAL\",PRIM_KEST_ORAN_ISVEREN_2,sgdp_isveren_2)","v":16844.778092236214},{"$f":"IFERROR(\n    _xlfn.LET(\n        _xlpm._f_kontrol, AND(KANUN <> \"00000\", STATU <> \"EMEKLİ\"),\n        _xlpm._is_imalat, AND(_xlpm._f_kontrol, IMALAT = \"İMALAT\"),\n        _xlpm._is_degil, AND(_xlpm._f_kontrol, IMALAT = \"DEĞİL\"),\n\n        _xlpm._hazine, IF(_xlpm._is_imalat, hazine_indirimi_imalat_2, IF(_xlpm._is_degil, hazine_indirimi_2, 0)),\n\n        _xlpm._matrah, bordro_hesaplama_tablosu[[#This Row],[SGK MATRAH]],\n        _xlpm._asgari_30, GUNLUK_BRUT_ASGARI_2 * 30,\n\n        _xlpm._net_isveren_oran, PRIM_KEST_ORAN_ISVEREN_2 - ISSIZLIK_ISVEREN_2,\n        _xlpm._oran_imalat_fark, IF(_xlpm._is_imalat, _xlpm._net_isveren_oran - hazine_indirimi_imalat_2, _xlpm._net_isveren_oran - hazine_indirimi_2),\n        IF(\n            _xlpm._f_kontrol,\n        _xlfn.IFS(\n            KANUN = \"05510\", _xlpm._matrah * _xlpm._hazine,\n            OR(KANUN = \"05746\", KANUN = \"04691\"), _xlpm._matrah * (_xlpm._net_isveren_oran + _xlpm._hazine) / 2,\n            KANUN = \"06111\", _xlpm._matrah * (_xlpm._net_isveren_oran),\n            KANUN = \"03294\", IF(_xlpm._matrah / 30 > GUNLUK_BRUT_ASGARI_2, (_xlpm._asgari_30 * _xlpm._oran_imalat_fark) + (_xlpm._matrah * _xlpm._hazine), (_xlpm._matrah * _xlpm._oran_imalat_fark) + (_xlpm._matrah * _xlpm._hazine)),\n            KANUN = \"16322\", (_xlpm._asgari_30 * (_xlpm._net_isveren_oran - _xlpm._hazine)) + (_xlpm._matrah * _xlpm._hazine),\n            KANUN = \"26322\", (_xlpm._asgari_30 * (PRIM_KEST_ORAN_ISVEREN_2 + PRIM_KEST_ORAN_ISCI_2 - ISSIZLIK_ISVEREN_2 - ISSIZLIK_ISCI_2 - _xlpm._hazine)) + (_xlpm._matrah * _xlpm._hazine),\n            KANUN = \"14857\", (_xlpm._asgari_30 * _xlpm._oran_imalat_fark) + (_xlpm._matrah * _xlpm._hazine),\n            TRUE, 0\n        ),\n       0\n     )\n    ),\n    0\n)","v":2961.719225008565},{"$f":"bordro_hesaplama_tablosu[[#This Row],[BRÜT ÜCRET]]+bordro_hesaplama_tablosu[[#This Row],[SGK İŞVEREN]]-bordro_hesaplama_tablosu[[#This Row],[SGK TEŞVİK]]-bordro_hesaplama_tablosu[[#This Row],[GV MUAFİYET]]-bordro_hesaplama_tablosu[[#This Row],[DV MUAFİYET]]","v":87926.039492441778},{"$f":"bordro_hesaplama_tablosu[[#This Row],[SGK İŞÇİ]]+bordro_hesaplama_tablosu[[#This Row],[SGK İŞVEREN]]-bordro_hesaplama_tablosu[[#This Row],[SGK TEŞVİK]]","v":24989.505961009771},{"$f":"(bordro_hesaplama_tablosu[[#This Row],[KESİLECEK GELİR VERGİSİ]]-bordro_hesaplama_tablosu[[#This Row],[GV MUAFİYET]])+(bordro_hesaplama_tablosu[[#This Row],[KESİLECEK DAMGA VERGİSİ]]-bordro_hesaplama_tablosu[[#This Row],[DV MUAFİYET]])","v":12936.533531432013}]
[null,"TOPLAM",{"$f":"SUBTOTAL(109,bordro_hesaplama_tablosu[BRÜT ÜCRET])","v":850826.71038162219},{"$f":"SUBTOTAL(109,bordro_hesaplama_tablosu[SGK MATRAH])","v":850826.71038162219},{"$f":"SUBTOTAL(109,bordro_hesaplama_tablosu[SGK İŞÇİ])","v":127624.00655724332},null,null,{"$f":"SUBTOTAL(109,bordro_hesaplama_tablosu[HESAPLANAN GELİR VERGİSİ])","v":164264.7300325823},{"$f":"SUBTOTAL(109,bordro_hesaplama_tablosu[AÜ GV İSTİSNA])","v":45151.219999999987},{"$f":"SUBTOTAL(109,bordro_hesaplama_tablosu[KESİLECEK GELİR VERGİSİ])","v":119113.5100325823},{"$f":"SUBTOTAL(109,bordro_hesaplama_tablosu[GV MUAFİYET])","v":0},{"$f":"SUBTOTAL(109,bordro_hesaplama_tablosu[HESAPLANAN DAMGA VERGİSİ])","v":6457.7747317965132},{"$f":"SUBTOTAL(109,bordro_hesaplama_tablosu[AÜ DV İSTİSNA])","v":2368.5809400000007},{"$f":"SUBTOTAL(109,bordro_hesaplama_tablosu[KESİLECEK DAMGA VERGİSİ])","v":4089.1937917965124},{"$f":"SUBTOTAL(109,bordro_hesaplama_tablosu[DV MUAFİYET])","v":0},{"$f":"SUBTOTAL(109,bordro_hesaplama_tablosu[NET ÜCRET])","v":600000},{"$f":"SUBTOTAL(109,bordro_hesaplama_tablosu[SGK İŞVEREN])","v":193563.07661181909},{"$f":"SUBTOTAL(109,bordro_hesaplama_tablosu[SGK TEŞVİK])","v":34033.068415264883},{"$f":"SUBTOTAL(109,bordro_hesaplama_tablosu[İŞVEREN TOPLAM MALİYET])","v":1010356.7185781763},{"$f":"SUBTOTAL(109,bordro_hesaplama_tablosu[SGK])","v":287154.0147537975},{"$f":"SUBTOTAL(109,bordro_hesaplama_tablosu[VERGİ])","v":123202.70382437883}]
[]
[]
[]
[]
[null,null,{"$f":"CONCATENATE(\"Kıdem Süresi: \",DATEDIF(ISE_GIRIS_TARIHI,FESIH_TARIHI,\"y\")&\" Yıl, \"&DATEDIF(ISE_GIRIS_TARIHI,FESIH_TARIHI,\"ym\")&\" Ay, \"&DATEDIF(ISE_GIRIS_TARIHI,FESIH_TARIHI,\"md\")&\" Gün\")","v":"Kıdem Süresi: 26 Yıl, 7 Ay, 19 Gün"},null,null,null,null,null,{"$f":"_xlfn.LET(\n    _xlpm.Baslangic, K2,\n    _xlpm.Bitis, IF(L2=\"\", TODAY(), L2),\n    _xlpm.Ay, IF(\n        _xlpm.Baslangic=\"\", 0,\n        (YEAR(_xlpm.Bitis) - YEAR(_xlpm.Baslangic)) * 12 + MONTH(_xlpm.Bitis) - MONTH(_xlpm.Baslangic) - IF(DAY(_xlpm.Bitis) < DAY(_xlpm.Baslangic), 1, 0)\n    ),\n\n    IF(\n        _xlpm.Baslangic=\"\", \"\",\n        \"İhbar Süresi: \" &\n        _xlfn.IFS(\n            _xlpm.Ay < 6, \"2 Hafta (14 Gün)\",\n            _xlpm.Ay < 18, \"4 Hafta (28 Gün)\",\n            _xlpm.Ay < 36, \"6 Hafta (42 Gün)\",\n            TRUE, \"8 Hafta (56 Gün)\"\n        )\n    )\n)","v":"İhbar Süresi: 8 Hafta (56 Gün)"}]
[]
[]
[null,null,"Kıdem Tazm.Esas Ücret",null,null,{"$f":"MIN(IF(MONTH(FESIH_TARIHI)<=6,KIDEM_TAZM_TAVAN_1,KIDEM_TAZM_TAVAN_2),AYLIK_BRUT)","v":53919.68},null,null,"İhbar Tazminatı Brüt",null,null,{"$f":"AYLIK_BRUT/30*(--MID(I22,FIND(\"(\",I22)+1,FIND(\" \",I22,FIND(\"(\",I22))-FIND(\"(\",I22)-1))","v":138213.56383373303}]
[]
[null,null,"Kıdem Tazminatı Brüt",null,null,{"$f":"_xlfn.LET(\n    _xlpm.YIL,DATEDIF(ISE_GIRIS_TARIHI,FESIH_TARIHI,\"y\"),\n    _xlpm.AY,DATEDIF(ISE_GIRIS_TARIHI,FESIH_TARIHI,\"ym\"),\n    _xlpm.GUN,DATEDIF(ISE_GIRIS_TARIHI,FESIH_TARIHI,\"md\"),\n    KIDEM_ESAS_BRUT*(_xlpm.YIL+_xlpm.AY/12+_xlpm.GUN/360)\n)","v":1436210.5875555554},null,null,"İhbar Tazminatı Gelir Vergisi Kesintisi",null,null,{"$f":"MAX((IHBAR_ESAS_BRUT-vergi_dilimi_4_1)*0.05,0)+MAX((IHBAR_ESAS_BRUT-vergi_dilimi_3_1)*0.08,0)+MAX((IHBAR_ESAS_BRUT-vergi_dilimi_2_1)*0.07,0)+MAX((IHBAR_ESAS_BRUT-vergi_dilimi_1_1)*0.05,0)+IHBAR_ESAS_BRUT*0.15-(MAX((vergi_dilimi_0-vergi_dilimi_4_1)*0.05,0)+(MAX((vergi_dilimi_0-vergi_dilimi_3_1)*0.08,0)+MAX((vergi_dilimi_0-vergi_dilimi_2_1)*0.07,0)+MAX((vergi_dilimi_0-vergi_dilimi_1_1)*0.05,0)+vergi_dilimi_0*0.15))","v":20732.034575059955}]
[]
[null,null,"Kıdem Tazminatı Damga Vergisi Kesintisi",null,null,{"$f":"F27*DAMGA_VERGISI_ORANI","v":10900.838359546666},null,null,"İhbar Tazminatı Damga Vergisi Kesintisi",null,null,{"$f":"L25*DAMGA_VERGISI_ORANI","v":1049.0409494980338}]
[]
[null,null,"Net Kıdem Tazminatı",null,null,{"$f":"F27-F29","v":1425309.7491960088},null,null,"Net İhbar Tazminatı",null,null,{"$f":"IHBAR_ESAS_BRUT-L27-L29","v":116432.48830917505}]

{"sheet":"params","index":1,"n_rows":37,"n_cols":20,"rows_kept":37,"cut":false,"hidden":false,"merged":[[1,7,1,8]]}
[{"$f":"DATE(B2,MATCH(UPPER(C2),{\"OCAK\",\"ŞUBAT\",\"MART\",\"NİSAN\",\"MAYIS\",\"HAZİRAN\",\"TEMMUZ\",\"AĞUSTOS\",\"EYLÜL\",\"EKİM\",\"KASIM\",\"ARALIK\"},0),1)","v":{"$error":"#N/A"}}]
[{"$f":"DATE(YEAR(A1),MONTH(A1)+1,0)","v":{"$error":"#N/A"}},2026,"2. Dönem",null,null,null,null,{"$f":"_xlfn.LET(\n    _xlpm.OncekiYil,IF(LEFT(ay,1)=\"1\",yil-1,yil),\n    _xlpm.OncekiDonem,IF(LEFT(ay,1)=\"1\",2,1),\n    \"Önceki Dönem: \"&_xlpm.OncekiYil&\" - \"&_xlpm.OncekiDonem\n)","v":"Önceki Dönem: 2026 - 1"}]
[]
[null,null,"indx","Ücret Türü","Aylık","Günlük","Saatlik","ÖNCEKİ DÖNEM","ARTIŞ ORANI",null,"indx","VERGİ","DİLİMLERİ","VERGİ ORANLARI","VERGİ KESİNTİSİ",null,"indx","KANUN","SGK TEŞVİK ORANI","VERGİ İSTİSNA ORANI"]
[null,null,1,{"$f":"INDEX(\n   INDIRECT(\"Ucret_Turleri_\"&yil&\"_\"&LEFT(ay,1)&\"[\" & D$4 & \"]\"),\n   MATCH(\n      secili_params_ucret_turleri[[#This Row],[indx]],\n      INDIRECT(\"Ucret_Turleri_\"&yil&\"_\"&LEFT(ay,1)&\"[indx]\"),\n      0\n   )\n)","v":"Asgari Brüt"},{"$f":"INDEX(\n   INDIRECT(\"Ucret_Turleri_\"&yil&\"_\"&LEFT(ay,1)&\"[\" & E$4 & \"]\"),\n   MATCH(\n      secili_params_ucret_turleri[[#This Row],[indx]],\n      INDIRECT(\"Ucret_Turleri_\"&yil&\"_\"&LEFT(ay,1)&\"[indx]\"),\n      0\n   )\n)","v":33030},{"$f":"INDEX(\n   INDIRECT(\"Ucret_Turleri_\"&yil&\"_\"&LEFT(ay,1)&\"[\" & F$4 & \"]\"),\n   MATCH(\n      secili_params_ucret_turleri[[#This Row],[indx]],\n      INDIRECT(\"Ucret_Turleri_\"&yil&\"_\"&LEFT(ay,1)&\"[indx]\"),\n      0\n   )\n)","v":1101},{"$f":"INDEX(\n   INDIRECT(\"Ucret_Turleri_\"&yil&\"_\"&LEFT(ay,1)&\"[\" & G$4 & \"]\"),\n   MATCH(\n      secili_params_ucret_turleri[[#This Row],[indx]],\n      INDIRECT(\"Ucret_Turleri_\"&yil&\"_\"&LEFT(ay,1)&\"[indx]\"),\n      0\n   )\n)","v":146.80000000000001},{"$f":"_xlfn.LET(\n    _xlpm.OncekiYil,IF(LEFT(ay,1)=\"1\",yil-1,yil),\n    _xlpm.OncekiDonem,IF(LEFT(ay,1)=\"1\",2,1),\n    _xlpm.Tablo,\"Ucret_Turleri_\"&_xlpm.OncekiYil&\"_\"&_xlpm.OncekiDonem,\n    INDEX(\n        INDIRECT(_xlpm.Tablo&\"[\"&E$4&\"]\"),\n        MATCH(\n            secili_params_ucret_turleri[[#This Row],[indx]],\n            INDIRECT(_xlpm.Tablo&\"[indx]\"),\n            0\n        )\n    )\n)","v":33030},{"$f":"(secili_params_ucret_turleri[[#This Row],[Aylık]]/secili_params_ucret_turleri[[#This Row],[ÖNCEKİ DÖNEM]])-1","v":0},null,1,{"$f":"INDEX(\n   INDIRECT(\"Vergi_Dilimleri_\"&yil&\"_\"&LEFT(ay,1)&\"[\" & L$4 & \"]\"),\n   MATCH(\n      secili_params_vergi_dilimleri[[#This Row],[indx]],\n      INDIRECT(\"Vergi_Dilimleri_\"&yil&\"_\"&LEFT(ay,1)&\"[indx]\"),\n      0\n   )\n)","v":0},{"$f":"INDEX(\n   INDIRECT(\"Vergi_Dilimleri_\"&yil&\"_\"&LEFT(ay,1)&\"[\" & M$4 & \"]\"),\n   MATCH(\n      secili_params_vergi_dilimleri[[#This Row],[indx]],\n      INDIRECT(\"Vergi_Dilimleri_\"&yil&\"_\"&LEFT(ay,1)&\"[indx]\"),\n      0\n   )\n)","v":190000},{"$f":"INDEX(\n   INDIRECT(\"Vergi_Dilimleri_\"&yil&\"_\"&LEFT(ay,1)&\"[\" & N$4 & \"]\"),\n   MATCH(\n      secili_params_vergi_dilimleri[[#This Row],[indx]],\n      INDIRECT(\"Vergi_Dilimleri_\"&yil&\"_\"&LEFT(ay,1)&\"[indx]\"),\n      0\n   )\n)","v":0.15},{"$f":"INDEX(\n   INDIRECT(\"Vergi_Dilimleri_\"&yil&\"_\"&LEFT(ay,1)&\"[\" & O$4 & \"]\"),\n   MATCH(\n      secili_params_vergi_dilimleri[[#This Row],[indx]],\n      INDIRECT(\"Vergi_Dilimleri_\"&yil&\"_\"&LEFT(ay,1)&\"[indx]\"),\n      0\n   )\n)","v":28500},null,1,"05510"]
[null,null,{"$f":"C5+1","v":2},{"$f":"INDEX(\n   INDIRECT(\"Ucret_Turleri_\"&yil&\"_\"&LEFT(ay,1)&\"[\" & D$4 & \"]\"),\n   MATCH(\n      secili_params_ucret_turleri[[#This Row],[indx]],\n      INDIRECT(\"Ucret_Turleri_\"&yil&\"_\"&LEFT(ay,1)&\"[indx]\"),\n      0\n   )\n)","v":"SGK Tavan"},{"$f":"INDEX(\n   INDIRECT(\"Ucret_Turleri_\"&yil&\"_\"&LEFT(ay,1)&\"[\" & E$4 & \"]\"),\n   MATCH(\n      secili_params_ucret_turleri[[#This Row],[indx]],\n      INDIRECT(\"Ucret_Turleri_\"&yil&\"_\"&LEFT(ay,1)&\"[indx]\"),\n      0\n   )\n)","v":297270},{"$f":"INDEX(\n   INDIRECT(\"Ucret_Turleri_\"&yil&\"_\"&LEFT(ay,1)&\"[\" & F$4 & \"]\"),\n   MATCH(\n      secili_params_ucret_turleri[[#This Row],[indx]],\n      INDIRECT(\"Ucret_Turleri_\"&yil&\"_\"&LEFT(ay,1)&\"[indx]\"),\n      0\n   )\n)","v":9909},{"$f":"INDEX(\n   INDIRECT(\"Ucret_Turleri_\"&yil&\"_\"&LEFT(ay,1)&\"[\" & G$4 & \"]\"),\n   MATCH(\n      secili_params_ucret_turleri[[#This Row],[indx]],\n      INDIRECT(\"Ucret_Turleri_\"&yil&\"_\"&LEFT(ay,1)&\"[indx]\"),\n      0\n   )\n)","v":1321.2},{"$f":"_xlfn.LET(\n    _xlpm.OncekiYil,IF(LEFT(ay,1)=\"1\",yil-1,yil),\n    _xlpm.OncekiDonem,IF(LEFT(ay,1)=\"1\",2,1),\n    _xlpm.Tablo,\"Ucret_Turleri_\"&_xlpm.OncekiYil&\"_\"&_xlpm.OncekiDonem,\n    INDEX(\n        INDIRECT(_xlpm.Tablo&\"[\"&E$4&\"]\"),\n        MATCH(\n            secili_params_ucret_turleri[[#This Row],[indx]],\n            INDIRECT(_xlpm.Tablo&\"[indx]\"),\n            0\n        )\n    )\n)","v":297270},{"$f":"(secili_params_ucret_turleri[[#This Row],[Aylık]]/secili_params_ucret_turleri[[#This Row],[ÖNCEKİ DÖNEM]])-1","v":0},null,{"$f":"K5+1","v":2},{"$f":"INDEX(\n   INDIRECT(\"Vergi_Dilimleri_\"&yil&\"_\"&LEFT(ay,1)&\"[\" & L$4 & \"]\"),\n   MATCH(\n      secili_params_vergi_dilimleri[[#This Row],[indx]],\n      INDIRECT(\"Vergi_Dilimleri_\"&yil&\"_\"&LEFT(ay,1)&\"[indx]\"),\n      0\n   )\n)","v":190000.01},{"$f":"INDEX(\n   INDIRECT(\"Vergi_Dilimleri_\"&yil&\"_\"&LEFT(ay,1)&\"[\" & M$4 & \"]\"),\n   MATCH(\n      secili_params_vergi_dilimleri[[#This Row],[indx]],\n      INDIRECT(\"Vergi_Dilimleri_\"&yil&\"_\"&LEFT(ay,1)&\"[indx]\"),\n      0\n   )\n)","v":400000},{"$f":"INDEX(\n   INDIRECT(\"Vergi_Dilimleri_\"&yil&\"_\"&LEFT(ay,1)&\"[\" & N$4 & \"]\"),\n   MATCH(\n      secili_params_vergi_dilimleri[[#This Row],[indx]],\n      INDIRECT(\"Vergi_Dilimleri_\"&yil&\"_\"&LEFT(ay,1)&\"[indx]\"),\n      0\n   )\n)","v":0.2},{"$f":"INDEX(\n   INDIRECT(\"Vergi_Dilimleri_\"&yil&\"_\"&LEFT(ay,1)&\"[\" & O$4 & \"]\"),\n   MATCH(\n      secili_params_vergi_dilimleri[[#This Row],[indx]],\n      INDIRECT(\"Vergi_Dilimleri_\"&yil&\"_\"&LEFT(ay,1)&\"[indx]\"),\n      0\n   )\n)","v":80000},null,2,"00000",0,0]
[null,null,{"$f":"C6+1","v":3},{"$f":"INDEX(\n   INDIRECT(\"Ucret_Turleri_\"&yil&\"_\"&LEFT(ay,1)&\"[\" & D$4 & \"]\"),\n   MATCH(\n      secili_params_ucret_turleri[[#This Row],[indx]],\n      INDIRECT(\"Ucret_Turleri_\"&yil&\"_\"&LEFT(ay,1)&\"[indx]\"),\n      0\n   )\n)","v":"Net Ücret"},{"$f":"INDEX(\n   INDIRECT(\"Ucret_Turleri_\"&yil&\"_\"&LEFT(ay,1)&\"[\" & E$4 & \"]\"),\n   MATCH(\n      secili_params_ucret_turleri[[#This Row],[indx]],\n      INDIRECT(\"Ucret_Turleri_\"&yil&\"_\"&LEFT(ay,1)&\"[indx]\"),\n      0\n   )\n)","v":28075.5},{"$f":"INDEX(\n   INDIRECT(\"Ucret_Turleri_\"&yil&\"_\"&LEFT(ay,1)&\"[\" & F$4 & \"]\"),\n   MATCH(\n      secili_params_ucret_turleri[[#This Row],[indx]],\n      INDIRECT(\"Ucret_Turleri_\"&yil&\"_\"&LEFT(ay,1)&\"[indx]\"),\n      0\n   )\n)","v":935.85},{"$f":"INDEX(\n   INDIRECT(\"Ucret_Turleri_\"&yil&\"_\"&LEFT(ay,1)&\"[\" & G$4 & \"]\"),\n   MATCH(\n      secili_params_ucret_turleri[[#This Row],[indx]],\n      INDIRECT(\"Ucret_Turleri_\"&yil&\"_\"&LEFT(ay,1)&\"[indx]\"),\n      0\n   )\n)","v":124.78},{"$f":"_xlfn.LET(\n    _xlpm.OncekiYil,IF(LEFT(ay,1)=\"1\",yil-1,yil),\n    _xlpm.OncekiDonem,IF(LEFT(ay,1)=\"1\",2,1),\n    _xlpm.Tablo,\"Ucret_Turleri_\"&_xlpm.OncekiYil&\"_\"&_xlpm.OncekiDonem,\n    INDEX(\n        INDIRECT(_xlpm.Tablo&\"[\"&E$4&\"]\"),\n        MATCH(\n            secili_params_ucret_turleri[[#This Row],[indx]],\n            INDIRECT(_xlpm.Tablo&\"[indx]\"),\n            0\n        )\n    )\n)","v":28075.5},{"$f":"(secili_params_ucret_turleri[[#This Row],[Aylık]]/secili_params_ucret_turleri[[#This Row],[ÖNCEKİ DÖNEM]])-1","v":0},null,{"$f":"K6+1","v":3},{"$f":"INDEX(\n   INDIRECT(\"Vergi_Dilimleri_\"&yil&\"_\"&LEFT(ay,1)&\"[\" & L$4 & \"]\"),\n   MATCH(\n      secili_params_vergi_dilimleri[[#This Row],[indx]],\n      INDIRECT(\"Vergi_Dilimleri_\"&yil&\"_\"&LEFT(ay,1)&\"[indx]\"),\n      0\n   )\n)","v":400000.01},{"$f":"INDEX(\n   INDIRECT(\"Vergi_Dilimleri_\"&yil&\"_\"&LEFT(ay,1)&\"[\" & M$4 & \"]\"),\n   MATCH(\n      secili_params_vergi_dilimleri[[#This Row],[indx]],\n      INDIRECT(\"Vergi_Dilimleri_\"&yil&\"_\"&LEFT(ay,1)&\"[indx]\"),\n      0\n   )\n)","v":1500000},{"$f":"INDEX(\n   INDIRECT(\"Vergi_Dilimleri_\"&yil&\"_\"&LEFT(ay,1)&\"[\" & N$4 & \"]\"),\n   MATCH(\n      secili_params_vergi_dilimleri[[#This Row],[indx]],\n      INDIRECT(\"Vergi_Dilimleri_\"&yil&\"_\"&LEFT(ay,1)&\"[indx]\"),\n      0\n   )\n)","v":0.27},{"$f":"INDEX(\n   INDIRECT(\"Vergi_Dilimleri_\"&yil&\"_\"&LEFT(ay,1)&\"[\" & O$4 & \"]\"),\n   MATCH(\n      secili_params_vergi_dilimleri[[#This Row],[indx]],\n      INDIRECT(\"Vergi_Dilimleri_\"&yil&\"_\"&LEFT(ay,1)&\"[indx]\"),\n      0\n   )\n)","v":405000},null,3,"06111",0.16750000000000001,0]
[null,null,4,{"$f":"INDEX(\n   INDIRECT(\"Ucret_Turleri_\"&yil&\"_\"&LEFT(ay,1)&\"[\" & D$4 & \"]\"),\n   MATCH(\n      secili_params_ucret_turleri[[#This Row],[indx]],\n      INDIRECT(\"Ucret_Turleri_\"&yil&\"_\"&LEFT(ay,1)&\"[indx]\"),\n      0\n   )\n)","v":"Emekli Net Ücret (Yıllık Ortalama)"},{"$f":"INDEX(\n   INDIRECT(\"Ucret_Turleri_\"&yil&\"_\"&LEFT(ay,1)&\"[\" & E$4 & \"]\"),\n   MATCH(\n      secili_params_ucret_turleri[[#This Row],[indx]],\n      INDIRECT(\"Ucret_Turleri_\"&yil&\"_\"&LEFT(ay,1)&\"[indx]\"),\n      0\n   )\n)","v":30057.3},{"$f":"INDEX(\n   INDIRECT(\"Ucret_Turleri_\"&yil&\"_\"&LEFT(ay,1)&\"[\" & F$4 & \"]\"),\n   MATCH(\n      secili_params_ucret_turleri[[#This Row],[indx]],\n      INDIRECT(\"Ucret_Turleri_\"&yil&\"_\"&LEFT(ay,1)&\"[indx]\"),\n      0\n   )\n)","v":1001.91},{"$f":"INDEX(\n   INDIRECT(\"Ucret_Turleri_\"&yil&\"_\"&LEFT(ay,1)&\"[\" & G$4 & \"]\"),\n   MATCH(\n      secili_params_ucret_turleri[[#This Row],[indx]],\n      INDIRECT(\"Ucret_Turleri_\"&yil&\"_\"&LEFT(ay,1)&\"[indx]\"),\n      0\n   )\n)","v":133.58799999999999},{"$f":"_xlfn.LET(\n    _xlpm.OncekiYil,IF(LEFT(ay,1)=\"1\",yil-1,yil),\n    _xlpm.OncekiDonem,IF(LEFT(ay,1)=\"1\",2,1),\n    _xlpm.Tablo,\"Ucret_Turleri_\"&_xlpm.OncekiYil&\"_\"&_xlpm.OncekiDonem,\n    INDEX(\n        INDIRECT(_xlpm.Tablo&\"[\"&E$4&\"]\"),\n        MATCH(\n            secili_params_ucret_turleri[[#This Row],[indx]],\n            INDIRECT(_xlpm.Tablo&\"[indx]\"),\n            0\n        )\n    )\n)","v":30057.3},{"$f":"(secili_params_ucret_turleri[[#This Row],[Aylık]]/secili_params_ucret_turleri[[#This Row],[ÖNCEKİ DÖNEM]])-1","v":0},null,4,{"$f":"INDEX(\n   INDIRECT(\"Vergi_Dilimleri_\"&yil&\"_\"&LEFT(ay,1)&\"[\" & L$4 & \"]\"),\n   MATCH(\n      secili_params_vergi_dilimleri[[#This Row],[indx]],\n      INDIRECT(\"Vergi_Dilimleri_\"&yil&\"_\"&LEFT(ay,1)&\"[indx]\"),\n      0\n   )\n)","v":1500000.01},{"$f":"INDEX(\n   INDIRECT(\"Vergi_Dilimleri_\"&yil&\"_\"&LEFT(ay,1)&\"[\" & M$4 & \"]\"),\n   MATCH(\n      secili_params_vergi_dilimleri[[#This Row],[indx]],\n      INDIRECT(\"Vergi_Dilimleri_\"&yil&\"_\"&LEFT(ay,1)&\"[indx]\"),\n      0\n   )\n)","v":5300000},{"$f":"INDEX(\n   INDIRECT(\"Vergi_Dilimleri_\"&yil&\"_\"&LEFT(ay,1)&\"[\" & N$4 & \"]\"),\n   MATCH(\n      secili_params_vergi_dilimleri[[#This Row],[indx]],\n      INDIRECT(\"Vergi_Dilimleri_\"&yil&\"_\"&LEFT(ay,1)&\"[indx]\"),\n      0\n   )\n)","v":0.35},{"$f":"INDEX(\n   INDIRECT(\"Vergi_Dilimleri_\"&yil&\"_\"&LEFT(ay,1)&\"[\" & O$4 & \"]\"),\n   MATCH(\n      secili_params_vergi_dilimleri[[#This Row],[indx]],\n      INDIRECT(\"Vergi_Dilimleri_\"&yil&\"_\"&LEFT(ay,1)&\"[indx]\"),\n      0\n   )\n)","v":1854999.9999999998},null,4,"03294",null,0]
[null,null,5,{"$f":"INDEX(\n   INDIRECT(\"Ucret_Turleri_\"&yil&\"_\"&LEFT(ay,1)&\"[\" & D$4 & \"]\"),\n   MATCH(\n      secili_params_ucret_turleri[[#This Row],[indx]],\n      INDIRECT(\"Ucret_Turleri_\"&yil&\"_\"&LEFT(ay,1)&\"[indx]\"),\n      0\n   )\n)","v":"Emekli Engelli Net Ücret (Yıllık Ortalama)"},{"$f":"INDEX(\n   INDIRECT(\"Ucret_Turleri_\"&yil&\"_\"&LEFT(ay,1)&\"[\" & E$4 & \"]\"),\n   MATCH(\n      secili_params_ucret_turleri[[#This Row],[indx]],\n      INDIRECT(\"Ucret_Turleri_\"&yil&\"_\"&LEFT(ay,1)&\"[indx]\"),\n      0\n   )\n)","v":30552.75},{"$f":"INDEX(\n   INDIRECT(\"Ucret_Turleri_\"&yil&\"_\"&LEFT(ay,1)&\"[\" & F$4 & \"]\"),\n   MATCH(\n      secili_params_ucret_turleri[[#This Row],[indx]],\n      INDIRECT(\"Ucret_Turleri_\"&yil&\"_\"&LEFT(ay,1)&\"[indx]\"),\n      0\n   )\n)","v":1018.425},{"$f":"INDEX(\n   INDIRECT(\"Ucret_Turleri_\"&yil&\"_\"&LEFT(ay,1)&\"[\" & G$4 & \"]\"),\n   MATCH(\n      secili_params_ucret_turleri[[#This Row],[indx]],\n      INDIRECT(\"Ucret_Turleri_\"&yil&\"_\"&LEFT(ay,1)&\"[indx]\"),\n      0\n   )\n)","v":135.79},{"$f":"_xlfn.LET(\n    _xlpm.OncekiYil,IF(LEFT(ay,1)=\"1\",yil-1,yil),\n    _xlpm.OncekiDonem,IF(LEFT(ay,1)=\"1\",2,1),\n    _xlpm.Tablo,\"Ucret_Turleri_\"&_xlpm.OncekiYil&\"_\"&_xlpm.OncekiDonem,\n    INDEX(\n        INDIRECT(_xlpm.Tablo&\"[\"&E$4&\"]\"),\n        MATCH(\n            secili_params_ucret_turleri[[#This Row],[indx]],\n            INDIRECT(_xlpm.Tablo&\"[indx]\"),\n            0\n        )\n    )\n)","v":30552.75},{"$f":"(secili_params_ucret_turleri[[#This Row],[Aylık]]/secili_params_ucret_turleri[[#This Row],[ÖNCEKİ DÖNEM]])-1","v":0},null,5,{"$f":"INDEX(\n   INDIRECT(\"Vergi_Dilimleri_\"&yil&\"_\"&LEFT(ay,1)&\"[\" & L$4 & \"]\"),\n   MATCH(\n      secili_params_vergi_dilimleri[[#This Row],[indx]],\n      INDIRECT(\"Vergi_Dilimleri_\"&yil&\"_\"&LEFT(ay,1)&\"[indx]\"),\n      0\n   )\n)","v":5300000.01},{"$f":"INDEX(\n   INDIRECT(\"Vergi_Dilimleri_\"&yil&\"_\"&LEFT(ay,1)&\"[\" & M$4 & \"]\"),\n   MATCH(\n      secili_params_vergi_dilimleri[[#This Row],[indx]],\n      INDIRECT(\"Vergi_Dilimleri_\"&yil&\"_\"&LEFT(ay,1)&\"[indx]\"),\n      0\n   )\n)","v":9999999},{"$f":"INDEX(\n   INDIRECT(\"Vergi_Dilimleri_\"&yil&\"_\"&LEFT(ay,1)&\"[\" & N$4 & \"]\"),\n   MATCH(\n      secili_params_vergi_dilimleri[[#This Row],[indx]],\n      INDIRECT(\"Vergi_Dilimleri_\"&yil&\"_\"&LEFT(ay,1)&\"[indx]\"),\n      0\n   )\n)","v":0.4},{"$f":"INDEX(\n   INDIRECT(\"Vergi_Dilimleri_\"&yil&\"_\"&LEFT(ay,1)&\"[\" & O$4 & \"]\"),\n   MATCH(\n      secili_params_vergi_dilimleri[[#This Row],[indx]],\n      INDIRECT(\"Vergi_Dilimleri_\"&yil&\"_\"&LEFT(ay,1)&\"[indx]\"),\n      0\n   )\n)","v":3999999.6},null,5,"14857",null,0]
[null,null,6,{"$f":"INDEX(\n   INDIRECT(\"Ucret_Turleri_\"&yil&\"_\"&LEFT(ay,1)&\"[\" & D$4 & \"]\"),\n   MATCH(\n      secili_params_ucret_turleri[[#This Row],[indx]],\n      INDIRECT(\"Ucret_Turleri_\"&yil&\"_\"&LEFT(ay,1)&\"[indx]\"),\n      0\n   )\n)","v":"Kıdem Tazminanı Tavanı 2. Dönem"},{"$f":"INDEX(\n   INDIRECT(\"Ucret_Turleri_\"&yil&\"_\"&LEFT(ay,1)&\"[\" & E$4 & \"]\"),\n   MATCH(\n      secili_params_ucret_turleri[[#This Row],[indx]],\n      INDIRECT(\"Ucret_Turleri_\"&yil&\"_\"&LEFT(ay,1)&\"[indx]\"),\n      0\n   )\n)","v":73729.87},{"$f":"INDEX(\n   INDIRECT(\"Ucret_Turleri_\"&yil&\"_\"&LEFT(ay,1)&\"[\" & F$4 & \"]\"),\n   MATCH(\n      secili_params_ucret_turleri[[#This Row],[indx]],\n      INDIRECT(\"Ucret_Turleri_\"&yil&\"_\"&LEFT(ay,1)&\"[indx]\"),\n      0\n   )\n)","v":2457.6623333333332},{"$f":"INDEX(\n   INDIRECT(\"Ucret_Turleri_\"&yil&\"_\"&LEFT(ay,1)&\"[\" & G$4 & \"]\"),\n   MATCH(\n      secili_params_ucret_turleri[[#This Row],[indx]],\n      INDIRECT(\"Ucret_Turleri_\"&yil&\"_\"&LEFT(ay,1)&\"[indx]\"),\n      0\n   )\n)","v":327.68831111111109},{"$f":"_xlfn.LET(\n    _xlpm.OncekiYil,IF(LEFT(ay,1)=\"1\",yil-1,yil),\n    _xlpm.OncekiDonem,IF(LEFT(ay,1)=\"1\",2,1),\n    _xlpm.Tablo,\"Ucret_Turleri_\"&_xlpm.OncekiYil&\"_\"&_xlpm.OncekiDonem,\n    INDEX(\n        INDIRECT(_xlpm.Tablo&\"[\"&E$4&\"]\"),\n        MATCH(\n            secili_params_ucret_turleri[[#This Row],[indx]],\n            INDIRECT(_xlpm.Tablo&\"[indx]\"),\n            0\n        )\n    )\n)","v":64948.77},{"$f":"(secili_params_ucret_turleri[[#This Row],[Aylık]]/secili_params_ucret_turleri[[#This Row],[ÖNCEKİ DÖNEM]])-1","v":0.13520040487294827},null,null,null,null,null,null,null,6,"16322",null,0]
[null,null,7,{"$f":"INDEX(\n   INDIRECT(\"Ucret_Turleri_\"&yil&\"_\"&LEFT(ay,1)&\"[\" & D$4 & \"]\"),\n   MATCH(\n      secili_params_ucret_turleri[[#This Row],[indx]],\n      INDIRECT(\"Ucret_Turleri_\"&yil&\"_\"&LEFT(ay,1)&\"[indx]\"),\n      0\n   )\n)","v":"1.DERECE ENGELLİ"},{"$f":"INDEX(\n   INDIRECT(\"Ucret_Turleri_\"&yil&\"_\"&LEFT(ay,1)&\"[\" & E$4 & \"]\"),\n   MATCH(\n      secili_params_ucret_turleri[[#This Row],[indx]],\n      INDIRECT(\"Ucret_Turleri_\"&yil&\"_\"&LEFT(ay,1)&\"[indx]\"),\n      0\n   )\n)","v":12000},{"$f":"INDEX(\n   INDIRECT(\"Ucret_Turleri_\"&yil&\"_\"&LEFT(ay,1)&\"[\" & F$4 & \"]\"),\n   MATCH(\n      secili_params_ucret_turleri[[#This Row],[indx]],\n      INDIRECT(\"Ucret_Turleri_\"&yil&\"_\"&LEFT(ay,1)&\"[indx]\"),\n      0\n   )\n)","v":400},{"$f":"INDEX(\n   INDIRECT(\"Ucret_Turleri_\"&yil&\"_\"&LEFT(ay,1)&\"[\" & G$4 & \"]\"),\n   MATCH(\n      secili_params_ucret_turleri[[#This Row],[indx]],\n      INDIRECT(\"Ucret_Turleri_\"&yil&\"_\"&LEFT(ay,1)&\"[indx]\"),\n      0\n   )\n)","v":53.333333333333336},{"$f":"_xlfn.LET(\n    _xlpm.OncekiYil,IF(LEFT(ay,1)=\"1\",yil-1,yil),\n    _xlpm.OncekiDonem,IF(LEFT(ay,1)=\"1\",2,1),\n    _xlpm.Tablo,\"Ucret_Turleri_\"&_xlpm.OncekiYil&\"_\"&_xlpm.OncekiDonem,\n    INDEX(\n        INDIRECT(_xlpm.Tablo&\"[\"&E$4&\"]\"),\n        MATCH(\n            secili_params_ucret_turleri[[#This Row],[indx]],\n            INDIRECT(_xlpm.Tablo&\"[indx]\"),\n            0\n        )\n    )\n)","v":12000},{"$f":"(secili_params_ucret_turleri[[#This Row],[Aylık]]/secili_params_ucret_turleri[[#This Row],[ÖNCEKİ DÖNEM]])-1","v":0},null,"indx","Sigorta Kolu","İşveren Payı","Çalışan Payı","Toplam",null,7,"26322",null,0]
[null,null,8,{"$f":"INDEX(\n   INDIRECT(\"Ucret_Turleri_\"&yil&\"_\"&LEFT(ay,1)&\"[\" & D$4 & \"]\"),\n   MATCH(\n      secili_params_ucret_turleri[[#This Row],[indx]],\n      INDIRECT(\"Ucret_Turleri_\"&yil&\"_\"&LEFT(ay,1)&\"[indx]\"),\n      0\n   )\n)","v":"2.DERECE ENGELLİ"},{"$f":"INDEX(\n   INDIRECT(\"Ucret_Turleri_\"&yil&\"_\"&LEFT(ay,1)&\"[\" & E$4 & \"]\"),\n   MATCH(\n      secili_params_ucret_turleri[[#This Row],[indx]],\n      INDIRECT(\"Ucret_Turleri_\"&yil&\"_\"&LEFT(ay,1)&\"[indx]\"),\n      0\n   )\n)","v":7000},{"$f":"INDEX(\n   INDIRECT(\"Ucret_Turleri_\"&yil&\"_\"&LEFT(ay,1)&\"[\" & F$4 & \"]\"),\n   MATCH(\n      secili_params_ucret_turleri[[#This Row],[indx]],\n      INDIRECT(\"Ucret_Turleri_\"&yil&\"_\"&LEFT(ay,1)&\"[indx]\"),\n      0\n   )\n)","v":233.33333333333334},{"$f":"INDEX(\n   INDIRECT(\"Ucret_Turleri_\"&yil&\"_\"&LEFT(ay,1)&\"[\" & G$4 & \"]\"),\n   MATCH(\n      secili_params_ucret_turleri[[#This Row],[indx]],\n      INDIRECT(\"Ucret_Turleri_\"&yil&\"_\"&LEFT(ay,1)&\"[indx]\"),\n      0\n   )\n)","v":31.111111111111111},{"$f":"_xlfn.LET(\n    _xlpm.OncekiYil,IF(LEFT(ay,1)=\"1\",yil-1,yil),\n    _xlpm.OncekiDonem,IF(LEFT(ay,1)=\"1\",2,1),\n    _xlpm.Tablo,\"Ucret_Turleri_\"&_xlpm.OncekiYil&\"_\"&_xlpm.OncekiDonem,\n    INDEX(\n        INDIRECT(_xlpm.Tablo&\"[\"&E$4&\"]\"),\n        MATCH(\n            secili_params_ucret_turleri[[#This Row],[indx]],\n            INDIRECT(_xlpm.Tablo&\"[indx]\"),\n            0\n        )\n    )\n)","v":7000},{"$f":"(secili_params_ucret_turleri[[#This Row],[Aylık]]/secili_params_ucret_turleri[[#This Row],[ÖNCEKİ DÖNEM]])-1","v":0},null,1,{"$f":"INDEX(\n   INDIRECT(\"Isveren_prim_oranlari_normal_\"&yil&\"_\"&LEFT(ay,1)&\"[\" & L$11 & \"]\"),\n   MATCH(\n      secili_params_isveren_prim_oranlari_normal[[#This Row],[indx]],\n      INDIRECT(\"Isveren_prim_oranlari_normal_\"&yil&\"_\"&LEFT(ay,1)&\"[indx]\"),\n      0\n   )\n)","v":"Malüllük, Yaşlılık ve Ölüm"},{"$f":"INDEX(\n   INDIRECT(\"Isveren_prim_oranlari_normal_\"&yil&\"_\"&LEFT(ay,1)&\"[\" & M$11 & \"]\"),\n   MATCH(\n      secili_params_isveren_prim_oranlari_normal[[#This Row],[indx]],\n      INDIRECT(\"Isveren_prim_oranlari_normal_\"&yil&\"_\"&LEFT(ay,1)&\"[indx]\"),\n      0\n   )\n)","v":0.12},{"$f":"INDEX(\n   INDIRECT(\"Isveren_prim_oranlari_normal_\"&yil&\"_\"&LEFT(ay,1)&\"[\" & N$11 & \"]\"),\n   MATCH(\n      secili_params_isveren_prim_oranlari_normal[[#This Row],[indx]],\n      INDIRECT(\"Isveren_prim_oranlari_normal_\"&yil&\"_\"&LEFT(ay,1)&\"[indx]\"),\n      0\n   )\n)","v":0.09},{"$f":"INDEX(\n   INDIRECT(\"Isveren_prim_oranlari_normal_\"&yil&\"_\"&LEFT(ay,1)&\"[\" & O$11 & \"]\"),\n   MATCH(\n      secili_params_isveren_prim_oranlari_normal[[#This Row],[indx]],\n      INDIRECT(\"Isveren_prim_oranlari_normal_\"&yil&\"_\"&LEFT(ay,1)&\"[indx]\"),\n      0\n   )\n)","v":0.2},null,8,"05746",0.5]
[null,null,9,{"$f":"INDEX(\n   INDIRECT(\"Ucret_Turleri_\"&yil&\"_\"&LEFT(ay,1)&\"[\" & D$4 & \"]\"),\n   MATCH(\n      secili_params_ucret_turleri[[#This Row],[indx]],\n      INDIRECT(\"Ucret_Turleri_\"&yil&\"_\"&LEFT(ay,1)&\"[indx]\"),\n      0\n   )\n)","v":"3.DERECE ENGELLİ"},{"$f":"INDEX(\n   INDIRECT(\"Ucret_Turleri_\"&yil&\"_\"&LEFT(ay,1)&\"[\" & E$4 & \"]\"),\n   MATCH(\n      secili_params_ucret_turleri[[#This Row],[indx]],\n      INDIRECT(\"Ucret_Turleri_\"&yil&\"_\"&LEFT(ay,1)&\"[indx]\"),\n      0\n   )\n)","v":3000},{"$f":"INDEX(\n   INDIRECT(\"Ucret_Turleri_\"&yil&\"_\"&LEFT(ay,1)&\"[\" & F$4 & \"]\"),\n   MATCH(\n      secili_params_ucret_turleri[[#This Row],[indx]],\n      INDIRECT(\"Ucret_Turleri_\"&yil&\"_\"&LEFT(ay,1)&\"[indx]\"),\n      0\n   )\n)","v":100},{"$f":"INDEX(\n   INDIRECT(\"Ucret_Turleri_\"&yil&\"_\"&LEFT(ay,1)&\"[\" & G$4 & \"]\"),\n   MATCH(\n      secili_params_ucret_turleri[[#This Row],[indx]],\n      INDIRECT(\"Ucret_Turleri_\"&yil&\"_\"&LEFT(ay,1)&\"[indx]\"),\n      0\n   )\n)","v":13.333333333333334},{"$f":"_xlfn.LET(\n    _xlpm.OncekiYil,IF(LEFT(ay,1)=\"1\",yil-1,yil),\n    _xlpm.OncekiDonem,IF(LEFT(ay,1)=\"1\",2,1),\n    _xlpm.Tablo,\"Ucret_Turleri_\"&_xlpm.OncekiYil&\"_\"&_xlpm.OncekiDonem,\n    INDEX(\n        INDIRECT(_xlpm.Tablo&\"[\"&E$4&\"]\"),\n        MATCH(\n            secili_params_ucret_turleri[[#This Row],[indx]],\n            INDIRECT(_xlpm.Tablo&\"[indx]\"),\n            0\n        )\n    )\n)","v":3000},{"$f":"(secili_params_ucret_turleri[[#This Row],[Aylık]]/secili_params_ucret_turleri[[#This Row],[ÖNCEKİ DÖNEM]])-1","v":0},null,{"$f":"K12+1","v":2},{"$f":"INDEX(\n   INDIRECT(\"Isveren_prim_oranlari_normal_\"&yil&\"_\"&LEFT(ay,1)&\"[\" & L$11 & \"]\"),\n   MATCH(\n      secili_params_isveren_prim_oranlari_normal[[#This Row],[indx]],\n      INDIRECT(\"Isveren_prim_oranlari_normal_\"&yil&\"_\"&LEFT(ay,1)&\"[indx]\"),\n      0\n   )\n)","v":"Kısa Vadeli Sigorta Kolları"},{"$f":"INDEX(\n   INDIRECT(\"Isveren_prim_oranlari_normal_\"&yil&\"_\"&LEFT(ay,1)&\"[\" & M$11 & \"]\"),\n   MATCH(\n      secili_params_isveren_prim_oranlari_normal[[#This Row],[indx]],\n      INDIRECT(\"Isveren_prim_oranlari_normal_\"&yil&\"_\"&LEFT(ay,1)&\"[indx]\"),\n      0\n   )\n)","v":2.2499999999999999E-2},{"$f":"INDEX(\n   INDIRECT(\"Isveren_prim_oranlari_normal_\"&yil&\"_\"&LEFT(ay,1)&\"[\" & N$11 & \"]\"),\n   MATCH(\n      secili_params_isveren_prim_oranlari_normal[[#This Row],[indx]],\n      INDIRECT(\"Isveren_prim_oranlari_normal_\"&yil&\"_\"&LEFT(ay,1)&\"[indx]\"),\n      0\n   )\n)","v":"-"},{"$f":"INDEX(\n   INDIRECT(\"Isveren_prim_oranlari_normal_\"&yil&\"_\"&LEFT(ay,1)&\"[\" & O$11 & \"]\"),\n   MATCH(\n      secili_params_isveren_prim_oranlari_normal[[#This Row],[indx]],\n      INDIRECT(\"Isveren_prim_oranlari_normal_\"&yil&\"_\"&LEFT(ay,1)&\"[indx]\"),\n      0\n   )\n)","v":0.02},null,9,"04691",null,1]
[null,null,10,{"$f":"INDEX(\n   INDIRECT(\"Ucret_Turleri_\"&yil&\"_\"&LEFT(ay,1)&\"[\" & D$4 & \"]\"),\n   MATCH(\n      secili_params_ucret_turleri[[#This Row],[indx]],\n      INDIRECT(\"Ucret_Turleri_\"&yil&\"_\"&LEFT(ay,1)&\"[indx]\"),\n      0\n   )\n)","v":"Stajyer Ücreti"},{"$f":"INDEX(\n   INDIRECT(\"Ucret_Turleri_\"&yil&\"_\"&LEFT(ay,1)&\"[\" & E$4 & \"]\"),\n   MATCH(\n      secili_params_ucret_turleri[[#This Row],[indx]],\n      INDIRECT(\"Ucret_Turleri_\"&yil&\"_\"&LEFT(ay,1)&\"[indx]\"),\n      0\n   )\n)","v":8422.65},{"$f":"INDEX(\n   INDIRECT(\"Ucret_Turleri_\"&yil&\"_\"&LEFT(ay,1)&\"[\" & F$4 & \"]\"),\n   MATCH(\n      secili_params_ucret_turleri[[#This Row],[indx]],\n      INDIRECT(\"Ucret_Turleri_\"&yil&\"_\"&LEFT(ay,1)&\"[indx]\"),\n      0\n   )\n)","v":280.755},{"$f":"INDEX(\n   INDIRECT(\"Ucret_Turleri_\"&yil&\"_\"&LEFT(ay,1)&\"[\" & G$4 & \"]\"),\n   MATCH(\n      secili_params_ucret_turleri[[#This Row],[indx]],\n      INDIRECT(\"Ucret_Turleri_\"&yil&\"_\"&LEFT(ay,1)&\"[indx]\"),\n      0\n   )\n)","v":37.433999999999997},{"$f":"_xlfn.LET(\n    _xlpm.OncekiYil,IF(LEFT(ay,1)=\"1\",yil-1,yil),\n    _xlpm.OncekiDonem,IF(LEFT(ay,1)=\"1\",2,1),\n    _xlpm.Tablo,\"Ucret_Turleri_\"&_xlpm.OncekiYil&\"_\"&_xlpm.OncekiDonem,\n    INDEX(\n        INDIRECT(_xlpm.Tablo&\"[\"&E$4&\"]\"),\n        MATCH(\n            secili_params_ucret_turleri[[#This Row],[indx]],\n            INDIRECT(_xlpm.Tablo&\"[indx]\"),\n            0\n        )\n    )\n)","v":8422.65},{"$f":"(secili_params_ucret_turleri[[#This Row],[Aylık]]/secili_params_ucret_turleri[[#This Row],[ÖNCEKİ DÖNEM]])-1","v":0},null,{"$f":"K13+1","v":3},{"$f":"INDEX(\n   INDIRECT(\"Isveren_prim_oranlari_normal_\"&yil&\"_\"&LEFT(ay,1)&\"[\" & L$11 & \"]\"),\n   MATCH(\n      secili_params_isveren_prim_oranlari_normal[[#This Row],[indx]],\n      INDIRECT(\"Isveren_prim_oranlari_normal_\"&yil&\"_\"&LEFT(ay,1)&\"[indx]\"),\n      0\n   )\n)","v":"Genel Sağlık Sigortası"},{"$f":"INDEX(\n   INDIRECT(\"Isveren_prim_oranlari_normal_\"&yil&\"_\"&LEFT(ay,1)&\"[\" & M$11 & \"]\"),\n   MATCH(\n      secili_params_isveren_prim_oranlari_normal[[#This Row],[indx]],\n      INDIRECT(\"Isveren_prim_oranlari_normal_\"&yil&\"_\"&LEFT(ay,1)&\"[indx]\"),\n      0\n   )\n)","v":7.4999999999999997E-2},{"$f":"INDEX(\n   INDIRECT(\"Isveren_prim_oranlari_normal_\"&yil&\"_\"&LEFT(ay,1)&\"[\" & N$11 & \"]\"),\n   MATCH(\n      secili_params_isveren_prim_oranlari_normal[[#This Row],[indx]],\n      INDIRECT(\"Isveren_prim_oranlari_normal_\"&yil&\"_\"&LEFT(ay,1)&\"[indx]\"),\n      0\n   )\n)","v":0.05},{"$f":"INDEX(\n   INDIRECT(\"Isveren_prim_oranlari_normal_\"&yil&\"_\"&LEFT(ay,1)&\"[\" & O$11 & \"]\"),\n   MATCH(\n      secili_params_isveren_prim_oranlari_normal[[#This Row],[indx]],\n      INDIRECT(\"Isveren_prim_oranlari_normal_\"&yil&\"_\"&LEFT(ay,1)&\"[indx]\"),\n      0\n   )\n)","v":0.125}]
[null,null,11,{"$f":"INDEX(\n   INDIRECT(\"Ucret_Turleri_\"&yil&\"_\"&LEFT(ay,1)&\"[\" & D$4 & \"]\"),\n   MATCH(\n      secili_params_ucret_turleri[[#This Row],[indx]],\n      INDIRECT(\"Ucret_Turleri_\"&yil&\"_\"&LEFT(ay,1)&\"[indx]\"),\n      0\n   )\n)","v":"Çocuk Yardımı SGK İstisnası"},{"$f":"INDEX(\n   INDIRECT(\"Ucret_Turleri_\"&yil&\"_\"&LEFT(ay,1)&\"[\" & E$4 & \"]\"),\n   MATCH(\n      secili_params_ucret_turleri[[#This Row],[indx]],\n      INDIRECT(\"Ucret_Turleri_\"&yil&\"_\"&LEFT(ay,1)&\"[indx]\"),\n      0\n   )\n)","v":660.6},{"$f":"INDEX(\n   INDIRECT(\"Ucret_Turleri_\"&yil&\"_\"&LEFT(ay,1)&\"[\" & F$4 & \"]\"),\n   MATCH(\n      secili_params_ucret_turleri[[#This Row],[indx]],\n      INDIRECT(\"Ucret_Turleri_\"&yil&\"_\"&LEFT(ay,1)&\"[indx]\"),\n      0\n   )\n)","v":22.02},{"$f":"INDEX(\n   INDIRECT(\"Ucret_Turleri_\"&yil&\"_\"&LEFT(ay,1)&\"[\" & G$4 & \"]\"),\n   MATCH(\n      secili_params_ucret_turleri[[#This Row],[indx]],\n      INDIRECT(\"Ucret_Turleri_\"&yil&\"_\"&LEFT(ay,1)&\"[indx]\"),\n      0\n   )\n)","v":2.9359999999999999},{"$f":"_xlfn.LET(\n    _xlpm.OncekiYil,IF(LEFT(ay,1)=\"1\",yil-1,yil),\n    _xlpm.OncekiDonem,IF(LEFT(ay,1)=\"1\",2,1),\n    _xlpm.Tablo,\"Ucret_Turleri_\"&_xlpm.OncekiYil&\"_\"&_xlpm.OncekiDonem,\n    INDEX(\n        INDIRECT(_xlpm.Tablo&\"[\"&E$4&\"]\"),\n        MATCH(\n            secili_params_ucret_turleri[[#This Row],[indx]],\n            INDIRECT(_xlpm.Tablo&\"[indx]\"),\n            0\n        )\n    )\n)","v":660.6},{"$f":"(secili_params_ucret_turleri[[#This Row],[Aylık]]/secili_params_ucret_turleri[[#This Row],[ÖNCEKİ DÖNEM]])-1","v":0},null,4,{"$f":"INDEX(\n   INDIRECT(\"Isveren_prim_oranlari_normal_\"&yil&\"_\"&LEFT(ay,1)&\"[\" & L$11 & \"]\"),\n   MATCH(\n      secili_params_isveren_prim_oranlari_normal[[#This Row],[indx]],\n      INDIRECT(\"Isveren_prim_oranlari_normal_\"&yil&\"_\"&LEFT(ay,1)&\"[indx]\"),\n      0\n   )\n)","v":"İşsizlik Sigortası"},{"$f":"INDEX(\n   INDIRECT(\"Isveren_prim_oranlari_normal_\"&yil&\"_\"&LEFT(ay,1)&\"[\" & M$11 & \"]\"),\n   MATCH(\n      secili_params_isveren_prim_oranlari_normal[[#This Row],[indx]],\n      INDIRECT(\"Isveren_prim_oranlari_normal_\"&yil&\"_\"&LEFT(ay,1)&\"[indx]\"),\n      0\n   )\n)","v":0.02},{"$f":"INDEX(\n   INDIRECT(\"Isveren_prim_oranlari_normal_\"&yil&\"_\"&LEFT(ay,1)&\"[\" & N$11 & \"]\"),\n   MATCH(\n      secili_params_isveren_prim_oranlari_normal[[#This Row],[indx]],\n      INDIRECT(\"Isveren_prim_oranlari_normal_\"&yil&\"_\"&LEFT(ay,1)&\"[indx]\"),\n      0\n   )\n)","v":0.01},{"$f":"INDEX(\n   INDIRECT(\"Isveren_prim_oranlari_normal_\"&yil&\"_\"&LEFT(ay,1)&\"[\" & O$11 & \"]\"),\n   MATCH(\n      secili_params_isveren_prim_oranlari_normal[[#This Row],[indx]],\n      INDIRECT(\"Isveren_prim_oranlari_normal_\"&yil&\"_\"&LEFT(ay,1)&\"[indx]\"),\n      0\n   )\n)","v":0}]
[null,null,12,{"$f":"INDEX(\n   INDIRECT(\"Ucret_Turleri_\"&yil&\"_\"&LEFT(ay,1)&\"[\" & D$4 & \"]\"),\n   MATCH(\n      secili_params_ucret_turleri[[#This Row],[indx]],\n      INDIRECT(\"Ucret_Turleri_\"&yil&\"_\"&LEFT(ay,1)&\"[indx]\"),\n      0\n   )\n)","v":"Aile Yardımı SGK İstisnası"},{"$f":"INDEX(\n   INDIRECT(\"Ucret_Turleri_\"&yil&\"_\"&LEFT(ay,1)&\"[\" & E$4 & \"]\"),\n   MATCH(\n      secili_params_ucret_turleri[[#This Row],[indx]],\n      INDIRECT(\"Ucret_Turleri_\"&yil&\"_\"&LEFT(ay,1)&\"[indx]\"),\n      0\n   )\n)","v":3303},{"$f":"INDEX(\n   INDIRECT(\"Ucret_Turleri_\"&yil&\"_\"&LEFT(ay,1)&\"[\" & F$4 & \"]\"),\n   MATCH(\n      secili_params_ucret_turleri[[#This Row],[indx]],\n      INDIRECT(\"Ucret_Turleri_\"&yil&\"_\"&LEFT(ay,1)&\"[indx]\"),\n      0\n   )\n)","v":110.1},{"$f":"INDEX(\n   INDIRECT(\"Ucret_Turleri_\"&yil&\"_\"&LEFT(ay,1)&\"[\" & G$4 & \"]\"),\n   MATCH(\n      secili_params_ucret_turleri[[#This Row],[indx]],\n      INDIRECT(\"Ucret_Turleri_\"&yil&\"_\"&LEFT(ay,1)&\"[indx]\"),\n      0\n   )\n)","v":14.68},{"$f":"_xlfn.LET(\n    _xlpm.OncekiYil,IF(LEFT(ay,1)=\"1\",yil-1,yil),\n    _xlpm.OncekiDonem,IF(LEFT(ay,1)=\"1\",2,1),\n    _xlpm.Tablo,\"Ucret_Turleri_\"&_xlpm.OncekiYil&\"_\"&_xlpm.OncekiDonem,\n    INDEX(\n        INDIRECT(_xlpm.Tablo&\"[\"&E$4&\"]\"),\n        MATCH(\n            secili_params_ucret_turleri[[#This Row],[indx]],\n            INDIRECT(_xlpm.Tablo&\"[indx]\"),\n            0\n        )\n    )\n)","v":3303},{"$f":"(secili_params_ucret_turleri[[#This Row],[Aylık]]/secili_params_ucret_turleri[[#This Row],[ÖNCEKİ DÖNEM]])-1","v":0},null,5,{"$f":"INDEX(\n   INDIRECT(\"Isveren_prim_oranlari_normal_\"&yil&\"_\"&LEFT(ay,1)&\"[\" & L$11 & \"]\"),\n   MATCH(\n      secili_params_isveren_prim_oranlari_normal[[#This Row],[indx]],\n      INDIRECT(\"Isveren_prim_oranlari_normal_\"&yil&\"_\"&LEFT(ay,1)&\"[indx]\"),\n      0\n   )\n)","v":"Toplam"},{"$f":"INDEX(\n   INDIRECT(\"Isveren_prim_oranlari_normal_\"&yil&\"_\"&LEFT(ay,1)&\"[\" & M$11 & \"]\"),\n   MATCH(\n      secili_params_isveren_prim_oranlari_normal[[#This Row],[indx]],\n      INDIRECT(\"Isveren_prim_oranlari_normal_\"&yil&\"_\"&LEFT(ay,1)&\"[indx]\"),\n      0\n   )\n)","v":0.23749999999999996},{"$f":"INDEX(\n   INDIRECT(\"Isveren_prim_oranlari_normal_\"&yil&\"_\"&LEFT(ay,1)&\"[\" & N$11 & \"]\"),\n   MATCH(\n      secili_params_isveren_prim_oranlari_normal[[#This Row],[indx]],\n      INDIRECT(\"Isveren_prim_oranlari_normal_\"&yil&\"_\"&LEFT(ay,1)&\"[indx]\"),\n      0\n   )\n)","v":0.15000000000000002},{"$f":"INDEX(\n   INDIRECT(\"Isveren_prim_oranlari_normal_\"&yil&\"_\"&LEFT(ay,1)&\"[\" & O$11 & \"]\"),\n   MATCH(\n      secili_params_isveren_prim_oranlari_normal[[#This Row],[indx]],\n      INDIRECT(\"Isveren_prim_oranlari_normal_\"&yil&\"_\"&LEFT(ay,1)&\"[indx]\"),\n      0\n   )\n)","v":0.38749999999999996}]
[null,null,13,{"$f":"INDEX(\n   INDIRECT(\"Ucret_Turleri_\"&yil&\"_\"&LEFT(ay,1)&\"[\" & D$4 & \"]\"),\n   MATCH(\n      secili_params_ucret_turleri[[#This Row],[indx]],\n      INDIRECT(\"Ucret_Turleri_\"&yil&\"_\"&LEFT(ay,1)&\"[indx]\"),\n      0\n   )\n)","v":"Nakit Yemek Parası SGK İstisnası"},{"$f":"INDEX(\n   INDIRECT(\"Ucret_Turleri_\"&yil&\"_\"&LEFT(ay,1)&\"[\" & E$4 & \"]\"),\n   MATCH(\n      secili_params_ucret_turleri[[#This Row],[indx]],\n      INDIRECT(\"Ucret_Turleri_\"&yil&\"_\"&LEFT(ay,1)&\"[indx]\"),\n      0\n   )\n)","v":300},{"$f":"INDEX(\n   INDIRECT(\"Ucret_Turleri_\"&yil&\"_\"&LEFT(ay,1)&\"[\" & F$4 & \"]\"),\n   MATCH(\n      secili_params_ucret_turleri[[#This Row],[indx]],\n      INDIRECT(\"Ucret_Turleri_\"&yil&\"_\"&LEFT(ay,1)&\"[indx]\"),\n      0\n   )\n)","v":10},{"$f":"INDEX(\n   INDIRECT(\"Ucret_Turleri_\"&yil&\"_\"&LEFT(ay,1)&\"[\" & G$4 & \"]\"),\n   MATCH(\n      secili_params_ucret_turleri[[#This Row],[indx]],\n      INDIRECT(\"Ucret_Turleri_\"&yil&\"_\"&LEFT(ay,1)&\"[indx]\"),\n      0\n   )\n)","v":1.3333333333333333},{"$f":"_xlfn.LET(\n    _xlpm.OncekiYil,IF(LEFT(ay,1)=\"1\",yil-1,yil),\n    _xlpm.OncekiDonem,IF(LEFT(ay,1)=\"1\",2,1),\n    _xlpm.Tablo,\"Ucret_Turleri_\"&_xlpm.OncekiYil&\"_\"&_xlpm.OncekiDonem,\n    INDEX(\n        INDIRECT(_xlpm.Tablo&\"[\"&E$4&\"]\"),\n        MATCH(\n            secili_params_ucret_turleri[[#This Row],[indx]],\n            INDIRECT(_xlpm.Tablo&\"[indx]\"),\n            0\n        )\n    )\n)","v":158},{"$f":"(secili_params_ucret_turleri[[#This Row],[Aylık]]/secili_params_ucret_turleri[[#This Row],[ÖNCEKİ DÖNEM]])-1","v":0.89873417721518978},null,6,{"$f":"INDEX(\n   INDIRECT(\"Isveren_prim_oranlari_normal_\"&yil&\"_\"&LEFT(ay,1)&\"[\" & L$11 & \"]\"),\n   MATCH(\n      secili_params_isveren_prim_oranlari_normal[[#This Row],[indx]],\n      INDIRECT(\"Isveren_prim_oranlari_normal_\"&yil&\"_\"&LEFT(ay,1)&\"[indx]\"),\n      0\n   )\n)","v":"Hazine"},null,null,{"$f":"INDEX(\n   INDIRECT(\"Isveren_prim_oranlari_normal_\"&yil&\"_\"&LEFT(ay,1)&\"[\" & O$11 & \"]\"),\n   MATCH(\n      secili_params_isveren_prim_oranlari_normal[[#This Row],[indx]],\n      INDIRECT(\"Isveren_prim_oranlari_normal_\"&yil&\"_\"&LEFT(ay,1)&\"[indx]\"),\n      0\n   )\n)","v":0.02}]
[null,null,14,{"$f":"INDEX(\n   INDIRECT(\"Ucret_Turleri_\"&yil&\"_\"&LEFT(ay,1)&\"[\" & D$4 & \"]\"),\n   MATCH(\n      secili_params_ucret_turleri[[#This Row],[indx]],\n      INDIRECT(\"Ucret_Turleri_\"&yil&\"_\"&LEFT(ay,1)&\"[indx]\"),\n      0\n   )\n)","v":"Yemek Kartı SGK İstisnası"},{"$f":"INDEX(\n   INDIRECT(\"Ucret_Turleri_\"&yil&\"_\"&LEFT(ay,1)&\"[\" & E$4 & \"]\"),\n   MATCH(\n      secili_params_ucret_turleri[[#This Row],[indx]],\n      INDIRECT(\"Ucret_Turleri_\"&yil&\"_\"&LEFT(ay,1)&\"[indx]\"),\n      0\n   )\n)","v":300},{"$f":"INDEX(\n   INDIRECT(\"Ucret_Turleri_\"&yil&\"_\"&LEFT(ay,1)&\"[\" & F$4 & \"]\"),\n   MATCH(\n      secili_params_ucret_turleri[[#This Row],[indx]],\n      INDIRECT(\"Ucret_Turleri_\"&yil&\"_\"&LEFT(ay,1)&\"[indx]\"),\n      0\n   )\n)","v":10},{"$f":"INDEX(\n   INDIRECT(\"Ucret_Turleri_\"&yil&\"_\"&LEFT(ay,1)&\"[\" & G$4 & \"]\"),\n   MATCH(\n      secili_params_ucret_turleri[[#This Row],[indx]],\n      INDIRECT(\"Ucret_Turleri_\"&yil&\"_\"&LEFT(ay,1)&\"[indx]\"),\n      0\n   )\n)","v":1.3333333333333333},{"$f":"_xlfn.LET(\n    _xlpm.OncekiYil,IF(LEFT(ay,1)=\"1\",yil-1,yil),\n    _xlpm.OncekiDonem,IF(LEFT(ay,1)=\"1\",2,1),\n    _xlpm.Tablo,\"Ucret_Turleri_\"&_xlpm.OncekiYil&\"_\"&_xlpm.OncekiDonem,\n    INDEX(\n        INDIRECT(_xlpm.Tablo&\"[\"&E$4&\"]\"),\n        MATCH(\n            secili_params_ucret_turleri[[#This Row],[indx]],\n            INDIRECT(_xlpm.Tablo&\"[indx]\"),\n            0\n        )\n    )\n)","v":158},{"$f":"(secili_params_ucret_turleri[[#This Row],[Aylık]]/secili_params_ucret_turleri[[#This Row],[ÖNCEKİ DÖNEM]])-1","v":0.89873417721518978},null,7,{"$f":"INDEX(\n   INDIRECT(\"Isveren_prim_oranlari_normal_\"&yil&\"_\"&LEFT(ay,1)&\"[\" & L$11 & \"]\"),\n   MATCH(\n      secili_params_isveren_prim_oranlari_normal[[#This Row],[indx]],\n      INDIRECT(\"Isveren_prim_oranlari_normal_\"&yil&\"_\"&LEFT(ay,1)&\"[indx]\"),\n      0\n   )\n)","v":"Hazine (İmalat)"},null,null,{"$f":"INDEX(\n   INDIRECT(\"Isveren_prim_oranlari_normal_\"&yil&\"_\"&LEFT(ay,1)&\"[\" & O$11 & \"]\"),\n   MATCH(\n      secili_params_isveren_prim_oranlari_normal[[#This Row],[indx]],\n      INDIRECT(\"Isveren_prim_oranlari_normal_\"&yil&\"_\"&LEFT(ay,1)&\"[indx]\"),\n      0\n   )\n)","v":0.05}]
[null,null,15,{"$f":"INDEX(\n   INDIRECT(\"Ucret_Turleri_\"&yil&\"_\"&LEFT(ay,1)&\"[\" & D$4 & \"]\"),\n   MATCH(\n      secili_params_ucret_turleri[[#This Row],[indx]],\n      INDIRECT(\"Ucret_Turleri_\"&yil&\"_\"&LEFT(ay,1)&\"[indx]\"),\n      0\n   )\n)","v":"Yemek Kartı GV İstisnası"},{"$f":"INDEX(\n   INDIRECT(\"Ucret_Turleri_\"&yil&\"_\"&LEFT(ay,1)&\"[\" & E$4 & \"]\"),\n   MATCH(\n      secili_params_ucret_turleri[[#This Row],[indx]],\n      INDIRECT(\"Ucret_Turleri_\"&yil&\"_\"&LEFT(ay,1)&\"[indx]\"),\n      0\n   )\n)","v":300},{"$f":"INDEX(\n   INDIRECT(\"Ucret_Turleri_\"&yil&\"_\"&LEFT(ay,1)&\"[\" & F$4 & \"]\"),\n   MATCH(\n      secili_params_ucret_turleri[[#This Row],[indx]],\n      INDIRECT(\"Ucret_Turleri_\"&yil&\"_\"&LEFT(ay,1)&\"[indx]\"),\n      0\n   )\n)","v":10},{"$f":"INDEX(\n   INDIRECT(\"Ucret_Turleri_\"&yil&\"_\"&LEFT(ay,1)&\"[\" & G$4 & \"]\"),\n   MATCH(\n      secili_params_ucret_turleri[[#This Row],[indx]],\n      INDIRECT(\"Ucret_Turleri_\"&yil&\"_\"&LEFT(ay,1)&\"[indx]\"),\n      0\n   )\n)","v":1.3333333333333333},{"$f":"_xlfn.LET(\n    _xlpm.OncekiYil,IF(LEFT(ay,1)=\"1\",yil-1,yil),\n    _xlpm.OncekiDonem,IF(LEFT(ay,1)=\"1\",2,1),\n    _xlpm.Tablo,\"Ucret_Turleri_\"&_xlpm.OncekiYil&\"_\"&_xlpm.OncekiDonem,\n    INDEX(\n        INDIRECT(_xlpm.Tablo&\"[\"&E$4&\"]\"),\n        MATCH(\n            secili_params_ucret_turleri[[#This Row],[indx]],\n            INDIRECT(_xlpm.Tablo&\"[indx]\"),\n            0\n        )\n    )\n)","v":300},{"$f":"(secili_params_ucret_turleri[[#This Row],[Aylık]]/secili_params_ucret_turleri[[#This Row],[ÖNCEKİ DÖNEM]])-1","v":0},null,8,"Damga Vergisi Oranı",null,null,{"$f":"INDEX(\n   INDIRECT(\"Isveren_prim_oranlari_normal_\"&yil&\"_\"&LEFT(ay,1)&\"[\" & O$11 & \"]\"),\n   MATCH(\n      secili_params_isveren_prim_oranlari_normal[[#This Row],[indx]],\n      INDIRECT(\"Isveren_prim_oranlari_normal_\"&yil&\"_\"&LEFT(ay,1)&\"[indx]\"),\n      0\n   )\n)","v":7.5900000000000004E-3}]
[null,null,16,{"$f":"INDEX(\n   INDIRECT(\"Ucret_Turleri_\"&yil&\"_\"&LEFT(ay,1)&\"[\" & D$4 & \"]\"),\n   MATCH(\n      secili_params_ucret_turleri[[#This Row],[indx]],\n      INDIRECT(\"Ucret_Turleri_\"&yil&\"_\"&LEFT(ay,1)&\"[indx]\"),\n      0\n   )\n)","v":"Nakit Yemek Parası GV İstisnası"},{"$f":"INDEX(\n   INDIRECT(\"Ucret_Turleri_\"&yil&\"_\"&LEFT(ay,1)&\"[\" & E$4 & \"]\"),\n   MATCH(\n      secili_params_ucret_turleri[[#This Row],[indx]],\n      INDIRECT(\"Ucret_Turleri_\"&yil&\"_\"&LEFT(ay,1)&\"[indx]\"),\n      0\n   )\n)","v":300},{"$f":"INDEX(\n   INDIRECT(\"Ucret_Turleri_\"&yil&\"_\"&LEFT(ay,1)&\"[\" & F$4 & \"]\"),\n   MATCH(\n      secili_params_ucret_turleri[[#This Row],[indx]],\n      INDIRECT(\"Ucret_Turleri_\"&yil&\"_\"&LEFT(ay,1)&\"[indx]\"),\n      0\n   )\n)","v":10},{"$f":"INDEX(\n   INDIRECT(\"Ucret_Turleri_\"&yil&\"_\"&LEFT(ay,1)&\"[\" & G$4 & \"]\"),\n   MATCH(\n      secili_params_ucret_turleri[[#This Row],[indx]],\n      INDIRECT(\"Ucret_Turleri_\"&yil&\"_\"&LEFT(ay,1)&\"[indx]\"),\n      0\n   )\n)","v":1.3333333333333333},{"$f":"_xlfn.LET(\n    _xlpm.OncekiYil,IF(LEFT(ay,1)=\"1\",yil-1,yil),\n    _xlpm.OncekiDonem,IF(LEFT(ay,1)=\"1\",2,1),\n    _xlpm.Tablo,\"Ucret_Turleri_\"&_xlpm.OncekiYil&\"_\"&_xlpm.OncekiDonem,\n    INDEX(\n        INDIRECT(_xlpm.Tablo&\"[\"&E$4&\"]\"),\n        MATCH(\n            secili_params_ucret_turleri[[#This Row],[indx]],\n            INDIRECT(_xlpm.Tablo&\"[indx]\"),\n            0\n        )\n    )\n)","v":300},{"$f":"(secili_params_ucret_turleri[[#This Row],[Aylık]]/secili_params_ucret_turleri[[#This Row],[ÖNCEKİ DÖNEM]])-1","v":0}]
[null,null,17,{"$f":"INDEX(\n   INDIRECT(\"Ucret_Turleri_\"&yil&\"_\"&LEFT(ay,1)&\"[\" & D$4 & \"]\"),\n   MATCH(\n      secili_params_ucret_turleri[[#This Row],[indx]],\n      INDIRECT(\"Ucret_Turleri_\"&yil&\"_\"&LEFT(ay,1)&\"[indx]\"),\n      0\n   )\n)","v":"Nakit Yemek Parası DV İstisnası"},{"$f":"INDEX(\n   INDIRECT(\"Ucret_Turleri_\"&yil&\"_\"&LEFT(ay,1)&\"[\" & E$4 & \"]\"),\n   MATCH(\n      secili_params_ucret_turleri[[#This Row],[indx]],\n      INDIRECT(\"Ucret_Turleri_\"&yil&\"_\"&LEFT(ay,1)&\"[indx]\"),\n      0\n   )\n)","v":300},{"$f":"INDEX(\n   INDIRECT(\"Ucret_Turleri_\"&yil&\"_\"&LEFT(ay,1)&\"[\" & F$4 & \"]\"),\n   MATCH(\n      secili_params_ucret_turleri[[#This Row],[indx]],\n      INDIRECT(\"Ucret_Turleri_\"&yil&\"_\"&LEFT(ay,1)&\"[indx]\"),\n      0\n   )\n)","v":10},{"$f":"INDEX(\n   INDIRECT(\"Ucret_Turleri_\"&yil&\"_\"&LEFT(ay,1)&\"[\" & G$4 & \"]\"),\n   MATCH(\n      secili_params_ucret_turleri[[#This Row],[indx]],\n      INDIRECT(\"Ucret_Turleri_\"&yil&\"_\"&LEFT(ay,1)&\"[indx]\"),\n      0\n   )\n)","v":1.3333333333333333},{"$f":"_xlfn.LET(\n    _xlpm.OncekiYil,IF(LEFT(ay,1)=\"1\",yil-1,yil),\n    _xlpm.OncekiDonem,IF(LEFT(ay,1)=\"1\",2,1),\n    _xlpm.Tablo,\"Ucret_Turleri_\"&_xlpm.OncekiYil&\"_\"&_xlpm.OncekiDonem,\n    INDEX(\n        INDIRECT(_xlpm.Tablo&\"[\"&E$4&\"]\"),\n        MATCH(\n            secili_params_ucret_turleri[[#This Row],[indx]],\n            INDIRECT(_xlpm.Tablo&\"[indx]\"),\n            0\n        )\n    )\n)","v":300},{"$f":"(secili_params_ucret_turleri[[#This Row],[Aylık]]/secili_params_ucret_turleri[[#This Row],[ÖNCEKİ DÖNEM]])-1","v":0},null,"indx","SGDP Oranı","İşveren Payı","Çalışan Payı","Toplam"]
[null,null,18,{"$f":"INDEX(\n   INDIRECT(\"Ucret_Turleri_\"&yil&\"_\"&LEFT(ay,1)&\"[\" & D$4 & \"]\"),\n   MATCH(\n      secili_params_ucret_turleri[[#This Row],[indx]],\n      INDIRECT(\"Ucret_Turleri_\"&yil&\"_\"&LEFT(ay,1)&\"[indx]\"),\n      0\n   )\n)","v":"Yol/Ulaşım Kartı GV İstisnası"},{"$f":"INDEX(\n   INDIRECT(\"Ucret_Turleri_\"&yil&\"_\"&LEFT(ay,1)&\"[\" & E$4 & \"]\"),\n   MATCH(\n      secili_params_ucret_turleri[[#This Row],[indx]],\n      INDIRECT(\"Ucret_Turleri_\"&yil&\"_\"&LEFT(ay,1)&\"[indx]\"),\n      0\n   )\n)","v":158},{"$f":"INDEX(\n   INDIRECT(\"Ucret_Turleri_\"&yil&\"_\"&LEFT(ay,1)&\"[\" & F$4 & \"]\"),\n   MATCH(\n      secili_params_ucret_turleri[[#This Row],[indx]],\n      INDIRECT(\"Ucret_Turleri_\"&yil&\"_\"&LEFT(ay,1)&\"[indx]\"),\n      0\n   )\n)","v":5.2666666666666666},{"$f":"INDEX(\n   INDIRECT(\"Ucret_Turleri_\"&yil&\"_\"&LEFT(ay,1)&\"[\" & G$4 & \"]\"),\n   MATCH(\n      secili_params_ucret_turleri[[#This Row],[indx]],\n      INDIRECT(\"Ucret_Turleri_\"&yil&\"_\"&LEFT(ay,1)&\"[indx]\"),\n      0\n   )\n)","v":0.70222222222222219},{"$f":"_xlfn.LET(\n    _xlpm.OncekiYil,IF(LEFT(ay,1)=\"1\",yil-1,yil),\n    _xlpm.OncekiDonem,IF(LEFT(ay,1)=\"1\",2,1),\n    _xlpm.Tablo,\"Ucret_Turleri_\"&_xlpm.OncekiYil&\"_\"&_xlpm.OncekiDonem,\n    INDEX(\n        INDIRECT(_xlpm.Tablo&\"[\"&E$4&\"]\"),\n        MATCH(\n            secili_params_ucret_turleri[[#This Row],[indx]],\n            INDIRECT(_xlpm.Tablo&\"[indx]\"),\n            0\n        )\n    )\n)","v":158},{"$f":"(secili_params_ucret_turleri[[#This Row],[Aylık]]/secili_params_ucret_turleri[[#This Row],[ÖNCEKİ DÖNEM]])-1","v":0},null,1,{"$f":"INDEX(\n   INDIRECT(\"Isveren_prim_oranlari_emekli_\"&yil&\"_\"&LEFT(ay,1)&\"[\" & L$21 & \"]\"),\n   MATCH(\n      secili_params_isveren_prim_oranlari_emekli[[#This Row],[indx]],\n      INDIRECT(\"Isveren_prim_oranlari_emekli_\"&yil&\"_\"&LEFT(ay,1)&\"[indx]\"),\n      0\n   )\n)","v":"Emekli Çalışan"},{"$f":"INDEX(\n   INDIRECT(\"Isveren_prim_oranlari_emekli_\"&yil&\"_\"&LEFT(ay,1)&\"[\" & M$21 & \"]\"),\n   MATCH(\n      secili_params_isveren_prim_oranlari_emekli[[#This Row],[indx]],\n      INDIRECT(\"Isveren_prim_oranlari_emekli_\"&yil&\"_\"&LEFT(ay,1)&\"[indx]\"),\n      0\n   )\n)","v":0.2475},{"$f":"INDEX(\n   INDIRECT(\"Isveren_prim_oranlari_emekli_\"&yil&\"_\"&LEFT(ay,1)&\"[\" & N$21 & \"]\"),\n   MATCH(\n      secili_params_isveren_prim_oranlari_emekli[[#This Row],[indx]],\n      INDIRECT(\"Isveren_prim_oranlari_emekli_\"&yil&\"_\"&LEFT(ay,1)&\"[indx]\"),\n      0\n   )\n)","v":7.4999999999999997E-2},{"$f":"INDEX(\n   INDIRECT(\"Isveren_prim_oranlari_emekli_\"&yil&\"_\"&LEFT(ay,1)&\"[\" & O$21 & \"]\"),\n   MATCH(\n      secili_params_isveren_prim_oranlari_emekli[[#This Row],[indx]],\n      INDIRECT(\"Isveren_prim_oranlari_emekli_\"&yil&\"_\"&LEFT(ay,1)&\"[indx]\"),\n      0\n   )\n)","v":0.32250000000000001}]
[null,null,19,{"$f":"INDEX(\n   INDIRECT(\"Ucret_Turleri_\"&yil&\"_\"&LEFT(ay,1)&\"[\" & D$4 & \"]\"),\n   MATCH(\n      secili_params_ucret_turleri[[#This Row],[indx]],\n      INDIRECT(\"Ucret_Turleri_\"&yil&\"_\"&LEFT(ay,1)&\"[indx]\"),\n      0\n   )\n)","v":"Çocuk Yardımı GV İstisnası – 0-6 yaş"},{"$f":"INDEX(\n   INDIRECT(\"Ucret_Turleri_\"&yil&\"_\"&LEFT(ay,1)&\"[\" & E$4 & \"]\"),\n   MATCH(\n      secili_params_ucret_turleri[[#This Row],[indx]],\n      INDIRECT(\"Ucret_Turleri_\"&yil&\"_\"&LEFT(ay,1)&\"[indx]\"),\n      0\n   )\n)","v":787.76},{"$f":"INDEX(\n   INDIRECT(\"Ucret_Turleri_\"&yil&\"_\"&LEFT(ay,1)&\"[\" & F$4 & \"]\"),\n   MATCH(\n      secili_params_ucret_turleri[[#This Row],[indx]],\n      INDIRECT(\"Ucret_Turleri_\"&yil&\"_\"&LEFT(ay,1)&\"[indx]\"),\n      0\n   )\n)","v":26.258666666666667},{"$f":"INDEX(\n   INDIRECT(\"Ucret_Turleri_\"&yil&\"_\"&LEFT(ay,1)&\"[\" & G$4 & \"]\"),\n   MATCH(\n      secili_params_ucret_turleri[[#This Row],[indx]],\n      INDIRECT(\"Ucret_Turleri_\"&yil&\"_\"&LEFT(ay,1)&\"[indx]\"),\n      0\n   )\n)","v":3.5011555555555556},{"$f":"_xlfn.LET(\n    _xlpm.OncekiYil,IF(LEFT(ay,1)=\"1\",yil-1,yil),\n    _xlpm.OncekiDonem,IF(LEFT(ay,1)=\"1\",2,1),\n    _xlpm.Tablo,\"Ucret_Turleri_\"&_xlpm.OncekiYil&\"_\"&_xlpm.OncekiDonem,\n    INDEX(\n        INDIRECT(_xlpm.Tablo&\"[\"&E$4&\"]\"),\n        MATCH(\n            secili_params_ucret_turleri[[#This Row],[indx]],\n            INDIRECT(_xlpm.Tablo&\"[indx]\"),\n            0\n        )\n    )\n)","v":787.76},{"$f":"(secili_params_ucret_turleri[[#This Row],[Aylık]]/secili_params_ucret_turleri[[#This Row],[ÖNCEKİ DÖNEM]])-1","v":0}]
[null,null,20,{"$f":"INDEX(\n   INDIRECT(\"Ucret_Turleri_\"&yil&\"_\"&LEFT(ay,1)&\"[\" & D$4 & \"]\"),\n   MATCH(\n      secili_params_ucret_turleri[[#This Row],[indx]],\n      INDIRECT(\"Ucret_Turleri_\"&yil&\"_\"&LEFT(ay,1)&\"[indx]\"),\n      0\n   )\n)","v":"Çocuk Yardımı GV İstisnası – 6 yaş üzeri"},{"$f":"INDEX(\n   INDIRECT(\"Ucret_Turleri_\"&yil&\"_\"&LEFT(ay,1)&\"[\" & E$4 & \"]\"),\n   MATCH(\n      secili_params_ucret_turleri[[#This Row],[indx]],\n      INDIRECT(\"Ucret_Turleri_\"&yil&\"_\"&LEFT(ay,1)&\"[indx]\"),\n      0\n   )\n)","v":393.88},{"$f":"INDEX(\n   INDIRECT(\"Ucret_Turleri_\"&yil&\"_\"&LEFT(ay,1)&\"[\" & F$4 & \"]\"),\n   MATCH(\n      secili_params_ucret_turleri[[#This Row],[indx]],\n      INDIRECT(\"Ucret_Turleri_\"&yil&\"_\"&LEFT(ay,1)&\"[indx]\"),\n      0\n   )\n)","v":13.129333333333333},{"$f":"INDEX(\n   INDIRECT(\"Ucret_Turleri_\"&yil&\"_\"&LEFT(ay,1)&\"[\" & G$4 & \"]\"),\n   MATCH(\n      secili_params_ucret_turleri[[#This Row],[indx]],\n      INDIRECT(\"Ucret_Turleri_\"&yil&\"_\"&LEFT(ay,1)&\"[indx]\"),\n      0\n   )\n)","v":1.7505777777777778},{"$f":"_xlfn.LET(\n    _xlpm.OncekiYil,IF(LEFT(ay,1)=\"1\",yil-1,yil),\n    _xlpm.OncekiDonem,IF(LEFT(ay,1)=\"1\",2,1),\n    _xlpm.Tablo,\"Ucret_Turleri_\"&_xlpm.OncekiYil&\"_\"&_xlpm.OncekiDonem,\n    INDEX(\n        INDIRECT(_xlpm.Tablo&\"[\"&E$4&\"]\"),\n        MATCH(\n            secili_params_ucret_turleri[[#This Row],[indx]],\n            INDIRECT(_xlpm.Tablo&\"[indx]\"),\n            0\n        )\n    )\n)","v":393.88},{"$f":"(secili_params_ucret_turleri[[#This Row],[Aylık]]/secili_params_ucret_turleri[[#This Row],[ÖNCEKİ DÖNEM]])-1","v":0}]
[null,null,21,{"$f":"INDEX(\n   INDIRECT(\"Ucret_Turleri_\"&yil&\"_\"&LEFT(ay,1)&\"[\" & D$4 & \"]\"),\n   MATCH(\n      secili_params_ucret_turleri[[#This Row],[indx]],\n      INDIRECT(\"Ucret_Turleri_\"&yil&\"_\"&LEFT(ay,1)&\"[indx]\"),\n      0\n   )\n)","v":"Emzirme Ödeneği"},{"$f":"INDEX(\n   INDIRECT(\"Ucret_Turleri_\"&yil&\"_\"&LEFT(ay,1)&\"[\" & E$4 & \"]\"),\n   MATCH(\n      secili_params_ucret_turleri[[#This Row],[indx]],\n      INDIRECT(\"Ucret_Turleri_\"&yil&\"_\"&LEFT(ay,1)&\"[indx]\"),\n      0\n   )\n)","v":1621},{"$f":"INDEX(\n   INDIRECT(\"Ucret_Turleri_\"&yil&\"_\"&LEFT(ay,1)&\"[\" & F$4 & \"]\"),\n   MATCH(\n      secili_params_ucret_turleri[[#This Row],[indx]],\n      INDIRECT(\"Ucret_Turleri_\"&yil&\"_\"&LEFT(ay,1)&\"[indx]\"),\n      0\n   )\n)","v":54.033333333333331},{"$f":"INDEX(\n   INDIRECT(\"Ucret_Turleri_\"&yil&\"_\"&LEFT(ay,1)&\"[\" & G$4 & \"]\"),\n   MATCH(\n      secili_params_ucret_turleri[[#This Row],[indx]],\n      INDIRECT(\"Ucret_Turleri_\"&yil&\"_\"&LEFT(ay,1)&\"[indx]\"),\n      0\n   )\n)","v":7.2044444444444444},{"$f":"_xlfn.LET(\n    _xlpm.OncekiYil,IF(LEFT(ay,1)=\"1\",yil-1,yil),\n    _xlpm.OncekiDonem,IF(LEFT(ay,1)=\"1\",2,1),\n    _xlpm.Tablo,\"Ucret_Turleri_\"&_xlpm.OncekiYil&\"_\"&_xlpm.OncekiDonem,\n    INDEX(\n        INDIRECT(_xlpm.Tablo&\"[\"&E$4&\"]\"),\n        MATCH(\n            secili_params_ucret_turleri[[#This Row],[indx]],\n            INDIRECT(_xlpm.Tablo&\"[indx]\"),\n            0\n        )\n    )\n)","v":1621},{"$f":"(secili_params_ucret_turleri[[#This Row],[Aylık]]/secili_params_ucret_turleri[[#This Row],[ÖNCEKİ DÖNEM]])-1","v":0}]
[null,null,22,{"$f":"INDEX(\n   INDIRECT(\"Ucret_Turleri_\"&yil&\"_\"&LEFT(ay,1)&\"[\" & D$4 & \"]\"),\n   MATCH(\n      secili_params_ucret_turleri[[#This Row],[indx]],\n      INDIRECT(\"Ucret_Turleri_\"&yil&\"_\"&LEFT(ay,1)&\"[indx]\"),\n      0\n   )\n)","v":"İşsizlik Ödeneği – Alt Limit"},{"$f":"INDEX(\n   INDIRECT(\"Ucret_Turleri_\"&yil&\"_\"&LEFT(ay,1)&\"[\" & E$4 & \"]\"),\n   MATCH(\n      secili_params_ucret_turleri[[#This Row],[indx]],\n      INDIRECT(\"Ucret_Turleri_\"&yil&\"_\"&LEFT(ay,1)&\"[indx]\"),\n      0\n   )\n)","v":13111.79},{"$f":"INDEX(\n   INDIRECT(\"Ucret_Turleri_\"&yil&\"_\"&LEFT(ay,1)&\"[\" & F$4 & \"]\"),\n   MATCH(\n      secili_params_ucret_turleri[[#This Row],[indx]],\n      INDIRECT(\"Ucret_Turleri_\"&yil&\"_\"&LEFT(ay,1)&\"[indx]\"),\n      0\n   )\n)","v":437.05966666666671},{"$f":"INDEX(\n   INDIRECT(\"Ucret_Turleri_\"&yil&\"_\"&LEFT(ay,1)&\"[\" & G$4 & \"]\"),\n   MATCH(\n      secili_params_ucret_turleri[[#This Row],[indx]],\n      INDIRECT(\"Ucret_Turleri_\"&yil&\"_\"&LEFT(ay,1)&\"[indx]\"),\n      0\n   )\n)","v":58.274622222222227},{"$f":"_xlfn.LET(\n    _xlpm.OncekiYil,IF(LEFT(ay,1)=\"1\",yil-1,yil),\n    _xlpm.OncekiDonem,IF(LEFT(ay,1)=\"1\",2,1),\n    _xlpm.Tablo,\"Ucret_Turleri_\"&_xlpm.OncekiYil&\"_\"&_xlpm.OncekiDonem,\n    INDEX(\n        INDIRECT(_xlpm.Tablo&\"[\"&E$4&\"]\"),\n        MATCH(\n            secili_params_ucret_turleri[[#This Row],[indx]],\n            INDIRECT(_xlpm.Tablo&\"[indx]\"),\n            0\n        )\n    )\n)","v":13111.79},{"$f":"(secili_params_ucret_turleri[[#This Row],[Aylık]]/secili_params_ucret_turleri[[#This Row],[ÖNCEKİ DÖNEM]])-1","v":0}]
[null,null,23,{"$f":"INDEX(\n   INDIRECT(\"Ucret_Turleri_\"&yil&\"_\"&LEFT(ay,1)&\"[\" & D$4 & \"]\"),\n   MATCH(\n      secili_params_ucret_turleri[[#This Row],[indx]],\n      INDIRECT(\"Ucret_Turleri_\"&yil&\"_\"&LEFT(ay,1)&\"[indx]\"),\n      0\n   )\n)","v":"İşsizlik Ödeneği – Üst Limit"},{"$f":"INDEX(\n   INDIRECT(\"Ucret_Turleri_\"&yil&\"_\"&LEFT(ay,1)&\"[\" & E$4 & \"]\"),\n   MATCH(\n      secili_params_ucret_turleri[[#This Row],[indx]],\n      INDIRECT(\"Ucret_Turleri_\"&yil&\"_\"&LEFT(ay,1)&\"[indx]\"),\n      0\n   )\n)","v":26223.439999999999},{"$f":"INDEX(\n   INDIRECT(\"Ucret_Turleri_\"&yil&\"_\"&LEFT(ay,1)&\"[\" & F$4 & \"]\"),\n   MATCH(\n      secili_params_ucret_turleri[[#This Row],[indx]],\n      INDIRECT(\"Ucret_Turleri_\"&yil&\"_\"&LEFT(ay,1)&\"[indx]\"),\n      0\n   )\n)","v":874.11466666666661},{"$f":"INDEX(\n   INDIRECT(\"Ucret_Turleri_\"&yil&\"_\"&LEFT(ay,1)&\"[\" & G$4 & \"]\"),\n   MATCH(\n      secili_params_ucret_turleri[[#This Row],[indx]],\n      INDIRECT(\"Ucret_Turleri_\"&yil&\"_\"&LEFT(ay,1)&\"[indx]\"),\n      0\n   )\n)","v":116.54862222222222},{"$f":"_xlfn.LET(\n    _xlpm.OncekiYil,IF(LEFT(ay,1)=\"1\",yil-1,yil),\n    _xlpm.OncekiDonem,IF(LEFT(ay,1)=\"1\",2,1),\n    _xlpm.Tablo,\"Ucret_Turleri_\"&_xlpm.OncekiYil&\"_\"&_xlpm.OncekiDonem,\n    INDEX(\n        INDIRECT(_xlpm.Tablo&\"[\"&E$4&\"]\"),\n        MATCH(\n            secili_params_ucret_turleri[[#This Row],[indx]],\n            INDIRECT(_xlpm.Tablo&\"[indx]\"),\n            0\n        )\n    )\n)","v":26223.439999999999},{"$f":"(secili_params_ucret_turleri[[#This Row],[Aylık]]/secili_params_ucret_turleri[[#This Row],[ÖNCEKİ DÖNEM]])-1","v":0}]
[null,null,24,{"$f":"INDEX(\n   INDIRECT(\"Ucret_Turleri_\"&yil&\"_\"&LEFT(ay,1)&\"[\" & D$4 & \"]\"),\n   MATCH(\n      secili_params_ucret_turleri[[#This Row],[indx]],\n      INDIRECT(\"Ucret_Turleri_\"&yil&\"_\"&LEFT(ay,1)&\"[indx]\"),\n      0\n   )\n)","v":"İş Göremezlik Ödeneği Ayakta Tedavi – Alt Limit"},{"$f":"INDEX(\n   INDIRECT(\"Ucret_Turleri_\"&yil&\"_\"&LEFT(ay,1)&\"[\" & E$4 & \"]\"),\n   MATCH(\n      secili_params_ucret_turleri[[#This Row],[indx]],\n      INDIRECT(\"Ucret_Turleri_\"&yil&\"_\"&LEFT(ay,1)&\"[indx]\"),\n      0\n   )\n)","v":0},{"$f":"INDEX(\n   INDIRECT(\"Ucret_Turleri_\"&yil&\"_\"&LEFT(ay,1)&\"[\" & F$4 & \"]\"),\n   MATCH(\n      secili_params_ucret_turleri[[#This Row],[indx]],\n      INDIRECT(\"Ucret_Turleri_\"&yil&\"_\"&LEFT(ay,1)&\"[indx]\"),\n      0\n   )\n)","v":0},{"$f":"INDEX(\n   INDIRECT(\"Ucret_Turleri_\"&yil&\"_\"&LEFT(ay,1)&\"[\" & G$4 & \"]\"),\n   MATCH(\n      secili_params_ucret_turleri[[#This Row],[indx]],\n      INDIRECT(\"Ucret_Turleri_\"&yil&\"_\"&LEFT(ay,1)&\"[indx]\"),\n      0\n   )\n)","v":0},{"$f":"_xlfn.LET(\n    _xlpm.OncekiYil,IF(LEFT(ay,1)=\"1\",yil-1,yil),\n    _xlpm.OncekiDonem,IF(LEFT(ay,1)=\"1\",2,1),\n    _xlpm.Tablo,\"Ucret_Turleri_\"&_xlpm.OncekiYil&\"_\"&_xlpm.OncekiDonem,\n    INDEX(\n        INDIRECT(_xlpm.Tablo&\"[\"&E$4&\"]\"),\n        MATCH(\n            secili_params_ucret_turleri[[#This Row],[indx]],\n            INDIRECT(_xlpm.Tablo&\"[indx]\"),\n            0\n        )\n    )\n)","v":0},{"$f":"(secili_params_ucret_turleri[[#This Row],[Aylık]]/secili_params_ucret_turleri[[#This Row],[ÖNCEKİ DÖNEM]])-1","v":{"$error":"#DIV/0!"}}]
[null,null,25,{"$f":"INDEX(\n   INDIRECT(\"Ucret_Turleri_\"&yil&\"_\"&LEFT(ay,1)&\"[\" & D$4 & \"]\"),\n   MATCH(\n      secili_params_ucret_turleri[[#This Row],[indx]],\n      INDIRECT(\"Ucret_Turleri_\"&yil&\"_\"&LEFT(ay,1)&\"[indx]\"),\n      0\n   )\n)","v":"İş Göremezlik Ödeneği Ayakta Tedavi – Üst Limit"},{"$f":"INDEX(\n   INDIRECT(\"Ucret_Turleri_\"&yil&\"_\"&LEFT(ay,1)&\"[\" & E$4 & \"]\"),\n   MATCH(\n      secili_params_ucret_turleri[[#This Row],[indx]],\n      INDIRECT(\"Ucret_Turleri_\"&yil&\"_\"&LEFT(ay,1)&\"[indx]\"),\n      0\n   )\n)","v":0},{"$f":"INDEX(\n   INDIRECT(\"Ucret_Turleri_\"&yil&\"_\"&LEFT(ay,1)&\"[\" & F$4 & \"]\"),\n   MATCH(\n      secili_params_ucret_turleri[[#This Row],[indx]],\n      INDIRECT(\"Ucret_Turleri_\"&yil&\"_\"&LEFT(ay,1)&\"[indx]\"),\n      0\n   )\n)","v":0},{"$f":"INDEX(\n   INDIRECT(\"Ucret_Turleri_\"&yil&\"_\"&LEFT(ay,1)&\"[\" & G$4 & \"]\"),\n   MATCH(\n      secili_params_ucret_turleri[[#This Row],[indx]],\n      INDIRECT(\"Ucret_Turleri_\"&yil&\"_\"&LEFT(ay,1)&\"[indx]\"),\n      0\n   )\n)","v":0},{"$f":"_xlfn.LET(\n    _xlpm.OncekiYil,IF(LEFT(ay,1)=\"1\",yil-1,yil),\n    _xlpm.OncekiDonem,IF(LEFT(ay,1)=\"1\",2,1),\n    _xlpm.Tablo,\"Ucret_Turleri_\"&_xlpm.OncekiYil&\"_\"&_xlpm.OncekiDonem,\n    INDEX(\n        INDIRECT(_xlpm.Tablo&\"[\"&E$4&\"]\"),\n        MATCH(\n            secili_params_ucret_turleri[[#This Row],[indx]],\n            INDIRECT(_xlpm.Tablo&\"[indx]\"),\n            0\n        )\n    )\n)","v":0},{"$f":"(secili_params_ucret_turleri[[#This Row],[Aylık]]/secili_params_ucret_turleri[[#This Row],[ÖNCEKİ DÖNEM]])-1","v":{"$error":"#DIV/0!"}}]
[null,null,26,{"$f":"INDEX(\n   INDIRECT(\"Ucret_Turleri_\"&yil&\"_\"&LEFT(ay,1)&\"[\" & D$4 & \"]\"),\n   MATCH(\n      secili_params_ucret_turleri[[#This Row],[indx]],\n      INDIRECT(\"Ucret_Turleri_\"&yil&\"_\"&LEFT(ay,1)&\"[indx]\"),\n      0\n   )\n)","v":"İş Göremezlik Ödeneği Yatarak Tedavi – Alt Limit"},{"$f":"INDEX(\n   INDIRECT(\"Ucret_Turleri_\"&yil&\"_\"&LEFT(ay,1)&\"[\" & E$4 & \"]\"),\n   MATCH(\n      secili_params_ucret_turleri[[#This Row],[indx]],\n      INDIRECT(\"Ucret_Turleri_\"&yil&\"_\"&LEFT(ay,1)&\"[indx]\"),\n      0\n   )\n)","v":0},{"$f":"INDEX(\n   INDIRECT(\"Ucret_Turleri_\"&yil&\"_\"&LEFT(ay,1)&\"[\" & F$4 & \"]\"),\n   MATCH(\n      secili_params_ucret_turleri[[#This Row],[indx]],\n      INDIRECT(\"Ucret_Turleri_\"&yil&\"_\"&LEFT(ay,1)&\"[indx]\"),\n      0\n   )\n)","v":0},{"$f":"INDEX(\n   INDIRECT(\"Ucret_Turleri_\"&yil&\"_\"&LEFT(ay,1)&\"[\" & G$4 & \"]\"),\n   MATCH(\n      secili_params_ucret_turleri[[#This Row],[indx]],\n      INDIRECT(\"Ucret_Turleri_\"&yil&\"_\"&LEFT(ay,1)&\"[indx]\"),\n      0\n   )\n)","v":0},{"$f":"_xlfn.LET(\n    _xlpm.OncekiYil,IF(LEFT(ay,1)=\"1\",yil-1,yil),\n    _xlpm.OncekiDonem,IF(LEFT(ay,1)=\"1\",2,1),\n    _xlpm.Tablo,\"Ucret_Turleri_\"&_xlpm.OncekiYil&\"_\"&_xlpm.OncekiDonem,\n    INDEX(\n        INDIRECT(_xlpm.Tablo&\"[\"&E$4&\"]\"),\n        MATCH(\n            secili_params_ucret_turleri[[#This Row],[indx]],\n            INDIRECT(_xlpm.Tablo&\"[indx]\"),\n            0\n        )\n    )\n)","v":0},{"$f":"(secili_params_ucret_turleri[[#This Row],[Aylık]]/secili_params_ucret_turleri[[#This Row],[ÖNCEKİ DÖNEM]])-1","v":{"$error":"#DIV/0!"}}]
[null,null,27,{"$f":"INDEX(\n   INDIRECT(\"Ucret_Turleri_\"&yil&\"_\"&LEFT(ay,1)&\"[\" & D$4 & \"]\"),\n   MATCH(\n      secili_params_ucret_turleri[[#This Row],[indx]],\n      INDIRECT(\"Ucret_Turleri_\"&yil&\"_\"&LEFT(ay,1)&\"[indx]\"),\n      0\n   )\n)","v":"İş Göremezlik Ödeneği Yatarak Tedavi – Üst Limit"},{"$f":"INDEX(\n   INDIRECT(\"Ucret_Turleri_\"&yil&\"_\"&LEFT(ay,1)&\"[\" & E$4 & \"]\"),\n   MATCH(\n      secili_params_ucret_turleri[[#This Row],[indx]],\n      INDIRECT(\"Ucret_Turleri_\"&yil&\"_\"&LEFT(ay,1)&\"[indx]\"),\n      0\n   )\n)","v":0},{"$f":"INDEX(\n   INDIRECT(\"Ucret_Turleri_\"&yil&\"_\"&LEFT(ay,1)&\"[\" & F$4 & \"]\"),\n   MATCH(\n      secili_params_ucret_turleri[[#This Row],[indx]],\n      INDIRECT(\"Ucret_Turleri_\"&yil&\"_\"&LEFT(ay,1)&\"[indx]\"),\n      0\n   )\n)","v":0},{"$f":"INDEX(\n   INDIRECT(\"Ucret_Turleri_\"&yil&\"_\"&LEFT(ay,1)&\"[\" & G$4 & \"]\"),\n   MATCH(\n      secili_params_ucret_turleri[[#This Row],[indx]],\n      INDIRECT(\"Ucret_Turleri_\"&yil&\"_\"&LEFT(ay,1)&\"[indx]\"),\n      0\n   )\n)","v":0},{"$f":"_xlfn.LET(\n    _xlpm.OncekiYil,IF(LEFT(ay,1)=\"1\",yil-1,yil),\n    _xlpm.OncekiDonem,IF(LEFT(ay,1)=\"1\",2,1),\n    _xlpm.Tablo,\"Ucret_Turleri_\"&_xlpm.OncekiYil&\"_\"&_xlpm.OncekiDonem,\n    INDEX(\n        INDIRECT(_xlpm.Tablo&\"[\"&E$4&\"]\"),\n        MATCH(\n            secili_params_ucret_turleri[[#This Row],[indx]],\n            INDIRECT(_xlpm.Tablo&\"[indx]\"),\n            0\n        )\n    )\n)","v":0},{"$f":"(secili_params_ucret_turleri[[#This Row],[Aylık]]/secili_params_ucret_turleri[[#This Row],[ÖNCEKİ DÖNEM]])-1","v":{"$error":"#DIV/0!"}}]
[null,null,28,{"$f":"INDEX(\n   INDIRECT(\"Ucret_Turleri_\"&yil&\"_\"&LEFT(ay,1)&\"[\" & D$4 & \"]\"),\n   MATCH(\n      secili_params_ucret_turleri[[#This Row],[indx]],\n      INDIRECT(\"Ucret_Turleri_\"&yil&\"_\"&LEFT(ay,1)&\"[indx]\"),\n      0\n   )\n)","v":"Yarım Çalışma Ödeneği"},{"$f":"INDEX(\n   INDIRECT(\"Ucret_Turleri_\"&yil&\"_\"&LEFT(ay,1)&\"[\" & E$4 & \"]\"),\n   MATCH(\n      secili_params_ucret_turleri[[#This Row],[indx]],\n      INDIRECT(\"Ucret_Turleri_\"&yil&\"_\"&LEFT(ay,1)&\"[indx]\"),\n      0\n   )\n)","v":0},{"$f":"INDEX(\n   INDIRECT(\"Ucret_Turleri_\"&yil&\"_\"&LEFT(ay,1)&\"[\" & F$4 & \"]\"),\n   MATCH(\n      secili_params_ucret_turleri[[#This Row],[indx]],\n      INDIRECT(\"Ucret_Turleri_\"&yil&\"_\"&LEFT(ay,1)&\"[indx]\"),\n      0\n   )\n)","v":0},{"$f":"INDEX(\n   INDIRECT(\"Ucret_Turleri_\"&yil&\"_\"&LEFT(ay,1)&\"[\" & G$4 & \"]\"),\n   MATCH(\n      secili_params_ucret_turleri[[#This Row],[indx]],\n      INDIRECT(\"Ucret_Turleri_\"&yil&\"_\"&LEFT(ay,1)&\"[indx]\"),\n      0\n   )\n)","v":0},{"$f":"_xlfn.LET(\n    _xlpm.OncekiYil,IF(LEFT(ay,1)=\"1\",yil-1,yil),\n    _xlpm.OncekiDonem,IF(LEFT(ay,1)=\"1\",2,1),\n    _xlpm.Tablo,\"Ucret_Turleri_\"&_xlpm.OncekiYil&\"_\"&_xlpm.OncekiDonem,\n    INDEX(\n        INDIRECT(_xlpm.Tablo&\"[\"&E$4&\"]\"),\n        MATCH(\n            secili_params_ucret_turleri[[#This Row],[indx]],\n            INDIRECT(_xlpm.Tablo&\"[indx]\"),\n            0\n        )\n    )\n)","v":0},{"$f":"(secili_params_ucret_turleri[[#This Row],[Aylık]]/secili_params_ucret_turleri[[#This Row],[ÖNCEKİ DÖNEM]])-1","v":{"$error":"#DIV/0!"}}]
[null,null,29,{"$f":"INDEX(\n   INDIRECT(\"Ucret_Turleri_\"&yil&\"_\"&LEFT(ay,1)&\"[\" & D$4 & \"]\"),\n   MATCH(\n      secili_params_ucret_turleri[[#This Row],[indx]],\n      INDIRECT(\"Ucret_Turleri_\"&yil&\"_\"&LEFT(ay,1)&\"[indx]\"),\n      0\n   )\n)","v":{"$error":"#N/A"}},{"$f":"INDEX(\n   INDIRECT(\"Ucret_Turleri_\"&yil&\"_\"&LEFT(ay,1)&\"[\" & E$4 & \"]\"),\n   MATCH(\n      secili_params_ucret_turleri[[#This Row],[indx]],\n      INDIRECT(\"Ucret_Turleri_\"&yil&\"_\"&LEFT(ay,1)&\"[indx]\"),\n      0\n   )\n)","v":{"$error":"#N/A"}},null,null,{"$f":"_xlfn.LET(\n    _xlpm.OncekiYil,IF(LEFT(ay,1)=\"1\",yil-1,yil),\n    _xlpm.OncekiDonem,IF(LEFT(ay,1)=\"1\",2,1),\n    _xlpm.Tablo,\"Ucret_Turleri_\"&_xlpm.OncekiYil&\"_\"&_xlpm.OncekiDonem,\n    INDEX(\n        INDIRECT(_xlpm.Tablo&\"[\"&E$4&\"]\"),\n        MATCH(\n            secili_params_ucret_turleri[[#This Row],[indx]],\n            INDIRECT(_xlpm.Tablo&\"[indx]\"),\n            0\n        )\n    )\n)","v":{"$error":"#N/A"}},{"$f":"(secili_params_ucret_turleri[[#This Row],[Aylık]]/secili_params_ucret_turleri[[#This Row],[ÖNCEKİ DÖNEM]])-1","v":{"$error":"#N/A"}}]
[null,null,30,{"$f":"INDEX(\n   INDIRECT(\"Ucret_Turleri_\"&yil&\"_\"&LEFT(ay,1)&\"[\" & D$4 & \"]\"),\n   MATCH(\n      secili_params_ucret_turleri[[#This Row],[indx]],\n      INDIRECT(\"Ucret_Turleri_\"&yil&\"_\"&LEFT(ay,1)&\"[indx]\"),\n      0\n   )\n)","v":{"$error":"#N/A"}},{"$f":"INDEX(\n   INDIRECT(\"Ucret_Turleri_\"&yil&\"_\"&LEFT(ay,1)&\"[\" & E$4 & \"]\"),\n   MATCH(\n      secili_params_ucret_turleri[[#This Row],[indx]],\n      INDIRECT(\"Ucret_Turleri_\"&yil&\"_\"&LEFT(ay,1)&\"[indx]\"),\n      0\n   )\n)","v":{"$error":"#N/A"}},null,null,{"$f":"_xlfn.LET(\n    _xlpm.OncekiYil,IF(LEFT(ay,1)=\"1\",yil-1,yil),\n    _xlpm.OncekiDonem,IF(LEFT(ay,1)=\"1\",2,1),\n    _xlpm.Tablo,\"Ucret_Turleri_\"&_xlpm.OncekiYil&\"_\"&_xlpm.OncekiDonem,\n    INDEX(\n        INDIRECT(_xlpm.Tablo&\"[\"&E$4&\"]\"),\n        MATCH(\n            secili_params_ucret_turleri[[#This Row],[indx]],\n            INDIRECT(_xlpm.Tablo&\"[indx]\"),\n            0\n        )\n    )\n)","v":{"$error":"#N/A"}},{"$f":"(secili_params_ucret_turleri[[#This Row],[Aylık]]/secili_params_ucret_turleri[[#This Row],[ÖNCEKİ DÖNEM]])-1","v":{"$error":"#N/A"}}]
[null,null,31,{"$f":"INDEX(\n   INDIRECT(\"Ucret_Turleri_\"&yil&\"_\"&LEFT(ay,1)&\"[\" & D$4 & \"]\"),\n   MATCH(\n      secili_params_ucret_turleri[[#This Row],[indx]],\n      INDIRECT(\"Ucret_Turleri_\"&yil&\"_\"&LEFT(ay,1)&\"[indx]\"),\n      0\n   )\n)","v":{"$error":"#N/A"}},{"$f":"INDEX(\n   INDIRECT(\"Ucret_Turleri_\"&yil&\"_\"&LEFT(ay,1)&\"[\" & E$4 & \"]\"),\n   MATCH(\n      secili_params_ucret_turleri[[#This Row],[indx]],\n      INDIRECT(\"Ucret_Turleri_\"&yil&\"_\"&LEFT(ay,1)&\"[indx]\"),\n      0\n   )\n)","v":{"$error":"#N/A"}},null,null,{"$f":"_xlfn.LET(\n    _xlpm.OncekiYil,IF(LEFT(ay,1)=\"1\",yil-1,yil),\n    _xlpm.OncekiDonem,IF(LEFT(ay,1)=\"1\",2,1),\n    _xlpm.Tablo,\"Ucret_Turleri_\"&_xlpm.OncekiYil&\"_\"&_xlpm.OncekiDonem,\n    INDEX(\n        INDIRECT(_xlpm.Tablo&\"[\"&E$4&\"]\"),\n        MATCH(\n            secili_params_ucret_turleri[[#This Row],[indx]],\n            INDIRECT(_xlpm.Tablo&\"[indx]\"),\n            0\n        )\n    )\n)","v":{"$error":"#N/A"}},{"$f":"(secili_params_ucret_turleri[[#This Row],[Aylık]]/secili_params_ucret_turleri[[#This Row],[ÖNCEKİ DÖNEM]])-1","v":{"$error":"#N/A"}}]
[null,null,32,{"$f":"INDEX(\n   INDIRECT(\"Ucret_Turleri_\"&yil&\"_\"&LEFT(ay,1)&\"[\" & D$4 & \"]\"),\n   MATCH(\n      secili_params_ucret_turleri[[#This Row],[indx]],\n      INDIRECT(\"Ucret_Turleri_\"&yil&\"_\"&LEFT(ay,1)&\"[indx]\"),\n      0\n   )\n)","v":{"$error":"#N/A"}},{"$f":"INDEX(\n   INDIRECT(\"Ucret_Turleri_\"&yil&\"_\"&LEFT(ay,1)&\"[\" & E$4 & \"]\"),\n   MATCH(\n      secili_params_ucret_turleri[[#This Row],[indx]],\n      INDIRECT(\"Ucret_Turleri_\"&yil&\"_\"&LEFT(ay,1)&\"[indx]\"),\n      0\n   )\n)","v":{"$error":"#N/A"}},null,null,{"$f":"_xlfn.LET(\n    _xlpm.OncekiYil,IF(LEFT(ay,1)=\"1\",yil-1,yil),\n    _xlpm.OncekiDonem,IF(LEFT(ay,1)=\"1\",2,1),\n    _xlpm.Tablo,\"Ucret_Turleri_\"&_xlpm.OncekiYil&\"_\"&_xlpm.OncekiDonem,\n    INDEX(\n        INDIRECT(_xlpm.Tablo&\"[\"&E$4&\"]\"),\n        MATCH(\n            secili_params_ucret_turleri[[#This Row],[indx]],\n            INDIRECT(_xlpm.Tablo&\"[indx]\"),\n            0\n        )\n    )\n)","v":{"$error":"#N/A"}},{"$f":"(secili_params_ucret_turleri[[#This Row],[Aylık]]/secili_params_ucret_turleri[[#This Row],[ÖNCEKİ DÖNEM]])-1","v":{"$error":"#N/A"}}]
[null,null,33,{"$f":"INDEX(\n   INDIRECT(\"Ucret_Turleri_\"&yil&\"_\"&LEFT(ay,1)&\"[\" & D$4 & \"]\"),\n   MATCH(\n      secili_params_ucret_turleri[[#This Row],[indx]],\n      INDIRECT(\"Ucret_Turleri_\"&yil&\"_\"&LEFT(ay,1)&\"[indx]\"),\n      0\n   )\n)","v":{"$error":"#N/A"}},{"$f":"INDEX(\n   INDIRECT(\"Ucret_Turleri_\"&yil&\"_\"&LEFT(ay,1)&\"[\" & E$4 & \"]\"),\n   MATCH(\n      secili_params_ucret_turleri[[#This Row],[indx]],\n      INDIRECT(\"Ucret_Turleri_\"&yil&\"_\"&LEFT(ay,1)&\"[indx]\"),\n      0\n   )\n)","v":{"$error":"#N/A"}},null,null,{"$f":"_xlfn.LET(\n    _xlpm.OncekiYil,IF(LEFT(ay,1)=\"1\",yil-1,yil),\n    _xlpm.OncekiDonem,IF(LEFT(ay,1)=\"1\",2,1),\n    _xlpm.Tablo,\"Ucret_Turleri_\"&_xlpm.OncekiYil&\"_\"&_xlpm.OncekiDonem,\n    INDEX(\n        INDIRECT(_xlpm.Tablo&\"[\"&E$4&\"]\"),\n        MATCH(\n            secili_params_ucret_turleri[[#This Row],[indx]],\n            INDIRECT(_xlpm.Tablo&\"[indx]\"),\n            0\n        )\n    )\n)","v":{"$error":"#N/A"}},{"$f":"(secili_params_ucret_turleri[[#This Row],[Aylık]]/secili_params_ucret_turleri[[#This Row],[ÖNCEKİ DÖNEM]])-1","v":{"$error":"#N/A"}}]

{"sheet":"asg_istisna","index":2,"n_rows":16,"n_cols":10,"rows_kept":16,"cut":false,"hidden":true,"merged":[]}
[]
[]
[null,null,null,"AYLAR","GÜN","BRÜT ÜCRET","AYLIK GVM","KGVM","AÜ GV İSTİSNA","AÜ DV İSTİSNA"]
[null,null,null,"OCAK",30,{"$f":"BRUT_ASGARI_1/30*asgari_ucrt_istisna[[#This Row],[GÜN]]","v":26005.5},{"$f":"(GUNLUK_BRUT_ASGARI_1-(GUNLUK_BRUT_ASGARI_1*vergi_orani_1_1))*asgari_ucrt_istisna[[#This Row],[GÜN]]","v":22104.674999999999},{"$f":"asgari_ucrt_istisna[[#This Row],[AYLIK GVM]]","v":22104.674999999999},{"$f":"MAX((asgari_ucrt_istisna[[#This Row],[KGVM]]-vergi_dilimi_4_1)*0.05,0)+MAX((asgari_ucrt_istisna[[#This Row],[KGVM]]-vergi_dilimi_3_1)*0.08,0)+MAX((asgari_ucrt_istisna[[#This Row],[KGVM]]-vergi_dilimi_2_1)*0.07,0)+MAX((asgari_ucrt_istisna[[#This Row],[KGVM]]-vergi_dilimi_1_1)*0.05,0)+asgari_ucrt_istisna[[#This Row],[KGVM]]*0.15-(MAX((vergi_dilimi_0-vergi_dilimi_4_1)*0.05,0)+(MAX((vergi_dilimi_0-vergi_dilimi_3_1)*0.08,0)+MAX((vergi_dilimi_0-vergi_dilimi_2_1)*0.07,0)+MAX((vergi_dilimi_0-vergi_dilimi_1_1)*0.05,0)+vergi_dilimi_0*0.15))","v":3315.7012499999996},{"$f":"asgari_ucrt_istisna[[#This Row],[BRÜT ÜCRET]]*damga_vergisi_orani","v":197.38174500000002}]
[null,null,null,"ŞUBAT",30,{"$f":"BRUT_ASGARI_1/30*asgari_ucrt_istisna[[#This Row],[GÜN]]","v":26005.5},{"$f":"(GUNLUK_BRUT_ASGARI_1-(GUNLUK_BRUT_ASGARI_1*vergi_orani_1_1))*asgari_ucrt_istisna[[#This Row],[GÜN]]","v":22104.674999999999},{"$f":"asgari_ucrt_istisna[[#This Row],[AYLIK GVM]]+H4","v":44209.35},{"$f":"MAX((H5-vergi_dilimi_4_1)*0.05,0)+MAX((H5-vergi_dilimi_3_1)*0.08,0)+MAX((H5-vergi_dilimi_2_1)*0.07,0)+MAX((H5-vergi_dilimi_1_1)*0.05,0)+H5*0.15-(MAX((H4-vergi_dilimi_4_1)*0.05,0)+(MAX((H4-vergi_dilimi_3_1)*0.08,0)+MAX((H4-vergi_dilimi_2_1)*0.07,0)+MAX((H4-vergi_dilimi_1_1)*0.05,0)+H4*0.15))","v":3315.7012499999996},{"$f":"asgari_ucrt_istisna[[#This Row],[BRÜT ÜCRET]]*damga_vergisi_orani","v":197.38174500000002}]
[null,null,null,"MART",30,{"$f":"BRUT_ASGARI_1/30*asgari_ucrt_istisna[[#This Row],[GÜN]]","v":26005.5},{"$f":"(GUNLUK_BRUT_ASGARI_1-(GUNLUK_BRUT_ASGARI_1*vergi_orani_1_1))*asgari_ucrt_istisna[[#This Row],[GÜN]]","v":22104.674999999999},{"$f":"asgari_ucrt_istisna[[#This Row],[AYLIK GVM]]+H5","v":66314.024999999994},{"$f":"MAX((H6-vergi_dilimi_4_1)*0.05,0)+MAX((H6-vergi_dilimi_3_1)*0.08,0)+MAX((H6-vergi_dilimi_2_1)*0.07,0)+MAX((H6-vergi_dilimi_1_1)*0.05,0)+H6*0.15-(MAX((H5-vergi_dilimi_4_1)*0.05,0)+(MAX((H5-vergi_dilimi_3_1)*0.08,0)+MAX((H5-vergi_dilimi_2_1)*0.07,0)+MAX((H5-vergi_dilimi_1_1)*0.05,0)+H5*0.15))","v":3315.7012499999992},{"$f":"asgari_ucrt_istisna[[#This Row],[BRÜT ÜCRET]]*damga_vergisi_orani","v":197.38174500000002}]
[null,null,null,"NİSAN",30,{"$f":"BRUT_ASGARI_1/30*asgari_ucrt_istisna[[#This Row],[GÜN]]","v":26005.5},{"$f":"(GUNLUK_BRUT_ASGARI_1-(GUNLUK_BRUT_ASGARI_1*vergi_orani_1_1))*asgari_ucrt_istisna[[#This Row],[GÜN]]","v":22104.674999999999},{"$f":"asgari_ucrt_istisna[[#This Row],[AYLIK GVM]]+H6","v":88418.7},{"$f":"MAX((H7-vergi_dilimi_4_1)*0.05,0)+MAX((H7-vergi_dilimi_3_1)*0.08,0)+MAX((H7-vergi_dilimi_2_1)*0.07,0)+MAX((H7-vergi_dilimi_1_1)*0.05,0)+H7*0.15-(MAX((H6-vergi_dilimi_4_1)*0.05,0)+(MAX((H6-vergi_dilimi_3_1)*0.08,0)+MAX((H6-vergi_dilimi_2_1)*0.07,0)+MAX((H6-vergi_dilimi_1_1)*0.05,0)+H6*0.15))","v":3315.7012500000001},{"$f":"asgari_ucrt_istisna[[#This Row],[BRÜT ÜCRET]]*damga_vergisi_orani","v":197.38174500000002}]
[null,null,null,"MAYIS",30,{"$f":"BRUT_ASGARI_1/30*asgari_ucrt_istisna[[#This Row],[GÜN]]","v":26005.5},{"$f":"(GUNLUK_BRUT_ASGARI_1-(GUNLUK_BRUT_ASGARI_1*vergi_orani_1_1))*asgari_ucrt_istisna[[#This Row],[GÜN]]","v":22104.674999999999},{"$f":"asgari_ucrt_istisna[[#This Row],[AYLIK GVM]]+H7","v":110523.375},{"$f":"MAX((H8-vergi_dilimi_4_1)*0.05,0)+MAX((H8-vergi_dilimi_3_1)*0.08,0)+MAX((H8-vergi_dilimi_2_1)*0.07,0)+MAX((H8-vergi_dilimi_1_1)*0.05,0)+H8*0.15-(MAX((H7-vergi_dilimi_4_1)*0.05,0)+(MAX((H7-vergi_dilimi_3_1)*0.08,0)+MAX((H7-vergi_dilimi_2_1)*0.07,0)+MAX((H7-vergi_dilimi_1_1)*0.05,0)+H7*0.15))","v":3315.7012500000001},{"$f":"asgari_ucrt_istisna[[#This Row],[BRÜT ÜCRET]]*damga_vergisi_orani","v":197.38174500000002}]
[null,null,null,"HAZİRAN",30,{"$f":"BRUT_ASGARI_1/30*asgari_ucrt_istisna[[#This Row],[GÜN]]","v":26005.5},{"$f":"(GUNLUK_BRUT_ASGARI_1-(GUNLUK_BRUT_ASGARI_1*vergi_orani_1_1))*asgari_ucrt_istisna[[#This Row],[GÜN]]","v":22104.674999999999},{"$f":"asgari_ucrt_istisna[[#This Row],[AYLIK GVM]]+H8","v":132628.04999999999},{"$f":"MAX((H9-vergi_dilimi_4_1)*0.05,0)+MAX((H9-vergi_dilimi_3_1)*0.08,0)+MAX((H9-vergi_dilimi_2_1)*0.07,0)+MAX((H9-vergi_dilimi_1_1)*0.05,0)+H9*0.15-(MAX((H8-vergi_dilimi_4_1)*0.05,0)+(MAX((H8-vergi_dilimi_3_1)*0.08,0)+MAX((H8-vergi_dilimi_2_1)*0.07,0)+MAX((H8-vergi_dilimi_1_1)*0.05,0)+H8*0.15))","v":3315.7012499999983},{"$f":"asgari_ucrt_istisna[[#This Row],[BRÜT ÜCRET]]*damga_vergisi_orani","v":197.38174500000002}]
[null,null,null,"TEMMUZ",30,{"$f":"BRUT_ASGARI_2/30*asgari_ucrt_istisna[[#This Row],[GÜN]]","v":26005.5},{"$f":"(GUNLUK_BRUT_ASGARI_2-(GUNLUK_BRUT_ASGARI_2*vergi_orani_1_1))*asgari_ucrt_istisna[[#This Row],[GÜN]]","v":22104.674999999999},{"$f":"asgari_ucrt_istisna[[#This Row],[AYLIK GVM]]+H9","v":154732.72499999998},{"$f":"MAX((H10-vergi_dilimi_4_2)*0.05,0)+MAX((H10-vergi_dilimi_3_2)*0.08,0)+MAX((H10-vergi_dilimi_2_2)*0.07,0)+MAX((H10-vergi_dilimi_1_2)*0.05,0)+H10*0.15-(MAX((H9-vergi_dilimi_4_2)*0.05,0)+(MAX((H9-vergi_dilimi_3_2)*0.08,0)+MAX((H9-vergi_dilimi_2_2)*0.07,0)+MAX((H9-vergi_dilimi_1_2)*0.05,0)+H9*0.15))","v":3315.7012499999983},{"$f":"asgari_ucrt_istisna[[#This Row],[BRÜT ÜCRET]]*damga_vergisi_orani","v":197.38174500000002}]
[null,null,null,"AĞUSTOS",30,{"$f":"BRUT_ASGARI_2/30*asgari_ucrt_istisna[[#This Row],[GÜN]]","v":26005.5},{"$f":"(GUNLUK_BRUT_ASGARI_2-(GUNLUK_BRUT_ASGARI_2*vergi_orani_1_1))*asgari_ucrt_istisna[[#This Row],[GÜN]]","v":22104.674999999999},{"$f":"asgari_ucrt_istisna[[#This Row],[AYLIK GVM]]+H10","v":176837.39999999997},4257.5712499999972,{"$f":"asgari_ucrt_istisna[[#This Row],[BRÜT ÜCRET]]*damga_vergisi_orani","v":197.38174500000002}]
[null,null,null,"EYLÜL",30,{"$f":"BRUT_ASGARI_2/30*asgari_ucrt_istisna[[#This Row],[GÜN]]","v":26005.5},{"$f":"(GUNLUK_BRUT_ASGARI_2-(GUNLUK_BRUT_ASGARI_2*vergi_orani_1_1))*asgari_ucrt_istisna[[#This Row],[GÜN]]","v":22104.674999999999},{"$f":"asgari_ucrt_istisna[[#This Row],[AYLIK GVM]]+H11","v":198942.07499999995},4420.9349999999977,{"$f":"asgari_ucrt_istisna[[#This Row],[BRÜT ÜCRET]]*damga_vergisi_orani","v":197.38174500000002}]
[null,null,null,"EKİM",30,{"$f":"BRUT_ASGARI_2/30*asgari_ucrt_istisna[[#This Row],[GÜN]]","v":26005.5},{"$f":"(GUNLUK_BRUT_ASGARI_2-(GUNLUK_BRUT_ASGARI_2*vergi_orani_1_1))*asgari_ucrt_istisna[[#This Row],[GÜN]]","v":22104.674999999999},{"$f":"asgari_ucrt_istisna[[#This Row],[AYLIK GVM]]+H12","v":221046.74999999994},4420.934999999994,{"$f":"asgari_ucrt_istisna[[#This Row],[BRÜT ÜCRET]]*damga_vergisi_orani","v":197.38174500000002}]
[null,null,null,"KASIM",30,{"$f":"BRUT_ASGARI_2/30*asgari_ucrt_istisna[[#This Row],[GÜN]]","v":26005.5},{"$f":"(GUNLUK_BRUT_ASGARI_2-(GUNLUK_BRUT_ASGARI_2*vergi_orani_1_1))*asgari_ucrt_istisna[[#This Row],[GÜN]]","v":22104.674999999999},{"$f":"asgari_ucrt_istisna[[#This Row],[AYLIK GVM]]+H13","v":243151.42499999993},4420.9349999999977,{"$f":"asgari_ucrt_istisna[[#This Row],[BRÜT ÜCRET]]*damga_vergisi_orani","v":197.38174500000002}]
[null,null,null,"ARALIK",30,{"$f":"BRUT_ASGARI_2/30*asgari_ucrt_istisna[[#This Row],[GÜN]]","v":26005.5},{"$f":"(GUNLUK_BRUT_ASGARI_2-(GUNLUK_BRUT_ASGARI_2*vergi_orani_1_1))*asgari_ucrt_istisna[[#This Row],[GÜN]]","v":22104.674999999999},{"$f":"asgari_ucrt_istisna[[#This Row],[AYLIK GVM]]+H14","v":265256.09999999992},4420.9350000000049,{"$f":"asgari_ucrt_istisna[[#This Row],[BRÜT ÜCRET]]*damga_vergisi_orani","v":197.38174500000002}]
[null,null,null,null,{"$f":"SUBTOTAL(109,asgari_ucrt_istisna[GÜN])","v":360},null,null,null,{"$f":"SUBTOTAL(109,asgari_ucrt_istisna[AÜ GV İSTİSNA])","v":45151.219999999987},{"$f":"SUBTOTAL(109,asgari_ucrt_istisna[AÜ DV İSTİSNA])","v":2368.5809400000007}]

{"sheet":"params_BORD_1","index":3,"n_rows":37,"n_cols":13,"rows_kept":37,"cut":false,"hidden":true,"merged":[]}
[{"$f":"DATE(B2,MATCH(UPPER(C2),{\"OCAK\",\"ŞUBAT\",\"MART\",\"NİSAN\",\"MAYIS\",\"HAZİRAN\",\"TEMMUZ\",\"AĞUSTOS\",\"EYLÜL\",\"EKİM\",\"KASIM\",\"ARALIK\"},0),1)","v":{"$error":"#N/A"}}]
[{"$f":"DATE(YEAR(A1),MONTH(A1)+1,0)","v":{"$error":"#N/A"}},{"$f":"sm_b!B2","v":2025},"1. Dönem"]
[]
[null,null,"indx","Ücret Türü","Aylık","Günlük","Saatlik",null,"indx","VERGİ","DİLİMLERİ","VERGİ ORANLARI","VERGİ KESİNTİSİ"]
[null,null,1,{"$f":"INDEX(\n   INDIRECT(\"Ucret_Turleri_\"&yil_1&\"_\"&LEFT(ay_1,1)&\"[\" & D$4 & \"]\"),\n   MATCH(\n      secili_params_ucret_turleri_1[[#This Row],[indx]],\n      INDIRECT(\"Ucret_Turleri_\"&yil_1&\"_\"&LEFT(ay_1,1)&\"[indx]\"),\n      0\n   )\n)","v":"Asgari Brüt"},{"$f":"INDEX(\n   INDIRECT(\"Ucret_Turleri_\"&yil_1&\"_\"&LEFT(ay_1,1)&\"[\" & E$4 & \"]\"),\n   MATCH(\n      secili_params_ucret_turleri_1[[#This Row],[indx]],\n      INDIRECT(\"Ucret_Turleri_\"&yil_1&\"_\"&LEFT(ay_1,1)&\"[indx]\"),\n      0\n   )\n)","v":26005.5},{"$f":"INDEX(\n   INDIRECT(\"Ucret_Turleri_\"&yil_1&\"_\"&LEFT(ay_1,1)&\"[\" & F$4 & \"]\"),\n   MATCH(\n      secili_params_ucret_turleri_1[[#This Row],[indx]],\n      INDIRECT(\"Ucret_Turleri_\"&yil_1&\"_\"&LEFT(ay_1,1)&\"[indx]\"),\n      0\n   )\n)","v":866.85},{"$f":"INDEX(\n   INDIRECT(\"Ucret_Turleri_\"&yil_1&\"_\"&LEFT(ay_1,1)&\"[\" & G$4 & \"]\"),\n   MATCH(\n      secili_params_ucret_turleri_1[[#This Row],[indx]],\n      INDIRECT(\"Ucret_Turleri_\"&yil_1&\"_\"&LEFT(ay_1,1)&\"[indx]\"),\n      0\n   )\n)","v":115.58},null,1,{"$f":"INDEX(\n   INDIRECT(\"Vergi_Dilimleri_\"&yil_1&\"_\"&LEFT(ay_1,1)&\"[\" & J$4 & \"]\"),\n   MATCH(\n      secili_params_vergi_dilimleri_1[[#This Row],[indx]],\n      INDIRECT(\"Vergi_Dilimleri_\"&yil_1&\"_\"&LEFT(ay_1,1)&\"[indx]\"),\n      0\n   )\n)","v":0},{"$f":"INDEX(\n   INDIRECT(\"Vergi_Dilimleri_\"&yil_1&\"_\"&LEFT(ay_1,1)&\"[\" & K$4 & \"]\"),\n   MATCH(\n      secili_params_vergi_dilimleri_1[[#This Row],[indx]],\n      INDIRECT(\"Vergi_Dilimleri_\"&yil_1&\"_\"&LEFT(ay_1,1)&\"[indx]\"),\n      0\n   )\n)","v":158000},{"$f":"INDEX(\n   INDIRECT(\"Vergi_Dilimleri_\"&yil_1&\"_\"&LEFT(ay_1,1)&\"[\" & L$4 & \"]\"),\n   MATCH(\n      secili_params_vergi_dilimleri_1[[#This Row],[indx]],\n      INDIRECT(\"Vergi_Dilimleri_\"&yil_1&\"_\"&LEFT(ay_1,1)&\"[indx]\"),\n      0\n   )\n)","v":0.15},{"$f":"INDEX(\n   INDIRECT(\"Vergi_Dilimleri_\"&yil_1&\"_\"&LEFT(ay_1,1)&\"[\" & M$4 & \"]\"),\n   MATCH(\n      secili_params_vergi_dilimleri_1[[#This Row],[indx]],\n      INDIRECT(\"Vergi_Dilimleri_\"&yil_1&\"_\"&LEFT(ay_1,1)&\"[indx]\"),\n      0\n   )\n)","v":23700}]
[null,null,{"$f":"C5+1","v":2},{"$f":"INDEX(\n   INDIRECT(\"Ucret_Turleri_\"&yil_1&\"_\"&LEFT(ay_1,1)&\"[\" & D$4 & \"]\"),\n   MATCH(\n      secili_params_ucret_turleri_1[[#This Row],[indx]],\n      INDIRECT(\"Ucret_Turleri_\"&yil_1&\"_\"&LEFT(ay_1,1)&\"[indx]\"),\n      0\n   )\n)","v":"SGK Tavan"},{"$f":"INDEX(\n   INDIRECT(\"Ucret_Turleri_\"&yil_1&\"_\"&LEFT(ay_1,1)&\"[\" & E$4 & \"]\"),\n   MATCH(\n      secili_params_ucret_turleri_1[[#This Row],[indx]],\n      INDIRECT(\"Ucret_Turleri_\"&yil_1&\"_\"&LEFT(ay_1,1)&\"[indx]\"),\n      0\n   )\n)","v":195041.4},{"$f":"INDEX(\n   INDIRECT(\"Ucret_Turleri_\"&yil_1&\"_\"&LEFT(ay_1,1)&\"[\" & F$4 & \"]\"),\n   MATCH(\n      secili_params_ucret_turleri_1[[#This Row],[indx]],\n      INDIRECT(\"Ucret_Turleri_\"&yil_1&\"_\"&LEFT(ay_1,1)&\"[indx]\"),\n      0\n   )\n)","v":6501.38},{"$f":"INDEX(\n   INDIRECT(\"Ucret_Turleri_\"&yil_1&\"_\"&LEFT(ay_1,1)&\"[\" & G$4 & \"]\"),\n   MATCH(\n      secili_params_ucret_turleri_1[[#This Row],[indx]],\n      INDIRECT(\"Ucret_Turleri_\"&yil_1&\"_\"&LEFT(ay_1,1)&\"[indx]\"),\n      0\n   )\n)","v":866.85066666666671},null,{"$f":"I5+1","v":2},{"$f":"INDEX(\n   INDIRECT(\"Vergi_Dilimleri_\"&yil_1&\"_\"&LEFT(ay_1,1)&\"[\" & J$4 & \"]\"),\n   MATCH(\n      secili_params_vergi_dilimleri_1[[#This Row],[indx]],\n      INDIRECT(\"Vergi_Dilimleri_\"&yil_1&\"_\"&LEFT(ay_1,1)&\"[indx]\"),\n      0\n   )\n)","v":158000.01},{"$f":"INDEX(\n   INDIRECT(\"Vergi_Dilimleri_\"&yil_1&\"_\"&LEFT(ay_1,1)&\"[\" & K$4 & \"]\"),\n   MATCH(\n      secili_params_vergi_dilimleri_1[[#This Row],[indx]],\n      INDIRECT(\"Vergi_Dilimleri_\"&yil_1&\"_\"&LEFT(ay_1,1)&\"[indx]\"),\n      0\n   )\n)","v":330000},{"$f":"INDEX(\n   INDIRECT(\"Vergi_Dilimleri_\"&yil_1&\"_\"&LEFT(ay_1,1)&\"[\" & L$4 & \"]\"),\n   MATCH(\n      secili_params_vergi_dilimleri_1[[#This Row],[indx]],\n      INDIRECT(\"Vergi_Dilimleri_\"&yil_1&\"_\"&LEFT(ay_1,1)&\"[indx]\"),\n      0\n   )\n)","v":0.2},{"$f":"INDEX(\n   INDIRECT(\"Vergi_Dilimleri_\"&yil_1&\"_\"&LEFT(ay_1,1)&\"[\" & M$4 & \"]\"),\n   MATCH(\n      secili_params_vergi_dilimleri_1[[#This Row],[indx]],\n      INDIRECT(\"Vergi_Dilimleri_\"&yil_1&\"_\"&LEFT(ay_1,1)&\"[indx]\"),\n      0\n   )\n)","v":66000}]
[null,null,{"$f":"C6+1","v":3},{"$f":"INDEX(\n   INDIRECT(\"Ucret_Turleri_\"&yil_1&\"_\"&LEFT(ay_1,1)&\"[\" & D$4 & \"]\"),\n   MATCH(\n      secili_params_ucret_turleri_1[[#This Row],[indx]],\n      INDIRECT(\"Ucret_Turleri_\"&yil_1&\"_\"&LEFT(ay_1,1)&\"[indx]\"),\n      0\n   )\n)","v":"Net Ücret"},{"$f":"INDEX(\n   INDIRECT(\"Ucret_Turleri_\"&yil_1&\"_\"&LEFT(ay_1,1)&\"[\" & E$4 & \"]\"),\n   MATCH(\n      secili_params_ucret_turleri_1[[#This Row],[indx]],\n      INDIRECT(\"Ucret_Turleri_\"&yil_1&\"_\"&LEFT(ay_1,1)&\"[indx]\"),\n      0\n   )\n)","v":22104.67},{"$f":"INDEX(\n   INDIRECT(\"Ucret_Turleri_\"&yil_1&\"_\"&LEFT(ay_1,1)&\"[\" & F$4 & \"]\"),\n   MATCH(\n      secili_params_ucret_turleri_1[[#This Row],[indx]],\n      INDIRECT(\"Ucret_Turleri_\"&yil_1&\"_\"&LEFT(ay_1,1)&\"[indx]\"),\n      0\n   )\n)","v":736.82233333333329},{"$f":"INDEX(\n   INDIRECT(\"Ucret_Turleri_\"&yil_1&\"_\"&LEFT(ay_1,1)&\"[\" & G$4 & \"]\"),\n   MATCH(\n      secili_params_ucret_turleri_1[[#This Row],[indx]],\n      INDIRECT(\"Ucret_Turleri_\"&yil_1&\"_\"&LEFT(ay_1,1)&\"[indx]\"),\n      0\n   )\n)","v":98.242977777777767},null,{"$f":"I6+1","v":3},{"$f":"INDEX(\n   INDIRECT(\"Vergi_Dilimleri_\"&yil_1&\"_\"&LEFT(ay_1,1)&\"[\" & J$4 & \"]\"),\n   MATCH(\n      secili_params_vergi_dilimleri_1[[#This Row],[indx]],\n      INDIRECT(\"Vergi_Dilimleri_\"&yil_1&\"_\"&LEFT(ay_1,1)&\"[indx]\"),\n      0\n   )\n)","v":330000.01},{"$f":"INDEX(\n   INDIRECT(\"Vergi_Dilimleri_\"&yil_1&\"_\"&LEFT(ay_1,1)&\"[\" & K$4 & \"]\"),\n   MATCH(\n      secili_params_vergi_dilimleri_1[[#This Row],[indx]],\n      INDIRECT(\"Vergi_Dilimleri_\"&yil_1&\"_\"&LEFT(ay_1,1)&\"[indx]\"),\n      0\n   )\n)","v":1200000},{"$f":"INDEX(\n   INDIRECT(\"Vergi_Dilimleri_\"&yil_1&\"_\"&LEFT(ay_1,1)&\"[\" & L$4 & \"]\"),\n   MATCH(\n      secili_params_vergi_dilimleri_1[[#This Row],[indx]],\n      INDIRECT(\"Vergi_Dilimleri_\"&yil_1&\"_\"&LEFT(ay_1,1)&\"[indx]\"),\n      0\n   )\n)","v":0.27},{"$f":"INDEX(\n   INDIRECT(\"Vergi_Dilimleri_\"&yil_1&\"_\"&LEFT(ay_1,1)&\"[\" & M$4 & \"]\"),\n   MATCH(\n      secili_params_vergi_dilimleri_1[[#This Row],[indx]],\n      INDIRECT(\"Vergi_Dilimleri_\"&yil_1&\"_\"&LEFT(ay_1,1)&\"[indx]\"),\n      0\n   )\n)","v":324000}]
[null,null,4,{"$f":"INDEX(\n   INDIRECT(\"Ucret_Turleri_\"&yil_1&\"_\"&LEFT(ay_1,1)&\"[\" & D$4 & \"]\"),\n   MATCH(\n      secili_params_ucret_turleri_1[[#This Row],[indx]],\n      INDIRECT(\"Ucret_Turleri_\"&yil_1&\"_\"&LEFT(ay_1,1)&\"[indx]\"),\n      0\n   )\n)","v":"Emekli Net Ücret (Yıllık Ortalama)"},{"$f":"INDEX(\n   INDIRECT(\"Ucret_Turleri_\"&yil_1&\"_\"&LEFT(ay_1,1)&\"[\" & E$4 & \"]\"),\n   MATCH(\n      secili_params_ucret_turleri_1[[#This Row],[indx]],\n      INDIRECT(\"Ucret_Turleri_\"&yil_1&\"_\"&LEFT(ay_1,1)&\"[indx]\"),\n      0\n   )\n)","v":23665.01},{"$f":"INDEX(\n   INDIRECT(\"Ucret_Turleri_\"&yil_1&\"_\"&LEFT(ay_1,1)&\"[\" & F$4 & \"]\"),\n   MATCH(\n      secili_params_ucret_turleri_1[[#This Row],[indx]],\n      INDIRECT(\"Ucret_Turleri_\"&yil_1&\"_\"&LEFT(ay_1,1)&\"[indx]\"),\n      0\n   )\n)","v":788.83366666666666},{"$f":"INDEX(\n   INDIRECT(\"Ucret_Turleri_\"&yil_1&\"_\"&LEFT(ay_1,1)&\"[\" & G$4 & \"]\"),\n   MATCH(\n      secili_params_ucret_turleri_1[[#This Row],[indx]],\n      INDIRECT(\"Ucret_Turleri_\"&yil_1&\"_\"&LEFT(ay_1,1)&\"[indx]\"),\n      0\n   )\n)","v":105.17782222222222},null,4,{"$f":"INDEX(\n   INDIRECT(\"Vergi_Dilimleri_\"&yil_1&\"_\"&LEFT(ay_1,1)&\"[\" & J$4 & \"]\"),\n   MATCH(\n      secili_params_vergi_dilimleri_1[[#This Row],[indx]],\n      INDIRECT(\"Vergi_Dilimleri_\"&yil_1&\"_\"&LEFT(ay_1,1)&\"[indx]\"),\n      0\n   )\n)","v":1200000.01},{"$f":"INDEX(\n   INDIRECT(\"Vergi_Dilimleri_\"&yil_1&\"_\"&LEFT(ay_1,1)&\"[\" & K$4 & \"]\"),\n   MATCH(\n      secili_params_vergi_dilimleri_1[[#This Row],[indx]],\n      INDIRECT(\"Vergi_Dilimleri_\"&yil_1&\"_\"&LEFT(ay_1,1)&\"[indx]\"),\n      0\n   )\n)","v":4300000},{"$f":"INDEX(\n   INDIRECT(\"Vergi_Dilimleri_\"&yil_1&\"_\"&LEFT(ay_1,1)&\"[\" & L$4 & \"]\"),\n   MATCH(\n      secili_params_vergi_dilimleri_1[[#This Row],[indx]],\n      INDIRECT(\"Vergi_Dilimleri_\"&yil_1&\"_\"&LEFT(ay_1,1)&\"[indx]\"),\n      0\n   )\n)","v":0.35},{"$f":"INDEX(\n   INDIRECT(\"Vergi_Dilimleri_\"&yil_1&\"_\"&LEFT(ay_1,1)&\"[\" & M$4 & \"]\"),\n   MATCH(\n      secili_params_vergi_dilimleri_1[[#This Row],[indx]],\n      INDIRECT(\"Vergi_Dilimleri_\"&yil_1&\"_\"&LEFT(ay_1,1)&\"[indx]\"),\n      0\n   )\n)","v":1505000}]
[null,null,5,{"$f":"INDEX(\n   INDIRECT(\"Ucret_Turleri_\"&yil_1&\"_\"&LEFT(ay_1,1)&\"[\" & D$4 & \"]\"),\n   MATCH(\n      secili_params_ucret_turleri_1[[#This Row],[indx]],\n      INDIRECT(\"Ucret_Turleri_\"&yil_1&\"_\"&LEFT(ay_1,1)&\"[indx]\"),\n      0\n   )\n)","v":"Emekli Engelli Net Ücret (Yıllık Ortalama)"},{"$f":"INDEX(\n   INDIRECT(\"Ucret_Turleri_\"&yil_1&\"_\"&LEFT(ay_1,1)&\"[\" & E$4 & \"]\"),\n   MATCH(\n      secili_params_ucret_turleri_1[[#This Row],[indx]],\n      INDIRECT(\"Ucret_Turleri_\"&yil_1&\"_\"&LEFT(ay_1,1)&\"[indx]\"),\n      0\n   )\n)","v":24055.09},{"$f":"INDEX(\n   INDIRECT(\"Ucret_Turleri_\"&yil_1&\"_\"&LEFT(ay_1,1)&\"[\" & F$4 & \"]\"),\n   MATCH(\n      secili_params_ucret_turleri_1[[#This Row],[indx]],\n      INDIRECT(\"Ucret_Turleri_\"&yil_1&\"_\"&LEFT(ay_1,1)&\"[indx]\"),\n      0\n   )\n)","v":801.8363333333333},{"$f":"INDEX(\n   INDIRECT(\"Ucret_Turleri_\"&yil_1&\"_\"&LEFT(ay_1,1)&\"[\" & G$4 & \"]\"),\n   MATCH(\n      secili_params_ucret_turleri_1[[#This Row],[indx]],\n      INDIRECT(\"Ucret_Turleri_\"&yil_1&\"_\"&LEFT(ay_1,1)&\"[indx]\"),\n      0\n   )\n)","v":106.91151111111111},null,5,{"$f":"INDEX(\n   INDIRECT(\"Vergi_Dilimleri_\"&yil_1&\"_\"&LEFT(ay_1,1)&\"[\" & J$4 & \"]\"),\n   MATCH(\n      secili_params_vergi_dilimleri_1[[#This Row],[indx]],\n      INDIRECT(\"Vergi_Dilimleri_\"&yil_1&\"_\"&LEFT(ay_1,1)&\"[indx]\"),\n      0\n   )\n)","v":4300000.01},{"$f":"INDEX(\n   INDIRECT(\"Vergi_Dilimleri_\"&yil_1&\"_\"&LEFT(ay_1,1)&\"[\" & K$4 & \"]\"),\n   MATCH(\n      secili_params_vergi_dilimleri_1[[#This Row],[indx]],\n      INDIRECT(\"Vergi_Dilimleri_\"&yil_1&\"_\"&LEFT(ay_1,1)&\"[indx]\"),\n      0\n   )\n)","v":9999999},{"$f":"INDEX(\n   INDIRECT(\"Vergi_Dilimleri_\"&yil_1&\"_\"&LEFT(ay_1,1)&\"[\" & L$4 & \"]\"),\n   MATCH(\n      secili_params_vergi_dilimleri_1[[#This Row],[indx]],\n      INDIRECT(\"Vergi_Dilimleri_\"&yil_1&\"_\"&LEFT(ay_1,1)&\"[indx]\"),\n      0\n   )\n)","v":0.4},{"$f":"INDEX(\n   INDIRECT(\"Vergi_Dilimleri_\"&yil_1&\"_\"&LEFT(ay_1,1)&\"[\" & M$4 & \"]\"),\n   MATCH(\n      secili_params_vergi_dilimleri_1[[#This Row],[indx]],\n      INDIRECT(\"Vergi_Dilimleri_\"&yil_1&\"_\"&LEFT(ay_1,1)&\"[indx]\"),\n      0\n   )\n)","v":3999999.6}]
[null,null,6,{"$f":"INDEX(\n   INDIRECT(\"Ucret_Turleri_\"&yil_1&\"_\"&LEFT(ay_1,1)&\"[\" & D$4 & \"]\"),\n   MATCH(\n      secili_params_ucret_turleri_1[[#This Row],[indx]],\n      INDIRECT(\"Ucret_Turleri_\"&yil_1&\"_\"&LEFT(ay_1,1)&\"[indx]\"),\n      0\n   )\n)","v":"Kıdem Tazminanı Tavanı 1. Dönem"},{"$f":"INDEX(\n   INDIRECT(\"Ucret_Turleri_\"&yil_1&\"_\"&LEFT(ay_1,1)&\"[\" & E$4 & \"]\"),\n   MATCH(\n      secili_params_ucret_turleri_1[[#This Row],[indx]],\n      INDIRECT(\"Ucret_Turleri_\"&yil_1&\"_\"&LEFT(ay_1,1)&\"[indx]\"),\n      0\n   )\n)","v":46655.43},{"$f":"INDEX(\n   INDIRECT(\"Ucret_Turleri_\"&yil_1&\"_\"&LEFT(ay_1,1)&\"[\" & F$4 & \"]\"),\n   MATCH(\n      secili_params_ucret_turleri_1[[#This Row],[indx]],\n      INDIRECT(\"Ucret_Turleri_\"&yil_1&\"_\"&LEFT(ay_1,1)&\"[indx]\"),\n      0\n   )\n)","v":1555.181},{"$f":"INDEX(\n   INDIRECT(\"Ucret_Turleri_\"&yil_1&\"_\"&LEFT(ay_1,1)&\"[\" & G$4 & \"]\"),\n   MATCH(\n      secili_params_ucret_turleri_1[[#This Row],[indx]],\n      INDIRECT(\"Ucret_Turleri_\"&yil_1&\"_\"&LEFT(ay_1,1)&\"[indx]\"),\n      0\n   )\n)","v":207.35746666666668}]
[null,null,7,{"$f":"INDEX(\n   INDIRECT(\"Ucret_Turleri_\"&yil_1&\"_\"&LEFT(ay_1,1)&\"[\" & D$4 & \"]\"),\n   MATCH(\n      secili_params_ucret_turleri_1[[#This Row],[indx]],\n      INDIRECT(\"Ucret_Turleri_\"&yil_1&\"_\"&LEFT(ay_1,1)&\"[indx]\"),\n      0\n   )\n)","v":"1.DERECE ENGELLİ"},{"$f":"INDEX(\n   INDIRECT(\"Ucret_Turleri_\"&yil_1&\"_\"&LEFT(ay_1,1)&\"[\" & E$4 & \"]\"),\n   MATCH(\n      secili_params_ucret_turleri_1[[#This Row],[indx]],\n      INDIRECT(\"Ucret_Turleri_\"&yil_1&\"_\"&LEFT(ay_1,1)&\"[indx]\"),\n      0\n   )\n)","v":9900},{"$f":"INDEX(\n   INDIRECT(\"Ucret_Turleri_\"&yil_1&\"_\"&LEFT(ay_1,1)&\"[\" & F$4 & \"]\"),\n   MATCH(\n      secili_params_ucret_turleri_1[[#This Row],[indx]],\n      INDIRECT(\"Ucret_Turleri_\"&yil_1&\"_\"&LEFT(ay_1,1)&\"[indx]\"),\n      0\n   )\n)","v":330},{"$f":"INDEX(\n   INDIRECT(\"Ucret_Turleri_\"&yil_1&\"_\"&LEFT(ay_1,1)&\"[\" & G$4 & \"]\"),\n   MATCH(\n      secili_params_ucret_turleri_1[[#This Row],[indx]],\n      INDIRECT(\"Ucret_Turleri_\"&yil_1&\"_\"&LEFT(ay_1,1)&\"[indx]\"),\n      0\n   )\n)","v":44},null,"indx","Sigorta Kolu","İşveren Payı","Çalışan Payı","Toplam"]
[null,null,8,{"$f":"INDEX(\n   INDIRECT(\"Ucret_Turleri_\"&yil_1&\"_\"&LEFT(ay_1,1)&\"[\" & D$4 & \"]\"),\n   MATCH(\n      secili_params_ucret_turleri_1[[#This Row],[indx]],\n      INDIRECT(\"Ucret_Turleri_\"&yil_1&\"_\"&LEFT(ay_1,1)&\"[indx]\"),\n      0\n   )\n)","v":"2.DERECE ENGELLİ"},{"$f":"INDEX(\n   INDIRECT(\"Ucret_Turleri_\"&yil_1&\"_\"&LEFT(ay_1,1)&\"[\" & E$4 & \"]\"),\n   MATCH(\n      secili_params_ucret_turleri_1[[#This Row],[indx]],\n      INDIRECT(\"Ucret_Turleri_\"&yil_1&\"_\"&LEFT(ay_1,1)&\"[indx]\"),\n      0\n   )\n)","v":5700},{"$f":"INDEX(\n   INDIRECT(\"Ucret_Turleri_\"&yil_1&\"_\"&LEFT(ay_1,1)&\"[\" & F$4 & \"]\"),\n   MATCH(\n      secili_params_ucret_turleri_1[[#This Row],[indx]],\n      INDIRECT(\"Ucret_Turleri_\"&yil_1&\"_\"&LEFT(ay_1,1)&\"[indx]\"),\n      0\n   )\n)","v":190},{"$f":"INDEX(\n   INDIRECT(\"Ucret_Turleri_\"&yil_1&\"_\"&LEFT(ay_1,1)&\"[\" & G$4 & \"]\"),\n   MATCH(\n      secili_params_ucret_turleri_1[[#This Row],[indx]],\n      INDIRECT(\"Ucret_Turleri_\"&yil_1&\"_\"&LEFT(ay_1,1)&\"[indx]\"),\n      0\n   )\n)","v":25.333333333333332},null,1,{"$f":"INDEX(\n   INDIRECT(\"Isveren_prim_oranlari_normal_\"&yil_1&\"_\"&LEFT(ay_1,1)&\"[\" & J$11 & \"]\"),\n   MATCH(\n      secili_params_isveren_prim_oranlari_normal_1[[#This Row],[indx]],\n      INDIRECT(\"Isveren_prim_oranlari_normal_\"&yil_1&\"_\"&LEFT(ay_1,1)&\"[indx]\"),\n      0\n   )\n)","v":"Malüllük, Yaşlılık ve Ölüm"},{"$f":"INDEX(\n   INDIRECT(\"Isveren_prim_oranlari_normal_\"&yil_1&\"_\"&LEFT(ay_1,1)&\"[\" & K$11 & \"]\"),\n   MATCH(\n      secili_params_isveren_prim_oranlari_normal_1[[#This Row],[indx]],\n      INDIRECT(\"Isveren_prim_oranlari_normal_\"&yil_1&\"_\"&LEFT(ay_1,1)&\"[indx]\"),\n      0\n   )\n)","v":0.11},{"$f":"INDEX(\n   INDIRECT(\"Isveren_prim_oranlari_normal_\"&yil_1&\"_\"&LEFT(ay_1,1)&\"[\" & L$11 & \"]\"),\n   MATCH(\n      secili_params_isveren_prim_oranlari_normal_1[[#This Row],[indx]],\n      INDIRECT(\"Isveren_prim_oranlari_normal_\"&yil_1&\"_\"&LEFT(ay_1,1)&\"[indx]\"),\n      0\n   )\n)","v":0.09},{"$f":"INDEX(\n   INDIRECT(\"Isveren_prim_oranlari_normal_\"&yil_1&\"_\"&LEFT(ay_1,1)&\"[\" & M$11 & \"]\"),\n   MATCH(\n      secili_params_isveren_prim_oranlari_normal_1[[#This Row],[indx]],\n      INDIRECT(\"Isveren_prim_oranlari_normal_\"&yil_1&\"_\"&LEFT(ay_1,1)&\"[indx]\"),\n      0\n   )\n)","v":0.2}]
[null,null,9,{"$f":"INDEX(\n   INDIRECT(\"Ucret_Turleri_\"&yil_1&\"_\"&LEFT(ay_1,1)&\"[\" & D$4 & \"]\"),\n   MATCH(\n      secili_params_ucret_turleri_1[[#This Row],[indx]],\n      INDIRECT(\"Ucret_Turleri_\"&yil_1&\"_\"&LEFT(ay_1,1)&\"[indx]\"),\n      0\n   )\n)","v":"3.DERECE ENGELLİ"},{"$f":"INDEX(\n   INDIRECT(\"Ucret_Turleri_\"&yil_1&\"_\"&LEFT(ay_1,1)&\"[\" & E$4 & \"]\"),\n   MATCH(\n      secili_params_ucret_turleri_1[[#This Row],[indx]],\n      INDIRECT(\"Ucret_Turleri_\"&yil_1&\"_\"&LEFT(ay_1,1)&\"[indx]\"),\n      0\n   )\n)","v":2400},{"$f":"INDEX(\n   INDIRECT(\"Ucret_Turleri_\"&yil_1&\"_\"&LEFT(ay_1,1)&\"[\" & F$4 & \"]\"),\n   MATCH(\n      secili_params_ucret_turleri_1[[#This Row],[indx]],\n      INDIRECT(\"Ucret_Turleri_\"&yil_1&\"_\"&LEFT(ay_1,1)&\"[indx]\"),\n      0\n   )\n)","v":80},{"$f":"INDEX(\n   INDIRECT(\"Ucret_Turleri_\"&yil_1&\"_\"&LEFT(ay_1,1)&\"[\" & G$4 & \"]\"),\n   MATCH(\n      secili_params_ucret_turleri_1[[#This Row],[indx]],\n      INDIRECT(\"Ucret_Turleri_\"&yil_1&\"_\"&LEFT(ay_1,1)&\"[indx]\"),\n      0\n   )\n)","v":10.666666666666666},null,{"$f":"I12+1","v":2},{"$f":"INDEX(\n   INDIRECT(\"Isveren_prim_oranlari_normal_\"&yil_1&\"_\"&LEFT(ay_1,1)&\"[\" & J$11 & \"]\"),\n   MATCH(\n      secili_params_isveren_prim_oranlari_normal_1[[#This Row],[indx]],\n      INDIRECT(\"Isveren_prim_oranlari_normal_\"&yil_1&\"_\"&LEFT(ay_1,1)&\"[indx]\"),\n      0\n   )\n)","v":"Kısa Vadeli Sigorta Kolları"},{"$f":"INDEX(\n   INDIRECT(\"Isveren_prim_oranlari_normal_\"&yil_1&\"_\"&LEFT(ay_1,1)&\"[\" & K$11 & \"]\"),\n   MATCH(\n      secili_params_isveren_prim_oranlari_normal_1[[#This Row],[indx]],\n      INDIRECT(\"Isveren_prim_oranlari_normal_\"&yil_1&\"_\"&LEFT(ay_1,1)&\"[indx]\"),\n      0\n   )\n)","v":2.2499999999999999E-2},{"$f":"INDEX(\n   INDIRECT(\"Isveren_prim_oranlari_normal_\"&yil_1&\"_\"&LEFT(ay_1,1)&\"[\" & L$11 & \"]\"),\n   MATCH(\n      secili_params_isveren_prim_oranlari_normal_1[[#This Row],[indx]],\n      INDIRECT(\"Isveren_prim_oranlari_normal_\"&yil_1&\"_\"&LEFT(ay_1,1)&\"[indx]\"),\n      0\n   )\n)","v":"-"},{"$f":"INDEX(\n   INDIRECT(\"Isveren_prim_oranlari_normal_\"&yil_1&\"_\"&LEFT(ay_1,1)&\"[\" & M$11 & \"]\"),\n   MATCH(\n      secili_params_isveren_prim_oranlari_normal_1[[#This Row],[indx]],\n      INDIRECT(\"Isveren_prim_oranlari_normal_\"&yil_1&\"_\"&LEFT(ay_1,1)&\"[indx]\"),\n      0\n   )\n)","v":0.02}]
[null,null,10,{"$f":"INDEX(\n   INDIRECT(\"Ucret_Turleri_\"&yil_1&\"_\"&LEFT(ay_1,1)&\"[\" & D$4 & \"]\"),\n   MATCH(\n      secili_params_ucret_turleri_1[[#This Row],[indx]],\n      INDIRECT(\"Ucret_Turleri_\"&yil_1&\"_\"&LEFT(ay_1,1)&\"[indx]\"),\n      0\n   )\n)","v":"Stajyer Ücreti"},{"$f":"INDEX(\n   INDIRECT(\"Ucret_Turleri_\"&yil_1&\"_\"&LEFT(ay_1,1)&\"[\" & E$4 & \"]\"),\n   MATCH(\n      secili_params_ucret_turleri_1[[#This Row],[indx]],\n      INDIRECT(\"Ucret_Turleri_\"&yil_1&\"_\"&LEFT(ay_1,1)&\"[indx]\"),\n      0\n   )\n)","v":6631.4},{"$f":"INDEX(\n   INDIRECT(\"Ucret_Turleri_\"&yil_1&\"_\"&LEFT(ay_1,1)&\"[\" & F$4 & \"]\"),\n   MATCH(\n      secili_params_ucret_turleri_1[[#This Row],[indx]],\n      INDIRECT(\"Ucret_Turleri_\"&yil_1&\"_\"&LEFT(ay_1,1)&\"[indx]\"),\n      0\n   )\n)","v":221.04666666666665},{"$f":"INDEX(\n   INDIRECT(\"Ucret_Turleri_\"&yil_1&\"_\"&LEFT(ay_1,1)&\"[\" & G$4 & \"]\"),\n   MATCH(\n      secili_params_ucret_turleri_1[[#This Row],[indx]],\n      INDIRECT(\"Ucret_Turleri_\"&yil_1&\"_\"&LEFT(ay_1,1)&\"[indx]\"),\n      0\n   )\n)","v":29.472888888888885},null,{"$f":"I13+1","v":3},{"$f":"INDEX(\n   INDIRECT(\"Isveren_prim_oranlari_normal_\"&yil_1&\"_\"&LEFT(ay_1,1)&\"[\" & J$11 & \"]\"),\n   MATCH(\n      secili_params_isveren_prim_oranlari_normal_1[[#This Row],[indx]],\n      INDIRECT(\"Isveren_prim_oranlari_normal_\"&yil_1&\"_\"&LEFT(ay_1,1)&\"[indx]\"),\n      0\n   )\n)","v":"Genel Sağlık Sigortası"},{"$f":"INDEX(\n   INDIRECT(\"Isveren_prim_oranlari_normal_\"&yil_1&\"_\"&LEFT(ay_1,1)&\"[\" & K$11 & \"]\"),\n   MATCH(\n      secili_params_isveren_prim_oranlari_normal_1[[#This Row],[indx]],\n      INDIRECT(\"Isveren_prim_oranlari_normal_\"&yil_1&\"_\"&LEFT(ay_1,1)&\"[indx]\"),\n      0\n   )\n)","v":7.4999999999999997E-2},{"$f":"INDEX(\n   INDIRECT(\"Isveren_prim_oranlari_normal_\"&yil_1&\"_\"&LEFT(ay_1,1)&\"[\" & L$11 & \"]\"),\n   MATCH(\n      secili_params_isveren_prim_oranlari_normal_1[[#This Row],[indx]],\n      INDIRECT(\"Isveren_prim_oranlari_normal_\"&yil_1&\"_\"&LEFT(ay_1,1)&\"[indx]\"),\n      0\n   )\n)","v":0.05},{"$f":"INDEX(\n   INDIRECT(\"Isveren_prim_oranlari_normal_\"&yil_1&\"_\"&LEFT(ay_1,1)&\"[\" & M$11 & \"]\"),\n   MATCH(\n      secili_params_isveren_prim_oranlari_normal_1[[#This Row],[indx]],\n      INDIRECT(\"Isveren_prim_oranlari_normal_\"&yil_1&\"_\"&LEFT(ay_1,1)&\"[indx]\"),\n      0\n   )\n)","v":0.125}]
[null,null,11,{"$f":"INDEX(\n   INDIRECT(\"Ucret_Turleri_\"&yil_1&\"_\"&LEFT(ay_1,1)&\"[\" & D$4 & \"]\"),\n   MATCH(\n      secili_params_ucret_turleri_1[[#This Row],[indx]],\n      INDIRECT(\"Ucret_Turleri_\"&yil_1&\"_\"&LEFT(ay_1,1)&\"[indx]\"),\n      0\n   )\n)","v":"Çocuk Yardımı SGK İstisnası"},{"$f":"INDEX(\n   INDIRECT(\"Ucret_Turleri_\"&yil_1&\"_\"&LEFT(ay_1,1)&\"[\" & E$4 & \"]\"),\n   MATCH(\n      secili_params_ucret_turleri_1[[#This Row],[indx]],\n      INDIRECT(\"Ucret_Turleri_\"&yil_1&\"_\"&LEFT(ay_1,1)&\"[indx]\"),\n      0\n   )\n)","v":520.11},{"$f":"INDEX(\n   INDIRECT(\"Ucret_Turleri_\"&yil_1&\"_\"&LEFT(ay_1,1)&\"[\" & F$4 & \"]\"),\n   MATCH(\n      secili_params_ucret_turleri_1[[#This Row],[indx]],\n      INDIRECT(\"Ucret_Turleri_\"&yil_1&\"_\"&LEFT(ay_1,1)&\"[indx]\"),\n      0\n   )\n)","v":17.337},{"$f":"INDEX(\n   INDIRECT(\"Ucret_Turleri_\"&yil_1&\"_\"&LEFT(ay_1,1)&\"[\" & G$4 & \"]\"),\n   MATCH(\n      secili_params_ucret_turleri_1[[#This Row],[indx]],\n      INDIRECT(\"Ucret_Turleri_\"&yil_1&\"_\"&LEFT(ay_1,1)&\"[indx]\"),\n      0\n   )\n)","v":2.3115999999999999},null,4,{"$f":"INDEX(\n   INDIRECT(\"Isveren_prim_oranlari_normal_\"&yil_1&\"_\"&LEFT(ay_1,1)&\"[\" & J$11 & \"]\"),\n   MATCH(\n      secili_params_isveren_prim_oranlari_normal_1[[#This Row],[indx]],\n      INDIRECT(\"Isveren_prim_oranlari_normal_\"&yil_1&\"_\"&LEFT(ay_1,1)&\"[indx]\"),\n      0\n   )\n)","v":"İşsizlik Sigortası"},{"$f":"INDEX(\n   INDIRECT(\"Isveren_prim_oranlari_normal_\"&yil_1&\"_\"&LEFT(ay_1,1)&\"[\" & K$11 & \"]\"),\n   MATCH(\n      secili_params_isveren_prim_oranlari_normal_1[[#This Row],[indx]],\n      INDIRECT(\"Isveren_prim_oranlari_normal_\"&yil_1&\"_\"&LEFT(ay_1,1)&\"[indx]\"),\n      0\n   )\n)","v":0.02},{"$f":"INDEX(\n   INDIRECT(\"Isveren_prim_oranlari_normal_\"&yil_1&\"_\"&LEFT(ay_1,1)&\"[\" & L$11 & \"]\"),\n   MATCH(\n      secili_params_isveren_prim_oranlari_normal_1[[#This Row],[indx]],\n      INDIRECT(\"Isveren_prim_oranlari_normal_\"&yil_1&\"_\"&LEFT(ay_1,1)&\"[indx]\"),\n      0\n   )\n)","v":0.01},{"$f":"INDEX(\n   INDIRECT(\"Isveren_prim_oranlari_normal_\"&yil_1&\"_\"&LEFT(ay_1,1)&\"[\" & M$11 & \"]\"),\n   MATCH(\n      secili_params_isveren_prim_oranlari_normal_1[[#This Row],[indx]],\n      INDIRECT(\"Isveren_prim_oranlari_normal_\"&yil_1&\"_\"&LEFT(ay_1,1)&\"[indx]\"),\n      0\n   )\n)","v":0}]
[null,null,12,{"$f":"INDEX(\n   INDIRECT(\"Ucret_Turleri_\"&yil_1&\"_\"&LEFT(ay_1,1)&\"[\" & D$4 & \"]\"),\n   MATCH(\n      secili_params_ucret_turleri_1[[#This Row],[indx]],\n      INDIRECT(\"Ucret_Turleri_\"&yil_1&\"_\"&LEFT(ay_1,1)&\"[indx]\"),\n      0\n   )\n)","v":"Aile Yardımı SGK İstisnası"},{"$f":"INDEX(\n   INDIRECT(\"Ucret_Turleri_\"&yil_1&\"_\"&LEFT(ay_1,1)&\"[\" & E$4 & \"]\"),\n   MATCH(\n      secili_params_ucret_turleri_1[[#This Row],[indx]],\n      INDIRECT(\"Ucret_Turleri_\"&yil_1&\"_\"&LEFT(ay_1,1)&\"[indx]\"),\n      0\n   )\n)","v":2600.5500000000002},{"$f":"INDEX(\n   INDIRECT(\"Ucret_Turleri_\"&yil_1&\"_\"&LEFT(ay_1,1)&\"[\" & F$4 & \"]\"),\n   MATCH(\n      secili_params_ucret_turleri_1[[#This Row],[indx]],\n      INDIRECT(\"Ucret_Turleri_\"&yil_1&\"_\"&LEFT(ay_1,1)&\"[indx]\"),\n      0\n   )\n)","v":86.685000000000002},{"$f":"INDEX(\n   INDIRECT(\"Ucret_Turleri_\"&yil_1&\"_\"&LEFT(ay_1,1)&\"[\" & G$4 & \"]\"),\n   MATCH(\n      secili_params_ucret_turleri_1[[#This Row],[indx]],\n      INDIRECT(\"Ucret_Turleri_\"&yil_1&\"_\"&LEFT(ay_1,1)&\"[indx]\"),\n      0\n   )\n)","v":11.558},null,5,{"$f":"INDEX(\n   INDIRECT(\"Isveren_prim_oranlari_normal_\"&yil_1&\"_\"&LEFT(ay_1,1)&\"[\" & J$11 & \"]\"),\n   MATCH(\n      secili_params_isveren_prim_oranlari_normal_1[[#This Row],[indx]],\n      INDIRECT(\"Isveren_prim_oranlari_normal_\"&yil_1&\"_\"&LEFT(ay_1,1)&\"[indx]\"),\n      0\n   )\n)","v":"Toplam"},{"$f":"INDEX(\n   INDIRECT(\"Isveren_prim_oranlari_normal_\"&yil_1&\"_\"&LEFT(ay_1,1)&\"[\" & K$11 & \"]\"),\n   MATCH(\n      secili_params_isveren_prim_oranlari_normal_1[[#This Row],[indx]],\n      INDIRECT(\"Isveren_prim_oranlari_normal_\"&yil_1&\"_\"&LEFT(ay_1,1)&\"[indx]\"),\n      0\n   )\n)","v":0.22750000000000001},{"$f":"INDEX(\n   INDIRECT(\"Isveren_prim_oranlari_normal_\"&yil_1&\"_\"&LEFT(ay_1,1)&\"[\" & L$11 & \"]\"),\n   MATCH(\n      secili_params_isveren_prim_oranlari_normal_1[[#This Row],[indx]],\n      INDIRECT(\"Isveren_prim_oranlari_normal_\"&yil_1&\"_\"&LEFT(ay_1,1)&\"[indx]\"),\n      0\n   )\n)","v":0.15000000000000002},{"$f":"INDEX(\n   INDIRECT(\"Isveren_prim_oranlari_normal_\"&yil_1&\"_\"&LEFT(ay_1,1)&\"[\" & M$11 & \"]\"),\n   MATCH(\n      secili_params_isveren_prim_oranlari_normal_1[[#This Row],[indx]],\n      INDIRECT(\"Isveren_prim_oranlari_normal_\"&yil_1&\"_\"&LEFT(ay_1,1)&\"[indx]\"),\n      0\n   )\n)","v":0.37750000000000006}]
[null,null,13,{"$f":"INDEX(\n   INDIRECT(\"Ucret_Turleri_\"&yil_1&\"_\"&LEFT(ay_1,1)&\"[\" & D$4 & \"]\"),\n   MATCH(\n      secili_params_ucret_turleri_1[[#This Row],[indx]],\n      INDIRECT(\"Ucret_Turleri_\"&yil_1&\"_\"&LEFT(ay_1,1)&\"[indx]\"),\n      0\n   )\n)","v":"Nakit Yemek Parası SGK İstisnası"},{"$f":"INDEX(\n   INDIRECT(\"Ucret_Turleri_\"&yil_1&\"_\"&LEFT(ay_1,1)&\"[\" & E$4 & \"]\"),\n   MATCH(\n      secili_params_ucret_turleri_1[[#This Row],[indx]],\n      INDIRECT(\"Ucret_Turleri_\"&yil_1&\"_\"&LEFT(ay_1,1)&\"[indx]\"),\n      0\n   )\n)","v":158},{"$f":"INDEX(\n   INDIRECT(\"Ucret_Turleri_\"&yil_1&\"_\"&LEFT(ay_1,1)&\"[\" & F$4 & \"]\"),\n   MATCH(\n      secili_params_ucret_turleri_1[[#This Row],[indx]],\n      INDIRECT(\"Ucret_Turleri_\"&yil_1&\"_\"&LEFT(ay_1,1)&\"[indx]\"),\n      0\n   )\n)","v":5.2666666666666666},{"$f":"INDEX(\n   INDIRECT(\"Ucret_Turleri_\"&yil_1&\"_\"&LEFT(ay_1,1)&\"[\" & G$4 & \"]\"),\n   MATCH(\n      secili_params_ucret_turleri_1[[#This Row],[indx]],\n      INDIRECT(\"Ucret_Turleri_\"&yil_1&\"_\"&LEFT(ay_1,1)&\"[indx]\"),\n      0\n   )\n)","v":0.70222222222222219},null,6,{"$f":"INDEX(\n   INDIRECT(\"Isveren_prim_oranlari_normal_\"&yil_1&\"_\"&LEFT(ay_1,1)&\"[\" & J$11 & \"]\"),\n   MATCH(\n      secili_params_isveren_prim_oranlari_normal_1[[#This Row],[indx]],\n      INDIRECT(\"Isveren_prim_oranlari_normal_\"&yil_1&\"_\"&LEFT(ay_1,1)&\"[indx]\"),\n      0\n   )\n)","v":"Hazine"},{"$f":"INDEX(\n   INDIRECT(\"Isveren_prim_oranlari_normal_\"&yil_1&\"_\"&LEFT(ay_1,1)&\"[\" & K$11 & \"]\"),\n   MATCH(\n      secili_params_isveren_prim_oranlari_normal_1[[#This Row],[indx]],\n      INDIRECT(\"Isveren_prim_oranlari_normal_\"&yil_1&\"_\"&LEFT(ay_1,1)&\"[indx]\"),\n      0\n   )\n)","v":0},{"$f":"INDEX(\n   INDIRECT(\"Isveren_prim_oranlari_normal_\"&yil_1&\"_\"&LEFT(ay_1,1)&\"[\" & L$11 & \"]\"),\n   MATCH(\n      secili_params_isveren_prim_oranlari_normal_1[[#This Row],[indx]],\n      INDIRECT(\"Isveren_prim_oranlari_normal_\"&yil_1&\"_\"&LEFT(ay_1,1)&\"[indx]\"),\n      0\n   )\n)","v":0},{"$f":"INDEX(\n   INDIRECT(\"Isveren_prim_oranlari_normal_\"&yil_1&\"_\"&LEFT(ay_1,1)&\"[\" & M$11 & \"]\"),\n   MATCH(\n      secili_params_isveren_prim_oranlari_normal_1[[#This Row],[indx]],\n      INDIRECT(\"Isveren_prim_oranlari_normal_\"&yil_1&\"_\"&LEFT(ay_1,1)&\"[indx]\"),\n      0\n   )\n)","v":0.04}]
[null,null,14,{"$f":"INDEX(\n   INDIRECT(\"Ucret_Turleri_\"&yil_1&\"_\"&LEFT(ay_1,1)&\"[\" & D$4 & \"]\"),\n   MATCH(\n      secili_params_ucret_turleri_1[[#This Row],[indx]],\n      INDIRECT(\"Ucret_Turleri_\"&yil_1&\"_\"&LEFT(ay_1,1)&\"[indx]\"),\n      0\n   )\n)","v":"Yemek Kartı SGK İstisnası"},{"$f":"INDEX(\n   INDIRECT(\"Ucret_Turleri_\"&yil_1&\"_\"&LEFT(ay_1,1)&\"[\" & E$4 & \"]\"),\n   MATCH(\n      secili_params_ucret_turleri_1[[#This Row],[indx]],\n      INDIRECT(\"Ucret_Turleri_\"&yil_1&\"_\"&LEFT(ay_1,1)&\"[indx]\"),\n      0\n   )\n)","v":0},{"$f":"INDEX(\n   INDIRECT(\"Ucret_Turleri_\"&yil_1&\"_\"&LEFT(ay_1,1)&\"[\" & F$4 & \"]\"),\n   MATCH(\n      secili_params_ucret_turleri_1[[#This Row],[indx]],\n      INDIRECT(\"Ucret_Turleri_\"&yil_1&\"_\"&LEFT(ay_1,1)&\"[indx]\"),\n      0\n   )\n)","v":0},{"$f":"INDEX(\n   INDIRECT(\"Ucret_Turleri_\"&yil_1&\"_\"&LEFT(ay_1,1)&\"[\" & G$4 & \"]\"),\n   MATCH(\n      secili_params_ucret_turleri_1[[#This Row],[indx]],\n      INDIRECT(\"Ucret_Turleri_\"&yil_1&\"_\"&LEFT(ay_1,1)&\"[indx]\"),\n      0\n   )\n)","v":0},null,7,{"$f":"INDEX(\n   INDIRECT(\"Isveren_prim_oranlari_normal_\"&yil_1&\"_\"&LEFT(ay_1,1)&\"[\" & J$11 & \"]\"),\n   MATCH(\n      secili_params_isveren_prim_oranlari_normal_1[[#This Row],[indx]],\n      INDIRECT(\"Isveren_prim_oranlari_normal_\"&yil_1&\"_\"&LEFT(ay_1,1)&\"[indx]\"),\n      0\n   )\n)","v":"Hazine (İmalat)"},{"$f":"INDEX(\n   INDIRECT(\"Isveren_prim_oranlari_normal_\"&yil_1&\"_\"&LEFT(ay_1,1)&\"[\" & K$11 & \"]\"),\n   MATCH(\n      secili_params_isveren_prim_oranlari_normal_1[[#This Row],[indx]],\n      INDIRECT(\"Isveren_prim_oranlari_normal_\"&yil_1&\"_\"&LEFT(ay_1,1)&\"[indx]\"),\n      0\n   )\n)","v":0},{"$f":"INDEX(\n   INDIRECT(\"Isveren_prim_oranlari_normal_\"&yil_1&\"_\"&LEFT(ay_1,1)&\"[\" & L$11 & \"]\"),\n   MATCH(\n      secili_params_isveren_prim_oranlari_normal_1[[#This Row],[indx]],\n      INDIRECT(\"Isveren_prim_oranlari_normal_\"&yil_1&\"_\"&LEFT(ay_1,1)&\"[indx]\"),\n      0\n   )\n)","v":0},{"$f":"INDEX(\n   INDIRECT(\"Isveren_prim_oranlari_normal_\"&yil_1&\"_\"&LEFT(ay_1,1)&\"[\" & M$11 & \"]\"),\n   MATCH(\n      secili_params_isveren_prim_oranlari_normal_1[[#This Row],[indx]],\n      INDIRECT(\"Isveren_prim_oranlari_normal_\"&yil_1&\"_\"&LEFT(ay_1,1)&\"[indx]\"),\n      0\n   )\n)","v":0.05}]
[null,null,15,{"$f":"INDEX(\n   INDIRECT(\"Ucret_Turleri_\"&yil_1&\"_\"&LEFT(ay_1,1)&\"[\" & D$4 & \"]\"),\n   MATCH(\n      secili_params_ucret_turleri_1[[#This Row],[indx]],\n      INDIRECT(\"Ucret_Turleri_\"&yil_1&\"_\"&LEFT(ay_1,1)&\"[indx]\"),\n      0\n   )\n)","v":"Yemek Kartı GV İstisnası"},{"$f":"INDEX(\n   INDIRECT(\"Ucret_Turleri_\"&yil_1&\"_\"&LEFT(ay_1,1)&\"[\" & E$4 & \"]\"),\n   MATCH(\n      secili_params_ucret_turleri_1[[#This Row],[indx]],\n      INDIRECT(\"Ucret_Turleri_\"&yil_1&\"_\"&LEFT(ay_1,1)&\"[indx]\"),\n      0\n   )\n)","v":240},{"$f":"INDEX(\n   INDIRECT(\"Ucret_Turleri_\"&yil_1&\"_\"&LEFT(ay_1,1)&\"[\" & F$4 & \"]\"),\n   MATCH(\n      secili_params_ucret_turleri_1[[#This Row],[indx]],\n      INDIRECT(\"Ucret_Turleri_\"&yil_1&\"_\"&LEFT(ay_1,1)&\"[indx]\"),\n      0\n   )\n)","v":8},{"$f":"INDEX(\n   INDIRECT(\"Ucret_Turleri_\"&yil_1&\"_\"&LEFT(ay_1,1)&\"[\" & G$4 & \"]\"),\n   MATCH(\n      secili_params_ucret_turleri_1[[#This Row],[indx]],\n      INDIRECT(\"Ucret_Turleri_\"&yil_1&\"_\"&LEFT(ay_1,1)&\"[indx]\"),\n      0\n   )\n)","v":1.0666666666666667},null,8,{"$f":"INDEX(\n   INDIRECT(\"Isveren_prim_oranlari_normal_\"&yil_1&\"_\"&LEFT(ay_1,1)&\"[\" & J$11 & \"]\"),\n   MATCH(\n      secili_params_isveren_prim_oranlari_normal_1[[#This Row],[indx]],\n      INDIRECT(\"Isveren_prim_oranlari_normal_\"&yil_1&\"_\"&LEFT(ay_1,1)&\"[indx]\"),\n      0\n   )\n)","v":"Damga Vergisi Oranı"},{"$f":"INDEX(\n   INDIRECT(\"Isveren_prim_oranlari_normal_\"&yil_1&\"_\"&LEFT(ay_1,1)&\"[\" & K$11 & \"]\"),\n   MATCH(\n      secili_params_isveren_prim_oranlari_normal_1[[#This Row],[indx]],\n      INDIRECT(\"Isveren_prim_oranlari_normal_\"&yil_1&\"_\"&LEFT(ay_1,1)&\"[indx]\"),\n      0\n   )\n)","v":0},{"$f":"INDEX(\n   INDIRECT(\"Isveren_prim_oranlari_normal_\"&yil_1&\"_\"&LEFT(ay_1,1)&\"[\" & L$11 & \"]\"),\n   MATCH(\n      secili_params_isveren_prim_oranlari_normal_1[[#This Row],[indx]],\n      INDIRECT(\"Isveren_prim_oranlari_normal_\"&yil_1&\"_\"&LEFT(ay_1,1)&\"[indx]\"),\n      0\n   )\n)","v":0},{"$f":"INDEX(\n   INDIRECT(\"Isveren_prim_oranlari_normal_\"&yil_1&\"_\"&LEFT(ay_1,1)&\"[\" & M$11 & \"]\"),\n   MATCH(\n      secili_params_isveren_prim_oranlari_normal_1[[#This Row],[indx]],\n      INDIRECT(\"Isveren_prim_oranlari_normal_\"&yil_1&\"_\"&LEFT(ay_1,1)&\"[indx]\"),\n      0\n   )\n)","v":7.5900000000000004E-3}]
[null,null,16,{"$f":"INDEX(\n   INDIRECT(\"Ucret_Turleri_\"&yil_1&\"_\"&LEFT(ay_1,1)&\"[\" & D$4 & \"]\"),\n   MATCH(\n      secili_params_ucret_turleri_1[[#This Row],[indx]],\n      INDIRECT(\"Ucret_Turleri_\"&yil_1&\"_\"&LEFT(ay_1,1)&\"[indx]\"),\n      0\n   )\n)","v":"Nakit Yemek Parası GV İstisnası"},{"$f":"INDEX(\n   INDIRECT(\"Ucret_Turleri_\"&yil_1&\"_\"&LEFT(ay_1,1)&\"[\" & E$4 & \"]\"),\n   MATCH(\n      secili_params_ucret_turleri_1[[#This Row],[indx]],\n      INDIRECT(\"Ucret_Turleri_\"&yil_1&\"_\"&LEFT(ay_1,1)&\"[indx]\"),\n      0\n   )\n)","v":240},{"$f":"INDEX(\n   INDIRECT(\"Ucret_Turleri_\"&yil_1&\"_\"&LEFT(ay_1,1)&\"[\" & F$4 & \"]\"),\n   MATCH(\n      secili_params_ucret_turleri_1[[#This Row],[indx]],\n      INDIRECT(\"Ucret_Turleri_\"&yil_1&\"_\"&LEFT(ay_1,1)&\"[indx]\"),\n      0\n   )\n)","v":8},{"$f":"INDEX(\n   INDIRECT(\"Ucret_Turleri_\"&yil_1&\"_\"&LEFT(ay_1,1)&\"[\" & G$4 & \"]\"),\n   MATCH(\n      secili_params_ucret_turleri_1[[#This Row],[indx]],\n      INDIRECT(\"Ucret_Turleri_\"&yil_1&\"_\"&LEFT(ay_1,1)&\"[indx]\"),\n      0\n   )\n)","v":1.0666666666666667}]
[null,null,17,{"$f":"INDEX(\n   INDIRECT(\"Ucret_Turleri_\"&yil_1&\"_\"&LEFT(ay_1,1)&\"[\" & D$4 & \"]\"),\n   MATCH(\n      secili_params_ucret_turleri_1[[#This Row],[indx]],\n      INDIRECT(\"Ucret_Turleri_\"&yil_1&\"_\"&LEFT(ay_1,1)&\"[indx]\"),\n      0\n   )\n)","v":"Nakit Yemek Parası DV İstisnası"},{"$f":"INDEX(\n   INDIRECT(\"Ucret_Turleri_\"&yil_1&\"_\"&LEFT(ay_1,1)&\"[\" & E$4 & \"]\"),\n   MATCH(\n      secili_params_ucret_turleri_1[[#This Row],[indx]],\n      INDIRECT(\"Ucret_Turleri_\"&yil_1&\"_\"&LEFT(ay_1,1)&\"[indx]\"),\n      0\n   )\n)","v":0},{"$f":"INDEX(\n   INDIRECT(\"Ucret_Turleri_\"&yil_1&\"_\"&LEFT(ay_1,1)&\"[\" & F$4 & \"]\"),\n   MATCH(\n      secili_params_ucret_turleri_1[[#This Row],[indx]],\n      INDIRECT(\"Ucret_Turleri_\"&yil_1&\"_\"&LEFT(ay_1,1)&\"[indx]\"),\n      0\n   )\n)","v":0},{"$f":"INDEX(\n   INDIRECT(\"Ucret_Turleri_\"&yil_1&\"_\"&LEFT(ay_1,1)&\"[\" & G$4 & \"]\"),\n   MATCH(\n      secili_params_ucret_turleri_1[[#This Row],[indx]],\n      INDIRECT(\"Ucret_Turleri_\"&yil_1&\"_\"&LEFT(ay_1,1)&\"[indx]\"),\n      0\n   )\n)","v":0},null,"indx","SGDP Oranı","İşveren Payı","Çalışan Payı","Toplam"]
[null,null,18,{"$f":"INDEX(\n   INDIRECT(\"Ucret_Turleri_\"&yil_1&\"_\"&LEFT(ay_1,1)&\"[\" & D$4 & \"]\"),\n   MATCH(\n      secili_params_ucret_turleri_1[[#This Row],[indx]],\n      INDIRECT(\"Ucret_Turleri_\"&yil_1&\"_\"&LEFT(ay_1,1)&\"[indx]\"),\n      0\n   )\n)","v":"Yol/Ulaşım Kartı GV İstisnası"},{"$f":"INDEX(\n   INDIRECT(\"Ucret_Turleri_\"&yil_1&\"_\"&LEFT(ay_1,1)&\"[\" & E$4 & \"]\"),\n   MATCH(\n      secili_params_ucret_turleri_1[[#This Row],[indx]],\n      INDIRECT(\"Ucret_Turleri_\"&yil_1&\"_\"&LEFT(ay_1,1)&\"[indx]\"),\n      0\n   )\n)","v":126},{"$f":"INDEX(\n   INDIRECT(\"Ucret_Turleri_\"&yil_1&\"_\"&LEFT(ay_1,1)&\"[\" & F$4 & \"]\"),\n   MATCH(\n      secili_params_ucret_turleri_1[[#This Row],[indx]],\n      INDIRECT(\"Ucret_Turleri_\"&yil_1&\"_\"&LEFT(ay_1,1)&\"[indx]\"),\n      0\n   )\n)","v":4.2},{"$f":"INDEX(\n   INDIRECT(\"Ucret_Turleri_\"&yil_1&\"_\"&LEFT(ay_1,1)&\"[\" & G$4 & \"]\"),\n   MATCH(\n      secili_params_ucret_turleri_1[[#This Row],[indx]],\n      INDIRECT(\"Ucret_Turleri_\"&yil_1&\"_\"&LEFT(ay_1,1)&\"[indx]\"),\n      0\n   )\n)","v":0.56000000000000005},null,1,{"$f":"INDEX(\n   INDIRECT(\"Isveren_prim_oranlari_emekli_\"&yil_1&\"_\"&LEFT(ay_1,1)&\"[\" & J$21 & \"]\"),\n   MATCH(\n      secili_params_isveren_prim_oranlari_emekli_1[[#This Row],[indx]],\n      INDIRECT(\"Isveren_prim_oranlari_emekli_\"&yil_1&\"_\"&LEFT(ay_1,1)&\"[indx]\"),\n      0\n   )\n)","v":"Emekli Çalışan"},{"$f":"INDEX(\n   INDIRECT(\"Isveren_prim_oranlari_emekli_\"&yil_1&\"_\"&LEFT(ay_1,1)&\"[\" & K$21 & \"]\"),\n   MATCH(\n      secili_params_isveren_prim_oranlari_emekli_1[[#This Row],[indx]],\n      INDIRECT(\"Isveren_prim_oranlari_emekli_\"&yil_1&\"_\"&LEFT(ay_1,1)&\"[indx]\"),\n      0\n   )\n)","v":0.2475},{"$f":"INDEX(\n   INDIRECT(\"Isveren_prim_oranlari_emekli_\"&yil_1&\"_\"&LEFT(ay_1,1)&\"[\" & L$21 & \"]\"),\n   MATCH(\n      secili_params_isveren_prim_oranlari_emekli_1[[#This Row],[indx]],\n      INDIRECT(\"Isveren_prim_oranlari_emekli_\"&yil_1&\"_\"&LEFT(ay_1,1)&\"[indx]\"),\n      0\n   )\n)","v":7.4999999999999997E-2},{"$f":"INDEX(\n   INDIRECT(\"Isveren_prim_oranlari_emekli_\"&yil_1&\"_\"&LEFT(ay_1,1)&\"[\" & M$21 & \"]\"),\n   MATCH(\n      secili_params_isveren_prim_oranlari_emekli_1[[#This Row],[indx]],\n      INDIRECT(\"Isveren_prim_oranlari_emekli_\"&yil_1&\"_\"&LEFT(ay_1,1)&\"[indx]\"),\n      0\n   )\n)","v":0.32250000000000001}]
[null,null,19,{"$f":"INDEX(\n   INDIRECT(\"Ucret_Turleri_\"&yil_1&\"_\"&LEFT(ay_1,1)&\"[\" & D$4 & \"]\"),\n   MATCH(\n      secili_params_ucret_turleri_1[[#This Row],[indx]],\n      INDIRECT(\"Ucret_Turleri_\"&yil_1&\"_\"&LEFT(ay_1,1)&\"[indx]\"),\n      0\n   )\n)","v":"Çocuk Yardımı GV İstisnası – 0-6 yaş"},{"$f":"INDEX(\n   INDIRECT(\"Ucret_Turleri_\"&yil_1&\"_\"&LEFT(ay_1,1)&\"[\" & E$4 & \"]\"),\n   MATCH(\n      secili_params_ucret_turleri_1[[#This Row],[indx]],\n      INDIRECT(\"Ucret_Turleri_\"&yil_1&\"_\"&LEFT(ay_1,1)&\"[indx]\"),\n      0\n   )\n)","v":506.28},{"$f":"INDEX(\n   INDIRECT(\"Ucret_Turleri_\"&yil_1&\"_\"&LEFT(ay_1,1)&\"[\" & F$4 & \"]\"),\n   MATCH(\n      secili_params_ucret_turleri_1[[#This Row],[indx]],\n      INDIRECT(\"Ucret_Turleri_\"&yil_1&\"_\"&LEFT(ay_1,1)&\"[indx]\"),\n      0\n   )\n)","v":16.875999999999998},{"$f":"INDEX(\n   INDIRECT(\"Ucret_Turleri_\"&yil_1&\"_\"&LEFT(ay_1,1)&\"[\" & G$4 & \"]\"),\n   MATCH(\n      secili_params_ucret_turleri_1[[#This Row],[indx]],\n      INDIRECT(\"Ucret_Turleri_\"&yil_1&\"_\"&LEFT(ay_1,1)&\"[indx]\"),\n      0\n   )\n)","v":2.2501333333333329}]
[null,null,20,{"$f":"INDEX(\n   INDIRECT(\"Ucret_Turleri_\"&yil_1&\"_\"&LEFT(ay_1,1)&\"[\" & D$4 & \"]\"),\n   MATCH(\n      secili_params_ucret_turleri_1[[#This Row],[indx]],\n      INDIRECT(\"Ucret_Turleri_\"&yil_1&\"_\"&LEFT(ay_1,1)&\"[indx]\"),\n      0\n   )\n)","v":"Çocuk Yardımı GV İstisnası – 6 yaş üzeri"},{"$f":"INDEX(\n   INDIRECT(\"Ucret_Turleri_\"&yil_1&\"_\"&LEFT(ay_1,1)&\"[\" & E$4 & \"]\"),\n   MATCH(\n      secili_params_ucret_turleri_1[[#This Row],[indx]],\n      INDIRECT(\"Ucret_Turleri_\"&yil_1&\"_\"&LEFT(ay_1,1)&\"[indx]\"),\n      0\n   )\n)","v":253.14},{"$f":"INDEX(\n   INDIRECT(\"Ucret_Turleri_\"&yil_1&\"_\"&LEFT(ay_1,1)&\"[\" & F$4 & \"]\"),\n   MATCH(\n      secili_params_ucret_turleri_1[[#This Row],[indx]],\n      INDIRECT(\"Ucret_Turleri_\"&yil_1&\"_\"&LEFT(ay_1,1)&\"[indx]\"),\n      0\n   )\n)","v":8.4379999999999988},{"$f":"INDEX(\n   INDIRECT(\"Ucret_Turleri_\"&yil_1&\"_\"&LEFT(ay_1,1)&\"[\" & G$4 & \"]\"),\n   MATCH(\n      secili_params_ucret_turleri_1[[#This Row],[indx]],\n      INDIRECT(\"Ucret_Turleri_\"&yil_1&\"_\"&LEFT(ay_1,1)&\"[indx]\"),\n      0\n   )\n)","v":1.1250666666666664}]
[null,null,21,{"$f":"INDEX(\n   INDIRECT(\"Ucret_Turleri_\"&yil_1&\"_\"&LEFT(ay_1,1)&\"[\" & D$4 & \"]\"),\n   MATCH(\n      secili_params_ucret_turleri_1[[#This Row],[indx]],\n      INDIRECT(\"Ucret_Turleri_\"&yil_1&\"_\"&LEFT(ay_1,1)&\"[indx]\"),\n      0\n   )\n)","v":"Emzirme Ödeneği"},{"$f":"INDEX(\n   INDIRECT(\"Ucret_Turleri_\"&yil_1&\"_\"&LEFT(ay_1,1)&\"[\" & E$4 & \"]\"),\n   MATCH(\n      secili_params_ucret_turleri_1[[#This Row],[indx]],\n      INDIRECT(\"Ucret_Turleri_\"&yil_1&\"_\"&LEFT(ay_1,1)&\"[indx]\"),\n      0\n   )\n)","v":1238},{"$f":"INDEX(\n   INDIRECT(\"Ucret_Turleri_\"&yil_1&\"_\"&LEFT(ay_1,1)&\"[\" & F$4 & \"]\"),\n   MATCH(\n      secili_params_ucret_turleri_1[[#This Row],[indx]],\n      INDIRECT(\"Ucret_Turleri_\"&yil_1&\"_\"&LEFT(ay_1,1)&\"[indx]\"),\n      0\n   )\n)","v":41.266666666666666},{"$f":"INDEX(\n   INDIRECT(\"Ucret_Turleri_\"&yil_1&\"_\"&LEFT(ay_1,1)&\"[\" & G$4 & \"]\"),\n   MATCH(\n      secili_params_ucret_turleri_1[[#This Row],[indx]],\n      INDIRECT(\"Ucret_Turleri_\"&yil_1&\"_\"&LEFT(ay_1,1)&\"[indx]\"),\n      0\n   )\n)","v":5.5022222222222217}]
[null,null,22,{"$f":"INDEX(\n   INDIRECT(\"Ucret_Turleri_\"&yil_1&\"_\"&LEFT(ay_1,1)&\"[\" & D$4 & \"]\"),\n   MATCH(\n      secili_params_ucret_turleri_1[[#This Row],[indx]],\n      INDIRECT(\"Ucret_Turleri_\"&yil_1&\"_\"&LEFT(ay_1,1)&\"[indx]\"),\n      0\n   )\n)","v":"İşsizlik Ödeneği – Alt Limit"},{"$f":"INDEX(\n   INDIRECT(\"Ucret_Turleri_\"&yil_1&\"_\"&LEFT(ay_1,1)&\"[\" & E$4 & \"]\"),\n   MATCH(\n      secili_params_ucret_turleri_1[[#This Row],[indx]],\n      INDIRECT(\"Ucret_Turleri_\"&yil_1&\"_\"&LEFT(ay_1,1)&\"[indx]\"),\n      0\n   )\n)","v":10323.25},{"$f":"INDEX(\n   INDIRECT(\"Ucret_Turleri_\"&yil_1&\"_\"&LEFT(ay_1,1)&\"[\" & F$4 & \"]\"),\n   MATCH(\n      secili_params_ucret_turleri_1[[#This Row],[indx]],\n      INDIRECT(\"Ucret_Turleri_\"&yil_1&\"_\"&LEFT(ay_1,1)&\"[indx]\"),\n      0\n   )\n)","v":344.10833333333335},{"$f":"INDEX(\n   INDIRECT(\"Ucret_Turleri_\"&yil_1&\"_\"&LEFT(ay_1,1)&\"[\" & G$4 & \"]\"),\n   MATCH(\n      secili_params_ucret_turleri_1[[#This Row],[indx]],\n      INDIRECT(\"Ucret_Turleri_\"&yil_1&\"_\"&LEFT(ay_1,1)&\"[indx]\"),\n      0\n   )\n)","v":45.88111111111111}]
[null,null,23,{"$f":"INDEX(\n   INDIRECT(\"Ucret_Turleri_\"&yil_1&\"_\"&LEFT(ay_1,1)&\"[\" & D$4 & \"]\"),\n   MATCH(\n      secili_params_ucret_turleri_1[[#This Row],[indx]],\n      INDIRECT(\"Ucret_Turleri_\"&yil_1&\"_\"&LEFT(ay_1,1)&\"[indx]\"),\n      0\n   )\n)","v":"İşsizlik Ödeneği – Üst Limit"},{"$f":"INDEX(\n   INDIRECT(\"Ucret_Turleri_\"&yil_1&\"_\"&LEFT(ay_1,1)&\"[\" & E$4 & \"]\"),\n   MATCH(\n      secili_params_ucret_turleri_1[[#This Row],[indx]],\n      INDIRECT(\"Ucret_Turleri_\"&yil_1&\"_\"&LEFT(ay_1,1)&\"[indx]\"),\n      0\n   )\n)","v":20646.490000000002},{"$f":"INDEX(\n   INDIRECT(\"Ucret_Turleri_\"&yil_1&\"_\"&LEFT(ay_1,1)&\"[\" & F$4 & \"]\"),\n   MATCH(\n      secili_params_ucret_turleri_1[[#This Row],[indx]],\n      INDIRECT(\"Ucret_Turleri_\"&yil_1&\"_\"&LEFT(ay_1,1)&\"[indx]\"),\n      0\n   )\n)","v":688.21633333333341},{"$f":"INDEX(\n   INDIRECT(\"Ucret_Turleri_\"&yil_1&\"_\"&LEFT(ay_1,1)&\"[\" & G$4 & \"]\"),\n   MATCH(\n      secili_params_ucret_turleri_1[[#This Row],[indx]],\n      INDIRECT(\"Ucret_Turleri_\"&yil_1&\"_\"&LEFT(ay_1,1)&\"[indx]\"),\n      0\n   )\n)","v":91.762177777777794}]
[null,null,24,{"$f":"INDEX(\n   INDIRECT(\"Ucret_Turleri_\"&yil_1&\"_\"&LEFT(ay_1,1)&\"[\" & D$4 & \"]\"),\n   MATCH(\n      secili_params_ucret_turleri_1[[#This Row],[indx]],\n      INDIRECT(\"Ucret_Turleri_\"&yil_1&\"_\"&LEFT(ay_1,1)&\"[indx]\"),\n      0\n   )\n)","v":"İş Göremezlik Ödeneği Ayakta Tedavi – Alt Limit"},{"$f":"INDEX(\n   INDIRECT(\"Ucret_Turleri_\"&yil_1&\"_\"&LEFT(ay_1,1)&\"[\" & E$4 & \"]\"),\n   MATCH(\n      secili_params_ucret_turleri_1[[#This Row],[indx]],\n      INDIRECT(\"Ucret_Turleri_\"&yil_1&\"_\"&LEFT(ay_1,1)&\"[indx]\"),\n      0\n   )\n)","v":17337},{"$f":"INDEX(\n   INDIRECT(\"Ucret_Turleri_\"&yil_1&\"_\"&LEFT(ay_1,1)&\"[\" & F$4 & \"]\"),\n   MATCH(\n      secili_params_ucret_turleri_1[[#This Row],[indx]],\n      INDIRECT(\"Ucret_Turleri_\"&yil_1&\"_\"&LEFT(ay_1,1)&\"[indx]\"),\n      0\n   )\n)","v":577.9},{"$f":"INDEX(\n   INDIRECT(\"Ucret_Turleri_\"&yil_1&\"_\"&LEFT(ay_1,1)&\"[\" & G$4 & \"]\"),\n   MATCH(\n      secili_params_ucret_turleri_1[[#This Row],[indx]],\n      INDIRECT(\"Ucret_Turleri_\"&yil_1&\"_\"&LEFT(ay_1,1)&\"[indx]\"),\n      0\n   )\n)","v":77.053333333333327}]
[null,null,25,{"$f":"INDEX(\n   INDIRECT(\"Ucret_Turleri_\"&yil_1&\"_\"&LEFT(ay_1,1)&\"[\" & D$4 & \"]\"),\n   MATCH(\n      secili_params_ucret_turleri_1[[#This Row],[indx]],\n      INDIRECT(\"Ucret_Turleri_\"&yil_1&\"_\"&LEFT(ay_1,1)&\"[indx]\"),\n      0\n   )\n)","v":"İş Göremezlik Ödeneği Ayakta Tedavi – Üst Limit"},{"$f":"INDEX(\n   INDIRECT(\"Ucret_Turleri_\"&yil_1&\"_\"&LEFT(ay_1,1)&\"[\" & E$4 & \"]\"),\n   MATCH(\n      secili_params_ucret_turleri_1[[#This Row],[indx]],\n      INDIRECT(\"Ucret_Turleri_\"&yil_1&\"_\"&LEFT(ay_1,1)&\"[indx]\"),\n      0\n   )\n)","v":130027.5},{"$f":"INDEX(\n   INDIRECT(\"Ucret_Turleri_\"&yil_1&\"_\"&LEFT(ay_1,1)&\"[\" & F$4 & \"]\"),\n   MATCH(\n      secili_params_ucret_turleri_1[[#This Row],[indx]],\n      INDIRECT(\"Ucret_Turleri_\"&yil_1&\"_\"&LEFT(ay_1,1)&\"[indx]\"),\n      0\n   )\n)","v":4334.25},{"$f":"INDEX(\n   INDIRECT(\"Ucret_Turleri_\"&yil_1&\"_\"&LEFT(ay_1,1)&\"[\" & G$4 & \"]\"),\n   MATCH(\n      secili_params_ucret_turleri_1[[#This Row],[indx]],\n      INDIRECT(\"Ucret_Turleri_\"&yil_1&\"_\"&LEFT(ay_1,1)&\"[indx]\"),\n      0\n   )\n)","v":577.9}]
[null,null,26,{"$f":"INDEX(\n   INDIRECT(\"Ucret_Turleri_\"&yil_1&\"_\"&LEFT(ay_1,1)&\"[\" & D$4 & \"]\"),\n   MATCH(\n      secili_params_ucret_turleri_1[[#This Row],[indx]],\n      INDIRECT(\"Ucret_Turleri_\"&yil_1&\"_\"&LEFT(ay_1,1)&\"[indx]\"),\n      0\n   )\n)","v":"İş Göremezlik Ödeneği Yatarak Tedavi – Alt Limit"},{"$f":"INDEX(\n   INDIRECT(\"Ucret_Turleri_\"&yil_1&\"_\"&LEFT(ay_1,1)&\"[\" & E$4 & \"]\"),\n   MATCH(\n      secili_params_ucret_turleri_1[[#This Row],[indx]],\n      INDIRECT(\"Ucret_Turleri_\"&yil_1&\"_\"&LEFT(ay_1,1)&\"[indx]\"),\n      0\n   )\n)","v":13002.9},{"$f":"INDEX(\n   INDIRECT(\"Ucret_Turleri_\"&yil_1&\"_\"&LEFT(ay_1,1)&\"[\" & F$4 & \"]\"),\n   MATCH(\n      secili_params_ucret_turleri_1[[#This Row],[indx]],\n      INDIRECT(\"Ucret_Turleri_\"&yil_1&\"_\"&LEFT(ay_1,1)&\"[indx]\"),\n      0\n   )\n)","v":433.43},{"$f":"INDEX(\n   INDIRECT(\"Ucret_Turleri_\"&yil_1&\"_\"&LEFT(ay_1,1)&\"[\" & G$4 & \"]\"),\n   MATCH(\n      secili_params_ucret_turleri_1[[#This Row],[indx]],\n      INDIRECT(\"Ucret_Turleri_\"&yil_1&\"_\"&LEFT(ay_1,1)&\"[indx]\"),\n      0\n   )\n)","v":57.790666666666667}]
[null,null,27,{"$f":"INDEX(\n   INDIRECT(\"Ucret_Turleri_\"&yil_1&\"_\"&LEFT(ay_1,1)&\"[\" & D$4 & \"]\"),\n   MATCH(\n      secili_params_ucret_turleri_1[[#This Row],[indx]],\n      INDIRECT(\"Ucret_Turleri_\"&yil_1&\"_\"&LEFT(ay_1,1)&\"[indx]\"),\n      0\n   )\n)","v":"İş Göremezlik Ödeneği Yatarak Tedavi – Üst Limit"},{"$f":"INDEX(\n   INDIRECT(\"Ucret_Turleri_\"&yil_1&\"_\"&LEFT(ay_1,1)&\"[\" & E$4 & \"]\"),\n   MATCH(\n      secili_params_ucret_turleri_1[[#This Row],[indx]],\n      INDIRECT(\"Ucret_Turleri_\"&yil_1&\"_\"&LEFT(ay_1,1)&\"[indx]\"),\n      0\n   )\n)","v":97520.7},{"$f":"INDEX(\n   INDIRECT(\"Ucret_Turleri_\"&yil_1&\"_\"&LEFT(ay_1,1)&\"[\" & F$4 & \"]\"),\n   MATCH(\n      secili_params_ucret_turleri_1[[#This Row],[indx]],\n      INDIRECT(\"Ucret_Turleri_\"&yil_1&\"_\"&LEFT(ay_1,1)&\"[indx]\"),\n      0\n   )\n)","v":3250.69},{"$f":"INDEX(\n   INDIRECT(\"Ucret_Turleri_\"&yil_1&\"_\"&LEFT(ay_1,1)&\"[\" & G$4 & \"]\"),\n   MATCH(\n      secili_params_ucret_turleri_1[[#This Row],[indx]],\n      INDIRECT(\"Ucret_Turleri_\"&yil_1&\"_\"&LEFT(ay_1,1)&\"[indx]\"),\n      0\n   )\n)","v":433.42533333333336}]
[null,null,28,{"$f":"INDEX(\n   INDIRECT(\"Ucret_Turleri_\"&yil_1&\"_\"&LEFT(ay_1,1)&\"[\" & D$4 & \"]\"),\n   MATCH(\n      secili_params_ucret_turleri_1[[#This Row],[indx]],\n      INDIRECT(\"Ucret_Turleri_\"&yil_1&\"_\"&LEFT(ay_1,1)&\"[indx]\"),\n      0\n   )\n)","v":"Yarım Çalışma Ödeneği"},{"$f":"INDEX(\n   INDIRECT(\"Ucret_Turleri_\"&yil_1&\"_\"&LEFT(ay_1,1)&\"[\" & E$4 & \"]\"),\n   MATCH(\n      secili_params_ucret_turleri_1[[#This Row],[indx]],\n      INDIRECT(\"Ucret_Turleri_\"&yil_1&\"_\"&LEFT(ay_1,1)&\"[indx]\"),\n      0\n   )\n)","v":860.27},{"$f":"INDEX(\n   INDIRECT(\"Ucret_Turleri_\"&yil_1&\"_\"&LEFT(ay_1,1)&\"[\" & F$4 & \"]\"),\n   MATCH(\n      secili_params_ucret_turleri_1[[#This Row],[indx]],\n      INDIRECT(\"Ucret_Turleri_\"&yil_1&\"_\"&LEFT(ay_1,1)&\"[indx]\"),\n      0\n   )\n)","v":28.675666666666665},{"$f":"INDEX(\n   INDIRECT(\"Ucret_Turleri_\"&yil_1&\"_\"&LEFT(ay_1,1)&\"[\" & G$4 & \"]\"),\n   MATCH(\n      secili_params_ucret_turleri_1[[#This Row],[indx]],\n      INDIRECT(\"Ucret_Turleri_\"&yil_1&\"_\"&LEFT(ay_1,1)&\"[indx]\"),\n      0\n   )\n)","v":3.8234222222222218}]
[null,null,29,{"$f":"INDEX(\n   INDIRECT(\"Ucret_Turleri_\"&yil_1&\"_\"&LEFT(ay_1,1)&\"[\" & D$4 & \"]\"),\n   MATCH(\n      secili_params_ucret_turleri_1[[#This Row],[indx]],\n      INDIRECT(\"Ucret_Turleri_\"&yil_1&\"_\"&LEFT(ay_1,1)&\"[indx]\"),\n      0\n   )\n)","v":{"$error":"#N/A"}},{"$f":"INDEX(\n   INDIRECT(\"Ucret_Turleri_\"&yil_1&\"_\"&LEFT(ay_1,1)&\"[\" & E$4 & \"]\"),\n   MATCH(\n      secili_params_ucret_turleri_1[[#This Row],[indx]],\n      INDIRECT(\"Ucret_Turleri_\"&yil_1&\"_\"&LEFT(ay_1,1)&\"[indx]\"),\n      0\n   )\n)","v":{"$error":"#N/A"}},{"$f":"INDEX(\n   INDIRECT(\"Ucret_Turleri_\"&yil_1&\"_\"&LEFT(ay_1,1)&\"[\" & F$4 & \"]\"),\n   MATCH(\n      secili_params_ucret_turleri_1[[#This Row],[indx]],\n      INDIRECT(\"Ucret_Turleri_\"&yil_1&\"_\"&LEFT(ay_1,1)&\"[indx]\"),\n      0\n   )\n)","v":{"$error":"#N/A"}},{"$f":"INDEX(\n   INDIRECT(\"Ucret_Turleri_\"&yil_1&\"_\"&LEFT(ay_1,1)&\"[\" & G$4 & \"]\"),\n   MATCH(\n      secili_params_ucret_turleri_1[[#This Row],[indx]],\n      INDIRECT(\"Ucret_Turleri_\"&yil_1&\"_\"&LEFT(ay_1,1)&\"[indx]\"),\n      0\n   )\n)","v":{"$error":"#N/A"}}]
[null,null,30,{"$f":"INDEX(\n   INDIRECT(\"Ucret_Turleri_\"&yil_1&\"_\"&LEFT(ay_1,1)&\"[\" & D$4 & \"]\"),\n   MATCH(\n      secili_params_ucret_turleri_1[[#This Row],[indx]],\n      INDIRECT(\"Ucret_Turleri_\"&yil_1&\"_\"&LEFT(ay_1,1)&\"[indx]\"),\n      0\n   )\n)","v":{"$error":"#N/A"}},{"$f":"INDEX(\n   INDIRECT(\"Ucret_Turleri_\"&yil_1&\"_\"&LEFT(ay_1,1)&\"[\" & E$4 & \"]\"),\n   MATCH(\n      secili_params_ucret_turleri_1[[#This Row],[indx]],\n      INDIRECT(\"Ucret_Turleri_\"&yil_1&\"_\"&LEFT(ay_1,1)&\"[indx]\"),\n      0\n   )\n)","v":{"$error":"#N/A"}},{"$f":"INDEX(\n   INDIRECT(\"Ucret_Turleri_\"&yil_1&\"_\"&LEFT(ay_1,1)&\"[\" & F$4 & \"]\"),\n   MATCH(\n      secili_params_ucret_turleri_1[[#This Row],[indx]],\n      INDIRECT(\"Ucret_Turleri_\"&yil_1&\"_\"&LEFT(ay_1,1)&\"[indx]\"),\n      0\n   )\n)","v":{"$error":"#N/A"}},{"$f":"INDEX(\n   INDIRECT(\"Ucret_Turleri_\"&yil_1&\"_\"&LEFT(ay_1,1)&\"[\" & G$4 & \"]\"),\n   MATCH(\n      secili_params_ucret_turleri_1[[#This Row],[indx]],\n      INDIRECT(\"Ucret_Turleri_\"&yil_1&\"_\"&LEFT(ay_1,1)&\"[indx]\"),\n      0\n   )\n)","v":{"$error":"#N/A"}}]
[null,null,31,{"$f":"INDEX(\n   INDIRECT(\"Ucret_Turleri_\"&yil_1&\"_\"&LEFT(ay_1,1)&\"[\" & D$4 & \"]\"),\n   MATCH(\n      secili_params_ucret_turleri_1[[#This Row],[indx]],\n      INDIRECT(\"Ucret_Turleri_\"&yil_1&\"_\"&LEFT(ay_1,1)&\"[indx]\"),\n      0\n   )\n)","v":{"$error":"#N/A"}},{"$f":"INDEX(\n   INDIRECT(\"Ucret_Turleri_\"&yil_1&\"_\"&LEFT(ay_1,1)&\"[\" & E$4 & \"]\"),\n   MATCH(\n      secili_params_ucret_turleri_1[[#This Row],[indx]],\n      INDIRECT(\"Ucret_Turleri_\"&yil_1&\"_\"&LEFT(ay_1,1)&\"[indx]\"),\n      0\n   )\n)","v":{"$error":"#N/A"}},{"$f":"INDEX(\n   INDIRECT(\"Ucret_Turleri_\"&yil_1&\"_\"&LEFT(ay_1,1)&\"[\" & F$4 & \"]\"),\n   MATCH(\n      secili_params_ucret_turleri_1[[#This Row],[indx]],\n      INDIRECT(\"Ucret_Turleri_\"&yil_1&\"_\"&LEFT(ay_1,1)&\"[indx]\"),\n      0\n   )\n)","v":{"$error":"#N/A"}},{"$f":"INDEX(\n   INDIRECT(\"Ucret_Turleri_\"&yil_1&\"_\"&LEFT(ay_1,1)&\"[\" & G$4 & \"]\"),\n   MATCH(\n      secili_params_ucret_turleri_1[[#This Row],[indx]],\n      INDIRECT(\"Ucret_Turleri_\"&yil_1&\"_\"&LEFT(ay_1,1)&\"[indx]\"),\n      0\n   )\n)","v":{"$error":"#N/A"}}]
[null,null,32,{"$f":"INDEX(\n   INDIRECT(\"Ucret_Turleri_\"&yil_1&\"_\"&LEFT(ay_1,1)&\"[\" & D$4 & \"]\"),\n   MATCH(\n      secili_params_ucret_turleri_1[[#This Row],[indx]],\n      INDIRECT(\"Ucret_Turleri_\"&yil_1&\"_\"&LEFT(ay_1,1)&\"[indx]\"),\n      0\n   )\n)","v":{"$error":"#N/A"}},{"$f":"INDEX(\n   INDIRECT(\"Ucret_Turleri_\"&yil_1&\"_\"&LEFT(ay_1,1)&\"[\" & E$4 & \"]\"),\n   MATCH(\n      secili_params_ucret_turleri_1[[#This Row],[indx]],\n      INDIRECT(\"Ucret_Turleri_\"&yil_1&\"_\"&LEFT(ay_1,1)&\"[indx]\"),\n      0\n   )\n)","v":{"$error":"#N/A"}},{"$f":"INDEX(\n   INDIRECT(\"Ucret_Turleri_\"&yil_1&\"_\"&LEFT(ay_1,1)&\"[\" & F$4 & \"]\"),\n   MATCH(\n      secili_params_ucret_turleri_1[[#This Row],[indx]],\n      INDIRECT(\"Ucret_Turleri_\"&yil_1&\"_\"&LEFT(ay_1,1)&\"[indx]\"),\n      0\n   )\n)","v":{"$error":"#N/A"}},{"$f":"INDEX(\n   INDIRECT(\"Ucret_Turleri_\"&yil_1&\"_\"&LEFT(ay_1,1)&\"[\" & G$4 & \"]\"),\n   MATCH(\n      secili_params_ucret_turleri_1[[#This Row],[indx]],\n      INDIRECT(\"Ucret_Turleri_\"&yil_1&\"_\"&LEFT(ay_1,1)&\"[indx]\"),\n      0\n   )\n)","v":{"$error":"#N/A"}}]
[null,null,33,{"$f":"INDEX(\n   INDIRECT(\"Ucret_Turleri_\"&yil_1&\"_\"&LEFT(ay_1,1)&\"[\" & D$4 & \"]\"),\n   MATCH(\n      secili_params_ucret_turleri_1[[#This Row],[indx]],\n      INDIRECT(\"Ucret_Turleri_\"&yil_1&\"_\"&LEFT(ay_1,1)&\"[indx]\"),\n      0\n   )\n)","v":{"$error":"#N/A"}},{"$f":"INDEX(\n   INDIRECT(\"Ucret_Turleri_\"&yil_1&\"_\"&LEFT(ay_1,1)&\"[\" & E$4 & \"]\"),\n   MATCH(\n      secili_params_ucret_turleri_1[[#This Row],[indx]],\n      INDIRECT(\"Ucret_Turleri_\"&yil_1&\"_\"&LEFT(ay_1,1)&\"[indx]\"),\n      0\n   )\n)","v":{"$error":"#N/A"}},{"$f":"INDEX(\n   INDIRECT(\"Ucret_Turleri_\"&yil_1&\"_\"&LEFT(ay_1,1)&\"[\" & F$4 & \"]\"),\n   MATCH(\n      secili_params_ucret_turleri_1[[#This Row],[indx]],\n      INDIRECT(\"Ucret_Turleri_\"&yil_1&\"_\"&LEFT(ay_1,1)&\"[indx]\"),\n      0\n   )\n)","v":{"$error":"#N/A"}},{"$f":"INDEX(\n   INDIRECT(\"Ucret_Turleri_\"&yil_1&\"_\"&LEFT(ay_1,1)&\"[\" & G$4 & \"]\"),\n   MATCH(\n      secili_params_ucret_turleri_1[[#This Row],[indx]],\n      INDIRECT(\"Ucret_Turleri_\"&yil_1&\"_\"&LEFT(ay_1,1)&\"[indx]\"),\n      0\n   )\n)","v":{"$error":"#N/A"}}]

{"sheet":"params_BORD_2","index":4,"n_rows":37,"n_cols":13,"rows_kept":37,"cut":false,"hidden":true,"merged":[]}
[{"$f":"DATE(B2,MATCH(UPPER(C2),{\"OCAK\",\"ŞUBAT\",\"MART\",\"NİSAN\",\"MAYIS\",\"HAZİRAN\",\"TEMMUZ\",\"AĞUSTOS\",\"EYLÜL\",\"EKİM\",\"KASIM\",\"ARALIK\"},0),1)","v":{"$error":"#N/A"}}]
[{"$f":"DATE(YEAR(A1),MONTH(A1)+1,0)","v":{"$error":"#N/A"}},{"$f":"sm_b!B2","v":2025},"2. Dönem"]
[]
[null,null,"indx","Ücret Türü","Aylık","Günlük","Saatlik",null,"indx","VERGİ","DİLİMLERİ","VERGİ ORANLARI","VERGİ KESİNTİSİ"]
[null,null,1,{"$f":"INDEX(\n   INDIRECT(\"Ucret_Turleri_\"&yil_1&\"_\"&LEFT(ay_2,1)&\"[\" & D$4 & \"]\"),\n   MATCH(\n      secili_params_ucret_turleri_2[[#This Row],[indx]],\n      INDIRECT(\"Ucret_Turleri_\"&yil_1&\"_\"&LEFT(ay_2,1)&\"[indx]\"),\n      0\n   )\n)","v":"Asgari Brüt"},{"$f":"INDEX(\n   INDIRECT(\"Ucret_Turleri_\"&yil_1&\"_\"&LEFT(ay_2,1)&\"[\" & E$4 & \"]\"),\n   MATCH(\n      secili_params_ucret_turleri_2[[#This Row],[indx]],\n      INDIRECT(\"Ucret_Turleri_\"&yil_1&\"_\"&LEFT(ay_2,1)&\"[indx]\"),\n      0\n   )\n)","v":26005.5},{"$f":"INDEX(\n   INDIRECT(\"Ucret_Turleri_\"&yil_1&\"_\"&LEFT(ay_2,1)&\"[\" & F$4 & \"]\"),\n   MATCH(\n      secili_params_ucret_turleri_2[[#This Row],[indx]],\n      INDIRECT(\"Ucret_Turleri_\"&yil_1&\"_\"&LEFT(ay_2,1)&\"[indx]\"),\n      0\n   )\n)","v":866.85},{"$f":"INDEX(\n   INDIRECT(\"Ucret_Turleri_\"&yil_1&\"_\"&LEFT(ay_2,1)&\"[\" & G$4 & \"]\"),\n   MATCH(\n      secili_params_ucret_turleri_2[[#This Row],[indx]],\n      INDIRECT(\"Ucret_Turleri_\"&yil_1&\"_\"&LEFT(ay_2,1)&\"[indx]\"),\n      0\n   )\n)","v":115.58},null,1,{"$f":"INDEX(\n   INDIRECT(\"Vergi_Dilimleri_\"&yil_1&\"_\"&LEFT(ay_2,1)&\"[\" & J$4 & \"]\"),\n   MATCH(\n      secili_params_vergi_dilimleri_2[[#This Row],[indx]],\n      INDIRECT(\"Vergi_Dilimleri_\"&yil_1&\"_\"&LEFT(ay_2,1)&\"[indx]\"),\n      0\n   )\n)","v":0},{"$f":"INDEX(\n   INDIRECT(\"Vergi_Dilimleri_\"&yil_1&\"_\"&LEFT(ay_2,1)&\"[\" & K$4 & \"]\"),\n   MATCH(\n      secili_params_vergi_dilimleri_2[[#This Row],[indx]],\n      INDIRECT(\"Vergi_Dilimleri_\"&yil_1&\"_\"&LEFT(ay_2,1)&\"[indx]\"),\n      0\n   )\n)","v":158000},{"$f":"INDEX(\n   INDIRECT(\"Vergi_Dilimleri_\"&yil_1&\"_\"&LEFT(ay_2,1)&\"[\" & L$4 & \"]\"),\n   MATCH(\n      secili_params_vergi_dilimleri_2[[#This Row],[indx]],\n      INDIRECT(\"Vergi_Dilimleri_\"&yil_1&\"_\"&LEFT(ay_2,1)&\"[indx]\"),\n      0\n   )\n)","v":0.15},{"$f":"INDEX(\n   INDIRECT(\"Vergi_Dilimleri_\"&yil_1&\"_\"&LEFT(ay_2,1)&\"[\" & M$4 & \"]\"),\n   MATCH(\n      secili_params_vergi_dilimleri_2[[#This Row],[indx]],\n      INDIRECT(\"Vergi_Dilimleri_\"&yil_1&\"_\"&LEFT(ay_2,1)&\"[indx]\"),\n      0\n   )\n)","v":23700}]
[null,null,{"$f":"C5+1","v":2},{"$f":"INDEX(\n   INDIRECT(\"Ucret_Turleri_\"&yil_1&\"_\"&LEFT(ay_2,1)&\"[\" & D$4 & \"]\"),\n   MATCH(\n      secili_params_ucret_turleri_2[[#This Row],[indx]],\n      INDIRECT(\"Ucret_Turleri_\"&yil_1&\"_\"&LEFT(ay_2,1)&\"[indx]\"),\n      0\n   )\n)","v":"SGK Tavan"},{"$f":"INDEX(\n   INDIRECT(\"Ucret_Turleri_\"&yil_1&\"_\"&LEFT(ay_2,1)&\"[\" & E$4 & \"]\"),\n   MATCH(\n      secili_params_ucret_turleri_2[[#This Row],[indx]],\n      INDIRECT(\"Ucret_Turleri_\"&yil_1&\"_\"&LEFT(ay_2,1)&\"[indx]\"),\n      0\n   )\n)","v":195041.4},{"$f":"INDEX(\n   INDIRECT(\"Ucret_Turleri_\"&yil_1&\"_\"&LEFT(ay_2,1)&\"[\" & F$4 & \"]\"),\n   MATCH(\n      secili_params_ucret_turleri_2[[#This Row],[indx]],\n      INDIRECT(\"Ucret_Turleri_\"&yil_1&\"_\"&LEFT(ay_2,1)&\"[indx]\"),\n      0\n   )\n)","v":6501.38},{"$f":"INDEX(\n   INDIRECT(\"Ucret_Turleri_\"&yil_1&\"_\"&LEFT(ay_2,1)&\"[\" & G$4 & \"]\"),\n   MATCH(\n      secili_params_ucret_turleri_2[[#This Row],[indx]],\n      INDIRECT(\"Ucret_Turleri_\"&yil_1&\"_\"&LEFT(ay_2,1)&\"[indx]\"),\n      0\n   )\n)","v":866.85066666666671},null,{"$f":"I5+1","v":2},{"$f":"INDEX(\n   INDIRECT(\"Vergi_Dilimleri_\"&yil_1&\"_\"&LEFT(ay_2,1)&\"[\" & J$4 & \"]\"),\n   MATCH(\n      secili_params_vergi_dilimleri_2[[#This Row],[indx]],\n      INDIRECT(\"Vergi_Dilimleri_\"&yil_1&\"_\"&LEFT(ay_2,1)&\"[indx]\"),\n      0\n   )\n)","v":158000.01},{"$f":"INDEX(\n   INDIRECT(\"Vergi_Dilimleri_\"&yil_1&\"_\"&LEFT(ay_2,1)&\"[\" & K$4 & \"]\"),\n   MATCH(\n      secili_params_vergi_dilimleri_2[[#This Row],[indx]],\n      INDIRECT(\"Vergi_Dilimleri_\"&yil_1&\"_\"&LEFT(ay_2,1)&\"[indx]\"),\n      0\n   )\n)","v":330000},{"$f":"INDEX(\n   INDIRECT(\"Vergi_Dilimleri_\"&yil_1&\"_\"&LEFT(ay_2,1)&\"[\" & L$4 & \"]\"),\n   MATCH(\n      secili_params_vergi_dilimleri_2[[#This Row],[indx]],\n      INDIRECT(\"Vergi_Dilimleri_\"&yil_1&\"_\"&LEFT(ay_2,1)&\"[indx]\"),\n      0\n   )\n)","v":0.2},{"$f":"INDEX(\n   INDIRECT(\"Vergi_Dilimleri_\"&yil_1&\"_\"&LEFT(ay_2,1)&\"[\" & M$4 & \"]\"),\n   MATCH(\n      secili_params_vergi_dilimleri_2[[#This Row],[indx]],\n      INDIRECT(\"Vergi_Dilimleri_\"&yil_1&\"_\"&LEFT(ay_2,1)&\"[indx]\"),\n      0\n   )\n)","v":66000}]
[null,null,{"$f":"C6+1","v":3},{"$f":"INDEX(\n   INDIRECT(\"Ucret_Turleri_\"&yil_1&\"_\"&LEFT(ay_2,1)&\"[\" & D$4 & \"]\"),\n   MATCH(\n      secili_params_ucret_turleri_2[[#This Row],[indx]],\n      INDIRECT(\"Ucret_Turleri_\"&yil_1&\"_\"&LEFT(ay_2,1)&\"[indx]\"),\n      0\n   )\n)","v":"Net Ücret"},{"$f":"INDEX(\n   INDIRECT(\"Ucret_Turleri_\"&yil_1&\"_\"&LEFT(ay_2,1)&\"[\" & E$4 & \"]\"),\n   MATCH(\n      secili_params_ucret_turleri_2[[#This Row],[indx]],\n      INDIRECT(\"Ucret_Turleri_\"&yil_1&\"_\"&LEFT(ay_2,1)&\"[indx]\"),\n      0\n   )\n)","v":22104.67},{"$f":"INDEX(\n   INDIRECT(\"Ucret_Turleri_\"&yil_1&\"_\"&LEFT(ay_2,1)&\"[\" & F$4 & \"]\"),\n   MATCH(\n      secili_params_ucret_turleri_2[[#This Row],[indx]],\n      INDIRECT(\"Ucret_Turleri_\"&yil_1&\"_\"&LEFT(ay_2,1)&\"[indx]\"),\n      0\n   )\n)","v":736.82233333333329},{"$f":"INDEX(\n   INDIRECT(\"Ucret_Turleri_\"&yil_1&\"_\"&LEFT(ay_2,1)&\"[\" & G$4 & \"]\"),\n   MATCH(\n      secili_params_ucret_turleri_2[[#This Row],[indx]],\n      INDIRECT(\"Ucret_Turleri_\"&yil_1&\"_\"&LEFT(ay_2,1)&\"[indx]\"),\n      0\n   )\n)","v":98.242977777777767},null,{"$f":"I6+1","v":3},{"$f":"INDEX(\n   INDIRECT(\"Vergi_Dilimleri_\"&yil_1&\"_\"&LEFT(ay_2,1)&\"[\" & J$4 & \"]\"),\n   MATCH(\n      secili_params_vergi_dilimleri_2[[#This Row],[indx]],\n      INDIRECT(\"Vergi_Dilimleri_\"&yil_1&\"_\"&LEFT(ay_2,1)&\"[indx]\"),\n      0\n   )\n)","v":330000.01},{"$f":"INDEX(\n   INDIRECT(\"Vergi_Dilimleri_\"&yil_1&\"_\"&LEFT(ay_2,1)&\"[\" & K$4 & \"]\"),\n   MATCH(\n      secili_params_vergi_dilimleri_2[[#This Row],[indx]],\n      INDIRECT(\"Vergi_Dilimleri_\"&yil_1&\"_\"&LEFT(ay_2,1)&\"[indx]\"),\n      0\n   )\n)","v":1200000},{"$f":"INDEX(\n   INDIRECT(\"Vergi_Dilimleri_\"&yil_1&\"_\"&LEFT(ay_2,1)&\"[\" & L$4 & \"]\"),\n   MATCH(\n      secili_params_vergi_dilimleri_2[[#This Row],[indx]],\n      INDIRECT(\"Vergi_Dilimleri_\"&yil_1&\"_\"&LEFT(ay_2,1)&\"[indx]\"),\n      0\n   )\n)","v":0.27},{"$f":"INDEX(\n   INDIRECT(\"Vergi_Dilimleri_\"&yil_1&\"_\"&LEFT(ay_2,1)&\"[\" & M$4 & \"]\"),\n   MATCH(\n      secili_params_vergi_dilimleri_2[[#This Row],[indx]],\n      INDIRECT(\"Vergi_Dilimleri_\"&yil_1&\"_\"&LEFT(ay_2,1)&\"[indx]\"),\n      0\n   )\n)","v":324000}]
[null,null,4,{"$f":"INDEX(\n   INDIRECT(\"Ucret_Turleri_\"&yil_1&\"_\"&LEFT(ay_2,1)&\"[\" & D$4 & \"]\"),\n   MATCH(\n      secili_params_ucret_turleri_2[[#This Row],[indx]],\n      INDIRECT(\"Ucret_Turleri_\"&yil_1&\"_\"&LEFT(ay_2,1)&\"[indx]\"),\n      0\n   )\n)","v":"Emekli Net Ücret (Yıllık Ortalama)"},{"$f":"INDEX(\n   INDIRECT(\"Ucret_Turleri_\"&yil_1&\"_\"&LEFT(ay_2,1)&\"[\" & E$4 & \"]\"),\n   MATCH(\n      secili_params_ucret_turleri_2[[#This Row],[indx]],\n      INDIRECT(\"Ucret_Turleri_\"&yil_1&\"_\"&LEFT(ay_2,1)&\"[indx]\"),\n      0\n   )\n)","v":23665.01},{"$f":"INDEX(\n   INDIRECT(\"Ucret_Turleri_\"&yil_1&\"_\"&LEFT(ay_2,1)&\"[\" & F$4 & \"]\"),\n   MATCH(\n      secili_params_ucret_turleri_2[[#This Row],[indx]],\n      INDIRECT(\"Ucret_Turleri_\"&yil_1&\"_\"&LEFT(ay_2,1)&\"[indx]\"),\n      0\n   )\n)","v":788.83366666666666},{"$f":"INDEX(\n   INDIRECT(\"Ucret_Turleri_\"&yil_1&\"_\"&LEFT(ay_2,1)&\"[\" & G$4 & \"]\"),\n   MATCH(\n      secili_params_ucret_turleri_2[[#This Row],[indx]],\n      INDIRECT(\"Ucret_Turleri_\"&yil_1&\"_\"&LEFT(ay_2,1)&\"[indx]\"),\n      0\n   )\n)","v":105.17782222222222},null,4,{"$f":"INDEX(\n   INDIRECT(\"Vergi_Dilimleri_\"&yil_1&\"_\"&LEFT(ay_2,1)&\"[\" & J$4 & \"]\"),\n   MATCH(\n      secili_params_vergi_dilimleri_2[[#This Row],[indx]],\n      INDIRECT(\"Vergi_Dilimleri_\"&yil_1&\"_\"&LEFT(ay_2,1)&\"[indx]\"),\n      0\n   )\n)","v":1200000.01},{"$f":"INDEX(\n   INDIRECT(\"Vergi_Dilimleri_\"&yil_1&\"_\"&LEFT(ay_2,1)&\"[\" & K$4 & \"]\"),\n   MATCH(\n      secili_params_vergi_dilimleri_2[[#This Row],[indx]],\n      INDIRECT(\"Vergi_Dilimleri_\"&yil_1&\"_\"&LEFT(ay_2,1)&\"[indx]\"),\n      0\n   )\n)","v":4300000},{"$f":"INDEX(\n   INDIRECT(\"Vergi_Dilimleri_\"&yil_1&\"_\"&LEFT(ay_2,1)&\"[\" & L$4 & \"]\"),\n   MATCH(\n      secili_params_vergi_dilimleri_2[[#This Row],[indx]],\n      INDIRECT(\"Vergi_Dilimleri_\"&yil_1&\"_\"&LEFT(ay_2,1)&\"[indx]\"),\n      0\n   )\n)","v":0.35},{"$f":"INDEX(\n   INDIRECT(\"Vergi_Dilimleri_\"&yil_1&\"_\"&LEFT(ay_2,1)&\"[\" & M$4 & \"]\"),\n   MATCH(\n      secili_params_vergi_dilimleri_2[[#This Row],[indx]],\n      INDIRECT(\"Vergi_Dilimleri_\"&yil_1&\"_\"&LEFT(ay_2,1)&\"[indx]\"),\n      0\n   )\n)","v":1505000}]
[null,null,5,{"$f":"INDEX(\n   INDIRECT(\"Ucret_Turleri_\"&yil_1&\"_\"&LEFT(ay_2,1)&\"[\" & D$4 & \"]\"),\n   MATCH(\n      secili_params_ucret_turleri_2[[#This Row],[indx]],\n      INDIRECT(\"Ucret_Turleri_\"&yil_1&\"_\"&LEFT(ay_2,1)&\"[indx]\"),\n      0\n   )\n)","v":"Emekli Engelli Net Ücret (Yıllık Ortalama)"},{"$f":"INDEX(\n   INDIRECT(\"Ucret_Turleri_\"&yil_1&\"_\"&LEFT(ay_2,1)&\"[\" & E$4 & \"]\"),\n   MATCH(\n      secili_params_ucret_turleri_2[[#This Row],[indx]],\n      INDIRECT(\"Ucret_Turleri_\"&yil_1&\"_\"&LEFT(ay_2,1)&\"[indx]\"),\n      0\n   )\n)","v":24055.09},{"$f":"INDEX(\n   INDIRECT(\"Ucret_Turleri_\"&yil_1&\"_\"&LEFT(ay_2,1)&\"[\" & F$4 & \"]\"),\n   MATCH(\n      secili_params_ucret_turleri_2[[#This Row],[indx]],\n      INDIRECT(\"Ucret_Turleri_\"&yil_1&\"_\"&LEFT(ay_2,1)&\"[indx]\"),\n      0\n   )\n)","v":801.8363333333333},{"$f":"INDEX(\n   INDIRECT(\"Ucret_Turleri_\"&yil_1&\"_\"&LEFT(ay_2,1)&\"[\" & G$4 & \"]\"),\n   MATCH(\n      secili_params_ucret_turleri_2[[#This Row],[indx]],\n      INDIRECT(\"Ucret_Turleri_\"&yil_1&\"_\"&LEFT(ay_2,1)&\"[indx]\"),\n      0\n   )\n)","v":106.91151111111111},null,5,{"$f":"INDEX(\n   INDIRECT(\"Vergi_Dilimleri_\"&yil_1&\"_\"&LEFT(ay_2,1)&\"[\" & J$4 & \"]\"),\n   MATCH(\n      secili_params_vergi_dilimleri_2[[#This Row],[indx]],\n      INDIRECT(\"Vergi_Dilimleri_\"&yil_1&\"_\"&LEFT(ay_2,1)&\"[indx]\"),\n      0\n   )\n)","v":4300000.01},{"$f":"INDEX(\n   INDIRECT(\"Vergi_Dilimleri_\"&yil_1&\"_\"&LEFT(ay_2,1)&\"[\" & K$4 & \"]\"),\n   MATCH(\n      secili_params_vergi_dilimleri_2[[#This Row],[indx]],\n      INDIRECT(\"Vergi_Dilimleri_\"&yil_1&\"_\"&LEFT(ay_2,1)&\"[indx]\"),\n      0\n   )\n)","v":9999999},{"$f":"INDEX(\n   INDIRECT(\"Vergi_Dilimleri_\"&yil_1&\"_\"&LEFT(ay_2,1)&\"[\" & L$4 & \"]\"),\n   MATCH(\n      secili_params_vergi_dilimleri_2[[#This Row],[indx]],\n      INDIRECT(\"Vergi_Dilimleri_\"&yil_1&\"_\"&LEFT(ay_2,1)&\"[indx]\"),\n      0\n   )\n)","v":0.4},{"$f":"INDEX(\n   INDIRECT(\"Vergi_Dilimleri_\"&yil_1&\"_\"&LEFT(ay_2,1)&\"[\" & M$4 & \"]\"),\n   MATCH(\n      secili_params_vergi_dilimleri_2[[#This Row],[indx]],\n      INDIRECT(\"Vergi_Dilimleri_\"&yil_1&\"_\"&LEFT(ay_2,1)&\"[indx]\"),\n      0\n   )\n)","v":3999999.6}]
[null,null,6,{"$f":"INDEX(\n   INDIRECT(\"Ucret_Turleri_\"&yil_1&\"_\"&LEFT(ay_2,1)&\"[\" & D$4 & \"]\"),\n   MATCH(\n      secili_params_ucret_turleri_2[[#This Row],[indx]],\n      INDIRECT(\"Ucret_Turleri_\"&yil_1&\"_\"&LEFT(ay_2,1)&\"[indx]\"),\n      0\n   )\n)","v":"Kıdem Tazminanı Tavanı 2. Dönem"},{"$f":"INDEX(\n   INDIRECT(\"Ucret_Turleri_\"&yil_1&\"_\"&LEFT(ay_2,1)&\"[\" & E$4 & \"]\"),\n   MATCH(\n      secili_params_ucret_turleri_2[[#This Row],[indx]],\n      INDIRECT(\"Ucret_Turleri_\"&yil_1&\"_\"&LEFT(ay_2,1)&\"[indx]\"),\n      0\n   )\n)","v":53919.68},{"$f":"INDEX(\n   INDIRECT(\"Ucret_Turleri_\"&yil_1&\"_\"&LEFT(ay_2,1)&\"[\" & F$4 & \"]\"),\n   MATCH(\n      secili_params_ucret_turleri_2[[#This Row],[indx]],\n      INDIRECT(\"Ucret_Turleri_\"&yil_1&\"_\"&LEFT(ay_2,1)&\"[indx]\"),\n      0\n   )\n)","v":1797.3226666666667},{"$f":"INDEX(\n   INDIRECT(\"Ucret_Turleri_\"&yil_1&\"_\"&LEFT(ay_2,1)&\"[\" & G$4 & \"]\"),\n   MATCH(\n      secili_params_ucret_turleri_2[[#This Row],[indx]],\n      INDIRECT(\"Ucret_Turleri_\"&yil_1&\"_\"&LEFT(ay_2,1)&\"[indx]\"),\n      0\n   )\n)","v":239.64302222222221}]
[null,null,7,{"$f":"INDEX(\n   INDIRECT(\"Ucret_Turleri_\"&yil_1&\"_\"&LEFT(ay_2,1)&\"[\" & D$4 & \"]\"),\n   MATCH(\n      secili_params_ucret_turleri_2[[#This Row],[indx]],\n      INDIRECT(\"Ucret_Turleri_\"&yil_1&\"_\"&LEFT(ay_2,1)&\"[indx]\"),\n      0\n   )\n)","v":"1.DERECE ENGELLİ"},{"$f":"INDEX(\n   INDIRECT(\"Ucret_Turleri_\"&yil_1&\"_\"&LEFT(ay_2,1)&\"[\" & E$4 & \"]\"),\n   MATCH(\n      secili_params_ucret_turleri_2[[#This Row],[indx]],\n      INDIRECT(\"Ucret_Turleri_\"&yil_1&\"_\"&LEFT(ay_2,1)&\"[indx]\"),\n      0\n   )\n)","v":9900},{"$f":"INDEX(\n   INDIRECT(\"Ucret_Turleri_\"&yil_1&\"_\"&LEFT(ay_2,1)&\"[\" & F$4 & \"]\"),\n   MATCH(\n      secili_params_ucret_turleri_2[[#This Row],[indx]],\n      INDIRECT(\"Ucret_Turleri_\"&yil_1&\"_\"&LEFT(ay_2,1)&\"[indx]\"),\n      0\n   )\n)","v":330},{"$f":"INDEX(\n   INDIRECT(\"Ucret_Turleri_\"&yil_1&\"_\"&LEFT(ay_2,1)&\"[\" & G$4 & \"]\"),\n   MATCH(\n      secili_params_ucret_turleri_2[[#This Row],[indx]],\n      INDIRECT(\"Ucret_Turleri_\"&yil_1&\"_\"&LEFT(ay_2,1)&\"[indx]\"),\n      0\n   )\n)","v":44},null,"indx","Sigorta Kolu","İşveren Payı","Çalışan Payı","Toplam"]
[null,null,8,{"$f":"INDEX(\n   INDIRECT(\"Ucret_Turleri_\"&yil_1&\"_\"&LEFT(ay_2,1)&\"[\" & D$4 & \"]\"),\n   MATCH(\n      secili_params_ucret_turleri_2[[#This Row],[indx]],\n      INDIRECT(\"Ucret_Turleri_\"&yil_1&\"_\"&LEFT(ay_2,1)&\"[indx]\"),\n      0\n   )\n)","v":"2.DERECE ENGELLİ"},{"$f":"INDEX(\n   INDIRECT(\"Ucret_Turleri_\"&yil_1&\"_\"&LEFT(ay_2,1)&\"[\" & E$4 & \"]\"),\n   MATCH(\n      secili_params_ucret_turleri_2[[#This Row],[indx]],\n      INDIRECT(\"Ucret_Turleri_\"&yil_1&\"_\"&LEFT(ay_2,1)&\"[indx]\"),\n      0\n   )\n)","v":5700},{"$f":"INDEX(\n   INDIRECT(\"Ucret_Turleri_\"&yil_1&\"_\"&LEFT(ay_2,1)&\"[\" & F$4 & \"]\"),\n   MATCH(\n      secili_params_ucret_turleri_2[[#This Row],[indx]],\n      INDIRECT(\"Ucret_Turleri_\"&yil_1&\"_\"&LEFT(ay_2,1)&\"[indx]\"),\n      0\n   )\n)","v":190},{"$f":"INDEX(\n   INDIRECT(\"Ucret_Turleri_\"&yil_1&\"_\"&LEFT(ay_2,1)&\"[\" & G$4 & \"]\"),\n   MATCH(\n      secili_params_ucret_turleri_2[[#This Row],[indx]],\n      INDIRECT(\"Ucret_Turleri_\"&yil_1&\"_\"&LEFT(ay_2,1)&\"[indx]\"),\n      0\n   )\n)","v":25.333333333333332},null,1,{"$f":"INDEX(\n   INDIRECT(\"Isveren_prim_oranlari_normal_\"&yil&\"_\"&LEFT(ay,1)&\"[\" & J$11 & \"]\"),\n   MATCH(\n      secili_params_isveren_prim_oranlari_normal_2[[#This Row],[indx]],\n      INDIRECT(\"Isveren_prim_oranlari_normal_\"&yil&\"_\"&LEFT(ay,1)&\"[indx]\"),\n      0\n   )\n)","v":"Malüllük, Yaşlılık ve Ölüm"},{"$f":"INDEX(\n   INDIRECT(\"Isveren_prim_oranlari_normal_\"&yil_1&\"_\"&LEFT(ay_2,1)&\"[\" & K$11 & \"]\"),\n   MATCH(\n      secili_params_isveren_prim_oranlari_normal_2[[#This Row],[indx]],\n      INDIRECT(\"Isveren_prim_oranlari_normal_\"&yil_1&\"_\"&LEFT(ay_2,1)&\"[indx]\"),\n      0\n   )\n)","v":0.11},{"$f":"INDEX(\n   INDIRECT(\"Isveren_prim_oranlari_normal_\"&yil_1&\"_\"&LEFT(ay_2,1)&\"[\" & L$11 & \"]\"),\n   MATCH(\n      secili_params_isveren_prim_oranlari_normal_2[[#This Row],[indx]],\n      INDIRECT(\"Isveren_prim_oranlari_normal_\"&yil_1&\"_\"&LEFT(ay_2,1)&\"[indx]\"),\n      0\n   )\n)","v":0.09},{"$f":"INDEX(\n   INDIRECT(\"Isveren_prim_oranlari_normal_\"&yil_1&\"_\"&LEFT(ay_2,1)&\"[\" & M$11 & \"]\"),\n   MATCH(\n      secili_params_isveren_prim_oranlari_normal_2[[#This Row],[indx]],\n      INDIRECT(\"Isveren_prim_oranlari_normal_\"&yil_1&\"_\"&LEFT(ay_2,1)&\"[indx]\"),\n      0\n   )\n)","v":0.2}]
[null,null,9,{"$f":"INDEX(\n   INDIRECT(\"Ucret_Turleri_\"&yil_1&\"_\"&LEFT(ay_2,1)&\"[\" & D$4 & \"]\"),\n   MATCH(\n      secili_params_ucret_turleri_2[[#This Row],[indx]],\n      INDIRECT(\"Ucret_Turleri_\"&yil_1&\"_\"&LEFT(ay_2,1)&\"[indx]\"),\n      0\n   )\n)","v":"3.DERECE ENGELLİ"},{"$f":"INDEX(\n   INDIRECT(\"Ucret_Turleri_\"&yil_1&\"_\"&LEFT(ay_2,1)&\"[\" & E$4 & \"]\"),\n   MATCH(\n      secili_params_ucret_turleri_2[[#This Row],[indx]],\n      INDIRECT(\"Ucret_Turleri_\"&yil_1&\"_\"&LEFT(ay_2,1)&\"[indx]\"),\n      0\n   )\n)","v":2400},{"$f":"INDEX(\n   INDIRECT(\"Ucret_Turleri_\"&yil_1&\"_\"&LEFT(ay_2,1)&\"[\" & F$4 & \"]\"),\n   MATCH(\n      secili_params_ucret_turleri_2[[#This Row],[indx]],\n      INDIRECT(\"Ucret_Turleri_\"&yil_1&\"_\"&LEFT(ay_2,1)&\"[indx]\"),\n      0\n   )\n)","v":80},{"$f":"INDEX(\n   INDIRECT(\"Ucret_Turleri_\"&yil_1&\"_\"&LEFT(ay_2,1)&\"[\" & G$4 & \"]\"),\n   MATCH(\n      secili_params_ucret_turleri_2[[#This Row],[indx]],\n      INDIRECT(\"Ucret_Turleri_\"&yil_1&\"_\"&LEFT(ay_2,1)&\"[indx]\"),\n      0\n   )\n)","v":10.666666666666666},null,{"$f":"I12+1","v":2},{"$f":"INDEX(\n   INDIRECT(\"Isveren_prim_oranlari_normal_\"&yil&\"_\"&LEFT(ay,1)&\"[\" & J$11 & \"]\"),\n   MATCH(\n      secili_params_isveren_prim_oranlari_normal_2[[#This Row],[indx]],\n      INDIRECT(\"Isveren_prim_oranlari_normal_\"&yil&\"_\"&LEFT(ay,1)&\"[indx]\"),\n      0\n   )\n)","v":"Kısa Vadeli Sigorta Kolları"},{"$f":"INDEX(\n   INDIRECT(\"Isveren_prim_oranlari_normal_\"&yil_1&\"_\"&LEFT(ay_2,1)&\"[\" & K$11 & \"]\"),\n   MATCH(\n      secili_params_isveren_prim_oranlari_normal_2[[#This Row],[indx]],\n      INDIRECT(\"Isveren_prim_oranlari_normal_\"&yil_1&\"_\"&LEFT(ay_2,1)&\"[indx]\"),\n      0\n   )\n)","v":2.2499999999999999E-2},{"$f":"INDEX(\n   INDIRECT(\"Isveren_prim_oranlari_normal_\"&yil_1&\"_\"&LEFT(ay_2,1)&\"[\" & L$11 & \"]\"),\n   MATCH(\n      secili_params_isveren_prim_oranlari_normal_2[[#This Row],[indx]],\n      INDIRECT(\"Isveren_prim_oranlari_normal_\"&yil_1&\"_\"&LEFT(ay_2,1)&\"[indx]\"),\n      0\n   )\n)","v":"-"},{"$f":"INDEX(\n   INDIRECT(\"Isveren_prim_oranlari_normal_\"&yil_1&\"_\"&LEFT(ay_2,1)&\"[\" & M$11 & \"]\"),\n   MATCH(\n      secili_params_isveren_prim_oranlari_normal_2[[#This Row],[indx]],\n      INDIRECT(\"Isveren_prim_oranlari_normal_\"&yil_1&\"_\"&LEFT(ay_2,1)&\"[indx]\"),\n      0\n   )\n)","v":0.02}]
[null,null,10,{"$f":"INDEX(\n   INDIRECT(\"Ucret_Turleri_\"&yil_1&\"_\"&LEFT(ay_2,1)&\"[\" & D$4 & \"]\"),\n   MATCH(\n      secili_params_ucret_turleri_2[[#This Row],[indx]],\n      INDIRECT(\"Ucret_Turleri_\"&yil_1&\"_\"&LEFT(ay_2,1)&\"[indx]\"),\n      0\n   )\n)","v":"Stajyer Ücreti"},{"$f":"INDEX(\n   INDIRECT(\"Ucret_Turleri_\"&yil_1&\"_\"&LEFT(ay_2,1)&\"[\" & E$4 & \"]\"),\n   MATCH(\n      secili_params_ucret_turleri_2[[#This Row],[indx]],\n      INDIRECT(\"Ucret_Turleri_\"&yil_1&\"_\"&LEFT(ay_2,1)&\"[indx]\"),\n      0\n   )\n)","v":6631.4},{"$f":"INDEX(\n   INDIRECT(\"Ucret_Turleri_\"&yil_1&\"_\"&LEFT(ay_2,1)&\"[\" & F$4 & \"]\"),\n   MATCH(\n      secili_params_ucret_turleri_2[[#This Row],[indx]],\n      INDIRECT(\"Ucret_Turleri_\"&yil_1&\"_\"&LEFT(ay_2,1)&\"[indx]\"),\n      0\n   )\n)","v":221.04666666666665},{"$f":"INDEX(\n   INDIRECT(\"Ucret_Turleri_\"&yil_1&\"_\"&LEFT(ay_2,1)&\"[\" & G$4 & \"]\"),\n   MATCH(\n      secili_params_ucret_turleri_2[[#This Row],[indx]],\n      INDIRECT(\"Ucret_Turleri_\"&yil_1&\"_\"&LEFT(ay_2,1)&\"[indx]\"),\n      0\n   )\n)","v":29.472888888888885},null,{"$f":"I13+1","v":3},{"$f":"INDEX(\n   INDIRECT(\"Isveren_prim_oranlari_normal_\"&yil&\"_\"&LEFT(ay,1)&\"[\" & J$11 & \"]\"),\n   MATCH(\n      secili_params_isveren_prim_oranlari_normal_2[[#This Row],[indx]],\n      INDIRECT(\"Isveren_prim_oranlari_normal_\"&yil&\"_\"&LEFT(ay,1)&\"[indx]\"),\n      0\n   )\n)","v":"Genel Sağlık Sigortası"},{"$f":"INDEX(\n   INDIRECT(\"Isveren_prim_oranlari_normal_\"&yil_1&\"_\"&LEFT(ay_2,1)&\"[\" & K$11 & \"]\"),\n   MATCH(\n      secili_params_isveren_prim_oranlari_normal_2[[#This Row],[indx]],\n      INDIRECT(\"Isveren_prim_oranlari_normal_\"&yil_1&\"_\"&LEFT(ay_2,1)&\"[indx]\"),\n      0\n   )\n)","v":7.4999999999999997E-2},{"$f":"INDEX(\n   INDIRECT(\"Isveren_prim_oranlari_normal_\"&yil_1&\"_\"&LEFT(ay_2,1)&\"[\" & L$11 & \"]\"),\n   MATCH(\n      secili_params_isveren_prim_oranlari_normal_2[[#This Row],[indx]],\n      INDIRECT(\"Isveren_prim_oranlari_normal_\"&yil_1&\"_\"&LEFT(ay_2,1)&\"[indx]\"),\n      0\n   )\n)","v":0.05},{"$f":"INDEX(\n   INDIRECT(\"Isveren_prim_oranlari_normal_\"&yil_1&\"_\"&LEFT(ay_2,1)&\"[\" & M$11 & \"]\"),\n   MATCH(\n      secili_params_isveren_prim_oranlari_normal_2[[#This Row],[indx]],\n      INDIRECT(\"Isveren_prim_oranlari_normal_\"&yil_1&\"_\"&LEFT(ay_2,1)&\"[indx]\"),\n      0\n   )\n)","v":0.125}]
[null,null,11,{"$f":"INDEX(\n   INDIRECT(\"Ucret_Turleri_\"&yil_1&\"_\"&LEFT(ay_2,1)&\"[\" & D$4 & \"]\"),\n   MATCH(\n      secili_params_ucret_turleri_2[[#This Row],[indx]],\n      INDIRECT(\"Ucret_Turleri_\"&yil_1&\"_\"&LEFT(ay_2,1)&\"[indx]\"),\n      0\n   )\n)","v":"Çocuk Yardımı SGK İstisnası"},{"$f":"INDEX(\n   INDIRECT(\"Ucret_Turleri_\"&yil_1&\"_\"&LEFT(ay_2,1)&\"[\" & E$4 & \"]\"),\n   MATCH(\n      secili_params_ucret_turleri_2[[#This Row],[indx]],\n      INDIRECT(\"Ucret_Turleri_\"&yil_1&\"_\"&LEFT(ay_2,1)&\"[indx]\"),\n      0\n   )\n)","v":520.11},{"$f":"INDEX(\n   INDIRECT(\"Ucret_Turleri_\"&yil_1&\"_\"&LEFT(ay_2,1)&\"[\" & F$4 & \"]\"),\n   MATCH(\n      secili_params_ucret_turleri_2[[#This Row],[indx]],\n      INDIRECT(\"Ucret_Turleri_\"&yil_1&\"_\"&LEFT(ay_2,1)&\"[indx]\"),\n      0\n   )\n)","v":17.337},{"$f":"INDEX(\n   INDIRECT(\"Ucret_Turleri_\"&yil_1&\"_\"&LEFT(ay_2,1)&\"[\" & G$4 & \"]\"),\n   MATCH(\n      secili_params_ucret_turleri_2[[#This Row],[indx]],\n      INDIRECT(\"Ucret_Turleri_\"&yil_1&\"_\"&LEFT(ay_2,1)&\"[indx]\"),\n      0\n   )\n)","v":2.3115999999999999},null,4,{"$f":"INDEX(\n   INDIRECT(\"Isveren_prim_oranlari_normal_\"&yil&\"_\"&LEFT(ay,1)&\"[\" & J$11 & \"]\"),\n   MATCH(\n      secili_params_isveren_prim_oranlari_normal_2[[#This Row],[indx]],\n      INDIRECT(\"Isveren_prim_oranlari_normal_\"&yil&\"_\"&LEFT(ay,1)&\"[indx]\"),\n      0\n   )\n)","v":"İşsizlik Sigortası"},{"$f":"INDEX(\n   INDIRECT(\"Isveren_prim_oranlari_normal_\"&yil_1&\"_\"&LEFT(ay_2,1)&\"[\" & K$11 & \"]\"),\n   MATCH(\n      secili_params_isveren_prim_oranlari_normal_2[[#This Row],[indx]],\n      INDIRECT(\"Isveren_prim_oranlari_normal_\"&yil_1&\"_\"&LEFT(ay_2,1)&\"[indx]\"),\n      0\n   )\n)","v":0.02},{"$f":"INDEX(\n   INDIRECT(\"Isveren_prim_oranlari_normal_\"&yil_1&\"_\"&LEFT(ay_2,1)&\"[\" & L$11 & \"]\"),\n   MATCH(\n      secili_params_isveren_prim_oranlari_normal_2[[#This Row],[indx]],\n      INDIRECT(\"Isveren_prim_oranlari_normal_\"&yil_1&\"_\"&LEFT(ay_2,1)&\"[indx]\"),\n      0\n   )\n)","v":0.01},{"$f":"INDEX(\n   INDIRECT(\"Isveren_prim_oranlari_normal_\"&yil_1&\"_\"&LEFT(ay_2,1)&\"[\" & M$11 & \"]\"),\n   MATCH(\n      secili_params_isveren_prim_oranlari_normal_2[[#This Row],[indx]],\n      INDIRECT(\"Isveren_prim_oranlari_normal_\"&yil_1&\"_\"&LEFT(ay_2,1)&\"[indx]\"),\n      0\n   )\n)","v":0}]
[null,null,12,{"$f":"INDEX(\n   INDIRECT(\"Ucret_Turleri_\"&yil_1&\"_\"&LEFT(ay_2,1)&\"[\" & D$4 & \"]\"),\n   MATCH(\n      secili_params_ucret_turleri_2[[#This Row],[indx]],\n      INDIRECT(\"Ucret_Turleri_\"&yil_1&\"_\"&LEFT(ay_2,1)&\"[indx]\"),\n      0\n   )\n)","v":"Aile Yardımı SGK İstisnası"},{"$f":"INDEX(\n   INDIRECT(\"Ucret_Turleri_\"&yil_1&\"_\"&LEFT(ay_2,1)&\"[\" & E$4 & \"]\"),\n   MATCH(\n      secili_params_ucret_turleri_2[[#This Row],[indx]],\n      INDIRECT(\"Ucret_Turleri_\"&yil_1&\"_\"&LEFT(ay_2,1)&\"[indx]\"),\n      0\n   )\n)","v":2600.5500000000002},{"$f":"INDEX(\n   INDIRECT(\"Ucret_Turleri_\"&yil_1&\"_\"&LEFT(ay_2,1)&\"[\" & F$4 & \"]\"),\n   MATCH(\n      secili_params_ucret_turleri_2[[#This Row],[indx]],\n      INDIRECT(\"Ucret_Turleri_\"&yil_1&\"_\"&LEFT(ay_2,1)&\"[indx]\"),\n      0\n   )\n)","v":86.685000000000002},{"$f":"INDEX(\n   INDIRECT(\"Ucret_Turleri_\"&yil_1&\"_\"&LEFT(ay_2,1)&\"[\" & G$4 & \"]\"),\n   MATCH(\n      secili_params_ucret_turleri_2[[#This Row],[indx]],\n      INDIRECT(\"Ucret_Turleri_\"&yil_1&\"_\"&LEFT(ay_2,1)&\"[indx]\"),\n      0\n   )\n)","v":11.558},null,5,{"$f":"INDEX(\n   INDIRECT(\"Isveren_prim_oranlari_normal_\"&yil&\"_\"&LEFT(ay,1)&\"[\" & J$11 & \"]\"),\n   MATCH(\n      secili_params_isveren_prim_oranlari_normal_2[[#This Row],[indx]],\n      INDIRECT(\"Isveren_prim_oranlari_normal_\"&yil&\"_\"&LEFT(ay,1)&\"[indx]\"),\n      0\n   )\n)","v":"Toplam"},{"$f":"INDEX(\n   INDIRECT(\"Isveren_prim_oranlari_normal_\"&yil_1&\"_\"&LEFT(ay_2,1)&\"[\" & K$11 & \"]\"),\n   MATCH(\n      secili_params_isveren_prim_oranlari_normal_2[[#This Row],[indx]],\n      INDIRECT(\"Isveren_prim_oranlari_normal_\"&yil_1&\"_\"&LEFT(ay_2,1)&\"[indx]\"),\n      0\n   )\n)","v":0.22750000000000001},{"$f":"INDEX(\n   INDIRECT(\"Isveren_prim_oranlari_normal_\"&yil_1&\"_\"&LEFT(ay_2,1)&\"[\" & L$11 & \"]\"),\n   MATCH(\n      secili_params_isveren_prim_oranlari_normal_2[[#This Row],[indx]],\n      INDIRECT(\"Isveren_prim_oranlari_normal_\"&yil_1&\"_\"&LEFT(ay_2,1)&\"[indx]\"),\n      0\n   )\n)","v":0.15000000000000002},{"$f":"INDEX(\n   INDIRECT(\"Isveren_prim_oranlari_normal_\"&yil_1&\"_\"&LEFT(ay_2,1)&\"[\" & M$11 & \"]\"),\n   MATCH(\n      secili_params_isveren_prim_oranlari_normal_2[[#This Row],[indx]],\n      INDIRECT(\"Isveren_prim_oranlari_normal_\"&yil_1&\"_\"&LEFT(ay_2,1)&\"[indx]\"),\n      0\n   )\n)","v":0.37750000000000006}]
[null,null,13,{"$f":"INDEX(\n   INDIRECT(\"Ucret_Turleri_\"&yil_1&\"_\"&LEFT(ay_2,1)&\"[\" & D$4 & \"]\"),\n   MATCH(\n      secili_params_ucret_turleri_2[[#This Row],[indx]],\n      INDIRECT(\"Ucret_Turleri_\"&yil_1&\"_\"&LEFT(ay_2,1)&\"[indx]\"),\n      0\n   )\n)","v":"Nakit Yemek Parası SGK İstisnası"},{"$f":"INDEX(\n   INDIRECT(\"Ucret_Turleri_\"&yil_1&\"_\"&LEFT(ay_2,1)&\"[\" & E$4 & \"]\"),\n   MATCH(\n      secili_params_ucret_turleri_2[[#This Row],[indx]],\n      INDIRECT(\"Ucret_Turleri_\"&yil_1&\"_\"&LEFT(ay_2,1)&\"[indx]\"),\n      0\n   )\n)","v":158},{"$f":"INDEX(\n   INDIRECT(\"Ucret_Turleri_\"&yil_1&\"_\"&LEFT(ay_2,1)&\"[\" & F$4 & \"]\"),\n   MATCH(\n      secili_params_ucret_turleri_2[[#This Row],[indx]],\n      INDIRECT(\"Ucret_Turleri_\"&yil_1&\"_\"&LEFT(ay_2,1)&\"[indx]\"),\n      0\n   )\n)","v":5.2666666666666666},{"$f":"INDEX(\n   INDIRECT(\"Ucret_Turleri_\"&yil_1&\"_\"&LEFT(ay_2,1)&\"[\" & G$4 & \"]\"),\n   MATCH(\n      secili_params_ucret_turleri_2[[#This Row],[indx]],\n      INDIRECT(\"Ucret_Turleri_\"&yil_1&\"_\"&LEFT(ay_2,1)&\"[indx]\"),\n      0\n   )\n)","v":0.70222222222222219},null,6,{"$f":"INDEX(\n   INDIRECT(\"Isveren_prim_oranlari_normal_\"&yil&\"_\"&LEFT(ay,1)&\"[\" & J$11 & \"]\"),\n   MATCH(\n      secili_params_isveren_prim_oranlari_normal_2[[#This Row],[indx]],\n      INDIRECT(\"Isveren_prim_oranlari_normal_\"&yil&\"_\"&LEFT(ay,1)&\"[indx]\"),\n      0\n   )\n)","v":"Hazine"},{"$f":"INDEX(\n   INDIRECT(\"Isveren_prim_oranlari_normal_\"&yil_1&\"_\"&LEFT(ay_2,1)&\"[\" & K$11 & \"]\"),\n   MATCH(\n      secili_params_isveren_prim_oranlari_normal_2[[#This Row],[indx]],\n      INDIRECT(\"Isveren_prim_oranlari_normal_\"&yil_1&\"_\"&LEFT(ay_2,1)&\"[indx]\"),\n      0\n   )\n)","v":0},{"$f":"INDEX(\n   INDIRECT(\"Isveren_prim_oranlari_normal_\"&yil_1&\"_\"&LEFT(ay_2,1)&\"[\" & L$11 & \"]\"),\n   MATCH(\n      secili_params_isveren_prim_oranlari_normal_2[[#This Row],[indx]],\n      INDIRECT(\"Isveren_prim_oranlari_normal_\"&yil_1&\"_\"&LEFT(ay_2,1)&\"[indx]\"),\n      0\n   )\n)","v":0},{"$f":"INDEX(\n   INDIRECT(\"Isveren_prim_oranlari_normal_\"&yil_1&\"_\"&LEFT(ay_2,1)&\"[\" & M$11 & \"]\"),\n   MATCH(\n      secili_params_isveren_prim_oranlari_normal_2[[#This Row],[indx]],\n      INDIRECT(\"Isveren_prim_oranlari_normal_\"&yil_1&\"_\"&LEFT(ay_2,1)&\"[indx]\"),\n      0\n   )\n)","v":0.04}]
[null,null,14,{"$f":"INDEX(\n   INDIRECT(\"Ucret_Turleri_\"&yil_1&\"_\"&LEFT(ay_2,1)&\"[\" & D$4 & \"]\"),\n   MATCH(\n      secili_params_ucret_turleri_2[[#This Row],[indx]],\n      INDIRECT(\"Ucret_Turleri_\"&yil_1&\"_\"&LEFT(ay_2,1)&\"[indx]\"),\n      0\n   )\n)","v":"Yemek Kartı SGK İstisnası"},{"$f":"INDEX(\n   INDIRECT(\"Ucret_Turleri_\"&yil_1&\"_\"&LEFT(ay_2,1)&\"[\" & E$4 & \"]\"),\n   MATCH(\n      secili_params_ucret_turleri_2[[#This Row],[indx]],\n      INDIRECT(\"Ucret_Turleri_\"&yil_1&\"_\"&LEFT(ay_2,1)&\"[indx]\"),\n      0\n   )\n)","v":158},{"$f":"INDEX(\n   INDIRECT(\"Ucret_Turleri_\"&yil_1&\"_\"&LEFT(ay_2,1)&\"[\" & F$4 & \"]\"),\n   MATCH(\n      secili_params_ucret_turleri_2[[#This Row],[indx]],\n      INDIRECT(\"Ucret_Turleri_\"&yil_1&\"_\"&LEFT(ay_2,1)&\"[indx]\"),\n      0\n   )\n)","v":5.2666666666666666},{"$f":"INDEX(\n   INDIRECT(\"Ucret_Turleri_\"&yil_1&\"_\"&LEFT(ay_2,1)&\"[\" & G$4 & \"]\"),\n   MATCH(\n      secili_params_ucret_turleri_2[[#This Row],[indx]],\n      INDIRECT(\"Ucret_Turleri_\"&yil_1&\"_\"&LEFT(ay_2,1)&\"[indx]\"),\n      0\n   )\n)","v":0.70222222222222219},null,7,{"$f":"INDEX(\n   INDIRECT(\"Isveren_prim_oranlari_normal_\"&yil&\"_\"&LEFT(ay,1)&\"[\" & J$11 & \"]\"),\n   MATCH(\n      secili_params_isveren_prim_oranlari_normal_2[[#This Row],[indx]],\n      INDIRECT(\"Isveren_prim_oranlari_normal_\"&yil&\"_\"&LEFT(ay,1)&\"[indx]\"),\n      0\n   )\n)","v":"Hazine (İmalat)"},{"$f":"INDEX(\n   INDIRECT(\"Isveren_prim_oranlari_normal_\"&yil_1&\"_\"&LEFT(ay_2,1)&\"[\" & K$11 & \"]\"),\n   MATCH(\n      secili_params_isveren_prim_oranlari_normal_2[[#This Row],[indx]],\n      INDIRECT(\"Isveren_prim_oranlari_normal_\"&yil_1&\"_\"&LEFT(ay_2,1)&\"[indx]\"),\n      0\n   )\n)","v":0},{"$f":"INDEX(\n   INDIRECT(\"Isveren_prim_oranlari_normal_\"&yil_1&\"_\"&LEFT(ay_2,1)&\"[\" & L$11 & \"]\"),\n   MATCH(\n      secili_params_isveren_prim_oranlari_normal_2[[#This Row],[indx]],\n      INDIRECT(\"Isveren_prim_oranlari_normal_\"&yil_1&\"_\"&LEFT(ay_2,1)&\"[indx]\"),\n      0\n   )\n)","v":0},{"$f":"INDEX(\n   INDIRECT(\"Isveren_prim_oranlari_normal_\"&yil_1&\"_\"&LEFT(ay_2,1)&\"[\" & M$11 & \"]\"),\n   MATCH(\n      secili_params_isveren_prim_oranlari_normal_2[[#This Row],[indx]],\n      INDIRECT(\"Isveren_prim_oranlari_normal_\"&yil_1&\"_\"&LEFT(ay_2,1)&\"[indx]\"),\n      0\n   )\n)","v":0.05}]
[null,null,15,{"$f":"INDEX(\n   INDIRECT(\"Ucret_Turleri_\"&yil_1&\"_\"&LEFT(ay_2,1)&\"[\" & D$4 & \"]\"),\n   MATCH(\n      secili_params_ucret_turleri_2[[#This Row],[indx]],\n      INDIRECT(\"Ucret_Turleri_\"&yil_1&\"_\"&LEFT(ay_2,1)&\"[indx]\"),\n      0\n   )\n)","v":"Yemek Kartı GV İstisnası"},{"$f":"INDEX(\n   INDIRECT(\"Ucret_Turleri_\"&yil_1&\"_\"&LEFT(ay_2,1)&\"[\" & E$4 & \"]\"),\n   MATCH(\n      secili_params_ucret_turleri_2[[#This Row],[indx]],\n      INDIRECT(\"Ucret_Turleri_\"&yil_1&\"_\"&LEFT(ay_2,1)&\"[indx]\"),\n      0\n   )\n)","v":240},{"$f":"INDEX(\n   INDIRECT(\"Ucret_Turleri_\"&yil_1&\"_\"&LEFT(ay_2,1)&\"[\" & F$4 & \"]\"),\n   MATCH(\n      secili_params_ucret_turleri_2[[#This Row],[indx]],\n      INDIRECT(\"Ucret_Turleri_\"&yil_1&\"_\"&LEFT(ay_2,1)&\"[indx]\"),\n      0\n   )\n)","v":8},{"$f":"INDEX(\n   INDIRECT(\"Ucret_Turleri_\"&yil_1&\"_\"&LEFT(ay_2,1)&\"[\" & G$4 & \"]\"),\n   MATCH(\n      secili_params_ucret_turleri_2[[#This Row],[indx]],\n      INDIRECT(\"Ucret_Turleri_\"&yil_1&\"_\"&LEFT(ay_2,1)&\"[indx]\"),\n      0\n   )\n)","v":1.0666666666666667},null,8,{"$f":"INDEX(\n   INDIRECT(\"Isveren_prim_oranlari_normal_\"&yil&\"_\"&LEFT(ay,1)&\"[\" & J$11 & \"]\"),\n   MATCH(\n      secili_params_isveren_prim_oranlari_normal_2[[#This Row],[indx]],\n      INDIRECT(\"Isveren_prim_oranlari_normal_\"&yil&\"_\"&LEFT(ay,1)&\"[indx]\"),\n      0\n   )\n)","v":"Damga Vergisi Oranı"},{"$f":"INDEX(\n   INDIRECT(\"Isveren_prim_oranlari_normal_\"&yil_1&\"_\"&LEFT(ay_2,1)&\"[\" & K$11 & \"]\"),\n   MATCH(\n      secili_params_isveren_prim_oranlari_normal_2[[#This Row],[indx]],\n      INDIRECT(\"Isveren_prim_oranlari_normal_\"&yil_1&\"_\"&LEFT(ay_2,1)&\"[indx]\"),\n      0\n   )\n)","v":0},{"$f":"INDEX(\n   INDIRECT(\"Isveren_prim_oranlari_normal_\"&yil_1&\"_\"&LEFT(ay_2,1)&\"[\" & L$11 & \"]\"),\n   MATCH(\n      secili_params_isveren_prim_oranlari_normal_2[[#This Row],[indx]],\n      INDIRECT(\"Isveren_prim_oranlari_normal_\"&yil_1&\"_\"&LEFT(ay_2,1)&\"[indx]\"),\n      0\n   )\n)","v":0},{"$f":"INDEX(\n   INDIRECT(\"Isveren_prim_oranlari_normal_\"&yil_1&\"_\"&LEFT(ay_2,1)&\"[\" & M$11 & \"]\"),\n   MATCH(\n      secili_params_isveren_prim_oranlari_normal_2[[#This Row],[indx]],\n      INDIRECT(\"Isveren_prim_oranlari_normal_\"&yil_1&\"_\"&LEFT(ay_2,1)&\"[indx]\"),\n      0\n   )\n)","v":7.5900000000000004E-3}]
[null,null,16,{"$f":"INDEX(\n   INDIRECT(\"Ucret_Turleri_\"&yil_1&\"_\"&LEFT(ay_2,1)&\"[\" & D$4 & \"]\"),\n   MATCH(\n      secili_params_ucret_turleri_2[[#This Row],[indx]],\n      INDIRECT(\"Ucret_Turleri_\"&yil_1&\"_\"&LEFT(ay_2,1)&\"[indx]\"),\n      0\n   )\n)","v":"Nakit Yemek Parası GV İstisnası"},{"$f":"INDEX(\n   INDIRECT(\"Ucret_Turleri_\"&yil_1&\"_\"&LEFT(ay_2,1)&\"[\" & E$4 & \"]\"),\n   MATCH(\n      secili_params_ucret_turleri_2[[#This Row],[indx]],\n      INDIRECT(\"Ucret_Turleri_\"&yil_1&\"_\"&LEFT(ay_2,1)&\"[indx]\"),\n      0\n   )\n)","v":240},{"$f":"INDEX(\n   INDIRECT(\"Ucret_Turleri_\"&yil_1&\"_\"&LEFT(ay_2,1)&\"[\" & F$4 & \"]\"),\n   MATCH(\n      secili_params_ucret_turleri_2[[#This Row],[indx]],\n      INDIRECT(\"Ucret_Turleri_\"&yil_1&\"_\"&LEFT(ay_2,1)&\"[indx]\"),\n      0\n   )\n)","v":8},{"$f":"INDEX(\n   INDIRECT(\"Ucret_Turleri_\"&yil_1&\"_\"&LEFT(ay_2,1)&\"[\" & G$4 & \"]\"),\n   MATCH(\n      secili_params_ucret_turleri_2[[#This Row],[indx]],\n      INDIRECT(\"Ucret_Turleri_\"&yil_1&\"_\"&LEFT(ay_2,1)&\"[indx]\"),\n      0\n   )\n)","v":1.0666666666666667}]
[null,null,17,{"$f":"INDEX(\n   INDIRECT(\"Ucret_Turleri_\"&yil_1&\"_\"&LEFT(ay_2,1)&\"[\" & D$4 & \"]\"),\n   MATCH(\n      secili_params_ucret_turleri_2[[#This Row],[indx]],\n      INDIRECT(\"Ucret_Turleri_\"&yil_1&\"_\"&LEFT(ay_2,1)&\"[indx]\"),\n      0\n   )\n)","v":"Nakit Yemek Parası DV İstisnası"},{"$f":"INDEX(\n   INDIRECT(\"Ucret_Turleri_\"&yil_1&\"_\"&LEFT(ay_2,1)&\"[\" & E$4 & \"]\"),\n   MATCH(\n      secili_params_ucret_turleri_2[[#This Row],[indx]],\n      INDIRECT(\"Ucret_Turleri_\"&yil_1&\"_\"&LEFT(ay_2,1)&\"[indx]\"),\n      0\n   )\n)","v":0},{"$f":"INDEX(\n   INDIRECT(\"Ucret_Turleri_\"&yil_1&\"_\"&LEFT(ay_2,1)&\"[\" & F$4 & \"]\"),\n   MATCH(\n      secili_params_ucret_turleri_2[[#This Row],[indx]],\n      INDIRECT(\"Ucret_Turleri_\"&yil_1&\"_\"&LEFT(ay_2,1)&\"[indx]\"),\n      0\n   )\n)","v":0},{"$f":"INDEX(\n   INDIRECT(\"Ucret_Turleri_\"&yil_1&\"_\"&LEFT(ay_2,1)&\"[\" & G$4 & \"]\"),\n   MATCH(\n      secili_params_ucret_turleri_2[[#This Row],[indx]],\n      INDIRECT(\"Ucret_Turleri_\"&yil_1&\"_\"&LEFT(ay_2,1)&\"[indx]\"),\n      0\n   )\n)","v":0},null,"indx","SGDP Oranı","İşveren Payı","Çalışan Payı","Toplam"]
[null,null,18,{"$f":"INDEX(\n   INDIRECT(\"Ucret_Turleri_\"&yil_1&\"_\"&LEFT(ay_2,1)&\"[\" & D$4 & \"]\"),\n   MATCH(\n      secili_params_ucret_turleri_2[[#This Row],[indx]],\n      INDIRECT(\"Ucret_Turleri_\"&yil_1&\"_\"&LEFT(ay_2,1)&\"[indx]\"),\n      0\n   )\n)","v":"Yol/Ulaşım Kartı GV İstisnası"},{"$f":"INDEX(\n   INDIRECT(\"Ucret_Turleri_\"&yil_1&\"_\"&LEFT(ay_2,1)&\"[\" & E$4 & \"]\"),\n   MATCH(\n      secili_params_ucret_turleri_2[[#This Row],[indx]],\n      INDIRECT(\"Ucret_Turleri_\"&yil_1&\"_\"&LEFT(ay_2,1)&\"[indx]\"),\n      0\n   )\n)","v":126},{"$f":"INDEX(\n   INDIRECT(\"Ucret_Turleri_\"&yil_1&\"_\"&LEFT(ay_2,1)&\"[\" & F$4 & \"]\"),\n   MATCH(\n      secili_params_ucret_turleri_2[[#This Row],[indx]],\n      INDIRECT(\"Ucret_Turleri_\"&yil_1&\"_\"&LEFT(ay_2,1)&\"[indx]\"),\n      0\n   )\n)","v":4.2},{"$f":"INDEX(\n   INDIRECT(\"Ucret_Turleri_\"&yil_1&\"_\"&LEFT(ay_2,1)&\"[\" & G$4 & \"]\"),\n   MATCH(\n      secili_params_ucret_turleri_2[[#This Row],[indx]],\n      INDIRECT(\"Ucret_Turleri_\"&yil_1&\"_\"&LEFT(ay_2,1)&\"[indx]\"),\n      0\n   )\n)","v":0.56000000000000005},null,1,{"$f":"INDEX(\n   INDIRECT(\"Isveren_prim_oranlari_emekli_\"&yil&\"_\"&LEFT(ay,1)&\"[\" & J$21 & \"]\"),\n   MATCH(\n      secili_params_isveren_prim_oranlari_emekli_2[[#This Row],[indx]],\n      INDIRECT(\"Isveren_prim_oranlari_emekli_\"&yil&\"_\"&LEFT(ay,1)&\"[indx]\"),\n      0\n   )\n)","v":"Emekli Çalışan"},{"$f":"INDEX(\n   INDIRECT(\"Isveren_prim_oranlari_emekli_\"&yil_1&\"_\"&LEFT(ay_2,1)&\"[\" & K$21 & \"]\"),\n   MATCH(\n      secili_params_isveren_prim_oranlari_emekli_2[[#This Row],[indx]],\n      INDIRECT(\"Isveren_prim_oranlari_emekli_\"&yil_1&\"_\"&LEFT(ay_2,1)&\"[indx]\"),\n      0\n   )\n)","v":0.2475},{"$f":"INDEX(\n   INDIRECT(\"Isveren_prim_oranlari_emekli_\"&yil_1&\"_\"&LEFT(ay_2,1)&\"[\" & L$21 & \"]\"),\n   MATCH(\n      secili_params_isveren_prim_oranlari_emekli_2[[#This Row],[indx]],\n      INDIRECT(\"Isveren_prim_oranlari_emekli_\"&yil_1&\"_\"&LEFT(ay_2,1)&\"[indx]\"),\n      0\n   )\n)","v":7.4999999999999997E-2},{"$f":"INDEX(\n   INDIRECT(\"Isveren_prim_oranlari_emekli_\"&yil_1&\"_\"&LEFT(yil_1,1)&\"[\" & M$21 & \"]\"),\n   MATCH(\n      secili_params_isveren_prim_oranlari_emekli_2[[#This Row],[indx]],\n      INDIRECT(\"Isveren_prim_oranlari_emekli_\"&yil_1&\"_\"&LEFT(ay,1)&\"[indx]\"),\n      0\n   )\n)","v":0.32250000000000001}]
[null,null,19,{"$f":"INDEX(\n   INDIRECT(\"Ucret_Turleri_\"&yil_1&\"_\"&LEFT(ay_2,1)&\"[\" & D$4 & \"]\"),\n   MATCH(\n      secili_params_ucret_turleri_2[[#This Row],[indx]],\n      INDIRECT(\"Ucret_Turleri_\"&yil_1&\"_\"&LEFT(ay_2,1)&\"[indx]\"),\n      0\n   )\n)","v":"Çocuk Yardımı GV İstisnası – 0-6 yaş"},{"$f":"INDEX(\n   INDIRECT(\"Ucret_Turleri_\"&yil_1&\"_\"&LEFT(ay_2,1)&\"[\" & E$4 & \"]\"),\n   MATCH(\n      secili_params_ucret_turleri_2[[#This Row],[indx]],\n      INDIRECT(\"Ucret_Turleri_\"&yil_1&\"_\"&LEFT(ay_2,1)&\"[indx]\"),\n      0\n   )\n)","v":585.11},{"$f":"INDEX(\n   INDIRECT(\"Ucret_Turleri_\"&yil_1&\"_\"&LEFT(ay_2,1)&\"[\" & F$4 & \"]\"),\n   MATCH(\n      secili_params_ucret_turleri_2[[#This Row],[indx]],\n      INDIRECT(\"Ucret_Turleri_\"&yil_1&\"_\"&LEFT(ay_2,1)&\"[indx]\"),\n      0\n   )\n)","v":19.503666666666668},{"$f":"INDEX(\n   INDIRECT(\"Ucret_Turleri_\"&yil_1&\"_\"&LEFT(ay_2,1)&\"[\" & G$4 & \"]\"),\n   MATCH(\n      secili_params_ucret_turleri_2[[#This Row],[indx]],\n      INDIRECT(\"Ucret_Turleri_\"&yil_1&\"_\"&LEFT(ay_2,1)&\"[indx]\"),\n      0\n   )\n)","v":2.6004888888888891}]
[null,null,20,{"$f":"INDEX(\n   INDIRECT(\"Ucret_Turleri_\"&yil_1&\"_\"&LEFT(ay_2,1)&\"[\" & D$4 & \"]\"),\n   MATCH(\n      secili_params_ucret_turleri_2[[#This Row],[indx]],\n      INDIRECT(\"Ucret_Turleri_\"&yil_1&\"_\"&LEFT(ay_2,1)&\"[indx]\"),\n      0\n   )\n)","v":"Çocuk Yardımı GV İstisnası – 6 yaş üzeri"},{"$f":"INDEX(\n   INDIRECT(\"Ucret_Turleri_\"&yil_1&\"_\"&LEFT(ay_2,1)&\"[\" & E$4 & \"]\"),\n   MATCH(\n      secili_params_ucret_turleri_2[[#This Row],[indx]],\n      INDIRECT(\"Ucret_Turleri_\"&yil_1&\"_\"&LEFT(ay_2,1)&\"[indx]\"),\n      0\n   )\n)","v":292.55},{"$f":"INDEX(\n   INDIRECT(\"Ucret_Turleri_\"&yil_1&\"_\"&LEFT(ay_2,1)&\"[\" & F$4 & \"]\"),\n   MATCH(\n      secili_params_ucret_turleri_2[[#This Row],[indx]],\n      INDIRECT(\"Ucret_Turleri_\"&yil_1&\"_\"&LEFT(ay_2,1)&\"[indx]\"),\n      0\n   )\n)","v":9.7516666666666669},{"$f":"INDEX(\n   INDIRECT(\"Ucret_Turleri_\"&yil_1&\"_\"&LEFT(ay_2,1)&\"[\" & G$4 & \"]\"),\n   MATCH(\n      secili_params_ucret_turleri_2[[#This Row],[indx]],\n      INDIRECT(\"Ucret_Turleri_\"&yil_1&\"_\"&LEFT(ay_2,1)&\"[indx]\"),\n      0\n   )\n)","v":1.3002222222222222}]
[null,null,21,{"$f":"INDEX(\n   INDIRECT(\"Ucret_Turleri_\"&yil_1&\"_\"&LEFT(ay_2,1)&\"[\" & D$4 & \"]\"),\n   MATCH(\n      secili_params_ucret_turleri_2[[#This Row],[indx]],\n      INDIRECT(\"Ucret_Turleri_\"&yil_1&\"_\"&LEFT(ay_2,1)&\"[indx]\"),\n      0\n   )\n)","v":"Emzirme Ödeneği"},{"$f":"INDEX(\n   INDIRECT(\"Ucret_Turleri_\"&yil_1&\"_\"&LEFT(ay_2,1)&\"[\" & E$4 & \"]\"),\n   MATCH(\n      secili_params_ucret_turleri_2[[#This Row],[indx]],\n      INDIRECT(\"Ucret_Turleri_\"&yil_1&\"_\"&LEFT(ay_2,1)&\"[indx]\"),\n      0\n   )\n)","v":1238},{"$f":"INDEX(\n   INDIRECT(\"Ucret_Turleri_\"&yil_1&\"_\"&LEFT(ay_2,1)&\"[\" & F$4 & \"]\"),\n   MATCH(\n      secili_params_ucret_turleri_2[[#This Row],[indx]],\n      INDIRECT(\"Ucret_Turleri_\"&yil_1&\"_\"&LEFT(ay_2,1)&\"[indx]\"),\n      0\n   )\n)","v":41.266666666666666},{"$f":"INDEX(\n   INDIRECT(\"Ucret_Turleri_\"&yil_1&\"_\"&LEFT(ay_2,1)&\"[\" & G$4 & \"]\"),\n   MATCH(\n      secili_params_ucret_turleri_2[[#This Row],[indx]],\n      INDIRECT(\"Ucret_Turleri_\"&yil_1&\"_\"&LEFT(ay_2,1)&\"[indx]\"),\n      0\n   )\n)","v":5.5022222222222217}]
[null,null,22,{"$f":"INDEX(\n   INDIRECT(\"Ucret_Turleri_\"&yil_1&\"_\"&LEFT(ay_2,1)&\"[\" & D$4 & \"]\"),\n   MATCH(\n      secili_params_ucret_turleri_2[[#This Row],[indx]],\n      INDIRECT(\"Ucret_Turleri_\"&yil_1&\"_\"&LEFT(ay_2,1)&\"[indx]\"),\n      0\n   )\n)","v":"İşsizlik Ödeneği – Alt Limit"},{"$f":"INDEX(\n   INDIRECT(\"Ucret_Turleri_\"&yil_1&\"_\"&LEFT(ay_2,1)&\"[\" & E$4 & \"]\"),\n   MATCH(\n      secili_params_ucret_turleri_2[[#This Row],[indx]],\n      INDIRECT(\"Ucret_Turleri_\"&yil_1&\"_\"&LEFT(ay_2,1)&\"[indx]\"),\n      0\n   )\n)","v":10323.25},{"$f":"INDEX(\n   INDIRECT(\"Ucret_Turleri_\"&yil_1&\"_\"&LEFT(ay_2,1)&\"[\" & F$4 & \"]\"),\n   MATCH(\n      secili_params_ucret_turleri_2[[#This Row],[indx]],\n      INDIRECT(\"Ucret_Turleri_\"&yil_1&\"_\"&LEFT(ay_2,1)&\"[indx]\"),\n      0\n   )\n)","v":344.10833333333335},{"$f":"INDEX(\n   INDIRECT(\"Ucret_Turleri_\"&yil_1&\"_\"&LEFT(ay_2,1)&\"[\" & G$4 & \"]\"),\n   MATCH(\n      secili_params_ucret_turleri_2[[#This Row],[indx]],\n      INDIRECT(\"Ucret_Turleri_\"&yil_1&\"_\"&LEFT(ay_2,1)&\"[indx]\"),\n      0\n   )\n)","v":45.88111111111111}]
[null,null,23,{"$f":"INDEX(\n   INDIRECT(\"Ucret_Turleri_\"&yil_1&\"_\"&LEFT(ay_2,1)&\"[\" & D$4 & \"]\"),\n   MATCH(\n      secili_params_ucret_turleri_2[[#This Row],[indx]],\n      INDIRECT(\"Ucret_Turleri_\"&yil_1&\"_\"&LEFT(ay_2,1)&\"[indx]\"),\n      0\n   )\n)","v":"İşsizlik Ödeneği – Üst Limit"},{"$f":"INDEX(\n   INDIRECT(\"Ucret_Turleri_\"&yil_1&\"_\"&LEFT(ay_2,1)&\"[\" & E$4 & \"]\"),\n   MATCH(\n      secili_params_ucret_turleri_2[[#This Row],[indx]],\n      INDIRECT(\"Ucret_Turleri_\"&yil_1&\"_\"&LEFT(ay_2,1)&\"[indx]\"),\n      0\n   )\n)","v":20646.490000000002},{"$f":"INDEX(\n   INDIRECT(\"Ucret_Turleri_\"&yil_1&\"_\"&LEFT(ay_2,1)&\"[\" & F$4 & \"]\"),\n   MATCH(\n      secili_params_ucret_turleri_2[[#This Row],[indx]],\n      INDIRECT(\"Ucret_Turleri_\"&yil_1&\"_\"&LEFT(ay_2,1)&\"[indx]\"),\n      0\n   )\n)","v":688.21633333333341},{"$f":"INDEX(\n   INDIRECT(\"Ucret_Turleri_\"&yil_1&\"_\"&LEFT(ay_2,1)&\"[\" & G$4 & \"]\"),\n   MATCH(\n      secili_params_ucret_turleri_2[[#This Row],[indx]],\n      INDIRECT(\"Ucret_Turleri_\"&yil_1&\"_\"&LEFT(ay_2,1)&\"[indx]\"),\n      0\n   )\n)","v":91.762177777777794}]
[null,null,24,{"$f":"INDEX(\n   INDIRECT(\"Ucret_Turleri_\"&yil_1&\"_\"&LEFT(ay_2,1)&\"[\" & D$4 & \"]\"),\n   MATCH(\n      secili_params_ucret_turleri_2[[#This Row],[indx]],\n      INDIRECT(\"Ucret_Turleri_\"&yil_1&\"_\"&LEFT(ay_2,1)&\"[indx]\"),\n      0\n   )\n)","v":"İş Göremezlik Ödeneği Ayakta Tedavi – Alt Limit"},{"$f":"INDEX(\n   INDIRECT(\"Ucret_Turleri_\"&yil_1&\"_\"&LEFT(ay_2,1)&\"[\" & E$4 & \"]\"),\n   MATCH(\n      secili_params_ucret_turleri_2[[#This Row],[indx]],\n      INDIRECT(\"Ucret_Turleri_\"&yil_1&\"_\"&LEFT(ay_2,1)&\"[indx]\"),\n      0\n   )\n)","v":17337},{"$f":"INDEX(\n   INDIRECT(\"Ucret_Turleri_\"&yil_1&\"_\"&LEFT(ay_2,1)&\"[\" & F$4 & \"]\"),\n   MATCH(\n      secili_params_ucret_turleri_2[[#This Row],[indx]],\n      INDIRECT(\"Ucret_Turleri_\"&yil_1&\"_\"&LEFT(ay_2,1)&\"[indx]\"),\n      0\n   )\n)","v":577.9},{"$f":"INDEX(\n   INDIRECT(\"Ucret_Turleri_\"&yil_1&\"_\"&LEFT(ay_2,1)&\"[\" & G$4 & \"]\"),\n   MATCH(\n      secili_params_ucret_turleri_2[[#This Row],[indx]],\n      INDIRECT(\"Ucret_Turleri_\"&yil_1&\"_\"&LEFT(ay_2,1)&\"[indx]\"),\n      0\n   )\n)","v":77.053333333333327}]
[null,null,25,{"$f":"INDEX(\n   INDIRECT(\"Ucret_Turleri_\"&yil_1&\"_\"&LEFT(ay_2,1)&\"[\" & D$4 & \"]\"),\n   MATCH(\n      secili_params_ucret_turleri_2[[#This Row],[indx]],\n      INDIRECT(\"Ucret_Turleri_\"&yil_1&\"_\"&LEFT(ay_2,1)&\"[indx]\"),\n      0\n   )\n)","v":"İş Göremezlik Ödeneği Ayakta Tedavi – Üst Limit"},{"$f":"INDEX(\n   INDIRECT(\"Ucret_Turleri_\"&yil_1&\"_\"&LEFT(ay_2,1)&\"[\" & E$4 & \"]\"),\n   MATCH(\n      secili_params_ucret_turleri_2[[#This Row],[indx]],\n      INDIRECT(\"Ucret_Turleri_\"&yil_1&\"_\"&LEFT(ay_2,1)&\"[indx]\"),\n      0\n   )\n)","v":130027.5},{"$f":"INDEX(\n   INDIRECT(\"Ucret_Turleri_\"&yil_1&\"_\"&LEFT(ay_2,1)&\"[\" & F$4 & \"]\"),\n   MATCH(\n      secili_params_ucret_turleri_2[[#This Row],[indx]],\n      INDIRECT(\"Ucret_Turleri_\"&yil_1&\"_\"&LEFT(ay_2,1)&\"[indx]\"),\n      0\n   )\n)","v":4334.25},{"$f":"INDEX(\n   INDIRECT(\"Ucret_Turleri_\"&yil_1&\"_\"&LEFT(ay_2,1)&\"[\" & G$4 & \"]\"),\n   MATCH(\n      secili_params_ucret_turleri_2[[#This Row],[indx]],\n      INDIRECT(\"Ucret_Turleri_\"&yil_1&\"_\"&LEFT(ay_2,1)&\"[indx]\"),\n      0\n   )\n)","v":577.9}]
[null,null,26,{"$f":"INDEX(\n   INDIRECT(\"Ucret_Turleri_\"&yil_1&\"_\"&LEFT(ay_2,1)&\"[\" & D$4 & \"]\"),\n   MATCH(\n      secili_params_ucret_turleri_2[[#This Row],[indx]],\n      INDIRECT(\"Ucret_Turleri_\"&yil_1&\"_\"&LEFT(ay_2,1)&\"[indx]\"),\n      0\n   )\n)","v":"İş Göremezlik Ödeneği Yatarak Tedavi – Alt Limit"},{"$f":"INDEX(\n   INDIRECT(\"Ucret_Turleri_\"&yil_1&\"_\"&LEFT(ay_2,1)&\"[\" & E$4 & \"]\"),\n   MATCH(\n      secili_params_ucret_turleri_2[[#This Row],[indx]],\n      INDIRECT(\"Ucret_Turleri_\"&yil_1&\"_\"&LEFT(ay_2,1)&\"[indx]\"),\n      0\n   )\n)","v":13002.9},{"$f":"INDEX(\n   INDIRECT(\"Ucret_Turleri_\"&yil_1&\"_\"&LEFT(ay_2,1)&\"[\" & F$4 & \"]\"),\n   MATCH(\n      secili_params_ucret_turleri_2[[#This Row],[indx]],\n      INDIRECT(\"Ucret_Turleri_\"&yil_1&\"_\"&LEFT(ay_2,1)&\"[indx]\"),\n      0\n   )\n)","v":433.43},{"$f":"INDEX(\n   INDIRECT(\"Ucret_Turleri_\"&yil_1&\"_\"&LEFT(ay_2,1)&\"[\" & G$4 & \"]\"),\n   MATCH(\n      secili_params_ucret_turleri_2[[#This Row],[indx]],\n      INDIRECT(\"Ucret_Turleri_\"&yil_1&\"_\"&LEFT(ay_2,1)&\"[indx]\"),\n      0\n   )\n)","v":57.790666666666667}]
[null,null,27,{"$f":"INDEX(\n   INDIRECT(\"Ucret_Turleri_\"&yil_1&\"_\"&LEFT(ay_2,1)&\"[\" & D$4 & \"]\"),\n   MATCH(\n      secili_params_ucret_turleri_2[[#This Row],[indx]],\n      INDIRECT(\"Ucret_Turleri_\"&yil_1&\"_\"&LEFT(ay_2,1)&\"[indx]\"),\n      0\n   )\n)","v":"İş Göremezlik Ödeneği Yatarak Tedavi – Üst Limit"},{"$f":"INDEX(\n   INDIRECT(\"Ucret_Turleri_\"&yil_1&\"_\"&LEFT(ay_2,1)&\"[\" & E$4 & \"]\"),\n   MATCH(\n      secili_params_ucret_turleri_2[[#This Row],[indx]],\n      INDIRECT(\"Ucret_Turleri_\"&yil_1&\"_\"&LEFT(ay_2,1)&\"[indx]\"),\n      0\n   )\n)","v":97520.7},{"$f":"INDEX(\n   INDIRECT(\"Ucret_Turleri_\"&yil_1&\"_\"&LEFT(ay_2,1)&\"[\" & F$4 & \"]\"),\n   MATCH(\n      secili_params_ucret_turleri_2[[#This Row],[indx]],\n      INDIRECT(\"Ucret_Turleri_\"&yil_1&\"_\"&LEFT(ay_2,1)&\"[indx]\"),\n      0\n   )\n)","v":3250.69},{"$f":"INDEX(\n   INDIRECT(\"Ucret_Turleri_\"&yil_1&\"_\"&LEFT(ay_2,1)&\"[\" & G$4 & \"]\"),\n   MATCH(\n      secili_params_ucret_turleri_2[[#This Row],[indx]],\n      INDIRECT(\"Ucret_Turleri_\"&yil_1&\"_\"&LEFT(ay_2,1)&\"[indx]\"),\n      0\n   )\n)","v":433.42533333333336}]
[null,null,28,{"$f":"INDEX(\n   INDIRECT(\"Ucret_Turleri_\"&yil_1&\"_\"&LEFT(ay_2,1)&\"[\" & D$4 & \"]\"),\n   MATCH(\n      secili_params_ucret_turleri_2[[#This Row],[indx]],\n      INDIRECT(\"Ucret_Turleri_\"&yil_1&\"_\"&LEFT(ay_2,1)&\"[indx]\"),\n      0\n   )\n)","v":"Yarım Çalışma Ödeneği"},{"$f":"INDEX(\n   INDIRECT(\"Ucret_Turleri_\"&yil_1&\"_\"&LEFT(ay_2,1)&\"[\" & E$4 & \"]\"),\n   MATCH(\n      secili_params_ucret_turleri_2[[#This Row],[indx]],\n      INDIRECT(\"Ucret_Turleri_\"&yil_1&\"_\"&LEFT(ay_2,1)&\"[indx]\"),\n      0\n   )\n)","v":860.27},{"$f":"INDEX(\n   INDIRECT(\"Ucret_Turleri_\"&yil_1&\"_\"&LEFT(ay_2,1)&\"[\" & F$4 & \"]\"),\n   MATCH(\n      secili_params_ucret_turleri_2[[#This Row],[indx]],\n      INDIRECT(\"Ucret_Turleri_\"&yil_1&\"_\"&LEFT(ay_2,1)&\"[indx]\"),\n      0\n   )\n)","v":28.675666666666665},{"$f":"INDEX(\n   INDIRECT(\"Ucret_Turleri_\"&yil_1&\"_\"&LEFT(ay_2,1)&\"[\" & G$4 & \"]\"),\n   MATCH(\n      secili_params_ucret_turleri_2[[#This Row],[indx]],\n      INDIRECT(\"Ucret_Turleri_\"&yil_1&\"_\"&LEFT(ay_2,1)&\"[indx]\"),\n      0\n   )\n)","v":3.8234222222222218}]
[null,null,29,{"$f":"INDEX(\n   INDIRECT(\"Ucret_Turleri_\"&yil_1&\"_\"&LEFT(ay_2,1)&\"[\" & D$4 & \"]\"),\n   MATCH(\n      secili_params_ucret_turleri_2[[#This Row],[indx]],\n      INDIRECT(\"Ucret_Turleri_\"&yil_1&\"_\"&LEFT(ay_2,1)&\"[indx]\"),\n      0\n   )\n)","v":{"$error":"#N/A"}},{"$f":"INDEX(\n   INDIRECT(\"Ucret_Turleri_\"&yil_1&\"_\"&LEFT(ay_2,1)&\"[\" & E$4 & \"]\"),\n   MATCH(\n      secili_params_ucret_turleri_2[[#This Row],[indx]],\n      INDIRECT(\"Ucret_Turleri_\"&yil_1&\"_\"&LEFT(ay_2,1)&\"[indx]\"),\n      0\n   )\n)","v":{"$error":"#N/A"}},{"$f":"INDEX(\n   INDIRECT(\"Ucret_Turleri_\"&yil_1&\"_\"&LEFT(ay_2,1)&\"[\" & F$4 & \"]\"),\n   MATCH(\n      secili_params_ucret_turleri_2[[#This Row],[indx]],\n      INDIRECT(\"Ucret_Turleri_\"&yil_1&\"_\"&LEFT(ay_2,1)&\"[indx]\"),\n      0\n   )\n)","v":{"$error":"#N/A"}},{"$f":"INDEX(\n   INDIRECT(\"Ucret_Turleri_\"&yil_1&\"_\"&LEFT(ay_2,1)&\"[\" & G$4 & \"]\"),\n   MATCH(\n      secili_params_ucret_turleri_2[[#This Row],[indx]],\n      INDIRECT(\"Ucret_Turleri_\"&yil_1&\"_\"&LEFT(ay_2,1)&\"[indx]\"),\n      0\n   )\n)","v":{"$error":"#N/A"}}]
[null,null,30,{"$f":"INDEX(\n   INDIRECT(\"Ucret_Turleri_\"&yil_1&\"_\"&LEFT(ay_2,1)&\"[\" & D$4 & \"]\"),\n   MATCH(\n      secili_params_ucret_turleri_2[[#This Row],[indx]],\n      INDIRECT(\"Ucret_Turleri_\"&yil_1&\"_\"&LEFT(ay_2,1)&\"[indx]\"),\n      0\n   )\n)","v":{"$error":"#N/A"}},{"$f":"INDEX(\n   INDIRECT(\"Ucret_Turleri_\"&yil_1&\"_\"&LEFT(ay_2,1)&\"[\" & E$4 & \"]\"),\n   MATCH(\n      secili_params_ucret_turleri_2[[#This Row],[indx]],\n      INDIRECT(\"Ucret_Turleri_\"&yil_1&\"_\"&LEFT(ay_2,1)&\"[indx]\"),\n      0\n   )\n)","v":{"$error":"#N/A"}},{"$f":"INDEX(\n   INDIRECT(\"Ucret_Turleri_\"&yil_1&\"_\"&LEFT(ay_2,1)&\"[\" & F$4 & \"]\"),\n   MATCH(\n      secili_params_ucret_turleri_2[[#This Row],[indx]],\n      INDIRECT(\"Ucret_Turleri_\"&yil_1&\"_\"&LEFT(ay_2,1)&\"[indx]\"),\n      0\n   )\n)","v":{"$error":"#N/A"}},{"$f":"INDEX(\n   INDIRECT(\"Ucret_Turleri_\"&yil_1&\"_\"&LEFT(ay_2,1)&\"[\" & G$4 & \"]\"),\n   MATCH(\n      secili_params_ucret_turleri_2[[#This Row],[indx]],\n      INDIRECT(\"Ucret_Turleri_\"&yil_1&\"_\"&LEFT(ay_2,1)&\"[indx]\"),\n      0\n   )\n)","v":{"$error":"#N/A"}}]
[null,null,31,{"$f":"INDEX(\n   INDIRECT(\"Ucret_Turleri_\"&yil_1&\"_\"&LEFT(ay_2,1)&\"[\" & D$4 & \"]\"),\n   MATCH(\n      secili_params_ucret_turleri_2[[#This Row],[indx]],\n      INDIRECT(\"Ucret_Turleri_\"&yil_1&\"_\"&LEFT(ay_2,1)&\"[indx]\"),\n      0\n   )\n)","v":{"$error":"#N/A"}},{"$f":"INDEX(\n   INDIRECT(\"Ucret_Turleri_\"&yil_1&\"_\"&LEFT(ay_2,1)&\"[\" & E$4 & \"]\"),\n   MATCH(\n      secili_params_ucret_turleri_2[[#This Row],[indx]],\n      INDIRECT(\"Ucret_Turleri_\"&yil_1&\"_\"&LEFT(ay_2,1)&\"[indx]\"),\n      0\n   )\n)","v":{"$error":"#N/A"}},{"$f":"INDEX(\n   INDIRECT(\"Ucret_Turleri_\"&yil_1&\"_\"&LEFT(ay_2,1)&\"[\" & F$4 & \"]\"),\n   MATCH(\n      secili_params_ucret_turleri_2[[#This Row],[indx]],\n      INDIRECT(\"Ucret_Turleri_\"&yil_1&\"_\"&LEFT(ay_2,1)&\"[indx]\"),\n      0\n   )\n)","v":{"$error":"#N/A"}},{"$f":"INDEX(\n   INDIRECT(\"Ucret_Turleri_\"&yil_1&\"_\"&LEFT(ay_2,1)&\"[\" & G$4 & \"]\"),\n   MATCH(\n      secili_params_ucret_turleri_2[[#This Row],[indx]],\n      INDIRECT(\"Ucret_Turleri_\"&yil_1&\"_\"&LEFT(ay_2,1)&\"[indx]\"),\n      0\n   )\n)","v":{"$error":"#N/A"}}]
[null,null,32,{"$f":"INDEX(\n   INDIRECT(\"Ucret_Turleri_\"&yil_1&\"_\"&LEFT(ay_2,1)&\"[\" & D$4 & \"]\"),\n   MATCH(\n      secili_params_ucret_turleri_2[[#This Row],[indx]],\n      INDIRECT(\"Ucret_Turleri_\"&yil_1&\"_\"&LEFT(ay_2,1)&\"[indx]\"),\n      0\n   )\n)","v":{"$error":"#N/A"}},{"$f":"INDEX(\n   INDIRECT(\"Ucret_Turleri_\"&yil_1&\"_\"&LEFT(ay_2,1)&\"[\" & E$4 & \"]\"),\n   MATCH(\n      secili_params_ucret_turleri_2[[#This Row],[indx]],\n      INDIRECT(\"Ucret_Turleri_\"&yil_1&\"_\"&LEFT(ay_2,1)&\"[indx]\"),\n      0\n   )\n)","v":{"$error":"#N/A"}},{"$f":"INDEX(\n   INDIRECT(\"Ucret_Turleri_\"&yil_1&\"_\"&LEFT(ay_2,1)&\"[\" & F$4 & \"]\"),\n   MATCH(\n      secili_params_ucret_turleri_2[[#This Row],[indx]],\n      INDIRECT(\"Ucret_Turleri_\"&yil_1&\"_\"&LEFT(ay_2,1)&\"[indx]\"),\n      0\n   )\n)","v":{"$error":"#N/A"}},{"$f":"INDEX(\n   INDIRECT(\"Ucret_Turleri_\"&yil_1&\"_\"&LEFT(ay_2,1)&\"[\" & G$4 & \"]\"),\n   MATCH(\n      secili_params_ucret_turleri_2[[#This Row],[indx]],\n      INDIRECT(\"Ucret_Turleri_\"&yil_1&\"_\"&LEFT(ay_2,1)&\"[indx]\"),\n      0\n   )\n)","v":{"$error":"#N/A"}}]
[null,null,33,{"$f":"INDEX(\n   INDIRECT(\"Ucret_Turleri_\"&yil_1&\"_\"&LEFT(ay_2,1)&\"[\" & D$4 & \"]\"),\n   MATCH(\n      secili_params_ucret_turleri_2[[#This Row],[indx]],\n      INDIRECT(\"Ucret_Turleri_\"&yil_1&\"_\"&LEFT(ay_2,1)&\"[indx]\"),\n      0\n   )\n)","v":{"$error":"#N/A"}},{"$f":"INDEX(\n   INDIRECT(\"Ucret_Turleri_\"&yil_1&\"_\"&LEFT(ay_2,1)&\"[\" & E$4 & \"]\"),\n   MATCH(\n      secili_params_ucret_turleri_2[[#This Row],[indx]],\n      INDIRECT(\"Ucret_Turleri_\"&yil_1&\"_\"&LEFT(ay_2,1)&\"[indx]\"),\n      0\n   )\n)","v":{"$error":"#N/A"}},{"$f":"INDEX(\n   INDIRECT(\"Ucret_Turleri_\"&yil_1&\"_\"&LEFT(ay_2,1)&\"[\" & F$4 & \"]\"),\n   MATCH(\n      secili_params_ucret_turleri_2[[#This Row],[indx]],\n      INDIRECT(\"Ucret_Turleri_\"&yil_1&\"_\"&LEFT(ay_2,1)&\"[indx]\"),\n      0\n   )\n)","v":{"$error":"#N/A"}},{"$f":"INDEX(\n   INDIRECT(\"Ucret_Turleri_\"&yil_1&\"_\"&LEFT(ay_2,1)&\"[\" & G$4 & \"]\"),\n   MATCH(\n      secili_params_ucret_turleri_2[[#This Row],[indx]],\n      INDIRECT(\"Ucret_Turleri_\"&yil_1&\"_\"&LEFT(ay_2,1)&\"[indx]\"),\n      0\n   )\n)","v":{"$error":"#N/A"}}]

{"sheet":"2026","index":5,"n_rows":73,"n_cols":17,"rows_kept":73,"cut":false,"hidden":false,"merged":[[0,0,0,16],[43,0,43,16]]}
["1. DÖNEM"]
["indx","Ücret Türü","Aylık","Günlük","Saatlik",null,"indx","VERGİ","DİLİMLERİ","VERGİ ORANLARI","VERGİ KESİNTİSİ",null,"indx","Sigorta Kolu","İşveren Payı","Çalışan Payı","Toplam"]
[1,"Asgari Brüt",33030,{"$f":"Ucret_Turleri_2026_1[[#This Row],[Aylık]]/30","v":1101},{"$f":"Ucret_Turleri_2026_1[[#This Row],[Günlük]]/7.5","v":146.80000000000001},null,1,0,190000,0.15,{"$f":"Vergi_Dilimleri_2026_1[[#This Row],[DİLİMLERİ]]*Vergi_Dilimleri_2026_1[[#This Row],[VERGİ ORANLARI]]","v":28500},null,1,"Malüllük, Yaşlılık ve Ölüm",0.12,0.09,0.2]
[{"$f":"A3+1","v":2},"SGK Tavan",297270,{"$f":"Ucret_Turleri_2026_1[[#This Row],[Aylık]]/30","v":9909},{"$f":"Ucret_Turleri_2026_1[[#This Row],[Günlük]]/7.5","v":1321.2},null,{"$f":"G3+1","v":2},{"$f":"I3+0.01","v":190000.01},400000,0.2,{"$f":"Vergi_Dilimleri_2026_1[[#This Row],[DİLİMLERİ]]*Vergi_Dilimleri_2026_1[[#This Row],[VERGİ ORANLARI]]","v":80000},null,{"$f":"M3+1","v":2},"Kısa Vadeli Sigorta Kolları",2.2499999999999999E-2,"-",0.02]
[{"$f":"A4+1","v":3},"Net Ücret",28075.5,{"$f":"Ucret_Turleri_2026_1[[#This Row],[Aylık]]/30","v":935.85},{"$f":"Ucret_Turleri_2026_1[[#This Row],[Günlük]]/7.5","v":124.78},null,{"$f":"G4+1","v":3},{"$f":"I4+0.01","v":400000.01},1500000,0.27,{"$f":"Vergi_Dilimleri_2026_1[[#This Row],[DİLİMLERİ]]*Vergi_Dilimleri_2026_1[[#This Row],[VERGİ ORANLARI]]","v":405000},null,{"$f":"M4+1","v":3},"Genel Sağlık Sigortası",7.4999999999999997E-2,0.05,0.125]
[4,"Emekli Net Ücret (Yıllık Ortalama)",30057.3,{"$f":"Ucret_Turleri_2026_1[[#This Row],[Aylık]]/30","v":1001.91},{"$f":"Ucret_Turleri_2026_1[[#This Row],[Günlük]]/7.5","v":133.58799999999999},null,4,1500000.01,5300000,0.35,{"$f":"Vergi_Dilimleri_2026_1[[#This Row],[DİLİMLERİ]]*Vergi_Dilimleri_2026_1[[#This Row],[VERGİ ORANLARI]]","v":1854999.9999999998},null,4,"İşsizlik Sigortası",0.02,0.01]
[5,"Emekli Engelli Net Ücret (Yıllık Ortalama)",30552.75,{"$f":"Ucret_Turleri_2026_1[[#This Row],[Aylık]]/30","v":1018.425},{"$f":"Ucret_Turleri_2026_1[[#This Row],[Günlük]]/7.5","v":135.79},null,5,5300000.01,9999999,0.4,{"$f":"Vergi_Dilimleri_2026_1[[#This Row],[DİLİMLERİ]]*Vergi_Dilimleri_2026_1[[#This Row],[VERGİ ORANLARI]]","v":3999999.6},null,5,"Toplam",{"$f":"SUBTOTAL(109,O3:O6)","v":0.23749999999999996},{"$f":"SUBTOTAL(109,P3:P6)","v":0.15000000000000002},{"$f":"SUM(Isveren_prim_oranlari_normal_2026_1[[#This Row],[İşveren Payı]:[Çalışan Payı]])","v":0.38749999999999996}]
[6,"Kıdem Tazminanı Tavanı 1. Dönem",64948.77,{"$f":"Ucret_Turleri_2026_1[[#This Row],[Aylık]]/30","v":2164.9589999999998},{"$f":"Ucret_Turleri_2026_1[[#This Row],[Günlük]]/7.5","v":288.66119999999995},null,null,null,null,null,null,null,6,"Hazine",null,null,0.02]
[7,"1.DERECE ENGELLİ",12000,{"$f":"Ucret_Turleri_2026_1[[#This Row],[Aylık]]/30","v":400},{"$f":"Ucret_Turleri_2026_1[[#This Row],[Günlük]]/7.5","v":53.333333333333336},null,null,null,null,null,null,null,7,"Hazine (İmalat)",null,null,0.05]
[8,"2.DERECE ENGELLİ",7000,{"$f":"Ucret_Turleri_2026_1[[#This Row],[Aylık]]/30","v":233.33333333333334},{"$f":"Ucret_Turleri_2026_1[[#This Row],[Günlük]]/7.5","v":31.111111111111111},null,null,null,null,null,null,null,8,"Damga Vergisi Oranı",null,null,7.5900000000000004E-3]
[9,"3.DERECE ENGELLİ",3000,{"$f":"Ucret_Turleri_2026_1[[#This Row],[Aylık]]/30","v":100},{"$f":"Ucret_Turleri_2026_1[[#This Row],[Günlük]]/7.5","v":13.333333333333334}]
[10,"Stajyer Ücreti",8422.65,{"$f":"Ucret_Turleri_2026_1[[#This Row],[Aylık]]/30","v":280.755},{"$f":"Ucret_Turleri_2026_1[[#This Row],[Günlük]]/7.5","v":37.433999999999997},null,null,null,null,null,null,null,"indx","SGDP Oranı","İşveren Payı","Çalışan Payı","Toplam"]
[11,"Çocuk Yardımı SGK İstisnası",660.6,{"$f":"Ucret_Turleri_2026_1[[#This Row],[Aylık]]/30","v":22.02},{"$f":"Ucret_Turleri_2026_1[[#This Row],[Günlük]]/7.5","v":2.9359999999999999},null,null,null,null,null,null,null,1,"Emekli Çalışan",0.2475,7.4999999999999997E-2,0.32250000000000001]
[12,"Aile Yardımı SGK İstisnası",3303,{"$f":"Ucret_Turleri_2026_1[[#This Row],[Aylık]]/30","v":110.1},{"$f":"Ucret_Turleri_2026_1[[#This Row],[Günlük]]/7.5","v":14.68}]
[13,"Nakit Yemek Parası SGK İstisnası",158,{"$f":"Ucret_Turleri_2026_1[[#This Row],[Aylık]]/30","v":5.2666666666666666},{"$f":"Ucret_Turleri_2026_1[[#This Row],[Günlük]]/7.5","v":0.70222222222222219}]
[14,"Yemek Kartı SGK İstisnası",158,{"$f":"Ucret_Turleri_2026_1[[#This Row],[Aylık]]/30","v":5.2666666666666666},{"$f":"Ucret_Turleri_2026_1[[#This Row],[Günlük]]/7.5","v":0.70222222222222219}]
[15,"Yemek Kartı GV İstisnası",300,{"$f":"Ucret_Turleri_2026_1[[#This Row],[Aylık]]/30","v":10},{"$f":"Ucret_Turleri_2026_1[[#This Row],[Günlük]]/7.5","v":1.3333333333333333}]
[16,"Nakit Yemek Parası GV İstisnası",300,{"$f":"Ucret_Turleri_2026_1[[#This Row],[Aylık]]/30","v":10},{"$f":"Ucret_Turleri_2026_1[[#This Row],[Günlük]]/7.5","v":1.3333333333333333}]
[17,"Nakit Yemek Parası DV İstisnası",300,{"$f":"Ucret_Turleri_2026_1[[#This Row],[Aylık]]/30","v":10},{"$f":"Ucret_Turleri_2026_1[[#This Row],[Günlük]]/7.5","v":1.3333333333333333}]
[18,"Yol/Ulaşım Kartı GV İstisnası",158,{"$f":"Ucret_Turleri_2026_1[[#This Row],[Aylık]]/30","v":5.2666666666666666},{"$f":"Ucret_Turleri_2026_1[[#This Row],[Günlük]]/7.5","v":0.70222222222222219}]
[19,"Çocuk Yardımı GV İstisnası – 0-6 yaş",787.76,{"$f":"Ucret_Turleri_2026_1[[#This Row],[Aylık]]/30","v":26.258666666666667},{"$f":"Ucret_Turleri_2026_1[[#This Row],[Günlük]]/7.5","v":3.5011555555555556}]
[20,"Çocuk Yardımı GV İstisnası – 6 yaş üzeri",393.88,{"$f":"Ucret_Turleri_2026_1[[#This Row],[Aylık]]/30","v":13.129333333333333},{"$f":"Ucret_Turleri_2026_1[[#This Row],[Günlük]]/7.5","v":1.7505777777777778}]
[21,"Emzirme Ödeneği",1621,{"$f":"Ucret_Turleri_2026_1[[#This Row],[Aylık]]/30","v":54.033333333333331},{"$f":"Ucret_Turleri_2026_1[[#This Row],[Günlük]]/7.5","v":7.2044444444444444}]
[22,"İşsizlik Ödeneği – Alt Limit",13111.79,{"$f":"Ucret_Turleri_2026_1[[#This Row],[Aylık]]/30","v":437.05966666666671},{"$f":"Ucret_Turleri_2026_1[[#This Row],[Günlük]]/7.5","v":58.274622222222227}]
[23,"İşsizlik Ödeneği – Üst Limit",26223.439999999999,{"$f":"Ucret_Turleri_2026_1[[#This Row],[Aylık]]/30","v":874.11466666666661},{"$f":"Ucret_Turleri_2026_1[[#This Row],[Günlük]]/7.5","v":116.54862222222222}]
[24,"İş Göremezlik Ödeneği Ayakta Tedavi – Alt Limit",null,{"$f":"Ucret_Turleri_2026_1[[#This Row],[Aylık]]/30","v":0},{"$f":"Ucret_Turleri_2026_1[[#This Row],[Günlük]]/7.5","v":0}]
[25,"İş Göremezlik Ödeneği Ayakta Tedavi – Üst Limit",null,{"$f":"Ucret_Turleri_2026_1[[#This Row],[Aylık]]/30","v":0},{"$f":"Ucret_Turleri_2026_1[[#This Row],[Günlük]]/7.5","v":0}]
[26,"İş Göremezlik Ödeneği Yatarak Tedavi – Alt Limit",null,{"$f":"Ucret_Turleri_2026_1[[#This Row],[Aylık]]/30","v":0},{"$f":"Ucret_Turleri_2026_1[[#This Row],[Günlük]]/7.5","v":0}]
[27,"İş Göremezlik Ödeneği Yatarak Tedavi – Üst Limit",null,{"$f":"Ucret_Turleri_2026_1[[#This Row],[Aylık]]/30","v":0},{"$f":"Ucret_Turleri_2026_1[[#This Row],[Günlük]]/7.5","v":0}]
[28,"Yarım Çalışma Ödeneği",null,{"$f":"Ucret_Turleri_2026_1[[#This Row],[Aylık]]/30","v":0},{"$f":"Ucret_Turleri_2026_1[[#This Row],[Günlük]]/7.5","v":0}]
[]
[]
[]
[]
[]
[]
[]
[]
[]
[]
[]
[]
[]
["2. DÖNEM"]
["indx","Ücret Türü","Aylık","Günlük","Saatlik",null,"indx","VERGİ","DİLİMLERİ","VERGİ ORANLARI","VERGİ KESİNTİSİ",null,"indx","Sigorta Kolu","İşveren Payı","Çalışan Payı","Toplam"]
[1,"Asgari Brüt",33030,{"$f":"Ucret_Turleri_2026_2[[#This Row],[Aylık]]/30","v":1101},{"$f":"Ucret_Turleri_2026_2[[#This Row],[Günlük]]/7.5","v":146.80000000000001},null,1,0,190000,0.15,{"$f":"Vergi_Dilimleri_2026_2[[#This Row],[DİLİMLERİ]]*Vergi_Dilimleri_2026_2[[#This Row],[VERGİ ORANLARI]]","v":28500},null,1,"Malüllük, Yaşlılık ve Ölüm",0.12,0.09,0.2]
[{"$f":"A46+1","v":2},"SGK Tavan",297270,{"$f":"Ucret_Turleri_2026_2[[#This Row],[Aylık]]/30","v":9909},{"$f":"Ucret_Turleri_2026_2[[#This Row],[Günlük]]/7.5","v":1321.2},null,{"$f":"G46+1","v":2},{"$f":"I46+0.01","v":190000.01},400000,0.2,{"$f":"Vergi_Dilimleri_2026_2[[#This Row],[DİLİMLERİ]]*Vergi_Dilimleri_2026_2[[#This Row],[VERGİ ORANLARI]]","v":80000},null,{"$f":"M46+1","v":2},"Kısa Vadeli Sigorta Kolları",2.2499999999999999E-2,"-",0.02]
[{"$f":"A47+1","v":3},"Net Ücret",28075.5,{"$f":"Ucret_Turleri_2026_2[[#This Row],[Aylık]]/30","v":935.85},{"$f":"Ucret_Turleri_2026_2[[#This Row],[Günlük]]/7.5","v":124.78},null,{"$f":"G47+1","v":3},{"$f":"I47+0.01","v":400000.01},1500000,0.27,{"$f":"Vergi_Dilimleri_2026_2[[#This Row],[DİLİMLERİ]]*Vergi_Dilimleri_2026_2[[#This Row],[VERGİ ORANLARI]]","v":405000},null,{"$f":"M47+1","v":3},"Genel Sağlık Sigortası",7.4999999999999997E-2,0.05,0.125]
[4,"Emekli Net Ücret (Yıllık Ortalama)",30057.3,{"$f":"Ucret_Turleri_2026_2[[#This Row],[Aylık]]/30","v":1001.91},{"$f":"Ucret_Turleri_2026_2[[#This Row],[Günlük]]/7.5","v":133.58799999999999},null,4,1500000.01,5300000,0.35,{"$f":"Vergi_Dilimleri_2026_2[[#This Row],[DİLİMLERİ]]*Vergi_Dilimleri_2026_2[[#This Row],[VERGİ ORANLARI]]","v":1854999.9999999998},null,4,"İşsizlik Sigortası",0.02,0.01]
[5,"Emekli Engelli Net Ücret (Yıllık Ortalama)",30552.75,{"$f":"Ucret_Turleri_2026_2[[#This Row],[Aylık]]/30","v":1018.425},{"$f":"Ucret_Turleri_2026_2[[#This Row],[Günlük]]/7.5","v":135.79},null,5,5300000.01,9999999,0.4,{"$f":"Vergi_Dilimleri_2026_2[[#This Row],[DİLİMLERİ]]*Vergi_Dilimleri_2026_2[[#This Row],[VERGİ ORANLARI]]","v":3999999.6},null,5,"Toplam",{"$f":"SUBTOTAL(109,O46:O49)","v":0.23749999999999996},{"$f":"SUBTOTAL(109,P46:P49)","v":0.15000000000000002},{"$f":"SUM(Isveren_prim_oranlari_normal_2026_2[[#This Row],[İşveren Payı]:[Çalışan Payı]])","v":0.38749999999999996}]
[6,"Kıdem Tazminanı Tavanı 2. Dönem",73729.87,{"$f":"Ucret_Turleri_2026_2[[#This Row],[Aylık]]/30","v":2457.6623333333332},{"$f":"Ucret_Turleri_2026_2[[#This Row],[Günlük]]/7.5","v":327.68831111111109},null,null,null,null,null,null,null,6,"Hazine",null,null,0.02]
[7,"1.DERECE ENGELLİ",12000,{"$f":"Ucret_Turleri_2026_2[[#This Row],[Aylık]]/30","v":400},{"$f":"Ucret_Turleri_2026_2[[#This Row],[Günlük]]/7.5","v":53.333333333333336},null,null,null,null,null,null,null,7,"Hazine (İmalat)",null,null,0.05]
[8,"2.DERECE ENGELLİ",7000,{"$f":"Ucret_Turleri_2026_2[[#This Row],[Aylık]]/30","v":233.33333333333334},{"$f":"Ucret_Turleri_2026_2[[#This Row],[Günlük]]/7.5","v":31.111111111111111},null,null,null,null,null,null,null,8,"Damga Vergisi Oranı",null,null,7.5900000000000004E-3]
[9,"3.DERECE ENGELLİ",3000,{"$f":"Ucret_Turleri_2026_2[[#This Row],[Aylık]]/30","v":100},{"$f":"Ucret_Turleri_2026_2[[#This Row],[Günlük]]/7.5","v":13.333333333333334}]
[10,"Stajyer Ücreti",8422.65,{"$f":"Ucret_Turleri_2026_2[[#This Row],[Aylık]]/30","v":280.755},{"$f":"Ucret_Turleri_2026_2[[#This Row],[Günlük]]/7.5","v":37.433999999999997},null,null,null,null,null,null,null,"indx","SGDP Oranı","İşveren Payı","Çalışan Payı","Toplam"]
[11,"Çocuk Yardımı SGK İstisnası",660.6,{"$f":"Ucret_Turleri_2026_2[[#This Row],[Aylık]]/30","v":22.02},{"$f":"Ucret_Turleri_2026_2[[#This Row],[Günlük]]/7.5","v":2.9359999999999999},null,null,null,null,null,null,null,1,"Emekli Çalışan",0.2475,7.4999999999999997E-2,0.32250000000000001]
[12,"Aile Yardımı SGK İstisnası",3303,{"$f":"Ucret_Turleri_2026_2[[#This Row],[Aylık]]/30","v":110.1},{"$f":"Ucret_Turleri_2026_2[[#This Row],[Günlük]]/7.5","v":14.68}]
[13,"Nakit Yemek Parası SGK İstisnası",300,{"$f":"Ucret_Turleri_2026_2[[#This Row],[Aylık]]/30","v":10},{"$f":"Ucret_Turleri_2026_2[[#This Row],[Günlük]]/7.5","v":1.3333333333333333}]
[14,"Yemek Kartı SGK İstisnası",300,{"$f":"Ucret_Turleri_2026_2[[#This Row],[Aylık]]/30","v":10},{"$f":"Ucret_Turleri_2026_2[[#This Row],[Günlük]]/7.5","v":1.3333333333333333}]
[15,"Yemek Kartı GV İstisnası",300,{"$f":"Ucret_Turleri_2026_2[[#This Row],[Aylık]]/30","v":10},{"$f":"Ucret_Turleri_2026_2[[#This Row],[Günlük]]/7.5","v":1.3333333333333333}]
[16,"Nakit Yemek Parası GV İstisnası",300,{"$f":"Ucret_Turleri_2026_2[[#This Row],[Aylık]]/30","v":10},{"$f":"Ucret_Turleri_2026_2[[#This Row],[Günlük]]/7.5","v":1.3333333333333333}]
[17,"Nakit Yemek Parası DV İstisnası",300,{"$f":"Ucret_Turleri_2026_2[[#This Row],[Aylık]]/30","v":10},{"$f":"Ucret_Turleri_2026_2[[#This Row],[Günlük]]/7.5","v":1.3333333333333333}]
[18,"Yol/Ulaşım Kartı GV İstisnası",158,{"$f":"Ucret_Turleri_2026_2[[#This Row],[Aylık]]/30","v":5.2666666666666666},{"$f":"Ucret_Turleri_2026_2[[#This Row],[Günlük]]/7.5","v":0.70222222222222219}]
[19,"Çocuk Yardımı GV İstisnası – 0-6 yaş",787.76,{"$f":"Ucret_Turleri_2026_2[[#This Row],[Aylık]]/30","v":26.258666666666667},{"$f":"Ucret_Turleri_2026_2[[#This Row],[Günlük]]/7.5","v":3.5011555555555556}]
[20,"Çocuk Yardımı GV İstisnası – 6 yaş üzeri",393.88,{"$f":"Ucret_Turleri_2026_2[[#This Row],[Aylık]]/30","v":13.129333333333333},{"$f":"Ucret_Turleri_2026_2[[#This Row],[Günlük]]/7.5","v":1.7505777777777778}]
[21,"Emzirme Ödeneği",1621,{"$f":"Ucret_Turleri_2026_2[[#This Row],[Aylık]]/30","v":54.033333333333331},{"$f":"Ucret_Turleri_2026_2[[#This Row],[Günlük]]/7.5","v":7.2044444444444444}]
[22,"İşsizlik Ödeneği – Alt Limit",13111.79,{"$f":"Ucret_Turleri_2026_2[[#This Row],[Aylık]]/30","v":437.05966666666671},{"$f":"Ucret_Turleri_2026_2[[#This Row],[Günlük]]/7.5","v":58.274622222222227}]
[23,"İşsizlik Ödeneği – Üst Limit",26223.439999999999,{"$f":"Ucret_Turleri_2026_2[[#This Row],[Aylık]]/30","v":874.11466666666661},{"$f":"Ucret_Turleri_2026_2[[#This Row],[Günlük]]/7.5","v":116.54862222222222}]
[24,"İş Göremezlik Ödeneği Ayakta Tedavi – Alt Limit",null,{"$f":"Ucret_Turleri_2026_2[[#This Row],[Aylık]]/30","v":0},{"$f":"Ucret_Turleri_2026_2[[#This Row],[Günlük]]/7.5","v":0}]
[25,"İş Göremezlik Ödeneği Ayakta Tedavi – Üst Limit",null,{"$f":"Ucret_Turleri_2026_2[[#This Row],[Aylık]]/30","v":0},{"$f":"Ucret_Turleri_2026_2[[#This Row],[Günlük]]/7.5","v":0}]
[26,"İş Göremezlik Ödeneği Yatarak Tedavi – Alt Limit",null,{"$f":"Ucret_Turleri_2026_2[[#This Row],[Aylık]]/30","v":0},{"$f":"Ucret_Turleri_2026_2[[#This Row],[Günlük]]/7.5","v":0}]
[27,"İş Göremezlik Ödeneği Yatarak Tedavi – Üst Limit",null,{"$f":"Ucret_Turleri_2026_2[[#This Row],[Aylık]]/30","v":0},{"$f":"Ucret_Turleri_2026_2[[#This Row],[Günlük]]/7.5","v":0}]
[28,"Yarım Çalışma Ödeneği",null,{"$f":"Ucret_Turleri_2026_2[[#This Row],[Aylık]]/30","v":0},{"$f":"Ucret_Turleri_2026_2[[#This Row],[Günlük]]/7.5","v":0}]

{"sheet":"2025","index":6,"n_rows":73,"n_cols":17,"rows_kept":73,"cut":false,"hidden":false,"merged":[[0,0,0,16],[43,0,43,16]]}
["1. DÖNEM"]
["indx","Ücret Türü","Aylık","Günlük","Saatlik",null,"indx","VERGİ","DİLİMLERİ","VERGİ ORANLARI","VERGİ KESİNTİSİ",null,"indx","Sigorta Kolu","İşveren Payı","Çalışan Payı","Toplam"]
[1,"Asgari Brüt",26005.5,{"$f":"Ucret_Turleri_2025_1[[#This Row],[Aylık]]/30","v":866.85},{"$f":"Ucret_Turleri_2025_1[[#This Row],[Günlük]]/7.5","v":115.58},null,1,0,158000,0.15,{"$f":"Vergi_Dilimleri_2025_1[[#This Row],[DİLİMLERİ]]*Vergi_Dilimleri_2025_1[[#This Row],[VERGİ ORANLARI]]","v":23700},null,1,"Malüllük, Yaşlılık ve Ölüm",0.11,0.09,0.2]
[{"$f":"A3+1","v":2},"SGK Tavan",195041.4,{"$f":"Ucret_Turleri_2025_1[[#This Row],[Aylık]]/30","v":6501.38},{"$f":"Ucret_Turleri_2025_1[[#This Row],[Günlük]]/7.5","v":866.85066666666671},null,{"$f":"G3+1","v":2},{"$f":"I3+0.01","v":158000.01},330000,0.2,{"$f":"Vergi_Dilimleri_2025_1[[#This Row],[DİLİMLERİ]]*Vergi_Dilimleri_2025_1[[#This Row],[VERGİ ORANLARI]]","v":66000},null,{"$f":"M3+1","v":2},"Kısa Vadeli Sigorta Kolları",2.2499999999999999E-2,"-",0.02]
[{"$f":"A4+1","v":3},"Net Ücret",22104.67,{"$f":"Ucret_Turleri_2025_1[[#This Row],[Aylık]]/30","v":736.82233333333329},{"$f":"Ucret_Turleri_2025_1[[#This Row],[Günlük]]/7.5","v":98.242977777777767},null,{"$f":"G4+1","v":3},{"$f":"I4+0.01","v":330000.01},1200000,0.27,{"$f":"Vergi_Dilimleri_2025_1[[#This Row],[DİLİMLERİ]]*Vergi_Dilimleri_2025_1[[#This Row],[VERGİ ORANLARI]]","v":324000},null,{"$f":"M4+1","v":3},"Genel Sağlık Sigortası",7.4999999999999997E-2,0.05,0.125]
[4,"Emekli Net Ücret (Yıllık Ortalama)",23665.01,{"$f":"Ucret_Turleri_2025_1[[#This Row],[Aylık]]/30","v":788.83366666666666},{"$f":"Ucret_Turleri_2025_1[[#This Row],[Günlük]]/7.5","v":105.17782222222222},null,4,1200000.01,4300000,0.35,{"$f":"Vergi_Dilimleri_2025_1[[#This Row],[DİLİMLERİ]]*Vergi_Dilimleri_2025_1[[#This Row],[VERGİ ORANLARI]]","v":1505000},null,4,"İşsizlik Sigortası",0.02,0.01]
[5,"Emekli Engelli Net Ücret (Yıllık Ortalama)",24055.09,{"$f":"Ucret_Turleri_2025_1[[#This Row],[Aylık]]/30","v":801.8363333333333},{"$f":"Ucret_Turleri_2025_1[[#This Row],[Günlük]]/7.5","v":106.91151111111111},null,5,4300000.01,9999999,0.4,{"$f":"Vergi_Dilimleri_2025_1[[#This Row],[DİLİMLERİ]]*Vergi_Dilimleri_2025_1[[#This Row],[VERGİ ORANLARI]]","v":3999999.6},null,5,"Toplam",{"$f":"SUBTOTAL(109,O3:O6)","v":0.22750000000000001},{"$f":"SUBTOTAL(109,P3:P6)","v":0.15000000000000002},{"$f":"SUM(Isveren_prim_oranlari_normal_2025_1[[#This Row],[İşveren Payı]:[Çalışan Payı]])","v":0.37750000000000006}]
[6,"Kıdem Tazminanı Tavanı 1. Dönem",46655.43,{"$f":"Ucret_Turleri_2025_1[[#This Row],[Aylık]]/30","v":1555.181},{"$f":"Ucret_Turleri_2025_1[[#This Row],[Günlük]]/7.5","v":207.35746666666668},null,null,null,null,null,null,null,6,"Hazine",null,null,0.04]
[7,"1.DERECE ENGELLİ",9900,{"$f":"Ucret_Turleri_2025_1[[#This Row],[Aylık]]/30","v":330},{"$f":"Ucret_Turleri_2025_1[[#This Row],[Günlük]]/7.5","v":44},null,null,null,null,null,null,null,7,"Hazine (İmalat)",null,null,0.05]
[8,"2.DERECE ENGELLİ",5700,{"$f":"Ucret_Turleri_2025_1[[#This Row],[Aylık]]/30","v":190},{"$f":"Ucret_Turleri_2025_1[[#This Row],[Günlük]]/7.5","v":25.333333333333332},null,null,null,null,null,null,null,8,"Damga Vergisi Oranı",null,null,7.5900000000000004E-3]
[9,"3.DERECE ENGELLİ",2400,{"$f":"Ucret_Turleri_2025_1[[#This Row],[Aylık]]/30","v":80},{"$f":"Ucret_Turleri_2025_1[[#This Row],[Günlük]]/7.5","v":10.666666666666666}]
[10,"Stajyer Ücreti",6631.4,{"$f":"Ucret_Turleri_2025_1[[#This Row],[Aylık]]/30","v":221.04666666666665},{"$f":"Ucret_Turleri_2025_1[[#This Row],[Günlük]]/7.5","v":29.472888888888885},null,null,null,null,null,null,null,"indx","SGDP Oranı","İşveren Payı","Çalışan Payı","Toplam"]
[11,"Çocuk Yardımı SGK İstisnası",520.11,{"$f":"Ucret_Turleri_2025_1[[#This Row],[Aylık]]/30","v":17.337},{"$f":"Ucret_Turleri_2025_1[[#This Row],[Günlük]]/7.5","v":2.3115999999999999},null,null,null,null,null,null,null,1,"Emekli Çalışan",0.2475,7.4999999999999997E-2,0.32250000000000001]
[12,"Aile Yardımı SGK İstisnası",2600.5500000000002,{"$f":"Ucret_Turleri_2025_1[[#This Row],[Aylık]]/30","v":86.685000000000002},{"$f":"Ucret_Turleri_2025_1[[#This Row],[Günlük]]/7.5","v":11.558}]
[13,"Nakit Yemek Parası SGK İstisnası",158,{"$f":"Ucret_Turleri_2025_1[[#This Row],[Aylık]]/30","v":5.2666666666666666},{"$f":"Ucret_Turleri_2025_1[[#This Row],[Günlük]]/7.5","v":0.70222222222222219}]
[14,"Yemek Kartı SGK İstisnası",null,{"$f":"Ucret_Turleri_2025_1[[#This Row],[Aylık]]/30","v":0},{"$f":"Ucret_Turleri_2025_1[[#This Row],[Günlük]]/7.5","v":0}]
[15,"Yemek Kartı GV İstisnası",240,{"$f":"Ucret_Turleri_2025_1[[#This Row],[Aylık]]/30","v":8},{"$f":"Ucret_Turleri_2025_1[[#This Row],[Günlük]]/7.5","v":1.0666666666666667}]
[16,"Nakit Yemek Parası GV İstisnası",240,{"$f":"Ucret_Turleri_2025_1[[#This Row],[Aylık]]/30","v":8},{"$f":"Ucret_Turleri_2025_1[[#This Row],[Günlük]]/7.5","v":1.0666666666666667}]
[17,"Nakit Yemek Parası DV İstisnası",null,{"$f":"Ucret_Turleri_2025_1[[#This Row],[Aylık]]/30","v":0},{"$f":"Ucret_Turleri_2025_1[[#This Row],[Günlük]]/7.5","v":0}]
[18,"Yol/Ulaşım Kartı GV İstisnası",126,{"$f":"Ucret_Turleri_2025_1[[#This Row],[Aylık]]/30","v":4.2},{"$f":"Ucret_Turleri_2025_1[[#This Row],[Günlük]]/7.5","v":0.56000000000000005}]
[19,"Çocuk Yardımı GV İstisnası – 0-6 yaş",506.28,{"$f":"Ucret_Turleri_2025_1[[#This Row],[Aylık]]/30","v":16.875999999999998},{"$f":"Ucret_Turleri_2025_1[[#This Row],[Günlük]]/7.5","v":2.2501333333333329}]
[20,"Çocuk Yardımı GV İstisnası – 6 yaş üzeri",253.14,{"$f":"Ucret_Turleri_2025_1[[#This Row],[Aylık]]/30","v":8.4379999999999988},{"$f":"Ucret_Turleri_2025_1[[#This Row],[Günlük]]/7.5","v":1.1250666666666664}]
[21,"Emzirme Ödeneği",1238,{"$f":"Ucret_Turleri_2025_1[[#This Row],[Aylık]]/30","v":41.266666666666666},{"$f":"Ucret_Turleri_2025_1[[#This Row],[Günlük]]/7.5","v":5.5022222222222217}]
[22,"İşsizlik Ödeneği – Alt Limit",10323.25,{"$f":"Ucret_Turleri_2025_1[[#This Row],[Aylık]]/30","v":344.10833333333335},{"$f":"Ucret_Turleri_2025_1[[#This Row],[Günlük]]/7.5","v":45.88111111111111}]
[23,"İşsizlik Ödeneği – Üst Limit",20646.490000000002,{"$f":"Ucret_Turleri_2025_1[[#This Row],[Aylık]]/30","v":688.21633333333341},{"$f":"Ucret_Turleri_2025_1[[#This Row],[Günlük]]/7.5","v":91.762177777777794}]
[24,"İş Göremezlik Ödeneği Ayakta Tedavi – Alt Limit",17337,{"$f":"Ucret_Turleri_2025_1[[#This Row],[Aylık]]/30","v":577.9},{"$f":"Ucret_Turleri_2025_1[[#This Row],[Günlük]]/7.5","v":77.053333333333327}]
[25,"İş Göremezlik Ödeneği Ayakta Tedavi – Üst Limit",130027.5,{"$f":"Ucret_Turleri_2025_1[[#This Row],[Aylık]]/30","v":4334.25},{"$f":"Ucret_Turleri_2025_1[[#This Row],[Günlük]]/7.5","v":577.9}]
[26,"İş Göremezlik Ödeneği Yatarak Tedavi – Alt Limit",13002.9,{"$f":"Ucret_Turleri_2025_1[[#This Row],[Aylık]]/30","v":433.43},{"$f":"Ucret_Turleri_2025_1[[#This Row],[Günlük]]/7.5","v":57.790666666666667}]
[27,"İş Göremezlik Ödeneği Yatarak Tedavi – Üst Limit",97520.7,{"$f":"Ucret_Turleri_2025_1[[#This Row],[Aylık]]/30","v":3250.69},{"$f":"Ucret_Turleri_2025_1[[#This Row],[Günlük]]/7.5","v":433.42533333333336}]
[28,"Yarım Çalışma Ödeneği",860.27,{"$f":"Ucret_Turleri_2025_1[[#This Row],[Aylık]]/30","v":28.675666666666665},{"$f":"Ucret_Turleri_2025_1[[#This Row],[Günlük]]/7.5","v":3.8234222222222218}]
[]
[]
[]
[]
[]
[]
[]
[]
[]
[]
[]
[]
[]
["2. DÖNEM"]
["indx","Ücret Türü","Aylık","Günlük","Saatlik",null,"indx","VERGİ","DİLİMLERİ","VERGİ ORANLARI","VERGİ KESİNTİSİ",null,"indx","Sigorta Kolu","İşveren Payı","Çalışan Payı","Toplam"]
[1,"Asgari Brüt",26005.5,{"$f":"Ucret_Turleri_2025_2[[#This Row],[Aylık]]/30","v":866.85},{"$f":"Ucret_Turleri_2025_2[[#This Row],[Günlük]]/7.5","v":115.58},null,1,0,158000,0.15,{"$f":"Vergi_Dilimleri_2025_2[[#This Row],[DİLİMLERİ]]*Vergi_Dilimleri_2025_2[[#This Row],[VERGİ ORANLARI]]","v":23700},null,1,"Malüllük, Yaşlılık ve Ölüm",0.11,0.09,0.2]
[{"$f":"A46+1","v":2},"SGK Tavan",195041.4,{"$f":"Ucret_Turleri_2025_2[[#This Row],[Aylık]]/30","v":6501.38},{"$f":"Ucret_Turleri_2025_2[[#This Row],[Günlük]]/7.5","v":866.85066666666671},null,{"$f":"G46+1","v":2},{"$f":"I46+0.01","v":158000.01},330000,0.2,{"$f":"Vergi_Dilimleri_2025_2[[#This Row],[DİLİMLERİ]]*Vergi_Dilimleri_2025_2[[#This Row],[VERGİ ORANLARI]]","v":66000},null,{"$f":"M46+1","v":2},"Kısa Vadeli Sigorta Kolları",2.2499999999999999E-2,"-",0.02]
[{"$f":"A47+1","v":3},"Net Ücret",22104.67,{"$f":"Ucret_Turleri_2025_2[[#This Row],[Aylık]]/30","v":736.82233333333329},{"$f":"Ucret_Turleri_2025_2[[#This Row],[Günlük]]/7.5","v":98.242977777777767},null,{"$f":"G47+1","v":3},{"$f":"I47+0.01","v":330000.01},1200000,0.27,{"$f":"Vergi_Dilimleri_2025_2[[#This Row],[DİLİMLERİ]]*Vergi_Dilimleri_2025_2[[#This Row],[VERGİ ORANLARI]]","v":324000},null,{"$f":"M47+1","v":3},"Genel Sağlık Sigortası",7.4999999999999997E-2,0.05,0.125]
[4,"Emekli Net Ücret (Yıllık Ortalama)",23665.01,{"$f":"Ucret_Turleri_2025_2[[#This Row],[Aylık]]/30","v":788.83366666666666},{"$f":"Ucret_Turleri_2025_2[[#This Row],[Günlük]]/7.5","v":105.17782222222222},null,4,1200000.01,4300000,0.35,{"$f":"Vergi_Dilimleri_2025_2[[#This Row],[DİLİMLERİ]]*Vergi_Dilimleri_2025_2[[#This Row],[VERGİ ORANLARI]]","v":1505000},null,4,"İşsizlik Sigortası",0.02,0.01]
[5,"Emekli Engelli Net Ücret (Yıllık Ortalama)",24055.09,{"$f":"Ucret_Turleri_2025_2[[#This Row],[Aylık]]/30","v":801.8363333333333},{"$f":"Ucret_Turleri_2025_2[[#This Row],[Günlük]]/7.5","v":106.91151111111111},null,5,4300000.01,9999999,0.4,{"$f":"Vergi_Dilimleri_2025_2[[#This Row],[DİLİMLERİ]]*Vergi_Dilimleri_2025_2[[#This Row],[VERGİ ORANLARI]]","v":3999999.6},null,5,"Toplam",{"$f":"SUBTOTAL(109,O46:O49)","v":0.22750000000000001},{"$f":"SUBTOTAL(109,P46:P49)","v":0.15000000000000002},{"$f":"SUM(Isveren_prim_oranlari_normal_2025_2[[#This Row],[İşveren Payı]:[Çalışan Payı]])","v":0.37750000000000006}]
[6,"Kıdem Tazminanı Tavanı 2. Dönem",53919.68,{"$f":"Ucret_Turleri_2025_2[[#This Row],[Aylık]]/30","v":1797.3226666666667},{"$f":"Ucret_Turleri_2025_2[[#This Row],[Günlük]]/7.5","v":239.64302222222221},null,null,null,null,null,null,null,6,"Hazine",null,null,0.04]
[7,"1.DERECE ENGELLİ",9900,{"$f":"Ucret_Turleri_2025_2[[#This Row],[Aylık]]/30","v":330},{"$f":"Ucret_Turleri_2025_2[[#This Row],[Günlük]]/7.5","v":44},null,null,null,null,null,null,null,7,"Hazine (İmalat)",null,null,0.05]
[8,"2.DERECE ENGELLİ",5700,{"$f":"Ucret_Turleri_2025_2[[#This Row],[Aylık]]/30","v":190},{"$f":"Ucret_Turleri_2025_2[[#This Row],[Günlük]]/7.5","v":25.333333333333332},null,null,null,null,null,null,null,8,"Damga Vergisi Oranı",null,null,7.5900000000000004E-3]
[9,"3.DERECE ENGELLİ",2400,{"$f":"Ucret_Turleri_2025_2[[#This Row],[Aylık]]/30","v":80},{"$f":"Ucret_Turleri_2025_2[[#This Row],[Günlük]]/7.5","v":10.666666666666666}]
[10,"Stajyer Ücreti",6631.4,{"$f":"Ucret_Turleri_2025_2[[#This Row],[Aylık]]/30","v":221.04666666666665},{"$f":"Ucret_Turleri_2025_2[[#This Row],[Günlük]]/7.5","v":29.472888888888885},null,null,null,null,null,null,null,"indx","SGDP Oranı","İşveren Payı","Çalışan Payı","Toplam"]
[11,"Çocuk Yardımı SGK İstisnası",520.11,{"$f":"Ucret_Turleri_2025_2[[#This Row],[Aylık]]/30","v":17.337},{"$f":"Ucret_Turleri_2025_2[[#This Row],[Günlük]]/7.5","v":2.3115999999999999},null,null,null,null,null,null,null,1,"Emekli Çalışan",0.2475,7.4999999999999997E-2,0.32250000000000001]
[12,"Aile Yardımı SGK İstisnası",2600.5500000000002,{"$f":"Ucret_Turleri_2025_2[[#This Row],[Aylık]]/30","v":86.685000000000002},{"$f":"Ucret_Turleri_2025_2[[#This Row],[Günlük]]/7.5","v":11.558}]
[13,"Nakit Yemek Parası SGK İstisnası",158,{"$f":"Ucret_Turleri_2025_2[[#This Row],[Aylık]]/30","v":5.2666666666666666},{"$f":"Ucret_Turleri_2025_2[[#This Row],[Günlük]]/7.5","v":0.70222222222222219}]
[14,"Yemek Kartı SGK İstisnası",158,{"$f":"Ucret_Turleri_2025_2[[#This Row],[Aylık]]/30","v":5.2666666666666666},{"$f":"Ucret_Turleri_2025_2[[#This Row],[Günlük]]/7.5","v":0.70222222222222219}]
[15,"Yemek Kartı GV İstisnası",240,{"$f":"Ucret_Turleri_2025_2[[#This Row],[Aylık]]/30","v":8},{"$f":"Ucret_Turleri_2025_2[[#This Row],[Günlük]]/7.5","v":1.0666666666666667}]
[16,"Nakit Yemek Parası GV İstisnası",240,{"$f":"Ucret_Turleri_2025_2[[#This Row],[Aylık]]/30","v":8},{"$f":"Ucret_Turleri_2025_2[[#This Row],[Günlük]]/7.5","v":1.0666666666666667}]
[17,"Nakit Yemek Parası DV İstisnası",null,{"$f":"Ucret_Turleri_2025_2[[#This Row],[Aylık]]/30","v":0},{"$f":"Ucret_Turleri_2025_2[[#This Row],[Günlük]]/7.5","v":0}]
[18,"Yol/Ulaşım Kartı GV İstisnası",126,{"$f":"Ucret_Turleri_2025_2[[#This Row],[Aylık]]/30","v":4.2},{"$f":"Ucret_Turleri_2025_2[[#This Row],[Günlük]]/7.5","v":0.56000000000000005}]
[19,"Çocuk Yardımı GV İstisnası – 0-6 yaş",585.11,{"$f":"Ucret_Turleri_2025_2[[#This Row],[Aylık]]/30","v":19.503666666666668},{"$f":"Ucret_Turleri_2025_2[[#This Row],[Günlük]]/7.5","v":2.6004888888888891}]
[20,"Çocuk Yardımı GV İstisnası – 6 yaş üzeri",292.55,{"$f":"Ucret_Turleri_2025_2[[#This Row],[Aylık]]/30","v":9.7516666666666669},{"$f":"Ucret_Turleri_2025_2[[#This Row],[Günlük]]/7.5","v":1.3002222222222222}]
[21,"Emzirme Ödeneği",1238,{"$f":"Ucret_Turleri_2025_2[[#This Row],[Aylık]]/30","v":41.266666666666666},{"$f":"Ucret_Turleri_2025_2[[#This Row],[Günlük]]/7.5","v":5.5022222222222217}]
[22,"İşsizlik Ödeneği – Alt Limit",10323.25,{"$f":"Ucret_Turleri_2025_2[[#This Row],[Aylık]]/30","v":344.10833333333335},{"$f":"Ucret_Turleri_2025_2[[#This Row],[Günlük]]/7.5","v":45.88111111111111}]
[23,"İşsizlik Ödeneği – Üst Limit",20646.490000000002,{"$f":"Ucret_Turleri_2025_2[[#This Row],[Aylık]]/30","v":688.21633333333341},{"$f":"Ucret_Turleri_2025_2[[#This Row],[Günlük]]/7.5","v":91.762177777777794}]
[24,"İş Göremezlik Ödeneği Ayakta Tedavi – Alt Limit",17337,{"$f":"Ucret_Turleri_2025_2[[#This Row],[Aylık]]/30","v":577.9},{"$f":"Ucret_Turleri_2025_2[[#This Row],[Günlük]]/7.5","v":77.053333333333327}]
[25,"İş Göremezlik Ödeneği Ayakta Tedavi – Üst Limit",130027.5,{"$f":"Ucret_Turleri_2025_2[[#This Row],[Aylık]]/30","v":4334.25},{"$f":"Ucret_Turleri_2025_2[[#This Row],[Günlük]]/7.5","v":577.9}]
[26,"İş Göremezlik Ödeneği Yatarak Tedavi – Alt Limit",13002.9,{"$f":"Ucret_Turleri_2025_2[[#This Row],[Aylık]]/30","v":433.43},{"$f":"Ucret_Turleri_2025_2[[#This Row],[Günlük]]/7.5","v":57.790666666666667}]
[27,"İş Göremezlik Ödeneği Yatarak Tedavi – Üst Limit",97520.7,{"$f":"Ucret_Turleri_2025_2[[#This Row],[Aylık]]/30","v":3250.69},{"$f":"Ucret_Turleri_2025_2[[#This Row],[Günlük]]/7.5","v":433.42533333333336}]
[28,"Yarım Çalışma Ödeneği",860.27,{"$f":"Ucret_Turleri_2025_2[[#This Row],[Aylık]]/30","v":28.675666666666665},{"$f":"Ucret_Turleri_2025_2[[#This Row],[Günlük]]/7.5","v":3.8234222222222218}]

{"sheet":"2024","index":7,"n_rows":73,"n_cols":17,"rows_kept":73,"cut":false,"hidden":false,"merged":[[0,0,0,16],[43,0,43,16]]}
["1. DÖNEM"]
["indx","Ücret Türü","Aylık","Günlük","Saatlik",null,"indx","VERGİ","DİLİMLERİ","VERGİ ORANLARI","VERGİ KESİNTİSİ",null,"indx","Sigorta Kolu","İşveren Payı","Çalışan Payı","Toplam"]
[1,"Asgari Brüt",20002.5,{"$f":"Ucret_Turleri_2024_1[[#This Row],[Aylık]]/30","v":666.75},{"$f":"Ucret_Turleri_2024_1[[#This Row],[Günlük]]/7.5","v":88.9},null,1,0,110000,0.15,{"$f":"Vergi_Dilimleri_2024_1[[#This Row],[DİLİMLERİ]]*Vergi_Dilimleri_2024_1[[#This Row],[VERGİ ORANLARI]]","v":16500},null,1,"Malüllük, Yaşlılık ve Ölüm",0.11,0.09,0.2]
[{"$f":"A3+1","v":2},"SGK Tavan",150018.9,{"$f":"Ucret_Turleri_2024_1[[#This Row],[Aylık]]/30","v":5000.63},{"$f":"Ucret_Turleri_2024_1[[#This Row],[Günlük]]/7.5","v":666.75066666666669},null,{"$f":"G3+1","v":2},{"$f":"I3+0.01","v":110000.01},230000,0.2,{"$f":"Vergi_Dilimleri_2024_1[[#This Row],[DİLİMLERİ]]*Vergi_Dilimleri_2024_1[[#This Row],[VERGİ ORANLARI]]","v":46000},null,{"$f":"M3+1","v":2},"Kısa Vadeli Sigorta Kolları",0.02,"-",0.02]
[{"$f":"A4+1","v":3},"Net Ücret",17002.12,{"$f":"Ucret_Turleri_2024_1[[#This Row],[Aylık]]/30","v":566.73733333333325},{"$f":"Ucret_Turleri_2024_1[[#This Row],[Günlük]]/7.5","v":75.56497777777777},null,{"$f":"G4+1","v":3},{"$f":"I4+0.01","v":230000.01},870000,0.27,{"$f":"Vergi_Dilimleri_2024_1[[#This Row],[DİLİMLERİ]]*Vergi_Dilimleri_2024_1[[#This Row],[VERGİ ORANLARI]]","v":234900.00000000003},null,{"$f":"M4+1","v":3},"Genel Sağlık Sigortası",7.4999999999999997E-2,0.05,0.125]
[4,"Emekli Net Ücret (Yıllık Ortalama)",18202.27,{"$f":"Ucret_Turleri_2024_1[[#This Row],[Aylık]]/30","v":606.74233333333336},{"$f":"Ucret_Turleri_2024_1[[#This Row],[Günlük]]/7.5","v":80.898977777777787},null,4,870000.01,3000000,0.35,{"$f":"Vergi_Dilimleri_2024_1[[#This Row],[DİLİMLERİ]]*Vergi_Dilimleri_2024_1[[#This Row],[VERGİ ORANLARI]]","v":1050000},null,4,"İşsizlik Sigortası",0.02,0.01]
[5,"Emekli Engelli Net Ücret (Yıllık Ortalama)",18502.310000000001,{"$f":"Ucret_Turleri_2024_1[[#This Row],[Aylık]]/30","v":616.74366666666674},{"$f":"Ucret_Turleri_2024_1[[#This Row],[Günlük]]/7.5","v":82.232488888888895},null,5,3000000.01,9999999,0.4,{"$f":"Vergi_Dilimleri_2024_1[[#This Row],[DİLİMLERİ]]*Vergi_Dilimleri_2024_1[[#This Row],[VERGİ ORANLARI]]","v":3999999.6},null,5,"Toplam",{"$f":"SUBTOTAL(109,O3:O6)","v":0.22500000000000001},{"$f":"SUBTOTAL(109,P3:P6)","v":0.15000000000000002},{"$f":"SUM(Isveren_prim_oranlari_normal_2024_1[[#This Row],[İşveren Payı]:[Çalışan Payı]])","v":0.375}]
[6,"Kıdem Tazminanı Tavanı 1. Dönem",35058.58,{"$f":"Ucret_Turleri_2024_1[[#This Row],[Aylık]]/30","v":1168.6193333333333},{"$f":"Ucret_Turleri_2024_1[[#This Row],[Günlük]]/7.5","v":155.81591111111112},null,null,null,null,null,null,null,6,"Hazine",null,null,0.05]
[7,"1.DERECE ENGELLİ",6900,{"$f":"Ucret_Turleri_2024_1[[#This Row],[Aylık]]/30","v":230},{"$f":"Ucret_Turleri_2024_1[[#This Row],[Günlük]]/7.5","v":30.666666666666668},null,null,null,null,null,null,null,7,"Hazine (İmalat)",null,null,0.05]
[8,"2.DERECE ENGELLİ",4000,{"$f":"Ucret_Turleri_2024_1[[#This Row],[Aylık]]/30","v":133.33333333333334},{"$f":"Ucret_Turleri_2024_1[[#This Row],[Günlük]]/7.5","v":17.777777777777779},null,null,null,null,null,null,null,8,"Damga Vergisi Oranı",null,null,7.5900000000000004E-3]
[9,"3.DERECE ENGELLİ",1700,{"$f":"Ucret_Turleri_2024_1[[#This Row],[Aylık]]/30","v":56.666666666666664},{"$f":"Ucret_Turleri_2024_1[[#This Row],[Günlük]]/7.5","v":7.5555555555555554}]
[10,"Stajyer Ücreti",5100.6400000000003,{"$f":"Ucret_Turleri_2024_1[[#This Row],[Aylık]]/30","v":170.02133333333333},{"$f":"Ucret_Turleri_2024_1[[#This Row],[Günlük]]/7.5","v":22.66951111111111},null,null,null,null,null,null,null,"indx","SGDP Oranı","İşveren Payı","Çalışan Payı","Toplam"]
[11,"Çocuk Yardımı SGK İstisnası",400.05,{"$f":"Ucret_Turleri_2024_1[[#This Row],[Aylık]]/30","v":13.335000000000001},{"$f":"Ucret_Turleri_2024_1[[#This Row],[Günlük]]/7.5","v":1.778},null,null,null,null,null,null,null,1,"Emekli Çalışan",0.245,7.4999999999999997E-2,0.32]
[12,"Aile Yardımı SGK İstisnası",2000.25,{"$f":"Ucret_Turleri_2024_1[[#This Row],[Aylık]]/30","v":66.674999999999997},{"$f":"Ucret_Turleri_2024_1[[#This Row],[Günlük]]/7.5","v":8.8899999999999988}]
[13,"Nakit Yemek Parası SGK İstisnası",157.69,{"$f":"Ucret_Turleri_2024_1[[#This Row],[Aylık]]/30","v":5.2563333333333331},{"$f":"Ucret_Turleri_2024_1[[#This Row],[Günlük]]/7.5","v":0.70084444444444438}]
[14,"Yemek Kartı SGK İstisnası",157.69,{"$f":"Ucret_Turleri_2024_1[[#This Row],[Aylık]]/30","v":5.2563333333333331},{"$f":"Ucret_Turleri_2024_1[[#This Row],[Günlük]]/7.5","v":0.70084444444444438}]
[15,"Yemek Kartı GV İstisnası",170,{"$f":"Ucret_Turleri_2024_1[[#This Row],[Aylık]]/30","v":5.666666666666667},{"$f":"Ucret_Turleri_2024_1[[#This Row],[Günlük]]/7.5","v":0.75555555555555565}]
[16,"Nakit Yemek Parası GV İstisnası",170,{"$f":"Ucret_Turleri_2024_1[[#This Row],[Aylık]]/30","v":5.666666666666667},{"$f":"Ucret_Turleri_2024_1[[#This Row],[Günlük]]/7.5","v":0.75555555555555565}]
[17,"Nakit Yemek Parası DV İstisnası",170,{"$f":"Ucret_Turleri_2024_1[[#This Row],[Aylık]]/30","v":5.666666666666667},{"$f":"Ucret_Turleri_2024_1[[#This Row],[Günlük]]/7.5","v":0.75555555555555565}]
[18,"Yol/Ulaşım Kartı GV İstisnası",88,{"$f":"Ucret_Turleri_2024_1[[#This Row],[Aylık]]/30","v":2.9333333333333331},{"$f":"Ucret_Turleri_2024_1[[#This Row],[Günlük]]/7.5","v":0.39111111111111108}]
[19,"Çocuk Yardımı GV İstisnası – 0-6 yaş",380.44,{"$f":"Ucret_Turleri_2024_1[[#This Row],[Aylık]]/30","v":12.681333333333333},{"$f":"Ucret_Turleri_2024_1[[#This Row],[Günlük]]/7.5","v":1.6908444444444444}]
[20,"Çocuk Yardımı GV İstisnası – 6 yaş üzeri",190.22,{"$f":"Ucret_Turleri_2024_1[[#This Row],[Aylık]]/30","v":6.3406666666666665},{"$f":"Ucret_Turleri_2024_1[[#This Row],[Günlük]]/7.5","v":0.84542222222222219}]
[21,"Emzirme Ödeneği",857,{"$f":"Ucret_Turleri_2024_1[[#This Row],[Aylık]]/30","v":28.566666666666666},{"$f":"Ucret_Turleri_2024_1[[#This Row],[Günlük]]/7.5","v":3.8088888888888888}]
[22,"İşsizlik Ödeneği – Alt Limit",7940.27,{"$f":"Ucret_Turleri_2024_1[[#This Row],[Aylık]]/30","v":264.6756666666667},{"$f":"Ucret_Turleri_2024_1[[#This Row],[Günlük]]/7.5","v":35.290088888888896}]
[23,"İşsizlik Ödeneği – Üst Limit",15880.54,{"$f":"Ucret_Turleri_2024_1[[#This Row],[Aylık]]/30","v":529.3513333333334},{"$f":"Ucret_Turleri_2024_1[[#This Row],[Günlük]]/7.5","v":70.580177777777791}]
[24,"İş Göremezlik Ödeneği Ayakta Tedavi – Alt Limit",13335,{"$f":"Ucret_Turleri_2024_1[[#This Row],[Aylık]]/30","v":444.5},{"$f":"Ucret_Turleri_2024_1[[#This Row],[Günlük]]/7.5","v":59.266666666666666}]
[25,"İş Göremezlik Ödeneği Ayakta Tedavi – Üst Limit",100012.5,{"$f":"Ucret_Turleri_2024_1[[#This Row],[Aylık]]/30","v":3333.75},{"$f":"Ucret_Turleri_2024_1[[#This Row],[Günlük]]/7.5","v":444.5}]
[26,"İş Göremezlik Ödeneği Yatarak Tedavi – Alt Limit",10001.4,{"$f":"Ucret_Turleri_2024_1[[#This Row],[Aylık]]/30","v":333.38},{"$f":"Ucret_Turleri_2024_1[[#This Row],[Günlük]]/7.5","v":44.450666666666663}]
[27,"İş Göremezlik Ödeneği Yatarak Tedavi – Üst Limit",75009.3,{"$f":"Ucret_Turleri_2024_1[[#This Row],[Aylık]]/30","v":2500.31},{"$f":"Ucret_Turleri_2024_1[[#This Row],[Günlük]]/7.5","v":333.37466666666666}]
[28,"Yarım Çalışma Ödeneği",661.69,{"$f":"Ucret_Turleri_2024_1[[#This Row],[Aylık]]/30","v":22.056333333333335},{"$f":"Ucret_Turleri_2024_1[[#This Row],[Günlük]]/7.5","v":2.9408444444444446}]
[]
[]
[]
[]
[]
[]
[]
[]
[]
[]
[]
[]
[]
["2. DÖNEM"]
["indx","Ücret Türü","Aylık","Günlük","Saatlik",null,"indx","VERGİ","DİLİMLERİ","VERGİ ORANLARI","VERGİ KESİNTİSİ",null,"indx","Sigorta Kolu","İşveren Payı","Çalışan Payı","Toplam"]
[1,"Asgari Brüt",20002.5,{"$f":"Ucret_Turleri_2024_2[[#This Row],[Aylık]]/30","v":666.75},{"$f":"Ucret_Turleri_2024_2[[#This Row],[Günlük]]/7.5","v":88.9},null,1,0,110000,0.15,{"$f":"Vergi_Dilimleri_2024_2[[#This Row],[DİLİMLERİ]]*Vergi_Dilimleri_2024_2[[#This Row],[VERGİ ORANLARI]]","v":16500},null,1,"Malüllük, Yaşlılık ve Ölüm",0.11,0.09,0.2]
[{"$f":"A46+1","v":2},"SGK Tavan",150018.9,{"$f":"Ucret_Turleri_2024_2[[#This Row],[Aylık]]/30","v":5000.63},{"$f":"Ucret_Turleri_2024_2[[#This Row],[Günlük]]/7.5","v":666.75066666666669},null,{"$f":"G46+1","v":2},{"$f":"I46+0.01","v":110000.01},230000,0.2,{"$f":"Vergi_Dilimleri_2024_2[[#This Row],[DİLİMLERİ]]*Vergi_Dilimleri_2024_2[[#This Row],[VERGİ ORANLARI]]","v":46000},null,{"$f":"M46+1","v":2},"Kısa Vadeli Sigorta Kolları",2.2499999999999999E-2,"-",0.02]
[{"$f":"A47+1","v":3},"Net Ücret",17002.12,{"$f":"Ucret_Turleri_2024_2[[#This Row],[Aylık]]/30","v":566.73733333333325},{"$f":"Ucret_Turleri_2024_2[[#This Row],[Günlük]]/7.5","v":75.56497777777777},null,{"$f":"G47+1","v":3},{"$f":"I47+0.01","v":230000.01},870000,0.27,{"$f":"Vergi_Dilimleri_2024_2[[#This Row],[DİLİMLERİ]]*Vergi_Dilimleri_2024_2[[#This Row],[VERGİ ORANLARI]]","v":234900.00000000003},null,{"$f":"M47+1","v":3},"Genel Sağlık Sigortası",7.4999999999999997E-2,0.05,0.125]
[4,"Emekli Net Ücret (Yıllık Ortalama)",18202.27,{"$f":"Ucret_Turleri_2024_2[[#This Row],[Aylık]]/30","v":606.74233333333336},{"$f":"Ucret_Turleri_2024_2[[#This Row],[Günlük]]/7.5","v":80.898977777777787},null,4,870000.01,3000000,0.35,{"$f":"Vergi_Dilimleri_2024_2[[#This Row],[DİLİMLERİ]]*Vergi_Dilimleri_2024_2[[#This Row],[VERGİ ORANLARI]]","v":1050000},null,4,"İşsizlik Sigortası",0.02,0.01]
[5,"Emekli Engelli Net Ücret (Yıllık Ortalama)",18502.310000000001,{"$f":"Ucret_Turleri_2024_2[[#This Row],[Aylık]]/30","v":616.74366666666674},{"$f":"Ucret_Turleri_2024_2[[#This Row],[Günlük]]/7.5","v":82.232488888888895},null,5,3000000.01,9999999,0.4,{"$f":"Vergi_Dilimleri_2024_2[[#This Row],[DİLİMLERİ]]*Vergi_Dilimleri_2024_2[[#This Row],[VERGİ ORANLARI]]","v":3999999.6},null,5,"Toplam",{"$f":"SUBTOTAL(109,O46:O49)","v":0.22750000000000001},{"$f":"SUBTOTAL(109,P46:P49)","v":0.15000000000000002},{"$f":"SUM(Isveren_prim_oranlari_normal_2024_2[[#This Row],[İşveren Payı]:[Çalışan Payı]])","v":0.37750000000000006}]
[6,"Kıdem Tazminanı Tavanı 2. Dönem",41828.42,{"$f":"Ucret_Turleri_2024_2[[#This Row],[Aylık]]/30","v":1394.2806666666665},{"$f":"Ucret_Turleri_2024_2[[#This Row],[Günlük]]/7.5","v":185.90408888888888},null,null,null,null,null,null,null,6,"Hazine",null,null,0.05]
[7,"1.DERECE ENGELLİ",6900,{"$f":"Ucret_Turleri_2024_2[[#This Row],[Aylık]]/30","v":230},{"$f":"Ucret_Turleri_2024_2[[#This Row],[Günlük]]/7.5","v":30.666666666666668},null,null,null,null,null,null,null,7,"Hazine (İmalat)",null,null,0.05]
[8,"2.DERECE ENGELLİ",4000,{"$f":"Ucret_Turleri_2024_2[[#This Row],[Aylık]]/30","v":133.33333333333334},{"$f":"Ucret_Turleri_2024_2[[#This Row],[Günlük]]/7.5","v":17.777777777777779},null,null,null,null,null,null,null,8,"Damga Vergisi Oranı",null,null,7.5900000000000004E-3]
[9,"3.DERECE ENGELLİ",1700,{"$f":"Ucret_Turleri_2024_2[[#This Row],[Aylık]]/30","v":56.666666666666664},{"$f":"Ucret_Turleri_2024_2[[#This Row],[Günlük]]/7.5","v":7.5555555555555554}]
[10,"Stajyer Ücreti",5100.6400000000003,{"$f":"Ucret_Turleri_2024_2[[#This Row],[Aylık]]/30","v":170.02133333333333},{"$f":"Ucret_Turleri_2024_2[[#This Row],[Günlük]]/7.5","v":22.66951111111111},null,null,null,null,null,null,null,"indx","SGDP Oranı","İşveren Payı","Çalışan Payı","Toplam"]
[11,"Çocuk Yardımı SGK İstisnası",400.05,{"$f":"Ucret_Turleri_2024_2[[#This Row],[Aylık]]/30","v":13.335000000000001},{"$f":"Ucret_Turleri_2024_2[[#This Row],[Günlük]]/7.5","v":1.778},null,null,null,null,null,null,null,1,"Emekli Çalışan",0.2475,7.4999999999999997E-2,0.32250000000000001]
[12,"Aile Yardımı SGK İstisnası",2000.25,{"$f":"Ucret_Turleri_2024_2[[#This Row],[Aylık]]/30","v":66.674999999999997},{"$f":"Ucret_Turleri_2024_2[[#This Row],[Günlük]]/7.5","v":8.8899999999999988}]
[13,"Nakit Yemek Parası SGK İstisnası",157.69,{"$f":"Ucret_Turleri_2024_2[[#This Row],[Aylık]]/30","v":5.2563333333333331},{"$f":"Ucret_Turleri_2024_2[[#This Row],[Günlük]]/7.5","v":0.70084444444444438}]
[14,"Yemek Kartı SGK İstisnası",157.69,{"$f":"Ucret_Turleri_2024_2[[#This Row],[Aylık]]/30","v":5.2563333333333331},{"$f":"Ucret_Turleri_2024_2[[#This Row],[Günlük]]/7.5","v":0.70084444444444438}]
[15,"Yemek Kartı GV İstisnası",170,{"$f":"Ucret_Turleri_2024_2[[#This Row],[Aylık]]/30","v":5.666666666666667},{"$f":"Ucret_Turleri_2024_2[[#This Row],[Günlük]]/7.5","v":0.75555555555555565}]
[16,"Nakit Yemek Parası GV İstisnası",170,{"$f":"Ucret_Turleri_2024_2[[#This Row],[Aylık]]/30","v":5.666666666666667},{"$f":"Ucret_Turleri_2024_2[[#This Row],[Günlük]]/7.5","v":0.75555555555555565}]
[17,"Nakit Yemek Parası DV İstisnası",170,{"$f":"Ucret_Turleri_2024_2[[#This Row],[Aylık]]/30","v":5.666666666666667},{"$f":"Ucret_Turleri_2024_2[[#This Row],[Günlük]]/7.5","v":0.75555555555555565}]
[18,"Yol/Ulaşım Kartı GV İstisnası",88,{"$f":"Ucret_Turleri_2024_2[[#This Row],[Aylık]]/30","v":2.9333333333333331},{"$f":"Ucret_Turleri_2024_2[[#This Row],[Günlük]]/7.5","v":0.39111111111111108}]
[19,"Çocuk Yardımı GV İstisnası – 0-6 yaş",453.9,{"$f":"Ucret_Turleri_2024_2[[#This Row],[Aylık]]/30","v":15.129999999999999},{"$f":"Ucret_Turleri_2024_2[[#This Row],[Günlük]]/7.5","v":2.0173333333333332}]
[20,"Çocuk Yardımı GV İstisnası – 6 yaş üzeri",226.95,{"$f":"Ucret_Turleri_2024_2[[#This Row],[Aylık]]/30","v":7.5649999999999995},{"$f":"Ucret_Turleri_2024_2[[#This Row],[Günlük]]/7.5","v":1.0086666666666666}]
[21,"Emzirme Ödeneği",857,{"$f":"Ucret_Turleri_2024_2[[#This Row],[Aylık]]/30","v":28.566666666666666},{"$f":"Ucret_Turleri_2024_2[[#This Row],[Günlük]]/7.5","v":3.8088888888888888}]
[22,"İşsizlik Ödeneği – Alt Limit",7940.27,{"$f":"Ucret_Turleri_2024_2[[#This Row],[Aylık]]/30","v":264.6756666666667},{"$f":"Ucret_Turleri_2024_2[[#This Row],[Günlük]]/7.5","v":35.290088888888896}]
[23,"İşsizlik Ödeneği – Üst Limit",15880.54,{"$f":"Ucret_Turleri_2024_2[[#This Row],[Aylık]]/30","v":529.3513333333334},{"$f":"Ucret_Turleri_2024_2[[#This Row],[Günlük]]/7.5","v":70.580177777777791}]
[24,"İş Göremezlik Ödeneği Ayakta Tedavi – Alt Limit",13335,{"$f":"Ucret_Turleri_2024_2[[#This Row],[Aylık]]/30","v":444.5},{"$f":"Ucret_Turleri_2024_2[[#This Row],[Günlük]]/7.5","v":59.266666666666666}]
[25,"İş Göremezlik Ödeneği Ayakta Tedavi – Üst Limit",100012.5,{"$f":"Ucret_Turleri_2024_2[[#This Row],[Aylık]]/30","v":3333.75},{"$f":"Ucret_Turleri_2024_2[[#This Row],[Günlük]]/7.5","v":444.5}]
[26,"İş Göremezlik Ödeneği Yatarak Tedavi – Alt Limit",10001.4,{"$f":"Ucret_Turleri_2024_2[[#This Row],[Aylık]]/30","v":333.38},{"$f":"Ucret_Turleri_2024_2[[#This Row],[Günlük]]/7.5","v":44.450666666666663}]
[27,"İş Göremezlik Ödeneği Yatarak Tedavi – Üst Limit",75009.3,{"$f":"Ucret_Turleri_2024_2[[#This Row],[Aylık]]/30","v":2500.31},{"$f":"Ucret_Turleri_2024_2[[#This Row],[Günlük]]/7.5","v":333.37466666666666}]
[28,"Yarım Çalışma Ödeneği",661.69,{"$f":"Ucret_Turleri_2024_2[[#This Row],[Aylık]]/30","v":22.056333333333335},{"$f":"Ucret_Turleri_2024_2[[#This Row],[Günlük]]/7.5","v":2.9408444444444446}]

{"sheet":"2023","index":8,"n_rows":73,"n_cols":17,"rows_kept":73,"cut":false,"hidden":false,"merged":[[0,0,0,16],[43,0,43,16]]}
["1. DÖNEM"]
["indx","Ücret Türü","Aylık","Günlük","Saatlik",null,"indx","VERGİ","DİLİMLERİ","VERGİ ORANLARI","VERGİ KESİNTİSİ",null,"indx","Sigorta Kolu","İşveren Payı","Çalışan Payı","Toplam"]
[1,"Asgari Brüt",10008,{"$f":"Ucret_Turleri_2023_1[[#This Row],[Aylık]]/30","v":333.6},{"$f":"Ucret_Turleri_2023_1[[#This Row],[Günlük]]/7.5","v":44.480000000000004},null,1,0,70000,0.15,{"$f":"I3*J3","v":10500},null,1,"Malüllük, Yaşlılık ve Ölüm",0.11,0.09,0.2]
[{"$f":"A3+1","v":2},"SGK Tavan",75060,{"$f":"Ucret_Turleri_2023_1[[#This Row],[Aylık]]/30","v":2502},{"$f":"Ucret_Turleri_2023_1[[#This Row],[Günlük]]/7.5","v":333.6},null,{"$f":"G3+1","v":2},{"$f":"I3+0.01","v":70000.009999999995},150000,0.2,{"$f":"I4*J4","v":30000},null,{"$f":"M3+1","v":2},"Kısa Vadeli Sigorta Kolları",0.02,"-",0.02]
[{"$f":"A4+1","v":3},"Net Ücret",8506.7999999999993,{"$f":"Ucret_Turleri_2023_1[[#This Row],[Aylık]]/30","v":283.56},{"$f":"Ucret_Turleri_2023_1[[#This Row],[Günlük]]/7.5","v":37.808},null,{"$f":"G4+1","v":3},{"$f":"I4+0.01","v":150000.01},550000,0.27,148500,null,{"$f":"M4+1","v":3},"Genel Sağlık Sigortası",7.4999999999999997E-2,0.05,0.125]
[4,"Emekli Net Ücret (Yıllık Ortalama)",10657.24,{"$f":"Ucret_Turleri_2023_1[[#This Row],[Aylık]]/30","v":355.24133333333333},{"$f":"Ucret_Turleri_2023_1[[#This Row],[Günlük]]/7.5","v":47.365511111111111},null,4,550000.01,1900000,0.35,665000,null,4,"İşsizlik Sigortası",0.02,0.01]
[5,"Emekli Engelli Net Ücret (Yıllık Ortalama)",10832.91,{"$f":"Ucret_Turleri_2023_1[[#This Row],[Aylık]]/30","v":361.09699999999998},{"$f":"Ucret_Turleri_2023_1[[#This Row],[Günlük]]/7.5","v":48.146266666666662},null,5,1900000.01,9999999,0.4,3999999.6,null,5,"Toplam",{"$f":"SUBTOTAL(109,O3:O6)","v":0.22500000000000001},{"$f":"SUBTOTAL(109,P3:P6)","v":0.15000000000000002},{"$f":"SUM(Isveren_prim_oranlari_normal_2023_1[[#This Row],[İşveren Payı]:[Çalışan Payı]])","v":0.375}]
[6,"Kıdem Tazminanı Tavanı 1. Dönem",19982.830000000002,{"$f":"Ucret_Turleri_2023_1[[#This Row],[Aylık]]/30","v":666.09433333333334},{"$f":"Ucret_Turleri_2023_1[[#This Row],[Günlük]]/7.5","v":88.812577777777776},null,null,null,null,null,null,null,6,"Hazine",null,null,0.05]
[7,"1.DERECE ENGELLİ",4400,{"$f":"Ucret_Turleri_2023_1[[#This Row],[Aylık]]/30","v":146.66666666666666},{"$f":"Ucret_Turleri_2023_1[[#This Row],[Günlük]]/7.5","v":19.555555555555554},null,null,null,null,null,null,null,7,"Hazine (İmalat)",null,null,0.05]
[8,"2.DERECE ENGELLİ",2600,{"$f":"Ucret_Turleri_2023_1[[#This Row],[Aylık]]/30","v":86.666666666666671},{"$f":"Ucret_Turleri_2023_1[[#This Row],[Günlük]]/7.5","v":11.555555555555555},null,null,null,null,null,null,null,8,"Damga Vergisi Oranı",null,null,7.5900000000000004E-3]
[9,"3.DERECE ENGELLİ",1100,{"$f":"Ucret_Turleri_2023_1[[#This Row],[Aylık]]/30","v":36.666666666666664},{"$f":"Ucret_Turleri_2023_1[[#This Row],[Günlük]]/7.5","v":4.8888888888888884}]
[10,"Stajyer Ücreti",2552.04,{"$f":"Ucret_Turleri_2023_1[[#This Row],[Aylık]]/30","v":85.067999999999998},{"$f":"Ucret_Turleri_2023_1[[#This Row],[Günlük]]/7.5","v":11.3424},null,null,null,null,null,null,null,"indx","SGDP Oranı","İşveren Payı","Çalışan Payı","Toplam"]
[11,"Çocuk Yardımı SGK İstisnası",200.16,{"$f":"Ucret_Turleri_2023_1[[#This Row],[Aylık]]/30","v":6.6719999999999997},{"$f":"Ucret_Turleri_2023_1[[#This Row],[Günlük]]/7.5","v":0.88959999999999995},null,null,null,null,null,null,null,1,"Emekli Çalışan",0.245,7.4999999999999997E-2,0.32]
[12,"Aile Yardımı SGK İstisnası",1000.8,{"$f":"Ucret_Turleri_2023_1[[#This Row],[Aylık]]/30","v":33.36},{"$f":"Ucret_Turleri_2023_1[[#This Row],[Günlük]]/7.5","v":4.4479999999999995}]
[13,"Nakit Yemek Parası SGK İstisnası",78.900000000000006,{"$f":"Ucret_Turleri_2023_1[[#This Row],[Aylık]]/30","v":2.6300000000000003},{"$f":"Ucret_Turleri_2023_1[[#This Row],[Günlük]]/7.5","v":0.35066666666666674}]
[14,"Yemek Kartı SGK İstisnası",78.900000000000006,{"$f":"Ucret_Turleri_2023_1[[#This Row],[Aylık]]/30","v":2.6300000000000003},{"$f":"Ucret_Turleri_2023_1[[#This Row],[Günlük]]/7.5","v":0.35066666666666674}]
[15,"Yemek Kartı GV İstisnası",110,{"$f":"Ucret_Turleri_2023_1[[#This Row],[Aylık]]/30","v":3.6666666666666665},{"$f":"Ucret_Turleri_2023_1[[#This Row],[Günlük]]/7.5","v":0.48888888888888887}]
[16,"Nakit Yemek Parası GV İstisnası",110,{"$f":"Ucret_Turleri_2023_1[[#This Row],[Aylık]]/30","v":3.6666666666666665},{"$f":"Ucret_Turleri_2023_1[[#This Row],[Günlük]]/7.5","v":0.48888888888888887}]
[17,"Nakit Yemek Parası DV İstisnası",110,{"$f":"Ucret_Turleri_2023_1[[#This Row],[Aylık]]/30","v":3.6666666666666665},{"$f":"Ucret_Turleri_2023_1[[#This Row],[Günlük]]/7.5","v":0.48888888888888887}]
[18,"Yol/Ulaşım Kartı GV İstisnası",56,{"$f":"Ucret_Turleri_2023_1[[#This Row],[Aylık]]/30","v":1.8666666666666667},{"$f":"Ucret_Turleri_2023_1[[#This Row],[Günlük]]/7.5","v":0.24888888888888888}]
[19,"Çocuk Yardımı GV İstisnası – 0-6 yaş",216.84,{"$f":"Ucret_Turleri_2023_1[[#This Row],[Aylık]]/30","v":7.2279999999999998},{"$f":"Ucret_Turleri_2023_1[[#This Row],[Günlük]]/7.5","v":0.96373333333333333}]
[20,"Çocuk Yardımı GV İstisnası – 6 yaş üzeri",108.42,{"$f":"Ucret_Turleri_2023_1[[#This Row],[Aylık]]/30","v":3.6139999999999999},{"$f":"Ucret_Turleri_2023_1[[#This Row],[Günlük]]/7.5","v":0.48186666666666667}]
[21,"Emzirme Ödeneği",520,{"$f":"Ucret_Turleri_2023_1[[#This Row],[Aylık]]/30","v":17.333333333333332},{"$f":"Ucret_Turleri_2023_1[[#This Row],[Günlük]]/7.5","v":2.3111111111111109}]
[22,"İşsizlik Ödeneği – Alt Limit",3972.82,{"$f":"Ucret_Turleri_2023_1[[#This Row],[Aylık]]/30","v":132.42733333333334},{"$f":"Ucret_Turleri_2023_1[[#This Row],[Günlük]]/7.5","v":17.656977777777779}]
[23,"İşsizlik Ödeneği – Üst Limit",7945.63,{"$f":"Ucret_Turleri_2023_1[[#This Row],[Aylık]]/30","v":264.85433333333333},{"$f":"Ucret_Turleri_2023_1[[#This Row],[Günlük]]/7.5","v":35.313911111111111}]
[24,"İş Göremezlik Ödeneği Ayakta Tedavi – Alt Limit",6672,{"$f":"Ucret_Turleri_2023_1[[#This Row],[Aylık]]/30","v":222.4},{"$f":"Ucret_Turleri_2023_1[[#This Row],[Günlük]]/7.5","v":29.653333333333332}]
[25,"İş Göremezlik Ödeneği Ayakta Tedavi – Üst Limit",50040,{"$f":"Ucret_Turleri_2023_1[[#This Row],[Aylık]]/30","v":1668},{"$f":"Ucret_Turleri_2023_1[[#This Row],[Günlük]]/7.5","v":222.4}]
[26,"İş Göremezlik Ödeneği Yatarak Tedavi – Alt Limit",5004,{"$f":"Ucret_Turleri_2023_1[[#This Row],[Aylık]]/30","v":166.8},{"$f":"Ucret_Turleri_2023_1[[#This Row],[Günlük]]/7.5","v":22.240000000000002}]
[27,"İş Göremezlik Ödeneği Yatarak Tedavi – Üst Limit",37530,{"$f":"Ucret_Turleri_2023_1[[#This Row],[Aylık]]/30","v":1251},{"$f":"Ucret_Turleri_2023_1[[#This Row],[Günlük]]/7.5","v":166.8}]
[28,"Yarım Çalışma Ödeneği",9932.1,{"$f":"Ucret_Turleri_2023_1[[#This Row],[Aylık]]/30","v":331.07},{"$f":"Ucret_Turleri_2023_1[[#This Row],[Günlük]]/7.5","v":44.142666666666663}]
[]
[]
[]
[]
[]
[]
[]
[]
[]
[]
[]
[]
[]
["2. DÖNEM"]
["indx","Ücret Türü","Aylık","Günlük","Saatlik",null,"indx","VERGİ","DİLİMLERİ","VERGİ ORANLARI","VERGİ KESİNTİSİ",null,"indx","Sigorta Kolu","İşveren Payı","Çalışan Payı","Toplam"]
[1,"Asgari Brüt",13414.5,{"$f":"Ucret_Turleri_2023_2[[#This Row],[Aylık]]/30","v":447.15},{"$f":"Ucret_Turleri_2023_2[[#This Row],[Günlük]]/7.5","v":59.62},null,1,0,70000,0.15,{"$f":"I3*J3","v":10500},null,1,"Malüllük, Yaşlılık ve Ölüm",0.11,0.09,0.2]
[{"$f":"A46+1","v":2},"SGK Tavan",100608.9,{"$f":"Ucret_Turleri_2023_2[[#This Row],[Aylık]]/30","v":3353.6299999999997},{"$f":"Ucret_Turleri_2023_2[[#This Row],[Günlük]]/7.5","v":447.15066666666661},null,{"$f":"G46+1","v":2},{"$f":"I46+0.01","v":70000.009999999995},150000,0.2,{"$f":"I4*J4","v":30000},null,{"$f":"M46+1","v":2},"Kısa Vadeli Sigorta Kolları",0.02,"-",0.02]
[{"$f":"A47+1","v":3},"Net Ücret",11402.32,{"$f":"Ucret_Turleri_2023_2[[#This Row],[Aylık]]/30","v":380.07733333333334},{"$f":"Ucret_Turleri_2023_2[[#This Row],[Günlük]]/7.5","v":50.676977777777779},null,{"$f":"G47+1","v":3},{"$f":"I47+0.01","v":150000.01},550000,0.27,{"$f":"I5*J5","v":148500},null,{"$f":"M47+1","v":3},"Genel Sağlık Sigortası",7.4999999999999997E-2,0.05,0.125]
[4,"Emekli Net Ücret (Yıllık Ortalama)",10657.24,{"$f":"Ucret_Turleri_2023_2[[#This Row],[Aylık]]/30","v":355.24133333333333},{"$f":"Ucret_Turleri_2023_2[[#This Row],[Günlük]]/7.5","v":47.365511111111111},null,4,550000.01,1900000,0.35,{"$f":"I6*J6","v":665000},null,4,"İşsizlik Sigortası",0.02,0.01]
[5,"Emekli Engelli Net Ücret (Yıllık Ortalama)",10832.91,{"$f":"Ucret_Turleri_2023_2[[#This Row],[Aylık]]/30","v":361.09699999999998},{"$f":"Ucret_Turleri_2023_2[[#This Row],[Günlük]]/7.5","v":48.146266666666662},null,5,1900000.01,9999999,0.4,{"$f":"I7*J7","v":3999999.6},null,5,"Toplam",{"$f":"SUBTOTAL(109,O46:O49)","v":0.22500000000000001},{"$f":"SUBTOTAL(109,P46:P49)","v":0.15000000000000002},{"$f":"SUM(Isveren_prim_oranlari_normal_2023_2[[#This Row],[İşveren Payı]:[Çalışan Payı]])","v":0.375}]
[6,"Kıdem Tazminanı Tavanı 2. Dönem",23489.83,{"$f":"Ucret_Turleri_2023_2[[#This Row],[Aylık]]/30","v":782.99433333333343},{"$f":"Ucret_Turleri_2023_2[[#This Row],[Günlük]]/7.5","v":104.39924444444446},null,null,null,null,null,null,null,6,"Hazine",null,null,0.05]
[7,"1.DERECE ENGELLİ",4400,{"$f":"Ucret_Turleri_2023_2[[#This Row],[Aylık]]/30","v":146.66666666666666},{"$f":"Ucret_Turleri_2023_2[[#This Row],[Günlük]]/7.5","v":19.555555555555554},null,null,null,null,null,null,null,7,"Hazine (İmalat)",null,null,0.05]
[8,"2.DERECE ENGELLİ",2600,{"$f":"Ucret_Turleri_2023_2[[#This Row],[Aylık]]/30","v":86.666666666666671},{"$f":"Ucret_Turleri_2023_2[[#This Row],[Günlük]]/7.5","v":11.555555555555555},null,null,null,null,null,null,null,8,"Damga Vergisi Oranı",null,null,7.5900000000000004E-3]
[9,"3.DERECE ENGELLİ",1100,{"$f":"Ucret_Turleri_2023_2[[#This Row],[Aylık]]/30","v":36.666666666666664},{"$f":"Ucret_Turleri_2023_2[[#This Row],[Günlük]]/7.5","v":4.8888888888888884}]
[10,"Stajyer Ücreti",3420.7,{"$f":"Ucret_Turleri_2023_2[[#This Row],[Aylık]]/30","v":114.02333333333333},{"$f":"Ucret_Turleri_2023_2[[#This Row],[Günlük]]/7.5","v":15.203111111111109},null,null,null,null,null,null,null,"indx","SGDP Oranı","İşveren Payı","Çalışan Payı","Toplam"]
[11,"Çocuk Yardımı SGK İstisnası",268.29000000000002,{"$f":"Ucret_Turleri_2023_2[[#This Row],[Aylık]]/30","v":8.9430000000000014},{"$f":"Ucret_Turleri_2023_2[[#This Row],[Günlük]]/7.5","v":1.1924000000000001},null,null,null,null,null,null,null,1,"Emekli Çalışan",0.245,7.4999999999999997E-2,0.32]
[12,"Aile Yardımı SGK İstisnası",1341.45,{"$f":"Ucret_Turleri_2023_2[[#This Row],[Aylık]]/30","v":44.715000000000003},{"$f":"Ucret_Turleri_2023_2[[#This Row],[Günlük]]/7.5","v":5.9620000000000006}]
[13,"Nakit Yemek Parası SGK İstisnası",105.75,{"$f":"Ucret_Turleri_2023_2[[#This Row],[Aylık]]/30","v":3.5249999999999999},{"$f":"Ucret_Turleri_2023_2[[#This Row],[Günlük]]/7.5","v":0.47}]
[14,"Yemek Kartı SGK İstisnası",105.75,{"$f":"Ucret_Turleri_2023_2[[#This Row],[Aylık]]/30","v":3.5249999999999999},{"$f":"Ucret_Turleri_2023_2[[#This Row],[Günlük]]/7.5","v":0.47}]
[15,"Çocuk Yardımı GV İstisnası – 0-6 yaş",254.9,{"$f":"Ucret_Turleri_2023_2[[#This Row],[Aylık]]/30","v":8.4966666666666661},{"$f":"Ucret_Turleri_2023_2[[#This Row],[Günlük]]/7.5","v":1.1328888888888888}]
[16,"Çocuk Yardımı GV İstisnası – 6 yaş üzeri",127.45,{"$f":"Ucret_Turleri_2023_2[[#This Row],[Aylık]]/30","v":4.2483333333333331},{"$f":"Ucret_Turleri_2023_2[[#This Row],[Günlük]]/7.5","v":0.56644444444444442}]
[17,"Yemek Kartı GV İstisnası",110,{"$f":"Ucret_Turleri_2023_2[[#This Row],[Aylık]]/30","v":3.6666666666666665},{"$f":"Ucret_Turleri_2023_2[[#This Row],[Günlük]]/7.5","v":0.48888888888888887}]
[18,"Nakit Yemek Parası DV İstisnası",110,{"$f":"Ucret_Turleri_2023_2[[#This Row],[Aylık]]/30","v":3.6666666666666665},{"$f":"Ucret_Turleri_2023_2[[#This Row],[Günlük]]/7.5","v":0.48888888888888887}]
[19,"Nakit Yemek Parası GV İstisnası",110,{"$f":"Ucret_Turleri_2023_2[[#This Row],[Aylık]]/30","v":3.6666666666666665},{"$f":"Ucret_Turleri_2023_2[[#This Row],[Günlük]]/7.5","v":0.48888888888888887}]
[20,"Yol/Ulaşım Kartı GV İstisnası",56,{"$f":"Ucret_Turleri_2023_2[[#This Row],[Aylık]]/30","v":1.8666666666666667},{"$f":"Ucret_Turleri_2023_2[[#This Row],[Günlük]]/7.5","v":0.24888888888888888}]
[21,"Emzirme Ödeneği",520,{"$f":"Ucret_Turleri_2023_2[[#This Row],[Aylık]]/30","v":17.333333333333332},{"$f":"Ucret_Turleri_2023_2[[#This Row],[Günlük]]/7.5","v":2.3111111111111109}]
[22,"İşsizlik Ödeneği – Alt Limit",5325.07,{"$f":"Ucret_Turleri_2023_2[[#This Row],[Aylık]]/30","v":177.50233333333333},{"$f":"Ucret_Turleri_2023_2[[#This Row],[Günlük]]/7.5","v":23.666977777777777}]
[23,"İşsizlik Ödeneği – Üst Limit",10650.15,{"$f":"Ucret_Turleri_2023_2[[#This Row],[Aylık]]/30","v":355.005},{"$f":"Ucret_Turleri_2023_2[[#This Row],[Günlük]]/7.5","v":47.333999999999996}]
[24,"İş Göremezlik Ödeneği Ayakta Tedavi – Alt Limit",8943,{"$f":"Ucret_Turleri_2023_2[[#This Row],[Aylık]]/30","v":298.10000000000002},{"$f":"Ucret_Turleri_2023_2[[#This Row],[Günlük]]/7.5","v":39.74666666666667}]
[25,"İş Göremezlik Ödeneği Ayakta Tedavi – Üst Limit",67072.5,{"$f":"Ucret_Turleri_2023_2[[#This Row],[Aylık]]/30","v":2235.75},{"$f":"Ucret_Turleri_2023_2[[#This Row],[Günlük]]/7.5","v":298.10000000000002}]
[26,"İş Göremezlik Ödeneği Yatarak Tedavi – Alt Limit",6707.4000000000005,{"$f":"Ucret_Turleri_2023_2[[#This Row],[Aylık]]/30","v":223.58},{"$f":"Ucret_Turleri_2023_2[[#This Row],[Günlük]]/7.5","v":29.81066666666667}]
[27,"İş Göremezlik Ödeneği Yatarak Tedavi – Üst Limit",50304.299999999996,{"$f":"Ucret_Turleri_2023_2[[#This Row],[Aylık]]/30","v":1676.81},{"$f":"Ucret_Turleri_2023_2[[#This Row],[Günlük]]/7.5","v":223.57466666666667}]
[28,"Yarım Çalışma Ödeneği",13312.8,{"$f":"Ucret_Turleri_2023_2[[#This Row],[Aylık]]/30","v":443.76},{"$f":"Ucret_Turleri_2023_2[[#This Row],[Günlük]]/7.5","v":59.167999999999999}]

{"sheet":"readme","index":9,"n_rows":5,"n_cols":8,"rows_kept":5,"cut":false,"hidden":false,"merged":[[4,7,13,10],[0,0,26,3]]}
["Yıllara göre parametrelerinizi ayarlayabilirsiniz. \n\nYeni bir yıl eklemek için: \n1- Herhangi bir yıldan kopya bir sheet oluşturun.\n2- Yeni oluşturulan sheet'in adını değiştirin.\nörn: 2026(2) ---> 2027 gibi\n3-Parametre tablolarının fiziksel tablo eşleşmelerini belirlemek için, yeni oluşturulan sayfadaki tablo isimlerini standart adlandırma yapısına göre güncelleyin:\nörn:\nUcret_Turleri_2026_160  ------------------------------------------------------> Ucret_Turleri_2027_1\nVergi_Dilimleri_2026_157  ----------------------------------------------------> Vergi_Dilimleri_2027_1\nIsveren_prim_oranlari_normal_2026_158  ------------------------------> Isveren_prim_oranlari_normal_2027_1\nIsveren_prim_oranlari_emekli_2026_159  -------------------------------> Isveren_prim_oranlari_emekli_2027_1\n\nUcret_Turleri_2026_261  ------------------------------------------------------> Ucret_Turleri_2027_2\nVergi_Dilimleri_2026_262  ----------------------------------------------------> Vergi_Dilimleri_2027_2\nIsveren_prim_oranlari_normal_2026_158  ------------------------------> Isveren_prim_oranlari_normal_2027_1\nIsveren_prim_oranlari_emekli_2026_159  -------------------------------> Isveren_prim_oranlari_emekli_2027_1\n\nÖnemli: Sheet adının değiştirilmesi tek başına yeterli değildir. Sistem, hesaplamalarda fiziksel tablo adlarını kullandığından, sheet içerisindeki parametre tablolarının isimleri de doğru yıl ve dönem bilgisine göre güncellenmelidir. 2. dönem tabloların adını değiştirmeyi unutmayın. Parametre değerlerini girmeyi unutmayın.\n\nsm_b: bordro ve tazminat hesaplama sayfası, sadece ücret ve değişkenleri belirtiniz. Hesaplama amaçlıdır.\nparams: parametre görüntüleme sayfası, sadece yıl ve dönem seçiniz. Bilgi amaçlıdır.\n2026-2025-2024 ... : bu sayfalara parametre ekleyip ya da güncelleyebilirsiniz. Kısıtlı ve kontrollü veri giriş sayfalarıdır. sm_b ve params sayfalarını besler.\n*Entegre işlemler, toplu maliyet hesaplamaları, ek ücretler/primler veya başka işlemler için iletişime geçiniz..\n"]
[]
[]
[]
[null,null,null,null,null,null,null,"Sayfalarda yalnızca soldaki renkle belirtilen kolonlara veri girişi ya da seçim yapınız. Diğer kolonlar otomatik olarak hesaplanacaktır."]